Workbook

Sheet Home
A34: 1

Sheet Startup
A1: ='Chart Data'!A1 -> 21517920 | B1: ='Chart Data'!B1 -> 76377600 | C1: ='Chart Data'!C1 -> 146880000 | D1: ='Chart Data'!D1 -> 205632000 | E1: ='Chart Data'!E1 -> 211507200 | F1: ='Chart Data'!F1 -> P&L | G1: ='Chart Data'!G1 -> 0 | H1: ='Chart Data'!H1 -> Least Cash | I1: ='Chart Data'!I1 -> -3145756.45 | J1: ='Chart Data'!J1 -> Net Sales | K1: ='Chart Data'!K1 -> Co. Type | L1: ='Chart Data'!L1 -> LLC | M1: =IF(D18<>"",D18 & " Pro Forma Financial Statements",D18& "Pro Forma Financial Statements") -> ACTS CerarMix Solutions International LLC "Structure Division" Pro Forma Financial Statements | O1: =IF(D18="","Pro Forma Financial Projections","Pro Forma Financial Projections for:" & CHAR(10) & D18) -> Pro Forma Financial Projections for: ACTS CerarMix Solutions International LLC "Structure Division" | R1: 10 Year | S1: Vessels, Greenhouses, Fruit/Nut Trees | V1: Vessels / Greenhouses | Z1: MACRS | AA1: Land | AB1: 3 | AC1: 5 | AD1: 7 | AE1: 15 | AF1: 27.5 | AG1: 39
A2: ='Chart Data'!A2 -> 8790000 | B2: ='Chart Data'!B2 -> 31200000 | C2: ='Chart Data'!C2 -> 60000000 | D2: ='Chart Data'!D2 -> 84000000 | E2: ='Chart Data'!E2 -> 86400000 | F2: Startup | G2: ='Chart Data'!G2 -> 0 | H2: ='Chart Data'!H2 -> Most Cash | I2: ='Chart Data'!I2 -> 107523558.6 | J2: ='Chart Data'!J2 -> COGS | K2: ='Chart Data'!K2 -> Taxes | L2: ='Chart Data'!L2 -> 22583343.36 | R2: 20 Year | S2: Farm buildings that are not agricultural | V2: Farm Buildings | Z2: Straight-Line | AC2: =B32 -> Variable Equipment Set 1 | AF2: =B33 -> Variable Equipment Set 2 | AI2: =#REF! ->  | AL2: =$B34 -> Variable Equipment Set 3 | AO2: =#REF! ->  | AR2: =$B37 -> Variable Equipment Set 6 | AU2: =#REF! ->  | AX2: =#REF! ->  | BA2: =$B40 -> 4-cavity vacuum press | BD2: =$B41 -> Eps block molding | BG2: =$B42 -> Eps block molding | BK2: =$B43 -> Eps block molding | BN2: =$B36 -> Variable Equipment Set 5 | BQ2: =$B39 -> 4-cavity vacuum press | BT2: =$B38 -> 4-cavity vacuum press | BW2: =$B35 -> Variable Equipment Set 4 | BZ2: =$B48 -> Depreciation #17 | CC2: =$B49 -> Depreciation #18 | CF2: =$B50 -> Depreciation #19 | CI2: =$B51 -> Depreciation #20 | CL2: =$B52 -> Depreciation #21 | CO2: =$B53 -> Depreciation #22 | CR2: =$B54 -> Depreciation #23 | CU2: =$B55 -> Depreciation #24 | CX2: =$B56 -> Depreciation #25
A3: ='Chart Data'!A3 -> 11413249.23 | B3: ='Chart Data'!B3 -> 27725749.05 | C3: ='Chart Data'!C3 -> 46899990.33 | D3: ='Chart Data'!D3 -> 62208742.16 | E3: ='Chart Data'!E3 -> 65417940.81 | F3: =F2&" - " &Name -> Startup - ACTS CerarMix Solutions International LLC "Structure Division" Pro Forma Financial Statements | G3: ='Chart Data'!G3 -> 0 | H3: ='Chart Data'!H3 -> Breakeven | I3: ='Chart Data'!I3 -> Mon 10 | J3: ='Chart Data'!J3 -> Expenses | K3: ='Chart Data'!K3 -> Cap. Ex. | L3: ='Chart Data'!L3 -> 8222640
A4: ='Chart Data'!A4 -> 672599.718 | B4: ='Chart Data'!B4 -> 7438568.648 | C4: ='Chart Data'!C4 -> 16762885.38 | D4: ='Chart Data'!D4 -> 24665169.97 | E4: ='Chart Data'!E4 -> 24636622.22 | F4: ='Chart Data'!F4 -> 60 | G4: ='Chart Data'!G4 -> 0 | H4: ='Chart Data'!H4 -> Investment | I4: ='Chart Data'!I4 -> 0 | J4: ='Chart Data'!J4 -> Tax Dep Int | K4: ='Chart Data'!K4 -> Max. Emp. | L4: ='Chart Data'!L4 -> 640
A5: ='Chart Data'!A5 -> 642071.057 | B5: ='Chart Data'!B5 -> 10013282.3 | C5: ='Chart Data'!C5 -> 23217124.28 | D5: ='Chart Data'!D5 -> 34758087.87 | E5: ='Chart Data'!E5 -> 35052636.96 | F5: ='Chart Data'!F5 -> 60 | G5: ='Chart Data'!G5 -> 0 | H5: ='Chart Data'!H5 -> Debt | I5: ='Chart Data'!I5 -> 0 | J5: ='Chart Data'!J5 -> Net Income | K5: ='Chart Data'!K5 -> Valuation | L5: ='Chart Data'!L5 -> Revenue (1x)
A6: ='Chart Data'!A6 -> 0 | B6: ='Chart Data'!B6 -> 0 | C6: ='Chart Data'!C6 -> 0 | D6: ='Chart Data'!D6 -> 0 | E6: ='Chart Data'!E6 -> 0 | F6: ='Chart Data'!F6 -> 0 | G6: ='Chart Data'!G6 -> 0 | H6: ='Chart Data'!H6 -> 0 | I6: ='Chart Data'!I6 -> 0 | J6: ='Chart Data'!J6 -> 0 | K6: ='Chart Data'!K6 -> 0
A7: ='Chart Data'!A7 -> 672599.718 | B7: ='Chart Data'!B7 -> 7438568.648 | C7: ='Chart Data'!C7 -> 16762885.38 | D7: ='Chart Data'!D7 -> 24665169.97 | E7: ='Chart Data'!E7 -> 24636622.22 | F7: ='Chart Data'!F7 -> 0 | G7: ='Chart Data'!G7 -> 0 | H7: ='Chart Data'!H7 -> 0 | I7: ='Chart Data'!I7 -> 0 | J7: ='Chart Data'!J7 -> 0 | K7: ='Chart Data'!K7 -> 0
L10: ='Chart Data'!L3 -> 8222640 | Z10: N/A | AC10: Amount | AD10: =$D32 -> 539940 | AF10: Amount | AG10: =$D33 -> 539940 | AI10: Amount | AJ10: =#REF! ->  | AL10: Amount | AM10: =$D34 -> 539940 | AO10: Amount | AP10: =#REF! ->  | AR10: Amount | AS10: =$D37 -> 539940 | AU10: Amount | AV10: =#REF! ->  | AX10: Amount | AY10: =#REF! ->  | BA10: Amount | BB10: =$D40 -> 400000 | BD10: Amount | BE10: =$D41 -> 1261000 | BG10: Amount | BH10: =$D42 -> 1261000 | BK10: Amount | BL10: =$D43 -> 1261000 | BN10: Amount | BO10: =$D36 -> 539940 | BQ10: Amount | BR10: =$D39 -> 400000 | BT10: Amount | BU10: =$D38 -> 400000 | BW10: Amount | BX10: =$D35 -> 539940 | BZ10: Amount | CA10: =$D48 -> 0 | CC10: Amount | CD10: =$D49 -> 0 | CF10: Amount | CG10: =$D50 -> 0 | CI10: Amount | CJ10: =$D51 -> 0 | CL10: Amount | CM10: =$D52 -> 0 | CO10: Amount | CP10: =$D53 -> 0 | CR10: Amount | CS10: =$D54 -> 0 | CU10: Amount | CV10: =$D55 -> 0 | CX10: Amount | CY10: =$D56 -> 0 | DK10: =IF($E33=$CZ43,1,0) -> 0
L11: ='Chart Data'!L4 -> 640 | AC11: Month | AD11: =$E32 -> 4 | AF11: Month | AG11: =$E33 -> 12 | AI11: Month | AJ11: =#REF! ->  | AL11: Month | AM11: =$E34 -> 18 | AO11: Month | AP11: =#REF! ->  | AR11: Month | AS11: =$E37 -> 36 | AU11: Month | AV11: =#REF! ->  | AX11: Month | AY11: =#REF! ->  | BA11: Month | BB11: =$E40 -> 30 | BD11: Month | BE11: =$E41 -> 3 | BG11: Month | BH11: =$E42 -> 18 | BK11: Month | BL11: =$E43 -> 30 | BN11: Month | BO11: =$E36 -> 30 | BQ11: Month | BR11: =$E39 -> 18 | BT11: Month | BU11: =$E38 -> 3 | BW11: Month | BX11: =$E35 -> 24 | BZ11: Month | CA11: =$E48 -> 0 | CC11: Month | CD11: =$E49 -> 0 | CF11: Month | CG11: =$E50 -> 0 | CI11: Month | CJ11: =$E51 -> 0 | CL11: Month | CM11: =$E52 -> 0 | CO11: Month | CP11: =$E53 -> 0 | CR11: Month | CS11: =$E54 -> 0 | CU11: Month | CV11: =$E55 -> 0 | CX11: Month | CY11: =$E56 -> 0
L12: ='Chart Data'!L5 -> Revenue (1x) | AC12: Years | AD12: =$F32 -> 7 | AF12: Years | AG12: =$F33 -> 7 | AI12: Years | AJ12: =#REF! ->  | AL12: Years | AM12: =$F34 -> 7 | AO12: Years | AP12: =#REF! ->  | AR12: Years | AS12: =$F37 -> 7 | AU12: Years | AV12: =#REF! ->  | AX12: Years | AY12: =#REF! ->  | BA12: Years | BB12: =$F40 -> 7 | BD12: Years | BE12: =$F41 -> 7 | BG12: Years | BH12: =$F42 -> 7 | BK12: Years | BL12: =$F43 -> 7 | BN12: Years | BO12: =$F36 -> 7 | BQ12: Years | BR12: =$F39 -> 7 | BT12: Years | BU12: =$F38 -> 7 | BW12: Years | BX12: =$F35 -> 7 | BZ12: Years | CA12: =$F48 -> 0 | CC12: Years | CD12: =$F49 -> 0 | CF12: Years | CG12: =$F50 -> 0 | CI12: Years | CJ12: =$F51 -> 0 | CL12: Years | CM12: =$F52 -> 0 | CO12: Years | CP12: =$F53 -> 0 | CR12: Years | CS12: =$F54 -> 0 | CU12: Years | CV12: =$F55 -> 0 | CX12: Years | CY12: =$F56 -> 0 | DA12: Totals by Class
AC13: Method | AD13: =IF(OR(AD12=3,AD12=15),"Straight-Line","MACRS") -> MACRS | AF13: Method | AG13: =IF(OR(AG12=3,AG12=15),"Straight-Line","MACRS") -> MACRS | AI13: Method | AJ13: =IF(OR(AJ12=3,AJ12=15),"Straight-Line","MACRS") ->  | AL13: Method | AM13: =IF(OR(AM12=3,AM12=15),"Straight-Line","MACRS") -> MACRS | AO13: Method | AP13: =IF(OR(AP12=3,AP12=15),"Straight-Line","MACRS") ->  | AR13: Method | AS13: =IF(OR(AS12=3,AS12=15),"Straight-Line","MACRS") -> MACRS | AU13: Method | AV13: =IF(OR(AV12=3,AV12=15),"Straight-Line","MACRS") ->  | AX13: Method | AY13: =IF(OR(AY12=3,AY12=15),"Straight-Line","MACRS") ->  | BA13: Method | BB13: =IF(OR(BB12=3,BB12=15),"Straight-Line","MACRS") -> MACRS | BD13: Method | BE13: =IF(OR(BE12=3,BE12=15),"Straight-Line","MACRS") -> MACRS | BG13: Method | BH13: =IF(OR(BH12=3,BH12=15),"Straight-Line","MACRS") -> MACRS | BK13: Method | BL13: =IF(OR(BL12=3,BL12=15),"Straight-Line","MACRS") -> MACRS | BN13: Method | BO13: =IF(OR(BO12=3,BO12=15),"Straight-Line","MACRS") -> MACRS | BQ13: Method | BR13: =IF(OR(BR12=3,BR12=15),"Straight-Line","MACRS") -> MACRS | BT13: Method | BU13: =IF(OR(BU12=3,BU12=15),"Straight-Line","MACRS") -> MACRS | BW13: Method | BX13: =IF(OR(BX12=3,BX12=15),"Straight-Line","MACRS") -> MACRS | BZ13: Method | CA13: =IF(OR(CA12=3,CA12=15),"Straight-Line","MACRS") -> MACRS | CC13: Method | CD13: =IF(OR(CD12=3,CD12=15),"Straight-Line","MACRS") -> MACRS | CF13: Method | CG13: =IF(OR(CG12=3,CG12=15),"Straight-Line","MACRS") -> MACRS | CI13: Method | CJ13: =IF(OR(CJ12=3,CJ12=15),"Straight-Line","MACRS") -> MACRS | CL13: Method | CM13: =IF(OR(CM12=3,CM12=15),"Straight-Line","MACRS") -> MACRS | CO13: Method | CP13: =IF(OR(CP12=3,CP12=15),"Straight-Line","MACRS") -> MACRS | CR13: Method | CS13: =IF(OR(CS12=3,CS12=15),"Straight-Line","MACRS") -> MACRS | CU13: Method | CV13: =IF(OR(CV12=3,CV12=15),"Straight-Line","MACRS") -> MACRS | CX13: Method | CY13: =IF(OR(CY12=3,CY12=15),"Straight-Line","MACRS") -> MACRS
AC14: Months | AD14: =IF(OR(AD12="Land",AD12=""),0,IF(AD13="N/A",0,IF(AD13=$Z$1,(AD12+0.5)*12,AD12*12))) -> 90 | AF14: Months | AG14: =IF(OR(AG12="Land",AG12=""),0,IF(AG13="N/A",0,IF(AG13=$Z$1,(AG12+0.5)*12,AG12*12))) -> 90 | AI14: Months | AJ14: =IF(OR(AJ12="Land",AJ12=""),0,IF(AJ13="N/A",0,IF(AJ13=$Z$1,(AJ12+0.5)*12,AJ12*12))) ->  | AL14: Months | AM14: =IF(OR(AM12="Land",AM12=""),0,IF(AM13="N/A",0,IF(AM13=$Z$1,(AM12+0.5)*12,AM12*12))) -> 90 | AO14: Months | AP14: =IF(OR(AP12="Land",AP12=""),0,IF(AP13="N/A",0,IF(AP13=$Z$1,(AP12+0.5)*12,AP12*12))) ->  | AR14: Months | AS14: =IF(OR(AS12="Land",AS12=""),0,IF(AS13="N/A",0,IF(AS13=$Z$1,(AS12+0.5)*12,AS12*12))) -> 90 | AU14: Months | AV14: =IF(OR(AV12="Land",AV12=""),0,IF(AV13="N/A",0,IF(AV13=$Z$1,(AV12+0.5)*12,AV12*12))) ->  | AX14: Months | AY14: =IF(OR(AY12="Land",AY12=""),0,IF(AY13="N/A",0,IF(AY13=$Z$1,(AY12+0.5)*12,AY12*12))) ->  | BA14: Months | BB14: =IF(OR(BB12="Land",BB12=""),0,IF(BB13="N/A",0,IF(BB13=$Z$1,(BB12+0.5)*12,BB12*12))) -> 90 | BD14: Months | BE14: =IF(OR(BE12="Land",BE12=""),0,IF(BE13="N/A",0,IF(BE13=$Z$1,(BE12+0.5)*12,BE12*12))) -> 90 | BG14: Months | BH14: =IF(OR(BH12="Land",BH12=""),0,IF(BH13="N/A",0,IF(BH13=$Z$1,(BH12+0.5)*12,BH12*12))) -> 90 | BK14: Months | BL14: =IF(OR(BL12="Land",BL12=""),0,IF(BL13="N/A",0,IF(BL13=$Z$1,(BL12+0.5)*12,BL12*12))) -> 90 | BN14: Months | BO14: =IF(OR(BO12="Land",BO12=""),0,IF(BO13="N/A",0,IF(BO13=$Z$1,(BO12+0.5)*12,BO12*12))) -> 90 | BQ14: Months | BR14: =IF(OR(BR12="Land",BR12=""),0,IF(BR13="N/A",0,IF(BR13=$Z$1,(BR12+0.5)*12,BR12*12))) -> 90 | BT14: Months | BU14: =IF(OR(BU12="Land",BU12=""),0,IF(BU13="N/A",0,IF(BU13=$Z$1,(BU12+0.5)*12,BU12*12))) -> 90 | BW14: Months | BX14: =IF(OR(BX12="Land",BX12=""),0,IF(BX13="N/A",0,IF(BX13=$Z$1,(BX12+0.5)*12,BX12*12))) -> 90 | BZ14: Months | CA14: =IF(OR(CA12="Land",CA12=""),0,IF(CA13="N/A",0,IF(CA13=$Z$1,(CA12+0.5)*12,CA12*12))) -> 6 | CC14: Months | CD14: =IF(OR(CD12="Land",CD12=""),0,IF(CD13="N/A",0,IF(CD13=$Z$1,(CD12+0.5)*12,CD12*12))) -> 6 | CF14: Months | CG14: =IF(OR(CG12="Land",CG12=""),0,IF(CG13="N/A",0,IF(CG13=$Z$1,(CG12+0.5)*12,CG12*12))) -> 6 | CI14: Months | CJ14: =IF(OR(CJ12="Land",CJ12=""),0,IF(CJ13="N/A",0,IF(CJ13=$Z$1,(CJ12+0.5)*12,CJ12*12))) -> 6 | CL14: Months | CM14: =IF(OR(CM12="Land",CM12=""),0,IF(CM13="N/A",0,IF(CM13=$Z$1,(CM12+0.5)*12,CM12*12))) -> 6 | CO14: Months | CP14: =IF(OR(CP12="Land",CP12=""),0,IF(CP13="N/A",0,IF(CP13=$Z$1,(CP12+0.5)*12,CP12*12))) -> 6 | CR14: Months | CS14: =IF(OR(CS12="Land",CS12=""),0,IF(CS13="N/A",0,IF(CS13=$Z$1,(CS12+0.5)*12,CS12*12))) -> 6 | CU14: Months | CV14: =IF(OR(CV12="Land",CV12=""),0,IF(CV13="N/A",0,IF(CV13=$Z$1,(CV12+0.5)*12,CV12*12))) -> 6 | CX14: Months | CY14: =IF(OR(CY12="Land",CY12=""),0,IF(CY13="N/A",0,IF(CY13=$Z$1,(CY12+0.5)*12,CY12*12))) -> 6 | DA14: Total Depreciation | DK14: Purchases by Month
AC15: Adjusted Months | AD15: =IF(AD11<0,AD14+1,AD14) -> 90 | AF15: Adjusted Months | AG15: =IF(AG11<0,AG14+1,AG14) -> 90 | AI15: Adjusted Months | AJ15: =IF(AJ11<0,AJ14+1,AJ14) ->  | AL15: Adjusted Months | AM15: =IF(AM11<0,AM14+1,AM14) -> 90 | AO15: Adjusted Months | AP15: =IF(AP11<0,AP14+1,AP14) ->  | AR15: Adjusted Months | AS15: =IF(AS11<0,AS14+1,AS14) -> 90 | AU15: Adjusted Months | AV15: =IF(AV11<0,AV14+1,AV14) ->  | AX15: Adjusted Months | AY15: =IF(AY11<0,AY14+1,AY14) ->  | BA15: Adjusted Months | BB15: =IF(BB11<0,BB14+1,BB14) -> 90 | BD15: Adjusted Months | BE15: =IF(BE11<0,BE14+1,BE14) -> 90 | BG15: Adjusted Months | BH15: =IF(BH11<0,BH14+1,BH14) -> 90 | BK15: Adjusted Months | BL15: =IF(BL11<0,BL14+1,BL14) -> 90 | BN15: Adjusted Months | BO15: =IF(BO11<0,BO14+1,BO14) -> 90 | BQ15: Adjusted Months | BR15: =IF(BR11<0,BR14+1,BR14) -> 90 | BT15: Adjusted Months | BU15: =IF(BU11<0,BU14+1,BU14) -> 90 | BW15: Adjusted Months | BX15: =IF(BX11<0,BX14+1,BX14) -> 90 | BZ15: Adjusted Months | CA15: =IF(CA11<0,CA14+1,CA14) -> 6 | CC15: Adjusted Months | CD15: =IF(CD11<0,CD14+1,CD14) -> 6 | CF15: Adjusted Months | CG15: =IF(CG11<0,CG14+1,CG14) -> 6 | CI15: Adjusted Months | CJ15: =IF(CJ11<0,CJ14+1,CJ14) -> 6 | CL15: Adjusted Months | CM15: =IF(CM11<0,CM14+1,CM14) -> 6 | CO15: Adjusted Months | CP15: =IF(CP11<0,CP14+1,CP14) -> 6 | CR15: Adjusted Months | CS15: =IF(CS11<0,CS14+1,CS14) -> 6 | CU15: Adjusted Months | CV15: =IF(CV11<0,CV14+1,CV14) -> 6 | CX15: Adjusted Months | CY15: =IF(CY11<0,CY14+1,CY14) -> 6 | DU15: Depreciation | EE15: Purchases
D16: Company Information | AC16: Lookup | AD16: =HLOOKUP(AD12,$AJ$106:$AQ$107,2) -> 4 | AF16: Lookup | AG16: =HLOOKUP(AG12,$AJ$106:$AQ$107,2) -> 4 | AI16: Lookup | AJ16: =HLOOKUP(AJ12,$AJ$106:$AQ$107,2) ->  | AL16: Lookup | AM16: =HLOOKUP(AM12,$AJ$106:$AQ$107,2) -> 4 | AO16: Lookup | AP16: =HLOOKUP(AP12,$AJ$106:$AQ$107,2) ->  | AR16: Lookup | AS16: =HLOOKUP(AS12,$AJ$106:$AQ$107,2) -> 4 | AU16: Lookup | AV16: =HLOOKUP(AV12,$AJ$106:$AQ$107,2) ->  | AX16: Lookup | AY16: =HLOOKUP(AY12,$AJ$106:$AQ$107,2) ->  | BA16: Lookup | BB16: =HLOOKUP(BB12,$AJ$106:$AQ$107,2) -> 4 | BD16: Lookup | BE16: =HLOOKUP(BE12,$AJ$106:$AQ$107,2) -> 4 | BG16: Lookup | BH16: =HLOOKUP(BH12,$AJ$106:$AQ$107,2) -> 4 | BK16: Lookup | BL16: =HLOOKUP(BL12,$AJ$106:$AQ$107,2) -> 4 | BN16: Lookup | BO16: =HLOOKUP(BO12,$AJ$106:$AQ$107,2) -> 4 | BQ16: Lookup | BR16: =HLOOKUP(BR12,$AJ$106:$AQ$107,2) -> 4 | BT16: Lookup | BU16: =HLOOKUP(BU12,$AJ$106:$AQ$107,2) -> 4 | BW16: Lookup | BX16: =HLOOKUP(BX12,$AJ$106:$AQ$107,2) -> 4 | BZ16: Lookup | CA16: =HLOOKUP(CA12,$AJ$106:$AQ$107,2) ->  | CC16: Lookup | CD16: =HLOOKUP(CD12,$AJ$106:$AQ$107,2) ->  | CF16: Lookup | CG16: =HLOOKUP(CG12,$AJ$106:$AQ$107,2) ->  | CI16: Lookup | CJ16: =HLOOKUP(CJ12,$AJ$106:$AQ$107,2) ->  | CL16: Lookup | CM16: =HLOOKUP(CM12,$AJ$106:$AQ$107,2) ->  | CO16: Lookup | CP16: =HLOOKUP(CP12,$AJ$106:$AQ$107,2) ->  | CR16: Lookup | CS16: =HLOOKUP(CS12,$AJ$106:$AQ$107,2) ->  | CU16: Lookup | CV16: =HLOOKUP(CV12,$AJ$106:$AQ$107,2) ->  | CX16: Lookup | CY16: =HLOOKUP(CY12,$AJ$106:$AQ$107,2) ->  | DA16: Land | DB16: 3 | DC16: 5 | DD16: 7 | DE16: 10 | DF16: 15 | DG16: 20 | DH16: 27.5 | DI16: 39 | DK16: Land | DL16: 3 | DM16: 5 | DN16: 7 | DO16: 10 | DP16: 15 | DQ16: 20 | DR16: 27.5 | DS16: 39 | DU16: Land | DV16: 3 | DW16: 5 | DX16: 7 | DY16: 10 | DZ16: 15 | EA16: 20 | EB16: 27.5 | EC16: 39 | EE16: Land | EF16: 3 | EG16: 5 | EH16: 7 | EI16: 10 | EJ16: 15 | EK16: 20 | EL16: 27.5 | EM16: 39
C18: Company Name | D18: ACTS CerarMix Solutions International LLC "Structure Division" | Z18: -24 | AA18: Mon -24 | AB18: =IF(OR($Z18<AD$11,$Z18>=AD$11+AD$15,AD$10=0,AD$11=0,AD$12=0,AD$14=0),0,IF(AB17>0,AB17+1,1)) -> 0 | AC18: =IF(AB18=0,0,IF(AD$13=$Z$1,VLOOKUP(AB18,$AI$109:$AQ$168,AD$16),1/AD$14)) -> 0 | AD18: =AD$10*AC18 -> 0 | AE18: =IF(OR($Z18<AG$11,$Z18>=AG$11+AG$15,AG$10=0,AG$11=0,AG$12=0,AG$14=0),0,IF(AE17>0,AE17+1,1)) -> 0 | AF18: =IF(AE18=0,0,IF(AG$13=$Z$1,VLOOKUP(AE18,$AI$109:$AQ$168,AG$16),1/AG$14)) -> 0 | AG18: =AG$10*AF18 -> 0 | AH18: =IF(OR($Z18<AJ$11,$Z18>=AJ$11+AJ$15,AJ$10=0,AJ$11=0,AJ$12=0,AJ$14=0),0,IF(AH17>0,AH17+1,1)) ->  | AI18: =IF(AH18=0,0,IF(AJ$13=$Z$1,VLOOKUP(AH18,$AI$109:$AQ$168,AJ$16),1/AJ$14)) ->  | AJ18: =AJ$10*AI18 ->  | AK18: =IF(OR($Z18<AM$11,$Z18>=AM$11+AM$15,AM$10=0,AM$11=0,AM$12=0,AM$14=0),0,IF(AK17>0,AK17+1,1)) -> 0 | AL18: =IF(AK18=0,0,IF(AM$13=$Z$1,VLOOKUP(AK18,$AI$109:$AQ$168,AM$16),1/AM$14)) -> 0 | AM18: =AM$10*AL18 -> 0 | AN18: =IF(OR($Z18<AP$11,$Z18>=AP$11+AP$15,AP$10=0,AP$11=0,AP$12=0,AP$14=0),0,IF(AN17>0,AN17+1,1)) ->  | AO18: =IF(AN18=0,0,IF(AP$13=$Z$1,VLOOKUP(AN18,$AI$109:$AQ$168,AP$16),1/AP$14)) ->  | AP18: =AP$10*AO18 ->  | AQ18: =IF(OR($Z18<AS$11,$Z18>=AS$11+AS$15,AS$10=0,AS$11=0,AS$12=0,AS$14=0),0,IF(AQ17>0,AQ17+1,1)) -> 0 | AR18: =IF(AQ18=0,0,IF(AS$13=$Z$1,VLOOKUP(AQ18,$AI$109:$AQ$168,AS$16),1/AS$14)) -> 0 | AS18: =AS$10*AR18 -> 0 | AT18: =IF(OR($Z18<AV$11,$Z18>=AV$11+AV$15,AV$10=0,AV$11=0,AV$12=0,AV$14=0),0,IF(AT17>0,AT17+1,1)) ->  | AU18: =IF(AT18=0,0,IF(AV$13=$Z$1,VLOOKUP(AT18,$AI$109:$AQ$168,AV$16),1/AV$14)) ->  | AV18: =AV$10*AU18 ->  | AW18: =IF(OR($Z18<AY$11,$Z18>=AY$11+AY$15,AY$10=0,AY$11=0,AY$12=0,AY$14=0),0,IF(AW17>0,AW17+1,1)) ->  | AX18: =IF(AW18=0,0,IF(AY$13=$Z$1,VLOOKUP(AW18,$AI$109:$AQ$168,AY$16),1/AY$14)) ->  | AY18: =AY$10*AX18 ->  | AZ18: =IF(OR($Z18<BB$11,$Z18>=BB$11+BB$15,BB$10=0,BB$11=0,BB$12=0,BB$14=0),0,IF(AZ17>0,AZ17+1,1)) -> 0 | BA18: =IF(AZ18=0,0,IF(BB$13=$Z$1,VLOOKUP(AZ18,$AI$109:$AQ$168,BB$16),1/BB$14)) -> 0 | BB18: =BB$10*BA18 -> 0 | BC18: =IF(OR($Z18<BE$11,$Z18>=BE$11+BE$15,BE$10=0,BE$11=0,BE$12=0,BE$14=0),0,IF(BC17>0,BC17+1,1)) -> 0 | BD18: =IF(BC18=0,0,IF(BE$13=$Z$1,VLOOKUP(BC18,$AI$109:$AQ$168,BE$16),1/BE$14)) -> 0 | BE18: =BE$10*BD18 -> 0 | BF18: =IF(OR($Z18<BH$11,$Z18>=BH$11+BH$15,BH$10=0,BH$11=0,BH$12=0,BH$14=0),0,IF(BF17>0,BF17+1,1)) -> 0 | BG18: =IF(BF18=0,0,IF(BH$13=$Z$1,VLOOKUP(BF18,$AI$109:$AQ$168,BH$16),1/BH$14)) -> 0 | BH18: =BH$10*BG18 -> 0 | BJ18: =IF(OR($Z18<BL$11,$Z18>=BL$11+BL$15,BL$10=0,BL$11=0,BL$12=0,BL$14=0),0,IF(BJ17>0,BJ17+1,1)) -> 0 | BK18: =IF(BJ18=0,0,IF(BL$13=$Z$1,VLOOKUP(BJ18,$AI$109:$AQ$168,BL$16),1/BL$14)) -> 0 | BL18: =BL$10*BK18 -> 0 | BM18: =IF(OR($Z18<BO$11,$Z18>=BO$11+BO$15,BO$10=0,BO$11=0,BO$12=0,BO$14=0),0,IF(BM17>0,BM17+1,1)) -> 0 | BN18: =IF(BM18=0,0,IF(BO$13=$Z$1,VLOOKUP(BM18,$AI$109:$AQ$168,BO$16),1/BO$14)) -> 0 | BO18: =BO$10*BN18 -> 0 | BP18: =IF(OR($Z18<BR$11,$Z18>=BR$11+BR$15,BR$10=0,BR$11=0,BR$12=0,BR$14=0),0,IF(BP17>0,BP17+1,1)) -> 0 | BQ18: =IF(BP18=0,0,IF(BR$13=$Z$1,VLOOKUP(BP18,$AI$109:$AQ$168,BR$16),1/BR$14)) -> 0 | BR18: =BR$10*BQ18 -> 0 | BS18: =IF(OR($Z18<BU$11,$Z18>=BU$11+BU$15,BU$10=0,BU$11=0,BU$12=0,BU$14=0),0,IF(BS17>0,BS17+1,1)) -> 0 | BT18: =IF(BS18=0,0,IF(BU$13=$Z$1,VLOOKUP(BS18,$AI$109:$AQ$168,BU$16),1/BU$14)) -> 0 | BU18: =BU$10*BT18 -> 0 | BV18: =IF(OR($Z18<BX$11,$Z18>=BX$11+BX$15,BX$10=0,BX$11=0,BX$12=0,BX$14=0),0,IF(BV17>0,BV17+1,1)) -> 0 | BW18: =IF(BV18=0,0,IF(BX$13=$Z$1,VLOOKUP(BV18,$AI$109:$AQ$168,BX$16),1/BX$14)) -> 0 | BX18: =BX$10*BW18 -> 0 | BY18: =IF(OR($Z18<CA$11,$Z18>=CA$11+CA$15,CA$10=0,CA$11=0,CA$12=0,CA$14=0),0,IF(BY17>0,BY17+1,1)) -> 0 | BZ18: =IF(BY18=0,0,IF(CA$13=$Z$1,VLOOKUP(BY18,$AI$109:$AQ$168,CA$16),1/CA$14)) -> 0 | CA18: =CA$10*BZ18 -> 0 | CB18: =IF(OR($Z18<CD$11,$Z18>=CD$11+CD$15,CD$10=0,CD$11=0,CD$12=0,CD$14=0),0,IF(CB17>0,CB17+1,1)) -> 0 | CC18: =IF(CB18=0,0,IF(CD$13=$Z$1,VLOOKUP(CB18,$AI$109:$AQ$168,CD$16),1/CD$14)) -> 0 | CD18: =CD$10*CC18 -> 0 | CE18: =IF(OR($Z18<CG$11,$Z18>=CG$11+CG$15,CG$10=0,CG$11=0,CG$12=0,CG$14=0),0,IF(CE17>0,CE17+1,1)) -> 0 | CF18: =IF(CE18=0,0,IF(CG$13=$Z$1,VLOOKUP(CE18,$AI$109:$AQ$168,CG$16),1/CG$14)) -> 0 | CG18: =CG$10*CF18 -> 0 | CH18: =IF(OR($Z18<CJ$11,$Z18>=CJ$11+CJ$15,CJ$10=0,CJ$11=0,CJ$12=0,CJ$14=0),0,IF(CH17>0,CH17+1,1)) -> 0 | CI18: =IF(CH18=0,0,IF(CJ$13=$Z$1,VLOOKUP(CH18,$AI$109:$AQ$168,CJ$16),1/CJ$14)) -> 0 | CJ18: =CJ$10*CI18 -> 0 | CK18: =IF(OR($Z18<CM$11,$Z18>=CM$11+CM$15,CM$10=0,CM$11=0,CM$12=0,CM$14=0),0,IF(CK17>0,CK17+1,1)) -> 0 | CL18: =IF(CK18=0,0,IF(CM$13=$Z$1,VLOOKUP(CK18,$AI$109:$AQ$168,CM$16),1/CM$14)) -> 0 | CM18: =CM$10*CL18 -> 0 | CN18: =IF(OR($Z18<CP$11,$Z18>=CP$11+CP$15,CP$10=0,CP$11=0,CP$12=0,CP$14=0),0,IF(CN17>0,CN17+1,1)) -> 0 | CO18: =IF(CN18=0,0,IF(CP$13=$Z$1,VLOOKUP(CN18,$AI$109:$AQ$168,CP$16),1/CP$14)) -> 0 | CP18: =CP$10*CO18 -> 0 | CQ18: =IF(OR($Z18<CS$11,$Z18>=CS$11+CS$15,CS$10=0,CS$11=0,CS$12=0,CS$14=0),0,IF(CQ17>0,CQ17+1,1)) -> 0 | CR18: =IF(CQ18=0,0,IF(CS$13=$Z$1,VLOOKUP(CQ18,$AI$109:$AQ$168,CS$16),1/CS$14)) -> 0 | CS18: =CS$10*CR18 -> 0 | CT18: =IF(OR($Z18<CV$11,$Z18>=CV$11+CV$15,CV$10=0,CV$11=0,CV$12=0,CV$14=0),0,IF(CT17>0,CT17+1,1)) -> 0 | CU18: =IF(CT18=0,0,IF(CV$13=$Z$1,VLOOKUP(CT18,$AI$109:$AQ$168,CV$16),1/CV$14)) -> 0 | CV18: =CV$10*CU18 -> 0 | CW18: =IF(OR($Z18<CY$11,$Z18>=CY$11+CY$15,CY$10=0,CY$11=0,CY$12=0,CY$14=0),0,IF(CW17>0,CW17+1,1)) -> 0 | CX18: =IF(CW18=0,0,IF(CY$13=$Z$1,VLOOKUP(CW18,$AI$109:$AQ$168,CY$16),1/CY$14)) -> 0 | CY18: =CY$10*CX18 -> 0 | CZ18: -24 | DB18: =SUMIF($AD$12:$CY$12,DB$16,$AD18:$CY18) -> 0 | DC18: 0 | DD18: 0 | DE18: 0 | DF18: 0 | DG18: 0 | DH18: 0 | DI18: 0 | DK18: =SUM(($E$32:$E$81=$CZ18)*($F$32:$F$81=DK$16)*$D$32:$D$81) -> 0 | DL18: =SUM(($E$32:$E$81=$CZ18)*($F$32:$F$81=DL$16)*($D$32:$D$81)) -> 0 | DM18: =SUM(($E$32:$E$81=$CZ18)*($F$32:$F$81=DM$16)*$D$32:$D$81) -> 0 | DN18: =SUM(($E$32:$E$81=$CZ18)*($F$32:$F$81=DN$16)*$D$32:$D$81) -> 0 | DO18: =SUM(($E$32:$E$81=$CZ18)*($F$32:$F$81=DO$16)*$D$32:$D$81) -> 0 | DP18: =SUM(($E$32:$E$81=$CZ18)*($F$32:$F$81=DP$16)*$D$32:$D$81) -> 0 | DQ18: =SUM(($E$32:$E$81=$CZ18)*($F$32:$F$81=DQ$16)*$D$32:$D$81) -> 0 | DR18: =SUM(($E$32:$E$81=$CZ18)*($F$32:$F$81=DR$16)*$D$32:$D$81) -> 0 | DS18: =SUM(($E$32:$E$81=$CZ18)*($F$32:$F$81=DS$16)*$D$32:$D$81) -> 0 | DU18: =$DA$18 -> 0 | DV18: =$DB$18 -> 0 | DW18: =$DC$18 -> 0 | DX18: =$DD$18 -> 0 | DY18: =$DE$18 -> 0 | DZ18: =$DF$18 -> 0 | EA18: =$DG$18 -> 0 | EB18: =$DH$18 -> 0 | EC18: =$DI$18 -> 0 | EE18: =$DK$18 -> 0 | EF18: =$DL$18 -> 0 | EG18: =$DM$18 -> 0 | EH18: =$DN$18 -> 0 | EI18: =$DO$18 -> 0 | EJ18: =$DP$18 -> 0 | EK18: =$DQ$18 -> 0 | EL18: =$DR$18 -> 0 | EM18: =$DS$18 -> 0
Z19: -23 | AA19: Mon -23 | AB19: 0 | AC19: 0 | AD19: 0 | AE19: 0 | AF19: 0 | AG19: 0 | AK19: 0 | AL19: 0 | AM19: 0 | AQ19: 0 | AR19: 0 | AS19: 0 | AZ19: 0 | BA19: 0 | BB19: 0 | BC19: 0 | BD19: 0 | BE19: 0 | BF19: 0 | BG19: 0 | BH19: 0 | BJ19: 0 | BK19: 0 | BL19: 0 | BM19: 0 | BN19: 0 | BO19: 0 | BP19: 0 | BQ19: 0 | BR19: 0 | BS19: 0 | BT19: 0 | BU19: 0 | BV19: 0 | BW19: 0 | BX19: 0 | BY19: 0 | BZ19: 0 | CA19: 0 | CB19: 0 | CC19: 0 | CD19: 0 | CE19: 0 | CF19: 0 | CG19: 0 | CH19: 0 | CI19: 0 | CJ19: 0 | CK19: 0 | CL19: 0 | CM19: 0 | CN19: 0 | CO19: 0 | CP19: 0 | CQ19: 0 | CR19: 0 | CS19: 0 | CT19: 0 | CU19: 0 | CV19: 0 | CW19: 0 | CX19: 0 | CY19: 0 | CZ19: -23 | DB19: 0 | DC19: 0 | DD19: 0 | DE19: 0 | DF19: 0 | DG19: 0 | DH19: 0 | DI19: 0 | DK19: =SUM(($E$32:$E$81=$CZ19)*($F$32:$F$81=DK$16)*$D$32:$D$81) -> 0 | DL19: =SUM(($E$32:$E$81=$CZ19)*($F$32:$F$81=DL$16)*($D$32:$D$81)) -> 0 | DM19: =SUM(($E$32:$E$81=$CZ19)*($F$32:$F$81=DM$16)*$D$32:$D$81) -> 0 | DN19: =SUM(($E$32:$E$81=$CZ19)*($F$32:$F$81=DN$16)*$D$32:$D$81) -> 0 | DO19: =SUM(($E$32:$E$81=$CZ19)*($F$32:$F$81=DO$16)*$D$32:$D$81) -> 0 | DP19: =SUM(($E$32:$E$81=$CZ19)*($F$32:$F$81=DP$16)*$D$32:$D$81) -> 0 | DQ19: =SUM(($E$32:$E$81=$CZ19)*($F$32:$F$81=DQ$16)*$D$32:$D$81) -> 0 | DR19: =SUM(($E$32:$E$81=$CZ19)*($F$32:$F$81=DR$16)*$D$32:$D$81) -> 0 | DS19: =SUM(($E$32:$E$81=$CZ19)*($F$32:$F$81=DS$16)*$D$32:$D$81) -> 0 | DU19: =$DA$19 -> 0 | DV19: =$DB$19 -> 0 | DW19: =$DC$19 -> 0 | DX19: =$DD$19 -> 0 | DY19: =$DE$19 -> 0 | DZ19: =$DF$19 -> 0 | EA19: =$DG$19 -> 0 | EB19: =$DH$19 -> 0 | EC19: =$DI$19 -> 0 | EE19: =$DK$19 -> 0 | EF19: =$DL$19 -> 0 | EG19: =$DM$19 -> 0 | EH19: =$DN$19 -> 0 | EI19: =$DO$19 -> 0 | EJ19: =$DP$19 -> 0 | EK19: =$DQ$19 -> 0 | EL19: =$DR$19 -> 0 | EM19: =$DS$19 -> 0
C20: Company Type | D20: LLC | E20: Start Month | Z20: -22 | AA20: Mon -22 | AB20: 0 | AC20: 0 | AD20: 0 | AE20: 0 | AF20: 0 | AG20: 0 | AK20: 0 | AL20: 0 | AM20: 0 | AQ20: 0 | AR20: 0 | AS20: 0 | AZ20: 0 | BA20: 0 | BB20: 0 | BC20: 0 | BD20: 0 | BE20: 0 | BF20: 0 | BG20: 0 | BH20: 0 | BJ20: 0 | BK20: 0 | BL20: 0 | BM20: 0 | BN20: 0 | BO20: 0 | BP20: 0 | BQ20: 0 | BR20: 0 | BS20: 0 | BT20: 0 | BU20: 0 | BV20: 0 | BW20: 0 | BX20: 0 | BY20: 0 | BZ20: 0 | CA20: 0 | CB20: 0 | CC20: 0 | CD20: 0 | CE20: 0 | CF20: 0 | CG20: 0 | CH20: 0 | CI20: 0 | CJ20: 0 | CK20: 0 | CL20: 0 | CM20: 0 | CN20: 0 | CO20: 0 | CP20: 0 | CQ20: 0 | CR20: 0 | CS20: 0 | CT20: 0 | CU20: 0 | CV20: 0 | CW20: 0 | CX20: 0 | CY20: 0 | CZ20: -22 | DB20: 0 | DC20: 0 | DD20: 0 | DE20: 0 | DF20: 0 | DG20: 0 | DH20: 0 | DI20: 0 | DK20: =SUM(($E$32:$E$81=$CZ20)*($F$32:$F$81=DK$16)*$D$32:$D$81) -> 0 | DL20: =SUM(($E$32:$E$81=$CZ20)*($F$32:$F$81=DL$16)*($D$32:$D$81)) -> 0 | DM20: =SUM(($E$32:$E$81=$CZ20)*($F$32:$F$81=DM$16)*$D$32:$D$81) -> 0 | DN20: =SUM(($E$32:$E$81=$CZ20)*($F$32:$F$81=DN$16)*$D$32:$D$81) -> 0 | DO20: =SUM(($E$32:$E$81=$CZ20)*($F$32:$F$81=DO$16)*$D$32:$D$81) -> 0 | DP20: =SUM(($E$32:$E$81=$CZ20)*($F$32:$F$81=DP$16)*$D$32:$D$81) -> 0 | DQ20: =SUM(($E$32:$E$81=$CZ20)*($F$32:$F$81=DQ$16)*$D$32:$D$81) -> 0 | DR20: =SUM(($E$32:$E$81=$CZ20)*($F$32:$F$81=DR$16)*$D$32:$D$81) -> 0 | DS20: =SUM(($E$32:$E$81=$CZ20)*($F$32:$F$81=DS$16)*$D$32:$D$81) -> 0 | DU20: =$DA$20 -> 0 | DV20: =$DB$20 -> 0 | DW20: =$DC$20 -> 0 | DX20: =$DD$20 -> 0 | DY20: =$DE$20 -> 0 | DZ20: =$DF$20 -> 0 | EA20: =$DG$20 -> 0 | EB20: =$DH$20 -> 0 | EC20: =$DI$20 -> 0 | EE20: =$DK$20 -> 0 | EF20: =$DL$20 -> 0 | EG20: =$DM$20 -> 0 | EH20: =$DN$20 -> 0 | EI20: =$DO$20 -> 0 | EJ20: =$DP$20 -> 0 | EK20: =$DQ$20 -> 0 | EL20: =$DR$20 -> 0 | EM20: =$DS$20 -> 0
E21: Start Year | Z21: -21 | AA21: Mon -21 | AB21: 0 | AC21: 0 | AD21: 0 | AE21: 0 | AF21: 0 | AG21: 0 | AK21: 0 | AL21: 0 | AM21: 0 | AQ21: 0 | AR21: 0 | AS21: 0 | AZ21: 0 | BA21: 0 | BB21: 0 | BC21: 0 | BD21: 0 | BE21: 0 | BF21: 0 | BG21: 0 | BH21: 0 | BJ21: 0 | BK21: 0 | BL21: 0 | BM21: 0 | BN21: 0 | BO21: 0 | BP21: 0 | BQ21: 0 | BR21: 0 | BS21: 0 | BT21: 0 | BU21: 0 | BV21: 0 | BW21: 0 | BX21: 0 | BY21: 0 | BZ21: 0 | CA21: 0 | CB21: 0 | CC21: 0 | CD21: 0 | CE21: 0 | CF21: 0 | CG21: 0 | CH21: 0 | CI21: 0 | CJ21: 0 | CK21: 0 | CL21: 0 | CM21: 0 | CN21: 0 | CO21: 0 | CP21: 0 | CQ21: 0 | CR21: 0 | CS21: 0 | CT21: 0 | CU21: 0 | CV21: 0 | CW21: 0 | CX21: 0 | CY21: 0 | CZ21: -21 | DB21: 0 | DC21: 0 | DD21: 0 | DE21: 0 | DF21: 0 | DG21: 0 | DH21: 0 | DI21: 0 | DK21: =SUM(($E$32:$E$81=$CZ21)*($F$32:$F$81=DK$16)*$D$32:$D$81) -> 0 | DL21: =SUM(($E$32:$E$81=$CZ21)*($F$32:$F$81=DL$16)*($D$32:$D$81)) -> 0 | DM21: =SUM(($E$32:$E$81=$CZ21)*($F$32:$F$81=DM$16)*$D$32:$D$81) -> 0 | DN21: =SUM(($E$32:$E$81=$CZ21)*($F$32:$F$81=DN$16)*$D$32:$D$81) -> 0 | DO21: =SUM(($E$32:$E$81=$CZ21)*($F$32:$F$81=DO$16)*$D$32:$D$81) -> 0 | DP21: =SUM(($E$32:$E$81=$CZ21)*($F$32:$F$81=DP$16)*$D$32:$D$81) -> 0 | DQ21: =SUM(($E$32:$E$81=$CZ21)*($F$32:$F$81=DQ$16)*$D$32:$D$81) -> 0 | DR21: =SUM(($E$32:$E$81=$CZ21)*($F$32:$F$81=DR$16)*$D$32:$D$81) -> 0 | DS21: =SUM(($E$32:$E$81=$CZ21)*($F$32:$F$81=DS$16)*$D$32:$D$81) -> 0 | DU21: =$DA$21 -> 0 | DV21: =$DB$21 -> 0 | DW21: =$DC$21 -> 0 | DX21: =$DD$21 -> 0 | DY21: =$DE$21 -> 0 | DZ21: =$DF$21 -> 0 | EA21: =$DG$21 -> 0 | EB21: =$DH$21 -> 0 | EC21: =$DI$21 -> 0 | EE21: =$DK$21 -> 0 | EF21: =$DL$21 -> 0 | EG21: =$DM$21 -> 0 | EH21: =$DN$21 -> 0 | EI21: =$DO$21 -> 0 | EJ21: =$DP$21 -> 0 | EK21: =$DQ$21 -> 0 | EL21: =$DR$21 -> 0 | EM21: =$DS$21 -> 0
C22: Deduct Taxes? | D22: Yes | Z22: -20 | AA22: Mon -20 | AB22: 0 | AC22: 0 | AD22: 0 | AE22: 0 | AF22: 0 | AG22: 0 | AK22: 0 | AL22: 0 | AM22: 0 | AQ22: 0 | AR22: 0 | AS22: 0 | AZ22: 0 | BA22: 0 | BB22: 0 | BC22: 0 | BD22: 0 | BE22: 0 | BF22: 0 | BG22: 0 | BH22: 0 | BJ22: 0 | BK22: 0 | BL22: 0 | BM22: 0 | BN22: 0 | BO22: 0 | BP22: 0 | BQ22: 0 | BR22: 0 | BS22: 0 | BT22: 0 | BU22: 0 | BV22: 0 | BW22: 0 | BX22: 0 | BY22: 0 | BZ22: 0 | CA22: 0 | CB22: 0 | CC22: 0 | CD22: 0 | CE22: 0 | CF22: 0 | CG22: 0 | CH22: 0 | CI22: 0 | CJ22: 0 | CK22: 0 | CL22: 0 | CM22: 0 | CN22: 0 | CO22: 0 | CP22: 0 | CQ22: 0 | CR22: 0 | CS22: 0 | CT22: 0 | CU22: 0 | CV22: 0 | CW22: 0 | CX22: 0 | CY22: 0 | CZ22: -20 | DB22: 0 | DC22: 0 | DD22: 0 | DE22: 0 | DF22: 0 | DG22: 0 | DH22: 0 | DI22: 0 | DK22: =SUM(($E$32:$E$81=$CZ22)*($F$32:$F$81=DK$16)*$D$32:$D$81) -> 0 | DL22: =SUM(($E$32:$E$81=$CZ22)*($F$32:$F$81=DL$16)*($D$32:$D$81)) -> 0 | DM22: =SUM(($E$32:$E$81=$CZ22)*($F$32:$F$81=DM$16)*$D$32:$D$81) -> 0 | DN22: =SUM(($E$32:$E$81=$CZ22)*($F$32:$F$81=DN$16)*$D$32:$D$81) -> 0 | DO22: =SUM(($E$32:$E$81=$CZ22)*($F$32:$F$81=DO$16)*$D$32:$D$81) -> 0 | DP22: =SUM(($E$32:$E$81=$CZ22)*($F$32:$F$81=DP$16)*$D$32:$D$81) -> 0 | DQ22: =SUM(($E$32:$E$81=$CZ22)*($F$32:$F$81=DQ$16)*$D$32:$D$81) -> 0 | DR22: =SUM(($E$32:$E$81=$CZ22)*($F$32:$F$81=DR$16)*$D$32:$D$81) -> 0 | DS22: =SUM(($E$32:$E$81=$CZ22)*($F$32:$F$81=DS$16)*$D$32:$D$81) -> 0 | DU22: =$DA$22 -> 0 | DV22: =$DB$22 -> 0 | DW22: =$DC$22 -> 0 | DX22: =$DD$22 -> 0 | DY22: =$DE$22 -> 0 | DZ22: =$DF$22 -> 0 | EA22: =$DG$22 -> 0 | EB22: =$DH$22 -> 0 | EC22: =$DI$22 -> 0 | EE22: =$DK$22 -> 0 | EF22: =$DL$22 -> 0 | EG22: =$DM$22 -> 0 | EH22: =$DN$22 -> 0 | EI22: =$DO$22 -> 0 | EJ22: =$DP$22 -> 0 | EK22: =$DQ$22 -> 0 | EL22: =$DR$22 -> 0 | EM22: =$DS$22 -> 0
C23: State | D23: Mississippi | Z23: -19 | AA23: Mon -19 | AB23: 0 | AC23: 0 | AD23: 0 | AE23: 0 | AF23: 0 | AG23: 0 | AK23: 0 | AL23: 0 | AM23: 0 | AQ23: 0 | AR23: 0 | AS23: 0 | AZ23: 0 | BA23: 0 | BB23: 0 | BC23: 0 | BD23: 0 | BE23: 0 | BF23: 0 | BG23: 0 | BH23: 0 | BJ23: 0 | BK23: 0 | BL23: 0 | BM23: 0 | BN23: 0 | BO23: 0 | BP23: 0 | BQ23: 0 | BR23: 0 | BS23: 0 | BT23: 0 | BU23: 0 | BV23: 0 | BW23: 0 | BX23: 0 | BY23: 0 | BZ23: 0 | CA23: 0 | CB23: 0 | CC23: 0 | CD23: 0 | CE23: 0 | CF23: 0 | CG23: 0 | CH23: 0 | CI23: 0 | CJ23: 0 | CK23: 0 | CL23: 0 | CM23: 0 | CN23: 0 | CO23: 0 | CP23: 0 | CQ23: 0 | CR23: 0 | CS23: 0 | CT23: 0 | CU23: 0 | CV23: 0 | CW23: 0 | CX23: 0 | CY23: 0 | CZ23: -19 | DB23: 0 | DC23: 0 | DD23: 0 | DE23: 0 | DF23: 0 | DG23: 0 | DH23: 0 | DI23: 0 | DK23: =SUM(($E$32:$E$81=$CZ23)*($F$32:$F$81=DK$16)*$D$32:$D$81) -> 0 | DL23: =SUM(($E$32:$E$81=$CZ23)*($F$32:$F$81=DL$16)*($D$32:$D$81)) -> 0 | DM23: =SUM(($E$32:$E$81=$CZ23)*($F$32:$F$81=DM$16)*$D$32:$D$81) -> 0 | DN23: =SUM(($E$32:$E$81=$CZ23)*($F$32:$F$81=DN$16)*$D$32:$D$81) -> 0 | DO23: =SUM(($E$32:$E$81=$CZ23)*($F$32:$F$81=DO$16)*$D$32:$D$81) -> 0 | DP23: =SUM(($E$32:$E$81=$CZ23)*($F$32:$F$81=DP$16)*$D$32:$D$81) -> 0 | DQ23: =SUM(($E$32:$E$81=$CZ23)*($F$32:$F$81=DQ$16)*$D$32:$D$81) -> 0 | DR23: =SUM(($E$32:$E$81=$CZ23)*($F$32:$F$81=DR$16)*$D$32:$D$81) -> 0 | DS23: =SUM(($E$32:$E$81=$CZ23)*($F$32:$F$81=DS$16)*$D$32:$D$81) -> 0 | DU23: =$DA$23 -> 0 | DV23: =$DB$23 -> 0 | DW23: =$DC$23 -> 0 | DX23: =$DD$23 -> 0 | DY23: =$DE$23 -> 0 | DZ23: =$DF$23 -> 0 | EA23: =$DG$23 -> 0 | EB23: =$DH$23 -> 0 | EC23: =$DI$23 -> 0 | EE23: =$DK$23 -> 0 | EF23: =$DL$23 -> 0 | EG23: =$DM$23 -> 0 | EH23: =$DN$23 -> 0 | EI23: =$DO$23 -> 0 | EJ23: =$DP$23 -> 0 | EK23: =$DQ$23 -> 0 | EL23: =$DR$23 -> 0 | EM23: =$DS$23 -> 0
C24: =IF(D22="LLC","An LLC has no local taxes",IF(D22="S Corp","An S Corp has no local taxes","City Tax Rate (If any)")) -> City Tax Rate (If any) | Z24: -18 | AA24: Mon -18 | AB24: 0 | AC24: 0 | AD24: 0 | AE24: 0 | AF24: 0 | AG24: 0 | AK24: 0 | AL24: 0 | AM24: 0 | AQ24: 0 | AR24: 0 | AS24: 0 | AZ24: 0 | BA24: 0 | BB24: 0 | BC24: 0 | BD24: 0 | BE24: 0 | BF24: 0 | BG24: 0 | BH24: 0 | BJ24: 0 | BK24: 0 | BL24: 0 | BM24: 0 | BN24: 0 | BO24: 0 | BP24: 0 | BQ24: 0 | BR24: 0 | BS24: 0 | BT24: 0 | BU24: 0 | BV24: 0 | BW24: 0 | BX24: 0 | BY24: 0 | BZ24: 0 | CA24: 0 | CB24: 0 | CC24: 0 | CD24: 0 | CE24: 0 | CF24: 0 | CG24: 0 | CH24: 0 | CI24: 0 | CJ24: 0 | CK24: 0 | CL24: 0 | CM24: 0 | CN24: 0 | CO24: 0 | CP24: 0 | CQ24: 0 | CR24: 0 | CS24: 0 | CT24: 0 | CU24: 0 | CV24: 0 | CW24: 0 | CX24: 0 | CY24: 0 | CZ24: -18 | DB24: 0 | DC24: 0 | DD24: 0 | DE24: 0 | DF24: 0 | DG24: 0 | DH24: 0 | DI24: 0 | DK24: =SUM(($E$32:$E$81=$CZ24)*($F$32:$F$81=DK$16)*$D$32:$D$81) -> 0 | DL24: =SUM(($E$32:$E$81=$CZ24)*($F$32:$F$81=DL$16)*($D$32:$D$81)) -> 0 | DM24: =SUM(($E$32:$E$81=$CZ24)*($F$32:$F$81=DM$16)*$D$32:$D$81) -> 0 | DN24: =SUM(($E$32:$E$81=$CZ24)*($F$32:$F$81=DN$16)*$D$32:$D$81) -> 0 | DO24: =SUM(($E$32:$E$81=$CZ24)*($F$32:$F$81=DO$16)*$D$32:$D$81) -> 0 | DP24: =SUM(($E$32:$E$81=$CZ24)*($F$32:$F$81=DP$16)*$D$32:$D$81) -> 0 | DQ24: =SUM(($E$32:$E$81=$CZ24)*($F$32:$F$81=DQ$16)*$D$32:$D$81) -> 0 | DR24: =SUM(($E$32:$E$81=$CZ24)*($F$32:$F$81=DR$16)*$D$32:$D$81) -> 0 | DS24: =SUM(($E$32:$E$81=$CZ24)*($F$32:$F$81=DS$16)*$D$32:$D$81) -> 0 | DU24: =$DA$24 -> 0 | DV24: =$DB$24 -> 0 | DW24: =$DC$24 -> 0 | DX24: =$DD$24 -> 0 | DY24: =$DE$24 -> 0 | DZ24: =$DF$24 -> 0 | EA24: =$DG$24 -> 0 | EB24: =$DH$24 -> 0 | EC24: =$DI$24 -> 0 | EE24: =$DK$24 -> 0 | EF24: =$DL$24 -> 0 | EG24: =$DM$24 -> 0 | EH24: =$DN$24 -> 0 | EI24: =$DO$24 -> 0 | EJ24: =$DP$24 -> 0 | EK24: =$DQ$24 -> 0 | EL24: =$DR$24 -> 0 | EM24: =$DS$24 -> 0
C25: =IF(D24>0.01," (Note: This is based on Revenue, not Net Income, and is usually less than 1%)","") ->  | W25: Method | Z25: -17 | AA25: Mon -17 | AB25: 0 | AC25: 0 | AD25: 0 | AE25: 0 | AF25: 0 | AG25: 0 | AK25: 0 | AL25: 0 | AM25: 0 | AQ25: 0 | AR25: 0 | AS25: 0 | AZ25: 0 | BA25: 0 | BB25: 0 | BC25: 0 | BD25: 0 | BE25: 0 | BF25: 0 | BG25: 0 | BH25: 0 | BJ25: 0 | BK25: 0 | BL25: 0 | BM25: 0 | BN25: 0 | BO25: 0 | BP25: 0 | BQ25: 0 | BR25: 0 | BS25: 0 | BT25: 0 | BU25: 0 | BV25: 0 | BW25: 0 | BX25: 0 | BY25: 0 | BZ25: 0 | CA25: 0 | CB25: 0 | CC25: 0 | CD25: 0 | CE25: 0 | CF25: 0 | CG25: 0 | CH25: 0 | CI25: 0 | CJ25: 0 | CK25: 0 | CL25: 0 | CM25: 0 | CN25: 0 | CO25: 0 | CP25: 0 | CQ25: 0 | CR25: 0 | CS25: 0 | CT25: 0 | CU25: 0 | CV25: 0 | CW25: 0 | CX25: 0 | CY25: 0 | CZ25: -17 | DB25: 0 | DC25: 0 | DD25: 0 | DE25: 0 | DF25: 0 | DG25: 0 | DH25: 0 | DI25: 0 | DK25: =SUM(($E$32:$E$81=$CZ25)*($F$32:$F$81=DK$16)*$D$32:$D$81) -> 0 | DL25: =SUM(($E$32:$E$81=$CZ25)*($F$32:$F$81=DL$16)*($D$32:$D$81)) -> 0 | DM25: =SUM(($E$32:$E$81=$CZ25)*($F$32:$F$81=DM$16)*$D$32:$D$81) -> 0 | DN25: =SUM(($E$32:$E$81=$CZ25)*($F$32:$F$81=DN$16)*$D$32:$D$81) -> 0 | DO25: =SUM(($E$32:$E$81=$CZ25)*($F$32:$F$81=DO$16)*$D$32:$D$81) -> 0 | DP25: =SUM(($E$32:$E$81=$CZ25)*($F$32:$F$81=DP$16)*$D$32:$D$81) -> 0 | DQ25: =SUM(($E$32:$E$81=$CZ25)*($F$32:$F$81=DQ$16)*$D$32:$D$81) -> 0 | DR25: =SUM(($E$32:$E$81=$CZ25)*($F$32:$F$81=DR$16)*$D$32:$D$81) -> 0 | DS25: =SUM(($E$32:$E$81=$CZ25)*($F$32:$F$81=DS$16)*$D$32:$D$81) -> 0 | DU25: =$DA$25 -> 0 | DV25: =$DB$25 -> 0 | DW25: =$DC$25 -> 0 | DX25: =$DD$25 -> 0 | DY25: =$DE$25 -> 0 | DZ25: =$DF$25 -> 0 | EA25: =$DG$25 -> 0 | EB25: =$DH$25 -> 0 | EC25: =$DI$25 -> 0 | EE25: =$DK$25 -> 0 | EF25: =$DL$25 -> 0 | EG25: =$DM$25 -> 0 | EH25: =$DN$25 -> 0 | EI25: =$DO$25 -> 0 | EJ25: =$DP$25 -> 0 | EK25: =$DQ$25 -> 0 | EL25: =$DR$25 -> 0 | EM25: =$DS$25 -> 0
W26: MACRS | Z26: -16 | AA26: Mon -16 | AB26: 0 | AC26: 0 | AD26: 0 | AE26: 0 | AF26: 0 | AG26: 0 | AK26: 0 | AL26: 0 | AM26: 0 | AQ26: 0 | AR26: 0 | AS26: 0 | AZ26: 0 | BA26: 0 | BB26: 0 | BC26: 0 | BD26: 0 | BE26: 0 | BF26: 0 | BG26: 0 | BH26: 0 | BJ26: 0 | BK26: 0 | BL26: 0 | BM26: 0 | BN26: 0 | BO26: 0 | BP26: 0 | BQ26: 0 | BR26: 0 | BS26: 0 | BT26: 0 | BU26: 0 | BV26: 0 | BW26: 0 | BX26: 0 | BY26: 0 | BZ26: 0 | CA26: 0 | CB26: 0 | CC26: 0 | CD26: 0 | CE26: 0 | CF26: 0 | CG26: 0 | CH26: 0 | CI26: 0 | CJ26: 0 | CK26: 0 | CL26: 0 | CM26: 0 | CN26: 0 | CO26: 0 | CP26: 0 | CQ26: 0 | CR26: 0 | CS26: 0 | CT26: 0 | CU26: 0 | CV26: 0 | CW26: 0 | CX26: 0 | CY26: 0 | CZ26: -16 | DB26: 0 | DC26: 0 | DD26: 0 | DE26: 0 | DF26: 0 | DG26: 0 | DH26: 0 | DI26: 0 | DK26: =SUM(($E$32:$E$81=$CZ26)*($F$32:$F$81=DK$16)*$D$32:$D$81) -> 0 | DL26: =SUM(($E$32:$E$81=$CZ26)*($F$32:$F$81=DL$16)*($D$32:$D$81)) -> 0 | DM26: =SUM(($E$32:$E$81=$CZ26)*($F$32:$F$81=DM$16)*$D$32:$D$81) -> 0 | DN26: =SUM(($E$32:$E$81=$CZ26)*($F$32:$F$81=DN$16)*$D$32:$D$81) -> 0 | DO26: =SUM(($E$32:$E$81=$CZ26)*($F$32:$F$81=DO$16)*$D$32:$D$81) -> 0 | DP26: =SUM(($E$32:$E$81=$CZ26)*($F$32:$F$81=DP$16)*$D$32:$D$81) -> 0 | DQ26: =SUM(($E$32:$E$81=$CZ26)*($F$32:$F$81=DQ$16)*$D$32:$D$81) -> 0 | DR26: =SUM(($E$32:$E$81=$CZ26)*($F$32:$F$81=DR$16)*$D$32:$D$81) -> 0 | DS26: =SUM(($E$32:$E$81=$CZ26)*($F$32:$F$81=DS$16)*$D$32:$D$81) -> 0 | DU26: =$DA$26 -> 0 | DV26: =$DB$26 -> 0 | DW26: =$DC$26 -> 0 | DX26: =$DD$26 -> 0 | DY26: =$DE$26 -> 0 | DZ26: =$DF$26 -> 0 | EA26: =$DG$26 -> 0 | EB26: =$DH$26 -> 0 | EC26: =$DI$26 -> 0 | EE26: =$DK$26 -> 0 | EF26: =$DL$26 -> 0 | EG26: =$DM$26 -> 0 | EH26: =$DN$26 -> 0 | EI26: =$DO$26 -> 0 | EJ26: =$DP$26 -> 0 | EK26: =$DQ$26 -> 0 | EL26: =$DR$26 -> 0 | EM26: =$DS$26 -> 0
W27: MACRS | Z27: -15 | AA27: Mon -15 | AB27: 0 | AC27: 0 | AD27: 0 | AE27: 0 | AF27: 0 | AG27: 0 | AK27: 0 | AL27: 0 | AM27: 0 | AQ27: 0 | AR27: 0 | AS27: 0 | AZ27: 0 | BA27: 0 | BB27: 0 | BC27: 0 | BD27: 0 | BE27: 0 | BF27: 0 | BG27: 0 | BH27: 0 | BJ27: 0 | BK27: 0 | BL27: 0 | BM27: 0 | BN27: 0 | BO27: 0 | BP27: 0 | BQ27: 0 | BR27: 0 | BS27: 0 | BT27: 0 | BU27: 0 | BV27: 0 | BW27: 0 | BX27: 0 | BY27: 0 | BZ27: 0 | CA27: 0 | CB27: 0 | CC27: 0 | CD27: 0 | CE27: 0 | CF27: 0 | CG27: 0 | CH27: 0 | CI27: 0 | CJ27: 0 | CK27: 0 | CL27: 0 | CM27: 0 | CN27: 0 | CO27: 0 | CP27: 0 | CQ27: 0 | CR27: 0 | CS27: 0 | CT27: 0 | CU27: 0 | CV27: 0 | CW27: 0 | CX27: 0 | CY27: 0 | CZ27: -15 | DB27: 0 | DC27: 0 | DD27: 0 | DE27: 0 | DF27: 0 | DG27: 0 | DH27: 0 | DI27: 0 | DK27: =SUM(($E$32:$E$81=$CZ27)*($F$32:$F$81=DK$16)*$D$32:$D$81) -> 0 | DL27: =SUM(($E$32:$E$81=$CZ27)*($F$32:$F$81=DL$16)*($D$32:$D$81)) -> 0 | DM27: =SUM(($E$32:$E$81=$CZ27)*($F$32:$F$81=DM$16)*$D$32:$D$81) -> 0 | DN27: =SUM(($E$32:$E$81=$CZ27)*($F$32:$F$81=DN$16)*$D$32:$D$81) -> 0 | DO27: =SUM(($E$32:$E$81=$CZ27)*($F$32:$F$81=DO$16)*$D$32:$D$81) -> 0 | DP27: =SUM(($E$32:$E$81=$CZ27)*($F$32:$F$81=DP$16)*$D$32:$D$81) -> 0 | DQ27: =SUM(($E$32:$E$81=$CZ27)*($F$32:$F$81=DQ$16)*$D$32:$D$81) -> 0 | DR27: =SUM(($E$32:$E$81=$CZ27)*($F$32:$F$81=DR$16)*$D$32:$D$81) -> 0 | DS27: =SUM(($E$32:$E$81=$CZ27)*($F$32:$F$81=DS$16)*$D$32:$D$81) -> 0 | DU27: =$DA$27 -> 0 | DV27: =$DB$27 -> 0 | DW27: =$DC$27 -> 0 | DX27: =$DD$27 -> 0 | DY27: =$DE$27 -> 0 | DZ27: =$DF$27 -> 0 | EA27: =$DG$27 -> 0 | EB27: =$DH$27 -> 0 | EC27: =$DI$27 -> 0 | EE27: =$DK$27 -> 0 | EF27: =$DL$27 -> 0 | EG27: =$DM$27 -> 0 | EH27: =$DN$27 -> 0 | EI27: =$DO$27 -> 0 | EJ27: =$DP$27 -> 0 | EK27: =$DQ$27 -> 0 | EL27: =$DR$27 -> 0 | EM27: =$DS$27 -> 0
Z28: -14 | AA28: Mon -14 | AB28: 0 | AC28: 0 | AD28: 0 | AE28: 0 | AF28: 0 | AG28: 0 | AK28: 0 | AL28: 0 | AM28: 0 | AQ28: 0 | AR28: 0 | AS28: 0 | AZ28: 0 | BA28: 0 | BB28: 0 | BC28: 0 | BD28: 0 | BE28: 0 | BF28: 0 | BG28: 0 | BH28: 0 | BJ28: 0 | BK28: 0 | BL28: 0 | BM28: 0 | BN28: 0 | BO28: 0 | BP28: 0 | BQ28: 0 | BR28: 0 | BS28: 0 | BT28: 0 | BU28: 0 | BV28: 0 | BW28: 0 | BX28: 0 | BY28: 0 | BZ28: 0 | CA28: 0 | CB28: 0 | CC28: 0 | CD28: 0 | CE28: 0 | CF28: 0 | CG28: 0 | CH28: 0 | CI28: 0 | CJ28: 0 | CK28: 0 | CL28: 0 | CM28: 0 | CN28: 0 | CO28: 0 | CP28: 0 | CQ28: 0 | CR28: 0 | CS28: 0 | CT28: 0 | CU28: 0 | CV28: 0 | CW28: 0 | CX28: 0 | CY28: 0 | CZ28: -14 | DB28: =SUMIF($AD$12:$CY$12,DB$16,$AD28:$CY28) -> 0 | DC28: 0 | DD28: 0 | DE28: 0 | DF28: 0 | DG28: 0 | DH28: 0 | DI28: 0 | DK28: =SUM(($E$32:$E$81=$CZ28)*($F$32:$F$81=DK$16)*$D$32:$D$81) -> 0 | DL28: =SUM(($E$32:$E$81=$CZ28)*($F$32:$F$81=DL$16)*($D$32:$D$81)) -> 0 | DM28: =SUM(($E$32:$E$81=$CZ28)*($F$32:$F$81=DM$16)*$D$32:$D$81) -> 0 | DN28: =SUM(($E$32:$E$81=$CZ28)*($F$32:$F$81=DN$16)*$D$32:$D$81) -> 0 | DO28: =SUM(($E$32:$E$81=$CZ28)*($F$32:$F$81=DO$16)*$D$32:$D$81) -> 0 | DP28: =SUM(($E$32:$E$81=$CZ28)*($F$32:$F$81=DP$16)*$D$32:$D$81) -> 0 | DQ28: =SUM(($E$32:$E$81=$CZ28)*($F$32:$F$81=DQ$16)*$D$32:$D$81) -> 0 | DR28: =SUM(($E$32:$E$81=$CZ28)*($F$32:$F$81=DR$16)*$D$32:$D$81) -> 0 | DS28: =SUM(($E$32:$E$81=$CZ28)*($F$32:$F$81=DS$16)*$D$32:$D$81) -> 0 | DU28: =$DA$28 -> 0 | DV28: =$DB$28 -> 0 | DW28: =$DC$28 -> 0 | DX28: =$DD$28 -> 0 | DY28: =$DE$28 -> 0 | DZ28: =$DF$28 -> 0 | EA28: =$DG$28 -> 0 | EB28: =$DH$28 -> 0 | EC28: =$DI$28 -> 0 | EE28: =$DK$28 -> 0 | EF28: =$DL$28 -> 0 | EG28: =$DM$28 -> 0 | EH28: =$DN$28 -> 0 | EI28: =$DO$28 -> 0 | EJ28: =$DP$28 -> 0 | EK28: =$DQ$28 -> 0 | EL28: =$DR$28 -> 0 | EM28: =$DS$28 -> 0
C29: Number of Tangible Asset Expenditures | D29: 12 | E29: (Enter up to 25) | Z29: -13 | AA29: Mon -13 | AB29: 0 | AC29: 0 | AD29: 0 | AE29: 0 | AF29: 0 | AG29: 0 | AK29: 0 | AL29: 0 | AM29: 0 | AQ29: 0 | AR29: 0 | AS29: 0 | AZ29: 0 | BA29: 0 | BB29: 0 | BC29: 0 | BD29: 0 | BE29: 0 | BF29: 0 | BG29: 0 | BH29: 0 | BJ29: 0 | BK29: 0 | BL29: 0 | BM29: 0 | BN29: 0 | BO29: 0 | BP29: 0 | BQ29: 0 | BR29: 0 | BS29: 0 | BT29: 0 | BU29: 0 | BV29: 0 | BW29: 0 | BX29: 0 | BY29: 0 | BZ29: 0 | CA29: 0 | CB29: 0 | CC29: 0 | CD29: 0 | CE29: 0 | CF29: 0 | CG29: 0 | CH29: 0 | CI29: 0 | CJ29: 0 | CK29: 0 | CL29: 0 | CM29: 0 | CN29: 0 | CO29: 0 | CP29: 0 | CQ29: 0 | CR29: 0 | CS29: 0 | CT29: 0 | CU29: 0 | CV29: 0 | CW29: 0 | CX29: 0 | CY29: 0 | CZ29: -13 | DB29: 0 | DC29: 0 | DD29: 0 | DE29: 0 | DF29: 0 | DG29: 0 | DH29: 0 | DI29: 0 | DK29: =SUM(($E$32:$E$81=$CZ29)*($F$32:$F$81=DK$16)*$D$32:$D$81) -> 0 | DL29: =SUM(($E$32:$E$81=$CZ29)*($F$32:$F$81=DL$16)*($D$32:$D$81)) -> 0 | DM29: =SUM(($E$32:$E$81=$CZ29)*($F$32:$F$81=DM$16)*$D$32:$D$81) -> 0 | DN29: =SUM(($E$32:$E$81=$CZ29)*($F$32:$F$81=DN$16)*$D$32:$D$81) -> 0 | DO29: =SUM(($E$32:$E$81=$CZ29)*($F$32:$F$81=DO$16)*$D$32:$D$81) -> 0 | DP29: =SUM(($E$32:$E$81=$CZ29)*($F$32:$F$81=DP$16)*$D$32:$D$81) -> 0 | DQ29: =SUM(($E$32:$E$81=$CZ29)*($F$32:$F$81=DQ$16)*$D$32:$D$81) -> 0 | DR29: =SUM(($E$32:$E$81=$CZ29)*($F$32:$F$81=DR$16)*$D$32:$D$81) -> 0 | DS29: =SUM(($E$32:$E$81=$CZ29)*($F$32:$F$81=DS$16)*$D$32:$D$81) -> 0 | DU29: =$DA$29 -> 0 | DV29: =$DB$29 -> 0 | DW29: =$DC$29 -> 0 | DX29: =$DD$29 -> 0 | DY29: =$DE$29 -> 0 | DZ29: =$DF$29 -> 0 | EA29: =$DG$29 -> 0 | EB29: =$DH$29 -> 0 | EC29: =$DI$29 -> 0 | EE29: =$DK$29 -> 0 | EF29: =$DL$29 -> 0 | EG29: =$DM$29 -> 0 | EH29: =$DN$29 -> 0 | EI29: =$DO$29 -> 0 | EJ29: =$DP$29 -> 0 | EK29: =$DQ$29 -> 0 | EL29: =$DR$29 -> 0 | EM29: =$DS$29 -> 0
Z30: -12 | AA30: Mon -12 | AB30: 0 | AC30: 0 | AD30: 0 | AE30: 0 | AF30: 0 | AG30: 0 | AK30: 0 | AL30: 0 | AM30: 0 | AQ30: 0 | AR30: 0 | AS30: 0 | AZ30: 0 | BA30: 0 | BB30: 0 | BC30: 0 | BD30: 0 | BE30: 0 | BF30: 0 | BG30: 0 | BH30: 0 | BJ30: 0 | BK30: 0 | BL30: 0 | BM30: 0 | BN30: 0 | BO30: 0 | BP30: 0 | BQ30: 0 | BR30: 0 | BS30: 0 | BT30: 0 | BU30: 0 | BV30: 0 | BW30: 0 | BX30: 0 | BY30: 0 | BZ30: 0 | CA30: 0 | CB30: 0 | CC30: 0 | CD30: 0 | CE30: 0 | CF30: 0 | CG30: 0 | CH30: 0 | CI30: 0 | CJ30: 0 | CK30: 0 | CL30: 0 | CM30: 0 | CN30: 0 | CO30: 0 | CP30: 0 | CQ30: 0 | CR30: 0 | CS30: 0 | CT30: 0 | CU30: 0 | CV30: 0 | CW30: 0 | CX30: 0 | CY30: 0 | CZ30: -12 | DB30: 0 | DC30: 0 | DD30: 0 | DE30: 0 | DF30: 0 | DG30: 0 | DH30: 0 | DI30: 0 | DK30: =SUM(($E$32:$E$81=$CZ30)*($F$32:$F$81=DK$16)*$D$32:$D$81) -> 0 | DL30: =SUM(($E$32:$E$81=$CZ30)*($F$32:$F$81=DL$16)*($D$32:$D$81)) -> 0 | DM30: =SUM(($E$32:$E$81=$CZ30)*($F$32:$F$81=DM$16)*$D$32:$D$81) -> 0 | DN30: =SUM(($E$32:$E$81=$CZ30)*($F$32:$F$81=DN$16)*$D$32:$D$81) -> 0 | DO30: =SUM(($E$32:$E$81=$CZ30)*($F$32:$F$81=DO$16)*$D$32:$D$81) -> 0 | DP30: =SUM(($E$32:$E$81=$CZ30)*($F$32:$F$81=DP$16)*$D$32:$D$81) -> 0 | DQ30: =SUM(($E$32:$E$81=$CZ30)*($F$32:$F$81=DQ$16)*$D$32:$D$81) -> 0 | DR30: =SUM(($E$32:$E$81=$CZ30)*($F$32:$F$81=DR$16)*$D$32:$D$81) -> 0 | DS30: =SUM(($E$32:$E$81=$CZ30)*($F$32:$F$81=DS$16)*$D$32:$D$81) -> 0 | DU30: =$DA$30 -> 0 | DV30: =$DB$30 -> 0 | DW30: =$DC$30 -> 0 | DX30: =$DD$30 -> 0 | DY30: =$DE$30 -> 0 | DZ30: =$DF$30 -> 0 | EA30: =$DG$30 -> 0 | EB30: =$DH$30 -> 0 | EC30: =$DI$30 -> 0 | EE30: =$DK$30 -> 0 | EF30: =$DL$30 -> 0 | EG30: =$DM$30 -> 0 | EH30: =$DN$30 -> 0 | EI30: =$DO$30 -> 0 | EJ30: =$DP$30 -> 0 | EK30: =$DQ$30 -> 0 | EL30: =$DR$30 -> 0 | EM30: =$DS$30 -> 0
B31: Tangible - Depreciated | C31: Description | D31: Amount | E31: Month | F31: Years | Z31: -11 | AA31: Mon -11 | AB31: 0 | AC31: 0 | AD31: 0 | AE31: 0 | AF31: 0 | AG31: 0 | AK31: 0 | AL31: 0 | AM31: 0 | AQ31: 0 | AR31: 0 | AS31: 0 | AZ31: 0 | BA31: 0 | BB31: 0 | BC31: 0 | BD31: 0 | BE31: 0 | BF31: 0 | BG31: 0 | BH31: 0 | BJ31: 0 | BK31: 0 | BL31: 0 | BM31: 0 | BN31: 0 | BO31: 0 | BP31: 0 | BQ31: 0 | BR31: 0 | BS31: 0 | BT31: 0 | BU31: 0 | BV31: 0 | BW31: 0 | BX31: 0 | BY31: 0 | BZ31: 0 | CA31: 0 | CB31: 0 | CC31: 0 | CD31: 0 | CE31: 0 | CF31: 0 | CG31: 0 | CH31: 0 | CI31: 0 | CJ31: 0 | CK31: 0 | CL31: 0 | CM31: 0 | CN31: 0 | CO31: 0 | CP31: 0 | CQ31: 0 | CR31: 0 | CS31: 0 | CT31: 0 | CU31: 0 | CV31: 0 | CW31: 0 | CX31: 0 | CY31: 0 | CZ31: -11 | DB31: 0 | DC31: 0 | DD31: 0 | DE31: 0 | DF31: 0 | DG31: 0 | DH31: 0 | DI31: 0 | DK31: =SUM(($E$32:$E$81=$CZ31)*($F$32:$F$81=DK$16)*$D$32:$D$81) -> 0 | DL31: =SUM(($E$32:$E$81=$CZ31)*($F$32:$F$81=DL$16)*($D$32:$D$81)) -> 0 | DM31: =SUM(($E$32:$E$81=$CZ31)*($F$32:$F$81=DM$16)*$D$32:$D$81) -> 0 | DN31: =SUM(($E$32:$E$81=$CZ31)*($F$32:$F$81=DN$16)*$D$32:$D$81) -> 0 | DO31: =SUM(($E$32:$E$81=$CZ31)*($F$32:$F$81=DO$16)*$D$32:$D$81) -> 0 | DP31: =SUM(($E$32:$E$81=$CZ31)*($F$32:$F$81=DP$16)*$D$32:$D$81) -> 0 | DQ31: =SUM(($E$32:$E$81=$CZ31)*($F$32:$F$81=DQ$16)*$D$32:$D$81) -> 0 | DR31: =SUM(($E$32:$E$81=$CZ31)*($F$32:$F$81=DR$16)*$D$32:$D$81) -> 0 | DS31: =SUM(($E$32:$E$81=$CZ31)*($F$32:$F$81=DS$16)*$D$32:$D$81) -> 0 | DU31: =$DA$31 -> 0 | DV31: =$DB$31 -> 0 | DW31: =$DC$31 -> 0 | DX31: =$DD$31 -> 0 | DY31: =$DE$31 -> 0 | DZ31: =$DF$31 -> 0 | EA31: =$DG$31 -> 0 | EB31: =$DH$31 -> 0 | EC31: =$DI$31 -> 0 | EE31: =$DK$31 -> 0 | EF31: =$DL$31 -> 0 | EG31: =$DM$31 -> 0 | EH31: =$DN$31 -> 0 | EI31: =$DO$31 -> 0 | EJ31: =$DP$31 -> 0 | EK31: =$DQ$31 -> 0 | EL31: =$DR$31 -> 0 | EM31: =$DS$31 -> 0
A32: 1 | B32: Variable Equipment Set 1 | D32: 539940 | E32: 4 | F32: 7 | H32: Depreciation Guidelines | P32: =IF(F32="Land",1,IF(D32*E32*F32<>0,1,0)) -> 1 | Z32: -10 | AA32: Mon -10 | AB32: 0 | AC32: 0 | AD32: 0 | AE32: 0 | AF32: 0 | AG32: 0 | AK32: 0 | AL32: 0 | AM32: 0 | AQ32: 0 | AR32: 0 | AS32: 0 | AZ32: 0 | BA32: 0 | BB32: 0 | BC32: 0 | BD32: 0 | BE32: 0 | BF32: 0 | BG32: 0 | BH32: 0 | BJ32: 0 | BK32: 0 | BL32: 0 | BM32: 0 | BN32: 0 | BO32: 0 | BP32: 0 | BQ32: 0 | BR32: 0 | BS32: 0 | BT32: 0 | BU32: 0 | BV32: 0 | BW32: 0 | BX32: 0 | BY32: 0 | BZ32: 0 | CA32: 0 | CB32: 0 | CC32: 0 | CD32: 0 | CE32: 0 | CF32: 0 | CG32: 0 | CH32: 0 | CI32: 0 | CJ32: 0 | CK32: 0 | CL32: 0 | CM32: 0 | CN32: 0 | CO32: 0 | CP32: 0 | CQ32: 0 | CR32: 0 | CS32: 0 | CT32: 0 | CU32: 0 | CV32: 0 | CW32: 0 | CX32: 0 | CY32: 0 | CZ32: -10 | DB32: 0 | DC32: 0 | DD32: 0 | DE32: 0 | DF32: 0 | DG32: 0 | DH32: 0 | DI32: 0 | DK32: =SUM(($E$32:$E$81=$CZ32)*($F$32:$F$81=DK$16)*$D$32:$D$81) -> 0 | DL32: =SUM(($E$32:$E$81=$CZ32)*($F$32:$F$81=DL$16)*($D$32:$D$81)) -> 0 | DM32: =SUM(($E$32:$E$81=$CZ32)*($F$32:$F$81=DM$16)*$D$32:$D$81) -> 0 | DN32: =SUM(($E$32:$E$81=$CZ32)*($F$32:$F$81=DN$16)*$D$32:$D$81) -> 0 | DO32: =SUM(($E$32:$E$81=$CZ32)*($F$32:$F$81=DO$16)*$D$32:$D$81) -> 0 | DP32: =SUM(($E$32:$E$81=$CZ32)*($F$32:$F$81=DP$16)*$D$32:$D$81) -> 0 | DQ32: =SUM(($E$32:$E$81=$CZ32)*($F$32:$F$81=DQ$16)*$D$32:$D$81) -> 0 | DR32: =SUM(($E$32:$E$81=$CZ32)*($F$32:$F$81=DR$16)*$D$32:$D$81) -> 0 | DS32: =SUM(($E$32:$E$81=$CZ32)*($F$32:$F$81=DS$16)*$D$32:$D$81) -> 0 | DU32: =$DA$32 -> 0 | DV32: =$DB$32 -> 0 | DW32: =$DC$32 -> 0 | DX32: =$DD$32 -> 0 | DY32: =$DE$32 -> 0 | DZ32: =$DF$32 -> 0 | EA32: =$DG$32 -> 0 | EB32: =$DH$32 -> 0 | EC32: =$DI$32 -> 0 | EE32: =$DK$32 -> 0 | EF32: =$DL$32 -> 0 | EG32: =$DM$32 -> 0 | EH32: =$DN$32 -> 0 | EI32: =$DO$32 -> 0 | EJ32: =$DP$32 -> 0 | EK32: =$DQ$32 -> 0 | EL32: =$DR$32 -> 0 | EM32: =$DS$32 -> 0
A33: 2 | B33: Variable Equipment Set 2 | D33: 539940 | E33: 12 | F33: 7 | H33: Years | I33: Customizable Balance Sheet Names | P33: =IF(F33="Land",1,IF(D33*E33*F33<>0,1,0)) -> 1 | Z33: -9 | AA33: Mon -9 | AB33: 0 | AC33: 0 | AD33: 0 | AE33: 0 | AF33: 0 | AG33: 0 | AK33: 0 | AL33: 0 | AM33: 0 | AQ33: 0 | AR33: 0 | AS33: 0 | AZ33: 0 | BA33: 0 | BB33: 0 | BC33: 0 | BD33: 0 | BE33: 0 | BF33: 0 | BG33: 0 | BH33: 0 | BJ33: 0 | BK33: 0 | BL33: 0 | BM33: 0 | BN33: 0 | BO33: 0 | BP33: 0 | BQ33: 0 | BR33: 0 | BS33: 0 | BT33: 0 | BU33: 0 | BV33: 0 | BW33: 0 | BX33: 0 | BY33: 0 | BZ33: 0 | CA33: 0 | CB33: 0 | CC33: 0 | CD33: 0 | CE33: 0 | CF33: 0 | CG33: 0 | CH33: 0 | CI33: 0 | CJ33: 0 | CK33: 0 | CL33: 0 | CM33: 0 | CN33: 0 | CO33: 0 | CP33: 0 | CQ33: 0 | CR33: 0 | CS33: 0 | CT33: 0 | CU33: 0 | CV33: 0 | CW33: 0 | CX33: 0 | CY33: 0 | CZ33: -9 | DB33: 0 | DC33: 0 | DD33: 0 | DE33: 0 | DF33: 0 | DG33: 0 | DH33: 0 | DI33: 0 | DK33: =SUM(($E$32:$E$81=$CZ33)*($F$32:$F$81=DK$16)*$D$32:$D$81) -> 0 | DL33: =SUM(($E$32:$E$81=$CZ33)*($F$32:$F$81=DL$16)*($D$32:$D$81)) -> 0 | DM33: =SUM(($E$32:$E$81=$CZ33)*($F$32:$F$81=DM$16)*$D$32:$D$81) -> 0 | DN33: =SUM(($E$32:$E$81=$CZ33)*($F$32:$F$81=DN$16)*$D$32:$D$81) -> 0 | DO33: =SUM(($E$32:$E$81=$CZ33)*($F$32:$F$81=DO$16)*$D$32:$D$81) -> 0 | DP33: =SUM(($E$32:$E$81=$CZ33)*($F$32:$F$81=DP$16)*$D$32:$D$81) -> 0 | DQ33: =SUM(($E$32:$E$81=$CZ33)*($F$32:$F$81=DQ$16)*$D$32:$D$81) -> 0 | DR33: =SUM(($E$32:$E$81=$CZ33)*($F$32:$F$81=DR$16)*$D$32:$D$81) -> 0 | DS33: =SUM(($E$32:$E$81=$CZ33)*($F$32:$F$81=DS$16)*$D$32:$D$81) -> 0 | DU33: =$DA$33 -> 0 | DV33: =$DB$33 -> 0 | DW33: =$DC$33 -> 0 | DX33: =$DD$33 -> 0 | DY33: =$DE$33 -> 0 | DZ33: =$DF$33 -> 0 | EA33: =$DG$33 -> 0 | EB33: =$DH$33 -> 0 | EC33: =$DI$33 -> 0 | EE33: =$DK$33 -> 0 | EF33: =$DL$33 -> 0 | EG33: =$DM$33 -> 0 | EH33: =$DN$33 -> 0 | EI33: =$DO$33 -> 0 | EJ33: =$DP$33 -> 0 | EK33: =$DQ$33 -> 0 | EL33: =$DR$33 -> 0 | EM33: =$DS$33 -> 0
A34: 3 | B34: Variable Equipment Set 3 | D34: 539940 | E34: 18 | F34: 7 | H34: 3 | I34: Software | P34: 1 | Z34: -8 | AA34: Mon -8 | AB34: 0 | AC34: 0 | AD34: 0 | AE34: 0 | AF34: 0 | AG34: 0 | AK34: 0 | AL34: 0 | AM34: 0 | AQ34: 0 | AR34: 0 | AS34: 0 | AZ34: 0 | BA34: 0 | BB34: 0 | BC34: 0 | BD34: 0 | BE34: 0 | BF34: 0 | BG34: 0 | BH34: 0 | BJ34: 0 | BK34: 0 | BL34: 0 | BM34: 0 | BN34: 0 | BO34: 0 | BP34: 0 | BQ34: 0 | BR34: 0 | BS34: 0 | BT34: 0 | BU34: 0 | BV34: 0 | BW34: 0 | BX34: 0 | BY34: 0 | BZ34: 0 | CA34: 0 | CB34: 0 | CC34: 0 | CD34: 0 | CE34: 0 | CF34: 0 | CG34: 0 | CH34: 0 | CI34: 0 | CJ34: 0 | CK34: 0 | CL34: 0 | CM34: 0 | CN34: 0 | CO34: 0 | CP34: 0 | CQ34: 0 | CR34: 0 | CS34: 0 | CT34: 0 | CU34: 0 | CV34: 0 | CW34: 0 | CX34: 0 | CY34: 0 | CZ34: -8 | DB34: 0 | DC34: 0 | DD34: 0 | DE34: 0 | DF34: 0 | DG34: 0 | DH34: 0 | DI34: 0 | DK34: =SUM(($E$32:$E$81=$CZ34)*($F$32:$F$81=DK$16)*$D$32:$D$81) -> 0 | DL34: =SUM(($E$32:$E$81=$CZ34)*($F$32:$F$81=DL$16)*($D$32:$D$81)) -> 0 | DM34: =SUM(($E$32:$E$81=$CZ34)*($F$32:$F$81=DM$16)*$D$32:$D$81) -> 0 | DN34: =SUM(($E$32:$E$81=$CZ34)*($F$32:$F$81=DN$16)*$D$32:$D$81) -> 0 | DO34: =SUM(($E$32:$E$81=$CZ34)*($F$32:$F$81=DO$16)*$D$32:$D$81) -> 0 | DP34: =SUM(($E$32:$E$81=$CZ34)*($F$32:$F$81=DP$16)*$D$32:$D$81) -> 0 | DQ34: =SUM(($E$32:$E$81=$CZ34)*($F$32:$F$81=DQ$16)*$D$32:$D$81) -> 0 | DR34: =SUM(($E$32:$E$81=$CZ34)*($F$32:$F$81=DR$16)*$D$32:$D$81) -> 0 | DS34: =SUM(($E$32:$E$81=$CZ34)*($F$32:$F$81=DS$16)*$D$32:$D$81) -> 0 | DU34: =$DA$34 -> 0 | DV34: =$DB$34 -> 0 | DW34: =$DC$34 -> 0 | DX34: =$DD$34 -> 0 | DY34: =$DE$34 -> 0 | DZ34: =$DF$34 -> 0 | EA34: =$DG$34 -> 0 | EB34: =$DH$34 -> 0 | EC34: =$DI$34 -> 0 | EE34: =$DK$34 -> 0 | EF34: =$DL$34 -> 0 | EG34: =$DM$34 -> 0 | EH34: =$DN$34 -> 0 | EI34: =$DO$34 -> 0 | EJ34: =$DP$34 -> 0 | EK34: =$DQ$34 -> 0 | EL34: =$DR$34 -> 0 | EM34: =$DS$34 -> 0
A35: 4 | B35: Variable Equipment Set 4 | D35: 539940 | E35: 24 | F35: 7 | H35: 5 | I35: Computers | P35: 1 | Z35: -7 | AA35: Mon -7 | AB35: 0 | AC35: 0 | AD35: 0 | AE35: 0 | AF35: 0 | AG35: 0 | AK35: 0 | AL35: 0 | AM35: 0 | AQ35: 0 | AR35: 0 | AS35: 0 | AZ35: 0 | BA35: 0 | BB35: 0 | BC35: 0 | BD35: 0 | BE35: 0 | BF35: 0 | BG35: 0 | BH35: 0 | BJ35: 0 | BK35: 0 | BL35: 0 | BM35: 0 | BN35: 0 | BO35: 0 | BP35: 0 | BQ35: 0 | BR35: 0 | BS35: 0 | BT35: 0 | BU35: 0 | BV35: 0 | BW35: 0 | BX35: 0 | BY35: 0 | BZ35: 0 | CA35: 0 | CB35: 0 | CC35: 0 | CD35: 0 | CE35: 0 | CF35: 0 | CG35: 0 | CH35: 0 | CI35: 0 | CJ35: 0 | CK35: 0 | CL35: 0 | CM35: 0 | CN35: 0 | CO35: 0 | CP35: 0 | CQ35: 0 | CR35: 0 | CS35: 0 | CT35: 0 | CU35: 0 | CV35: 0 | CW35: 0 | CX35: 0 | CY35: 0 | CZ35: -7 | DB35: 0 | DC35: 0 | DD35: 0 | DE35: 0 | DF35: 0 | DG35: 0 | DH35: 0 | DI35: 0 | DK35: =SUM(($E$32:$E$81=$CZ35)*($F$32:$F$81=DK$16)*$D$32:$D$81) -> 0 | DL35: =SUM(($E$32:$E$81=$CZ35)*($F$32:$F$81=DL$16)*($D$32:$D$81)) -> 0 | DM35: =SUM(($E$32:$E$81=$CZ35)*($F$32:$F$81=DM$16)*$D$32:$D$81) -> 0 | DN35: =SUM(($E$32:$E$81=$CZ35)*($F$32:$F$81=DN$16)*$D$32:$D$81) -> 0 | DO35: =SUM(($E$32:$E$81=$CZ35)*($F$32:$F$81=DO$16)*$D$32:$D$81) -> 0 | DP35: =SUM(($E$32:$E$81=$CZ35)*($F$32:$F$81=DP$16)*$D$32:$D$81) -> 0 | DQ35: =SUM(($E$32:$E$81=$CZ35)*($F$32:$F$81=DQ$16)*$D$32:$D$81) -> 0 | DR35: =SUM(($E$32:$E$81=$CZ35)*($F$32:$F$81=DR$16)*$D$32:$D$81) -> 0 | DS35: =SUM(($E$32:$E$81=$CZ35)*($F$32:$F$81=DS$16)*$D$32:$D$81) -> 0 | DU35: =$DA$35 -> 0 | DV35: =$DB$35 -> 0 | DW35: =$DC$35 -> 0 | DX35: =$DD$35 -> 0 | DY35: =$DE$35 -> 0 | DZ35: =$DF$35 -> 0 | EA35: =$DG$35 -> 0 | EB35: =$DH$35 -> 0 | EC35: =$DI$35 -> 0 | EE35: =$DK$35 -> 0 | EF35: =$DL$35 -> 0 | EG35: =$DM$35 -> 0 | EH35: =$DN$35 -> 0 | EI35: =$DO$35 -> 0 | EJ35: =$DP$35 -> 0 | EK35: =$DQ$35 -> 0 | EL35: =$DR$35 -> 0 | EM35: =$DS$35 -> 0
A36: 5 | B36: Variable Equipment Set 5 | D36: 539940 | E36: 30 | F36: 7 | H36: 7 | I36: Furniture & Equipment | P36: 1 | Z36: -6 | AA36: Mon -6 | AB36: 0 | AC36: 0 | AD36: 0 | AE36: 0 | AF36: 0 | AG36: 0 | AK36: 0 | AL36: 0 | AM36: 0 | AQ36: 0 | AR36: 0 | AS36: 0 | AZ36: 0 | BA36: 0 | BB36: 0 | BC36: 0 | BD36: 0 | BE36: 0 | BF36: 0 | BG36: 0 | BH36: 0 | BJ36: 0 | BK36: 0 | BL36: 0 | BM36: 0 | BN36: 0 | BO36: 0 | BP36: 0 | BQ36: 0 | BR36: 0 | BS36: 0 | BT36: 0 | BU36: 0 | BV36: 0 | BW36: 0 | BX36: 0 | BY36: 0 | BZ36: 0 | CA36: 0 | CB36: 0 | CC36: 0 | CD36: 0 | CE36: 0 | CF36: 0 | CG36: 0 | CH36: 0 | CI36: 0 | CJ36: 0 | CK36: 0 | CL36: 0 | CM36: 0 | CN36: 0 | CO36: 0 | CP36: 0 | CQ36: 0 | CR36: 0 | CS36: 0 | CT36: 0 | CU36: 0 | CV36: 0 | CW36: 0 | CX36: 0 | CY36: 0 | CZ36: -6 | DB36: 0 | DC36: 0 | DD36: 0 | DE36: 0 | DF36: 0 | DG36: 0 | DH36: 0 | DI36: 0 | DK36: =SUM(($E$32:$E$81=$CZ36)*($F$32:$F$81=DK$16)*$D$32:$D$81) -> 0 | DL36: =SUM(($E$32:$E$81=$CZ36)*($F$32:$F$81=DL$16)*($D$32:$D$81)) -> 0 | DM36: =SUM(($E$32:$E$81=$CZ36)*($F$32:$F$81=DM$16)*$D$32:$D$81) -> 0 | DN36: =SUM(($E$32:$E$81=$CZ36)*($F$32:$F$81=DN$16)*$D$32:$D$81) -> 0 | DO36: =SUM(($E$32:$E$81=$CZ36)*($F$32:$F$81=DO$16)*$D$32:$D$81) -> 0 | DP36: =SUM(($E$32:$E$81=$CZ36)*($F$32:$F$81=DP$16)*$D$32:$D$81) -> 0 | DQ36: =SUM(($E$32:$E$81=$CZ36)*($F$32:$F$81=DQ$16)*$D$32:$D$81) -> 0 | DR36: =SUM(($E$32:$E$81=$CZ36)*($F$32:$F$81=DR$16)*$D$32:$D$81) -> 0 | DS36: =SUM(($E$32:$E$81=$CZ36)*($F$32:$F$81=DS$16)*$D$32:$D$81) -> 0 | DU36: =$DA$36 -> 0 | DV36: =$DB$36 -> 0 | DW36: =$DC$36 -> 0 | DX36: =$DD$36 -> 0 | DY36: =$DE$36 -> 0 | DZ36: =$DF$36 -> 0 | EA36: =$DG$36 -> 0 | EB36: =$DH$36 -> 0 | EC36: =$DI$36 -> 0 | EE36: =$DK$36 -> 0 | EF36: =$DL$36 -> 0 | EG36: =$DM$36 -> 0 | EH36: =$DN$36 -> 0 | EI36: =$DO$36 -> 0 | EJ36: =$DP$36 -> 0 | EK36: =$DQ$36 -> 0 | EL36: =$DR$36 -> 0 | EM36: =$DS$36 -> 0
A37: 6 | B37: Variable Equipment Set 6 | D37: 539940 | E37: 36 | F37: 7 | H37: 15 | I37: Leasehold Improvements | P37: 1 | Z37: -5 | AA37: Mon -5 | AB37: 0 | AC37: 0 | AD37: 0 | AE37: 0 | AF37: 0 | AG37: 0 | AK37: 0 | AL37: 0 | AM37: 0 | AQ37: 0 | AR37: 0 | AS37: 0 | AZ37: 0 | BA37: 0 | BB37: 0 | BC37: 0 | BD37: 0 | BE37: 0 | BF37: 0 | BG37: 0 | BH37: 0 | BJ37: 0 | BK37: 0 | BL37: 0 | BM37: 0 | BN37: 0 | BO37: 0 | BP37: 0 | BQ37: 0 | BR37: 0 | BS37: 0 | BT37: 0 | BU37: 0 | BV37: 0 | BW37: 0 | BX37: 0 | BY37: 0 | BZ37: 0 | CA37: 0 | CB37: 0 | CC37: 0 | CD37: 0 | CE37: 0 | CF37: 0 | CG37: 0 | CH37: 0 | CI37: 0 | CJ37: 0 | CK37: 0 | CL37: 0 | CM37: 0 | CN37: 0 | CO37: 0 | CP37: 0 | CQ37: 0 | CR37: 0 | CS37: 0 | CT37: 0 | CU37: 0 | CV37: 0 | CW37: 0 | CX37: 0 | CY37: 0 | CZ37: -5 | DB37: 0 | DC37: 0 | DD37: 0 | DE37: 0 | DF37: 0 | DG37: 0 | DH37: 0 | DI37: 0 | DK37: =SUM(($E$32:$E$81=$CZ37)*($F$32:$F$81=DK$16)*$D$32:$D$81) -> 0 | DL37: =SUM(($E$32:$E$81=$CZ37)*($F$32:$F$81=DL$16)*($D$32:$D$81)) -> 0 | DM37: =SUM(($E$32:$E$81=$CZ37)*($F$32:$F$81=DM$16)*$D$32:$D$81) -> 0 | DN37: =SUM(($E$32:$E$81=$CZ37)*($F$32:$F$81=DN$16)*$D$32:$D$81) -> 0 | DO37: =SUM(($E$32:$E$81=$CZ37)*($F$32:$F$81=DO$16)*$D$32:$D$81) -> 0 | DP37: =SUM(($E$32:$E$81=$CZ37)*($F$32:$F$81=DP$16)*$D$32:$D$81) -> 0 | DQ37: =SUM(($E$32:$E$81=$CZ37)*($F$32:$F$81=DQ$16)*$D$32:$D$81) -> 0 | DR37: =SUM(($E$32:$E$81=$CZ37)*($F$32:$F$81=DR$16)*$D$32:$D$81) -> 0 | DS37: =SUM(($E$32:$E$81=$CZ37)*($F$32:$F$81=DS$16)*$D$32:$D$81) -> 0 | DU37: =$DA$37 -> 0 | DV37: =$DB$37 -> 0 | DW37: =$DC$37 -> 0 | DX37: =$DD$37 -> 0 | DY37: =$DE$37 -> 0 | DZ37: =$DF$37 -> 0 | EA37: =$DG$37 -> 0 | EB37: =$DH$37 -> 0 | EC37: =$DI$37 -> 0 | EE37: =$DK$37 -> 0 | EF37: =$DL$37 -> 0 | EG37: =$DM$37 -> 0 | EH37: =$DN$37 -> 0 | EI37: =$DO$37 -> 0 | EJ37: =$DP$37 -> 0 | EK37: =$DQ$37 -> 0 | EL37: =$DR$37 -> 0 | EM37: =$DS$37 -> 0
A38: 7 | B38: 4-cavity vacuum press | D38: 400000 | E38: 3 | F38: 7 | H38: 27.5 | I38: Residential Rental Property | P38: 1 | Z38: -4 | AA38: Mon -4 | AB38: 0 | AC38: 0 | AD38: 0 | AE38: 0 | AF38: 0 | AG38: 0 | AK38: 0 | AL38: 0 | AM38: 0 | AQ38: 0 | AR38: 0 | AS38: 0 | AZ38: 0 | BA38: 0 | BB38: 0 | BC38: 0 | BD38: 0 | BE38: 0 | BF38: 0 | BG38: 0 | BH38: 0 | BJ38: 0 | BK38: 0 | BL38: 0 | BM38: 0 | BN38: 0 | BO38: 0 | BP38: 0 | BQ38: 0 | BR38: 0 | BS38: 0 | BT38: 0 | BU38: 0 | BV38: 0 | BW38: 0 | BX38: 0 | BY38: 0 | BZ38: 0 | CA38: 0 | CB38: 0 | CC38: 0 | CD38: 0 | CE38: 0 | CF38: 0 | CG38: 0 | CH38: 0 | CI38: 0 | CJ38: 0 | CK38: 0 | CL38: 0 | CM38: 0 | CN38: 0 | CO38: 0 | CP38: 0 | CQ38: 0 | CR38: 0 | CS38: 0 | CT38: 0 | CU38: 0 | CV38: 0 | CW38: 0 | CX38: 0 | CY38: 0 | CZ38: -4 | DB38: =SUMIF($AD$12:$CY$12,DB$16,$AD38:$CY38) -> 0 | DC38: 0 | DD38: 0 | DE38: 0 | DF38: 0 | DG38: 0 | DH38: 0 | DI38: 0 | DK38: =SUM(($E$32:$E$81=$CZ38)*($F$32:$F$81=DK$16)*$D$32:$D$81) -> 0 | DL38: =SUM(($E$32:$E$81=$CZ38)*($F$32:$F$81=DL$16)*($D$32:$D$81)) -> 0 | DM38: =SUM(($E$32:$E$81=$CZ38)*($F$32:$F$81=DM$16)*$D$32:$D$81) -> 0 | DN38: =SUM(($E$32:$E$81=$CZ38)*($F$32:$F$81=DN$16)*$D$32:$D$81) -> 0 | DO38: =SUM(($E$32:$E$81=$CZ38)*($F$32:$F$81=DO$16)*$D$32:$D$81) -> 0 | DP38: =SUM(($E$32:$E$81=$CZ38)*($F$32:$F$81=DP$16)*$D$32:$D$81) -> 0 | DQ38: =SUM(($E$32:$E$81=$CZ38)*($F$32:$F$81=DQ$16)*$D$32:$D$81) -> 0 | DR38: =SUM(($E$32:$E$81=$CZ38)*($F$32:$F$81=DR$16)*$D$32:$D$81) -> 0 | DS38: =SUM(($E$32:$E$81=$CZ38)*($F$32:$F$81=DS$16)*$D$32:$D$81) -> 0 | DU38: =$DA$38 -> 0 | DV38: =$DB$38 -> 0 | DW38: =$DC$38 -> 0 | DX38: =$DD$38 -> 0 | DY38: =$DE$38 -> 0 | DZ38: =$DF$38 -> 0 | EA38: =$DG$38 -> 0 | EB38: =$DH$38 -> 0 | EC38: =$DI$38 -> 0 | EE38: =$DK$38 -> 0 | EF38: =$DL$38 -> 0 | EG38: =$DM$38 -> 0 | EH38: =$DN$38 -> 0 | EI38: =$DO$38 -> 0 | EJ38: =$DP$38 -> 0 | EK38: =$DQ$38 -> 0 | EL38: =$DR$38 -> 0 | EM38: =$DS$38 -> 0
A39: 8 | B39: 4-cavity vacuum press | D39: 400000 | E39: 18 | F39: 7 | H39: 39 | I39: Non-Residential Property | P39: 1 | Z39: -3 | AA39: Mon -3 | AB39: 0 | AC39: 0 | AD39: 0 | AE39: 0 | AF39: 0 | AG39: 0 | AK39: 0 | AL39: 0 | AM39: 0 | AQ39: 0 | AR39: 0 | AS39: 0 | AZ39: 0 | BA39: 0 | BB39: 0 | BC39: 0 | BD39: 0 | BE39: 0 | BF39: 0 | BG39: 0 | BH39: 0 | BJ39: 0 | BK39: 0 | BL39: 0 | BM39: 0 | BN39: 0 | BO39: 0 | BP39: 0 | BQ39: 0 | BR39: 0 | BS39: 0 | BT39: 0 | BU39: 0 | BV39: 0 | BW39: 0 | BX39: 0 | BY39: 0 | BZ39: 0 | CA39: 0 | CB39: 0 | CC39: 0 | CD39: 0 | CE39: 0 | CF39: 0 | CG39: 0 | CH39: 0 | CI39: 0 | CJ39: 0 | CK39: 0 | CL39: 0 | CM39: 0 | CN39: 0 | CO39: 0 | CP39: 0 | CQ39: 0 | CR39: 0 | CS39: 0 | CT39: 0 | CU39: 0 | CV39: 0 | CW39: 0 | CX39: 0 | CY39: 0 | CZ39: -3 | DB39: 0 | DC39: 0 | DD39: 0 | DE39: 0 | DF39: 0 | DG39: 0 | DH39: 0 | DI39: 0 | DK39: =SUM(($E$32:$E$81=$CZ39)*($F$32:$F$81=DK$16)*$D$32:$D$81) -> 0 | DL39: =SUM(($E$32:$E$81=$CZ39)*($F$32:$F$81=DL$16)*($D$32:$D$81)) -> 0 | DM39: =SUM(($E$32:$E$81=$CZ39)*($F$32:$F$81=DM$16)*$D$32:$D$81) -> 0 | DN39: =SUM(($E$32:$E$81=$CZ39)*($F$32:$F$81=DN$16)*$D$32:$D$81) -> 0 | DO39: =SUM(($E$32:$E$81=$CZ39)*($F$32:$F$81=DO$16)*$D$32:$D$81) -> 0 | DP39: =SUM(($E$32:$E$81=$CZ39)*($F$32:$F$81=DP$16)*$D$32:$D$81) -> 0 | DQ39: =SUM(($E$32:$E$81=$CZ39)*($F$32:$F$81=DQ$16)*$D$32:$D$81) -> 0 | DR39: =SUM(($E$32:$E$81=$CZ39)*($F$32:$F$81=DR$16)*$D$32:$D$81) -> 0 | DS39: =SUM(($E$32:$E$81=$CZ39)*($F$32:$F$81=DS$16)*$D$32:$D$81) -> 0 | DU39: =$DA$39 -> 0 | DV39: =$DB$39 -> 0 | DW39: =$DC$39 -> 0 | DX39: =$DD$39 -> 0 | DY39: =$DE$39 -> 0 | DZ39: =$DF$39 -> 0 | EA39: =$DG$39 -> 0 | EB39: =$DH$39 -> 0 | EC39: =$DI$39 -> 0 | EE39: =$DK$39 -> 0 | EF39: =$DL$39 -> 0 | EG39: =$DM$39 -> 0 | EH39: =$DN$39 -> 0 | EI39: =$DO$39 -> 0 | EJ39: =$DP$39 -> 0 | EK39: =$DQ$39 -> 0 | EL39: =$DR$39 -> 0 | EM39: =$DS$39 -> 0
A40: 9 | B40: 4-cavity vacuum press | D40: 400000 | E40: 30 | F40: 7 | H40: None | I40: Land | P40: 1 | Z40: -2 | AA40: Mon -2 | AB40: 0 | AC40: 0 | AD40: 0 | AE40: 0 | AF40: 0 | AG40: 0 | AK40: 0 | AL40: 0 | AM40: 0 | AQ40: 0 | AR40: 0 | AS40: 0 | AZ40: 0 | BA40: 0 | BB40: 0 | BC40: 0 | BD40: 0 | BE40: 0 | BF40: 0 | BG40: 0 | BH40: 0 | BJ40: 0 | BK40: 0 | BL40: 0 | BM40: 0 | BN40: 0 | BO40: 0 | BP40: 0 | BQ40: 0 | BR40: 0 | BS40: 0 | BT40: 0 | BU40: 0 | BV40: 0 | BW40: 0 | BX40: 0 | BY40: 0 | BZ40: 0 | CA40: 0 | CB40: 0 | CC40: 0 | CD40: 0 | CE40: 0 | CF40: 0 | CG40: 0 | CH40: 0 | CI40: 0 | CJ40: 0 | CK40: 0 | CL40: 0 | CM40: 0 | CN40: 0 | CO40: 0 | CP40: 0 | CQ40: 0 | CR40: 0 | CS40: 0 | CT40: 0 | CU40: 0 | CV40: 0 | CW40: 0 | CX40: 0 | CY40: 0 | CZ40: -2 | DB40: 0 | DC40: 0 | DD40: 0 | DE40: 0 | DF40: 0 | DG40: 0 | DH40: 0 | DI40: 0 | DK40: =SUM(($E$32:$E$81=$CZ40)*($F$32:$F$81=DK$16)*$D$32:$D$81) -> 0 | DL40: =SUM(($E$32:$E$81=$CZ40)*($F$32:$F$81=DL$16)*($D$32:$D$81)) -> 0 | DM40: =SUM(($E$32:$E$81=$CZ40)*($F$32:$F$81=DM$16)*$D$32:$D$81) -> 0 | DN40: =SUM(($E$32:$E$81=$CZ40)*($F$32:$F$81=DN$16)*$D$32:$D$81) -> 0 | DO40: =SUM(($E$32:$E$81=$CZ40)*($F$32:$F$81=DO$16)*$D$32:$D$81) -> 0 | DP40: =SUM(($E$32:$E$81=$CZ40)*($F$32:$F$81=DP$16)*$D$32:$D$81) -> 0 | DQ40: =SUM(($E$32:$E$81=$CZ40)*($F$32:$F$81=DQ$16)*$D$32:$D$81) -> 0 | DR40: =SUM(($E$32:$E$81=$CZ40)*($F$32:$F$81=DR$16)*$D$32:$D$81) -> 0 | DS40: =SUM(($E$32:$E$81=$CZ40)*($F$32:$F$81=DS$16)*$D$32:$D$81) -> 0 | DU40: =$DA$40 -> 0 | DV40: =$DB$40 -> 0 | DW40: =$DC$40 -> 0 | DX40: =$DD$40 -> 0 | DY40: =$DE$40 -> 0 | DZ40: =$DF$40 -> 0 | EA40: =$DG$40 -> 0 | EB40: =$DH$40 -> 0 | EC40: =$DI$40 -> 0 | EE40: =$DK$40 -> 0 | EF40: =$DL$40 -> 0 | EG40: =$DM$40 -> 0 | EH40: =$DN$40 -> 0 | EI40: =$DO$40 -> 0 | EJ40: =$DP$40 -> 0 | EK40: =$DQ$40 -> 0 | EL40: =$DR$40 -> 0 | EM40: =$DS$40 -> 0
A41: 10 | B41: Eps block molding | D41: 1261000 | E41: 3 | F41: 7 | P41: 1 | Z41: -1 | AA41: Mon -1 | AB41: 0 | AC41: 0 | AD41: 0 | AE41: 0 | AF41: 0 | AG41: 0 | AK41: 0 | AL41: 0 | AM41: 0 | AQ41: 0 | AR41: 0 | AS41: 0 | AZ41: 0 | BA41: 0 | BB41: 0 | BC41: 0 | BD41: 0 | BE41: 0 | BF41: 0 | BG41: 0 | BH41: 0 | BJ41: 0 | BK41: 0 | BL41: 0 | BM41: 0 | BN41: 0 | BO41: 0 | BP41: 0 | BQ41: 0 | BR41: 0 | BS41: 0 | BT41: 0 | BU41: 0 | BV41: 0 | BW41: 0 | BX41: 0 | BY41: 0 | BZ41: 0 | CA41: 0 | CB41: 0 | CC41: 0 | CD41: 0 | CE41: 0 | CF41: 0 | CG41: 0 | CH41: 0 | CI41: 0 | CJ41: 0 | CK41: 0 | CL41: 0 | CM41: 0 | CN41: 0 | CO41: 0 | CP41: 0 | CQ41: 0 | CR41: 0 | CS41: 0 | CT41: 0 | CU41: 0 | CV41: 0 | CW41: 0 | CX41: 0 | CY41: 0 | CZ41: -1 | DB41: 0 | DC41: 0 | DD41: 0 | DE41: 0 | DF41: 0 | DG41: 0 | DH41: 0 | DI41: 0 | DK41: =SUM(($E$32:$E$81=$CZ41)*($F$32:$F$81=DK$16)*$D$32:$D$81) -> 0 | DL41: =SUM(($E$32:$E$81=$CZ41)*($F$32:$F$81=DL$16)*($D$32:$D$81)) -> 0 | DM41: =SUM(($E$32:$E$81=$CZ41)*($F$32:$F$81=DM$16)*$D$32:$D$81) -> 0 | DN41: =SUM(($E$32:$E$81=$CZ41)*($F$32:$F$81=DN$16)*$D$32:$D$81) -> 0 | DO41: =SUM(($E$32:$E$81=$CZ41)*($F$32:$F$81=DO$16)*$D$32:$D$81) -> 0 | DP41: =SUM(($E$32:$E$81=$CZ41)*($F$32:$F$81=DP$16)*$D$32:$D$81) -> 0 | DQ41: =SUM(($E$32:$E$81=$CZ41)*($F$32:$F$81=DQ$16)*$D$32:$D$81) -> 0 | DR41: =SUM(($E$32:$E$81=$CZ41)*($F$32:$F$81=DR$16)*$D$32:$D$81) -> 0 | DS41: =SUM(($E$32:$E$81=$CZ41)*($F$32:$F$81=DS$16)*$D$32:$D$81) -> 0 | DU41: =$DA$41 -> 0 | DV41: =$DB$41 -> 0 | DW41: =$DC$41 -> 0 | DX41: =$DD$41 -> 0 | DY41: =$DE$41 -> 0 | DZ41: =$DF$41 -> 0 | EA41: =$DG$41 -> 0 | EB41: =$DH$41 -> 0 | EC41: =$DI$41 -> 0 | EE41: =$DK$41 -> 0 | EF41: =$DL$41 -> 0 | EG41: =$DM$41 -> 0 | EH41: =$DN$41 -> 0 | EI41: =$DO$41 -> 0 | EJ41: =$DP$41 -> 0 | EK41: =$DQ$41 -> 0 | EL41: =$DR$41 -> 0 | EM41: =$DS$41 -> 0
A42: 11 | B42: Eps block molding | D42: 1261000 | E42: 18 | F42: 7 | N42: =IF(A42>D$29,1/0,0) -> 0 | P42: 1 | Z42: 1 | AA42: Mon 1 | AB42: 0 | AC42: 0 | AD42: 0 | AE42: 0 | AF42: 0 | AG42: 0 | AK42: 0 | AL42: 0 | AM42: 0 | AQ42: 0 | AR42: 0 | AS42: 0 | AZ42: 0 | BA42: 0 | BB42: 0 | BC42: 0 | BD42: 0 | BE42: 0 | BF42: 0 | BG42: 0 | BH42: 0 | BJ42: 0 | BK42: 0 | BL42: 0 | BM42: 0 | BN42: 0 | BO42: 0 | BP42: 0 | BQ42: 0 | BR42: 0 | BS42: 0 | BT42: 0 | BU42: 0 | BV42: 0 | BW42: 0 | BX42: 0 | BY42: 0 | BZ42: 0 | CA42: 0 | CB42: 0 | CC42: 0 | CD42: 0 | CE42: 0 | CF42: 0 | CG42: 0 | CH42: 0 | CI42: 0 | CJ42: 0 | CK42: 0 | CL42: 0 | CM42: 0 | CN42: 0 | CO42: 0 | CP42: 0 | CQ42: 0 | CR42: 0 | CS42: 0 | CT42: 0 | CU42: 0 | CV42: 0 | CW42: 0 | CX42: 0 | CY42: 0 | CZ42: 1 | DA42: =SUMIF($AD$12:$CY$12,DA$16,$AD42:$CY42) -> 0 | DB42: 0 | DC42: 0 | DD42: 0 | DE42: 0 | DF42: 0 | DG42: 0 | DH42: 0 | DI42: 0 | DK42: =SUM(($E$32:$E$81=$CZ42)*($F$32:$F$81=DK$16)*$D$32:$D$81) -> 0 | DL42: =SUM(($E$32:$E$81=$CZ42)*($F$32:$F$81=DL$16)*($D$32:$D$81)) -> 0 | DM42: =SUM(($E$32:$E$81=$CZ42)*($F$32:$F$81=DM$16)*$D$32:$D$81) -> 0 | DN42: =SUM(($E$32:$E$81=$CZ42)*($F$32:$F$81=DN$16)*$D$32:$D$81) -> 0 | DO42: =SUM(($E$32:$E$81=$CZ42)*($F$32:$F$81=DO$16)*$D$32:$D$81) -> 0 | DP42: =SUM(($E$32:$E$81=$CZ42)*($F$32:$F$81=DP$16)*$D$32:$D$81) -> 0 | DQ42: =SUM(($E$32:$E$81=$CZ42)*($F$32:$F$81=DQ$16)*$D$32:$D$81) -> 0 | DR42: =SUM(($E$32:$E$81=$CZ42)*($F$32:$F$81=DR$16)*$D$32:$D$81) -> 0 | DS42: =SUM(($E$32:$E$81=$CZ42)*($F$32:$F$81=DS$16)*$D$32:$D$81) -> 0 | DU42: =$DA$42 -> 0 | DV42: =$DB$42 -> 0 | DW42: =$DC$42 -> 0 | DX42: =$DD$42 -> 0 | DY42: =$DE$42 -> 0 | DZ42: =$DF$42 -> 0 | EA42: =$DG$42 -> 0 | EB42: =$DH$42 -> 0 | EC42: =$DI$42 -> 0 | EE42: =$DK$42 -> 0 | EF42: =$DL$42 -> 0 | EG42: =$DM$42 -> 0 | EH42: =$DN$42 -> 0 | EI42: =$DO$42 -> 0 | EJ42: =$DP$42 -> 0 | EK42: =$DQ$42 -> 0 | EL42: =$DR$42 -> 0 | EM42: =$DS$42 -> 0
A43: 12 | B43: Eps block molding | D43: 1261000 | E43: 30 | F43: 7 | N43: 0 | P43: 1 | Z43: 2 | AA43: Mon 2 | AB43: 0 | AC43: 0 | AD43: 0 | AE43: 0 | AF43: 0 | AG43: 0 | AK43: 0 | AL43: 0 | AM43: 0 | AQ43: 0 | AR43: 0 | AS43: 0 | AZ43: 0 | BA43: 0 | BB43: 0 | BC43: 0 | BD43: 0 | BE43: 0 | BF43: 0 | BG43: 0 | BH43: 0 | BJ43: 0 | BK43: 0 | BL43: 0 | BM43: 0 | BN43: 0 | BO43: 0 | BP43: 0 | BQ43: 0 | BR43: 0 | BS43: 0 | BT43: 0 | BU43: 0 | BV43: 0 | BW43: 0 | BX43: 0 | BY43: 0 | BZ43: 0 | CA43: 0 | CB43: 0 | CC43: 0 | CD43: 0 | CE43: 0 | CF43: 0 | CG43: 0 | CH43: 0 | CI43: 0 | CJ43: 0 | CK43: 0 | CL43: 0 | CM43: 0 | CN43: 0 | CO43: 0 | CP43: 0 | CQ43: 0 | CR43: 0 | CS43: 0 | CT43: 0 | CU43: 0 | CV43: 0 | CW43: 0 | CX43: 0 | CY43: 0 | CZ43: 2 | DA43: 0 | DB43: 0 | DC43: 0 | DD43: 0 | DE43: 0 | DF43: 0 | DG43: 0 | DH43: 0 | DI43: 0 | DK43: =SUM(($E$32:$E$81=$CZ43)*($F$32:$F$81=DK$16)*$D$32:$D$81) -> 0 | DL43: =SUM(($E$32:$E$81=$CZ43)*($F$32:$F$81=DL$16)*($D$32:$D$81)) -> 0 | DM43: =SUM(($E$32:$E$81=$CZ43)*($F$32:$F$81=DM$16)*$D$32:$D$81) -> 0 | DN43: =SUM(($E$32:$E$81=$CZ43)*($F$32:$F$81=DN$16)*$D$32:$D$81) -> 0 | DO43: =SUM(($E$32:$E$81=$CZ43)*($F$32:$F$81=DO$16)*$D$32:$D$81) -> 0 | DP43: =SUM(($E$32:$E$81=$CZ43)*($F$32:$F$81=DP$16)*$D$32:$D$81) -> 0 | DQ43: =SUM(($E$32:$E$81=$CZ43)*($F$32:$F$81=DQ$16)*$D$32:$D$81) -> 0 | DR43: =SUM(($E$32:$E$81=$CZ43)*($F$32:$F$81=DR$16)*$D$32:$D$81) -> 0 | DS43: =SUM(($E$32:$E$81=$CZ43)*($F$32:$F$81=DS$16)*$D$32:$D$81) -> 0 | DU43: =$DA$43 -> 0 | DV43: =$DB$43 -> 0 | DW43: =$DC$43 -> 0 | DX43: =$DD$43 -> 0 | DY43: =$DE$43 -> 0 | DZ43: =$DF$43 -> 0 | EA43: =$DG$43 -> 0 | EB43: =$DH$43 -> 0 | EC43: =$DI$43 -> 0 | EE43: =$DK$43 -> 0 | EF43: =$DL$43 -> 0 | EG43: =$DM$43 -> 0 | EH43: =$DN$43 -> 0 | EI43: =$DO$43 -> 0 | EJ43: =$DP$43 -> 0 | EK43: =$DQ$43 -> 0 | EL43: =$DR$43 -> 0 | EM43: =$DS$43 -> 0
A44: 13 | D44: =SUM(D32:D43) -> 8222640 | P44: =IF(F36="Land",1,IF(D36*E36*F36<>0,1,0)) -> 1 | Z44: 3 | AA44: Mon 3 | AB44: 0 | AC44: 0 | AD44: 0 | AE44: 0 | AF44: 0 | AG44: 0 | AK44: 0 | AL44: 0 | AM44: 0 | AQ44: 0 | AR44: 0 | AS44: 0 | AZ44: 0 | BA44: 0 | BB44: 0 | BC44: 1 | BD44: 0.01190833333 | BE44: 15016.40833 | BF44: 0 | BG44: 0 | BH44: 0 | BJ44: 0 | BK44: 0 | BL44: 0 | BM44: 0 | BN44: 0 | BO44: 0 | BP44: 0 | BQ44: 0 | BR44: 0 | BS44: 1 | BT44: 0.01190833333 | BU44: 4763.333333 | BV44: 0 | BW44: 0 | BX44: 0 | BY44: 0 | BZ44: 0 | CA44: 0 | CB44: 0 | CC44: 0 | CD44: 0 | CE44: 0 | CF44: 0 | CG44: 0 | CH44: 0 | CI44: 0 | CJ44: 0 | CK44: 0 | CL44: 0 | CM44: 0 | CN44: 0 | CO44: 0 | CP44: 0 | CQ44: 0 | CR44: 0 | CS44: 0 | CT44: 0 | CU44: 0 | CV44: 0 | CW44: 0 | CX44: 0 | CY44: 0 | CZ44: 3 | DA44: 0 | DB44: 0 | DC44: 0 | DD44: 19779.74167 | DE44: 0 | DF44: 0 | DG44: 0 | DH44: 0 | DI44: 0 | DK44: =SUM(($E$32:$E$81=$CZ44)*($F$32:$F$81=DK$16)*$D$32:$D$81) -> 0 | DL44: =SUM(($E$32:$E$81=$CZ44)*($F$32:$F$81=DL$16)*($D$32:$D$81)) -> 0 | DM44: =SUM(($E$32:$E$81=$CZ44)*($F$32:$F$81=DM$16)*$D$32:$D$81) -> 0 | DN44: =SUM(($E$32:$E$81=$CZ44)*($F$32:$F$81=DN$16)*$D$32:$D$81) -> 1661000 | DO44: =SUM(($E$32:$E$81=$CZ44)*($F$32:$F$81=DO$16)*$D$32:$D$81) -> 0 | DP44: =SUM(($E$32:$E$81=$CZ44)*($F$32:$F$81=DP$16)*$D$32:$D$81) -> 0 | DQ44: =SUM(($E$32:$E$81=$CZ44)*($F$32:$F$81=DQ$16)*$D$32:$D$81) -> 0 | DR44: =SUM(($E$32:$E$81=$CZ44)*($F$32:$F$81=DR$16)*$D$32:$D$81) -> 0 | DS44: =SUM(($E$32:$E$81=$CZ44)*($F$32:$F$81=DS$16)*$D$32:$D$81) -> 0 | DU44: =$DA$44 -> 0 | DV44: =$DB$44 -> 0 | DW44: =$DC$44 -> 0 | DX44: =$DD$44 -> 19779.74167 | DY44: =$DE$44 -> 0 | DZ44: =$DF$44 -> 0 | EA44: =$DG$44 -> 0 | EB44: =$DH$44 -> 0 | EC44: =$DI$44 -> 0 | EE44: =$DK$44 -> 0 | EF44: =$DL$44 -> 0 | EG44: =$DM$44 -> 0 | EH44: =$DN$44 -> 1661000 | EI44: =$DO$44 -> 0 | EJ44: =$DP$44 -> 0 | EK44: =$DQ$44 -> 0 | EL44: =$DR$44 -> 0 | EM44: =$DS$44 -> 0
A45: 14 | P45: =IF(F39="Land",1,IF(D39*E39*F39<>0,1,0)) -> 1 | Z45: 4 | AA45: Mon 4 | AB45: 1 | AC45: 0.01190833333 | AD45: 6429.7855 | AE45: 0 | AF45: 0 | AG45: 0 | AK45: 0 | AL45: 0 | AM45: 0 | AQ45: 0 | AR45: 0 | AS45: 0 | AZ45: 0 | BA45: 0 | BB45: 0 | BC45: 2 | BD45: 0.01190833333 | BE45: 15016.40833 | BF45: 0 | BG45: 0 | BH45: 0 | BJ45: 0 | BK45: 0 | BL45: 0 | BM45: 0 | BN45: 0 | BO45: 0 | BP45: 0 | BQ45: 0 | BR45: 0 | BS45: 2 | BT45: 0.01190833333 | BU45: 4763.333333 | BV45: 0 | BW45: 0 | BX45: 0 | BY45: 0 | BZ45: 0 | CA45: 0 | CB45: 0 | CC45: 0 | CD45: 0 | CE45: 0 | CF45: 0 | CG45: 0 | CH45: 0 | CI45: 0 | CJ45: 0 | CK45: 0 | CL45: 0 | CM45: 0 | CN45: 0 | CO45: 0 | CP45: 0 | CQ45: 0 | CR45: 0 | CS45: 0 | CT45: 0 | CU45: 0 | CV45: 0 | CW45: 0 | CX45: 0 | CY45: 0 | CZ45: 4 | DA45: 0 | DB45: 0 | DC45: 0 | DD45: 26209.52717 | DE45: 0 | DF45: 0 | DG45: 0 | DH45: 0 | DI45: 0 | DK45: =SUM(($E$32:$E$81=$CZ45)*($F$32:$F$81=DK$16)*$D$32:$D$81) -> 0 | DL45: =SUM(($E$32:$E$81=$CZ45)*($F$32:$F$81=DL$16)*($D$32:$D$81)) -> 0 | DM45: =SUM(($E$32:$E$81=$CZ45)*($F$32:$F$81=DM$16)*$D$32:$D$81) -> 0 | DN45: =SUM(($E$32:$E$81=$CZ45)*($F$32:$F$81=DN$16)*$D$32:$D$81) -> 539940 | DO45: =SUM(($E$32:$E$81=$CZ45)*($F$32:$F$81=DO$16)*$D$32:$D$81) -> 0 | DP45: =SUM(($E$32:$E$81=$CZ45)*($F$32:$F$81=DP$16)*$D$32:$D$81) -> 0 | DQ45: =SUM(($E$32:$E$81=$CZ45)*($F$32:$F$81=DQ$16)*$D$32:$D$81) -> 0 | DR45: =SUM(($E$32:$E$81=$CZ45)*($F$32:$F$81=DR$16)*$D$32:$D$81) -> 0 | DS45: =SUM(($E$32:$E$81=$CZ45)*($F$32:$F$81=DS$16)*$D$32:$D$81) -> 0 | DU45: =$DA$45 -> 0 | DV45: =$DB$45 -> 0 | DW45: =$DC$45 -> 0 | DX45: =$DD$45 -> 26209.52717 | DY45: =$DE$45 -> 0 | DZ45: =$DF$45 -> 0 | EA45: =$DG$45 -> 0 | EB45: =$DH$45 -> 0 | EC45: =$DI$45 -> 0 | EE45: =$DK$45 -> 0 | EF45: =$DL$45 -> 0 | EG45: =$DM$45 -> 0 | EH45: =$DN$45 -> 539940 | EI45: =$DO$45 -> 0 | EJ45: =$DP$45 -> 0 | EK45: =$DQ$45 -> 0 | EL45: =$DR$45 -> 0 | EM45: =$DS$45 -> 0
A46: 15 | P46: =IF(F38="Land",1,IF(D38*E38*F38<>0,1,0)) -> 1 | Z46: 5 | AA46: Mon 5 | AB46: 2 | AC46: 0.01190833333 | AD46: 6429.7855 | AE46: 0 | AF46: 0 | AG46: 0 | AK46: 0 | AL46: 0 | AM46: 0 | AQ46: 0 | AR46: 0 | AS46: 0 | AZ46: 0 | BA46: 0 | BB46: 0 | BC46: 3 | BD46: 0.01190833333 | BE46: 15016.40833 | BF46: 0 | BG46: 0 | BH46: 0 | BJ46: 0 | BK46: 0 | BL46: 0 | BM46: 0 | BN46: 0 | BO46: 0 | BP46: 0 | BQ46: 0 | BR46: 0 | BS46: 3 | BT46: 0.01190833333 | BU46: 4763.333333 | BV46: 0 | BW46: 0 | BX46: 0 | BY46: 0 | BZ46: 0 | CA46: 0 | CB46: 0 | CC46: 0 | CD46: 0 | CE46: 0 | CF46: 0 | CG46: 0 | CH46: 0 | CI46: 0 | CJ46: 0 | CK46: 0 | CL46: 0 | CM46: 0 | CN46: 0 | CO46: 0 | CP46: 0 | CQ46: 0 | CR46: 0 | CS46: 0 | CT46: 0 | CU46: 0 | CV46: 0 | CW46: 0 | CX46: 0 | CY46: 0 | CZ46: 5 | DA46: 0 | DB46: 0 | DC46: 0 | DD46: 26209.52717 | DE46: 0 | DF46: 0 | DG46: 0 | DH46: 0 | DI46: 0 | DK46: =SUM(($E$32:$E$81=$CZ46)*($F$32:$F$81=DK$16)*$D$32:$D$81) -> 0 | DL46: =SUM(($E$32:$E$81=$CZ46)*($F$32:$F$81=DL$16)*($D$32:$D$81)) -> 0 | DM46: =SUM(($E$32:$E$81=$CZ46)*($F$32:$F$81=DM$16)*$D$32:$D$81) -> 0 | DN46: =SUM(($E$32:$E$81=$CZ46)*($F$32:$F$81=DN$16)*$D$32:$D$81) -> 0 | DO46: =SUM(($E$32:$E$81=$CZ46)*($F$32:$F$81=DO$16)*$D$32:$D$81) -> 0 | DP46: =SUM(($E$32:$E$81=$CZ46)*($F$32:$F$81=DP$16)*$D$32:$D$81) -> 0 | DQ46: =SUM(($E$32:$E$81=$CZ46)*($F$32:$F$81=DQ$16)*$D$32:$D$81) -> 0 | DR46: =SUM(($E$32:$E$81=$CZ46)*($F$32:$F$81=DR$16)*$D$32:$D$81) -> 0 | DS46: =SUM(($E$32:$E$81=$CZ46)*($F$32:$F$81=DS$16)*$D$32:$D$81) -> 0 | DU46: =$DA$46 -> 0 | DV46: =$DB$46 -> 0 | DW46: =$DC$46 -> 0 | DX46: =$DD$46 -> 26209.52717 | DY46: =$DE$46 -> 0 | DZ46: =$DF$46 -> 0 | EA46: =$DG$46 -> 0 | EB46: =$DH$46 -> 0 | EC46: =$DI$46 -> 0 | EE46: =$DK$46 -> 0 | EF46: =$DL$46 -> 0 | EG46: =$DM$46 -> 0 | EH46: =$DN$46 -> 0 | EI46: =$DO$46 -> 0 | EJ46: =$DP$46 -> 0 | EK46: =$DQ$46 -> 0 | EL46: =$DR$46 -> 0 | EM46: =$DS$46 -> 0
A47: 16 | P47: =IF(F35="Land",1,IF(D35*E35*F35<>0,1,0)) -> 1 | Z47: 6 | AA47: Mon 6 | AB47: 3 | AC47: 0.01190833333 | AD47: 6429.7855 | AE47: 0 | AF47: 0 | AG47: 0 | AK47: 0 | AL47: 0 | AM47: 0 | AQ47: 0 | AR47: 0 | AS47: 0 | AZ47: 0 | BA47: 0 | BB47: 0 | BC47: 4 | BD47: 0.01190833333 | BE47: 15016.40833 | BF47: 0 | BG47: 0 | BH47: 0 | BJ47: 0 | BK47: 0 | BL47: 0 | BM47: 0 | BN47: 0 | BO47: 0 | BP47: 0 | BQ47: 0 | BR47: 0 | BS47: 4 | BT47: 0.01190833333 | BU47: 4763.333333 | BV47: 0 | BW47: 0 | BX47: 0 | BY47: 0 | BZ47: 0 | CA47: 0 | CB47: 0 | CC47: 0 | CD47: 0 | CE47: 0 | CF47: 0 | CG47: 0 | CH47: 0 | CI47: 0 | CJ47: 0 | CK47: 0 | CL47: 0 | CM47: 0 | CN47: 0 | CO47: 0 | CP47: 0 | CQ47: 0 | CR47: 0 | CS47: 0 | CT47: 0 | CU47: 0 | CV47: 0 | CW47: 0 | CX47: 0 | CY47: 0 | CZ47: 6 | DA47: 0 | DB47: 0 | DC47: 0 | DD47: 26209.52717 | DE47: 0 | DF47: 0 | DG47: 0 | DH47: 0 | DI47: 0 | DK47: =SUM(($E$32:$E$81=$CZ47)*($F$32:$F$81=DK$16)*$D$32:$D$81) -> 0 | DL47: =SUM(($E$32:$E$81=$CZ47)*($F$32:$F$81=DL$16)*($D$32:$D$81)) -> 0 | DM47: =SUM(($E$32:$E$81=$CZ47)*($F$32:$F$81=DM$16)*$D$32:$D$81) -> 0 | DN47: =SUM(($E$32:$E$81=$CZ47)*($F$32:$F$81=DN$16)*$D$32:$D$81) -> 0 | DO47: =SUM(($E$32:$E$81=$CZ47)*($F$32:$F$81=DO$16)*$D$32:$D$81) -> 0 | DP47: =SUM(($E$32:$E$81=$CZ47)*($F$32:$F$81=DP$16)*$D$32:$D$81) -> 0 | DQ47: =SUM(($E$32:$E$81=$CZ47)*($F$32:$F$81=DQ$16)*$D$32:$D$81) -> 0 | DR47: =SUM(($E$32:$E$81=$CZ47)*($F$32:$F$81=DR$16)*$D$32:$D$81) -> 0 | DS47: =SUM(($E$32:$E$81=$CZ47)*($F$32:$F$81=DS$16)*$D$32:$D$81) -> 0 | DU47: =$DA$47 -> 0 | DV47: =$DB$47 -> 0 | DW47: =$DC$47 -> 0 | DX47: =$DD$47 -> 26209.52717 | DY47: =$DE$47 -> 0 | DZ47: =$DF$47 -> 0 | EA47: =$DG$47 -> 0 | EB47: =$DH$47 -> 0 | EC47: =$DI$47 -> 0 | EE47: =$DK$47 -> 0 | EF47: =$DL$47 -> 0 | EG47: =$DM$47 -> 0 | EH47: =$DN$47 -> 0 | EI47: =$DO$47 -> 0 | EJ47: =$DP$47 -> 0 | EK47: =$DQ$47 -> 0 | EL47: =$DR$47 -> 0 | EM47: =$DS$47 -> 0
A48: 17 | B48: Depreciation #17 | P48: 0 | Z48: 7 | AA48: Mon 7 | AB48: 4 | AC48: 0.01190833333 | AD48: 6429.7855 | AE48: 0 | AF48: 0 | AG48: 0 | AK48: 0 | AL48: 0 | AM48: 0 | AQ48: 0 | AR48: 0 | AS48: 0 | AZ48: 0 | BA48: 0 | BB48: 0 | BC48: 5 | BD48: 0.01190833333 | BE48: 15016.40833 | BF48: 0 | BG48: 0 | BH48: 0 | BJ48: 0 | BK48: 0 | BL48: 0 | BM48: 0 | BN48: 0 | BO48: 0 | BP48: 0 | BQ48: 0 | BR48: 0 | BS48: 5 | BT48: 0.01190833333 | BU48: 4763.333333 | BV48: 0 | BW48: 0 | BX48: 0 | BY48: 0 | BZ48: 0 | CA48: 0 | CB48: 0 | CC48: 0 | CD48: 0 | CE48: 0 | CF48: 0 | CG48: 0 | CH48: 0 | CI48: 0 | CJ48: 0 | CK48: 0 | CL48: 0 | CM48: 0 | CN48: 0 | CO48: 0 | CP48: 0 | CQ48: 0 | CR48: 0 | CS48: 0 | CT48: 0 | CU48: 0 | CV48: 0 | CW48: 0 | CX48: 0 | CY48: 0 | CZ48: 7 | DA48: 0 | DB48: =SUMIF($AD$12:$CY$12,DB$16,$AD48:$CY48) -> 0 | DC48: 0 | DD48: 26209.52717 | DE48: 0 | DF48: 0 | DG48: 0 | DH48: 0 | DI48: 0 | DK48: =SUM(($E$32:$E$81=$CZ48)*($F$32:$F$81=DK$16)*$D$32:$D$81) -> 0 | DL48: =SUM(($E$32:$E$81=$CZ48)*($F$32:$F$81=DL$16)*($D$32:$D$81)) -> 0 | DM48: =SUM(($E$32:$E$81=$CZ48)*($F$32:$F$81=DM$16)*$D$32:$D$81) -> 0 | DN48: =SUM(($E$32:$E$81=$CZ48)*($F$32:$F$81=DN$16)*$D$32:$D$81) -> 0 | DO48: =SUM(($E$32:$E$81=$CZ48)*($F$32:$F$81=DO$16)*$D$32:$D$81) -> 0 | DP48: =SUM(($E$32:$E$81=$CZ48)*($F$32:$F$81=DP$16)*$D$32:$D$81) -> 0 | DQ48: =SUM(($E$32:$E$81=$CZ48)*($F$32:$F$81=DQ$16)*$D$32:$D$81) -> 0 | DR48: =SUM(($E$32:$E$81=$CZ48)*($F$32:$F$81=DR$16)*$D$32:$D$81) -> 0 | DS48: =SUM(($E$32:$E$81=$CZ48)*($F$32:$F$81=DS$16)*$D$32:$D$81) -> 0 | DU48: =$DA$48 -> 0 | DV48: =$DB$48 -> 0 | DW48: =$DC$48 -> 0 | DX48: =$DD$48 -> 26209.52717 | DY48: =$DE$48 -> 0 | DZ48: =$DF$48 -> 0 | EA48: =$DG$48 -> 0 | EB48: =$DH$48 -> 0 | EC48: =$DI$48 -> 0 | EE48: =$DK$48 -> 0 | EF48: =$DL$48 -> 0 | EG48: =$DM$48 -> 0 | EH48: =$DN$48 -> 0 | EI48: =$DO$48 -> 0 | EJ48: =$DP$48 -> 0 | EK48: =$DQ$48 -> 0 | EL48: =$DR$48 -> 0 | EM48: =$DS$48 -> 0
A49: 18 | B49: Depreciation #18 | P49: 0 | Z49: 8 | AA49: Mon 8 | AB49: 5 | AC49: 0.01190833333 | AD49: 6429.7855 | AE49: 0 | AF49: 0 | AG49: 0 | AK49: 0 | AL49: 0 | AM49: 0 | AQ49: 0 | AR49: 0 | AS49: 0 | AZ49: 0 | BA49: 0 | BB49: 0 | BC49: 6 | BD49: 0.01190833333 | BE49: 15016.40833 | BF49: 0 | BG49: 0 | BH49: 0 | BJ49: 0 | BK49: 0 | BL49: 0 | BM49: 0 | BN49: 0 | BO49: 0 | BP49: 0 | BQ49: 0 | BR49: 0 | BS49: 6 | BT49: 0.01190833333 | BU49: 4763.333333 | BV49: 0 | BW49: 0 | BX49: 0 | BY49: 0 | BZ49: 0 | CA49: 0 | CB49: 0 | CC49: 0 | CD49: 0 | CE49: 0 | CF49: 0 | CG49: 0 | CH49: 0 | CI49: 0 | CJ49: 0 | CK49: 0 | CL49: 0 | CM49: 0 | CN49: 0 | CO49: 0 | CP49: 0 | CQ49: 0 | CR49: 0 | CS49: 0 | CT49: 0 | CU49: 0 | CV49: 0 | CW49: 0 | CX49: 0 | CY49: 0 | CZ49: 8 | DA49: 0 | DB49: 0 | DC49: 0 | DD49: 26209.52717 | DE49: 0 | DF49: 0 | DG49: 0 | DH49: 0 | DI49: 0 | DK49: =SUM(($E$32:$E$81=$CZ49)*($F$32:$F$81=DK$16)*$D$32:$D$81) -> 0 | DL49: =SUM(($E$32:$E$81=$CZ49)*($F$32:$F$81=DL$16)*($D$32:$D$81)) -> 0 | DM49: =SUM(($E$32:$E$81=$CZ49)*($F$32:$F$81=DM$16)*$D$32:$D$81) -> 0 | DN49: =SUM(($E$32:$E$81=$CZ49)*($F$32:$F$81=DN$16)*$D$32:$D$81) -> 0 | DO49: =SUM(($E$32:$E$81=$CZ49)*($F$32:$F$81=DO$16)*$D$32:$D$81) -> 0 | DP49: =SUM(($E$32:$E$81=$CZ49)*($F$32:$F$81=DP$16)*$D$32:$D$81) -> 0 | DQ49: =SUM(($E$32:$E$81=$CZ49)*($F$32:$F$81=DQ$16)*$D$32:$D$81) -> 0 | DR49: =SUM(($E$32:$E$81=$CZ49)*($F$32:$F$81=DR$16)*$D$32:$D$81) -> 0 | DS49: =SUM(($E$32:$E$81=$CZ49)*($F$32:$F$81=DS$16)*$D$32:$D$81) -> 0 | DU49: =$DA$49 -> 0 | DV49: =$DB$49 -> 0 | DW49: =$DC$49 -> 0 | DX49: =$DD$49 -> 26209.52717 | DY49: =$DE$49 -> 0 | DZ49: =$DF$49 -> 0 | EA49: =$DG$49 -> 0 | EB49: =$DH$49 -> 0 | EC49: =$DI$49 -> 0 | EE49: =$DK$49 -> 0 | EF49: =$DL$49 -> 0 | EG49: =$DM$49 -> 0 | EH49: =$DN$49 -> 0 | EI49: =$DO$49 -> 0 | EJ49: =$DP$49 -> 0 | EK49: =$DQ$49 -> 0 | EL49: =$DR$49 -> 0 | EM49: =$DS$49 -> 0
A50: 19 | B50: Depreciation #19 | P50: 0 | Z50: 9 | AA50: Mon 9 | AB50: =IF(OR($Z50<AD$11,$Z50>=AD$11+AD$15,AD$10=0,AD$11=0,AD$12=0,AD$14=0),0,IF(AB49>0,AB49+1,1)) -> 6 | AC50: =IF(AB50=0,0,IF(AD$13=$Z$1,VLOOKUP(AB50,$AI$109:$AQ$168,AD$16),1/AD$14)) -> 0.01190833333 | AD50: =AD$10*AC50 -> 6429.7855 | AE50: =IF(OR($Z50<AG$11,$Z50>=AG$11+AG$15,AG$10=0,AG$11=0,AG$12=0,AG$14=0),0,IF(AE49>0,AE49+1,1)) -> 0 | AF50: =IF(AE50=0,0,IF(AG$13=$Z$1,VLOOKUP(AE50,$AI$109:$AQ$168,AG$16),1/AG$14)) -> 0 | AG50: =AG$10*AF50 -> 0 | AH50: =IF(OR($Z50<AJ$11,$Z50>=AJ$11+AJ$15,AJ$10=0,AJ$11=0,AJ$12=0,AJ$14=0),0,IF(AH49>0,AH49+1,1)) ->  | AI50: =IF(AH50=0,0,IF(AJ$13=$Z$1,VLOOKUP(AH50,$AI$109:$AQ$168,AJ$16),1/AJ$14)) ->  | AJ50: =AJ$10*AI50 ->  | AK50: =IF(OR($Z50<AM$11,$Z50>=AM$11+AM$15,AM$10=0,AM$11=0,AM$12=0,AM$14=0),0,IF(AK49>0,AK49+1,1)) -> 0 | AL50: =IF(AK50=0,0,IF(AM$13=$Z$1,VLOOKUP(AK50,$AI$109:$AQ$168,AM$16),1/AM$14)) -> 0 | AM50: =AM$10*AL50 -> 0 | AN50: =IF(OR($Z50<AP$11,$Z50>=AP$11+AP$15,AP$10=0,AP$11=0,AP$12=0,AP$14=0),0,IF(AN49>0,AN49+1,1)) ->  | AO50: =IF(AN50=0,0,IF(AP$13=$Z$1,VLOOKUP(AN50,$AI$109:$AQ$168,AP$16),1/AP$14)) ->  | AP50: =AP$10*AO50 ->  | AQ50: =IF(OR($Z50<AS$11,$Z50>=AS$11+AS$15,AS$10=0,AS$11=0,AS$12=0,AS$14=0),0,IF(AQ49>0,AQ49+1,1)) -> 0 | AR50: =IF(AQ50=0,0,IF(AS$13=$Z$1,VLOOKUP(AQ50,$AI$109:$AQ$168,AS$16),1/AS$14)) -> 0 | AS50: =AS$10*AR50 -> 0 | AT50: =IF(OR($Z50<AV$11,$Z50>=AV$11+AV$15,AV$10=0,AV$11=0,AV$12=0,AV$14=0),0,IF(AT49>0,AT49+1,1)) ->  | AU50: =IF(AT50=0,0,IF(AV$13=$Z$1,VLOOKUP(AT50,$AI$109:$AQ$168,AV$16),1/AV$14)) ->  | AV50: =AV$10*AU50 ->  | AW50: =IF(OR($Z50<AY$11,$Z50>=AY$11+AY$15,AY$10=0,AY$11=0,AY$12=0,AY$14=0),0,IF(AW49>0,AW49+1,1)) ->  | AX50: =IF(AW50=0,0,IF(AY$13=$Z$1,VLOOKUP(AW50,$AI$109:$AQ$168,AY$16),1/AY$14)) ->  | AY50: =AY$10*AX50 ->  | AZ50: =IF(OR($Z50<BB$11,$Z50>=BB$11+BB$15,BB$10=0,BB$11=0,BB$12=0,BB$14=0),0,IF(AZ49>0,AZ49+1,1)) -> 0 | BA50: =IF(AZ50=0,0,IF(BB$13=$Z$1,VLOOKUP(AZ50,$AI$109:$AQ$168,BB$16),1/BB$14)) -> 0 | BB50: =BB$10*BA50 -> 0 | BC50: =IF(OR($Z50<BE$11,$Z50>=BE$11+BE$15,BE$10=0,BE$11=0,BE$12=0,BE$14=0),0,IF(BC49>0,BC49+1,1)) -> 7 | BD50: =IF(BC50=0,0,IF(BE$13=$Z$1,VLOOKUP(BC50,$AI$109:$AQ$168,BE$16),1/BE$14)) -> 0.01190833333 | BE50: =BE$10*BD50 -> 15016.40833 | BF50: =IF(OR($Z50<BH$11,$Z50>=BH$11+BH$15,BH$10=0,BH$11=0,BH$12=0,BH$14=0),0,IF(BF49>0,BF49+1,1)) -> 0 | BG50: =IF(BF50=0,0,IF(BH$13=$Z$1,VLOOKUP(BF50,$AI$109:$AQ$168,BH$16),1/BH$14)) -> 0 | BH50: =BH$10*BG50 -> 0 | BJ50: =IF(OR($Z50<BL$11,$Z50>=BL$11+BL$15,BL$10=0,BL$11=0,BL$12=0,BL$14=0),0,IF(BJ49>0,BJ49+1,1)) -> 0 | BK50: =IF(BJ50=0,0,IF(BL$13=$Z$1,VLOOKUP(BJ50,$AI$109:$AQ$168,BL$16),1/BL$14)) -> 0 | BL50: =BL$10*BK50 -> 0 | BM50: =IF(OR($Z50<BO$11,$Z50>=BO$11+BO$15,BO$10=0,BO$11=0,BO$12=0,BO$14=0),0,IF(BM49>0,BM49+1,1)) -> 0 | BN50: =IF(BM50=0,0,IF(BO$13=$Z$1,VLOOKUP(BM50,$AI$109:$AQ$168,BO$16),1/BO$14)) -> 0 | BO50: =BO$10*BN50 -> 0 | BP50: =IF(OR($Z50<BR$11,$Z50>=BR$11+BR$15,BR$10=0,BR$11=0,BR$12=0,BR$14=0),0,IF(BP49>0,BP49+1,1)) -> 0 | BQ50: =IF(BP50=0,0,IF(BR$13=$Z$1,VLOOKUP(BP50,$AI$109:$AQ$168,BR$16),1/BR$14)) -> 0 | BR50: =BR$10*BQ50 -> 0 | BS50: =IF(OR($Z50<BU$11,$Z50>=BU$11+BU$15,BU$10=0,BU$11=0,BU$12=0,BU$14=0),0,IF(BS49>0,BS49+1,1)) -> 7 | BT50: =IF(BS50=0,0,IF(BU$13=$Z$1,VLOOKUP(BS50,$AI$109:$AQ$168,BU$16),1/BU$14)) -> 0.01190833333 | BU50: =BU$10*BT50 -> 4763.333333 | BV50: =IF(OR($Z50<BX$11,$Z50>=BX$11+BX$15,BX$10=0,BX$11=0,BX$12=0,BX$14=0),0,IF(BV49>0,BV49+1,1)) -> 0 | BW50: =IF(BV50=0,0,IF(BX$13=$Z$1,VLOOKUP(BV50,$AI$109:$AQ$168,BX$16),1/BX$14)) -> 0 | BX50: =BX$10*BW50 -> 0 | BY50: =IF(OR($Z50<CA$11,$Z50>=CA$11+CA$15,CA$10=0,CA$11=0,CA$12=0,CA$14=0),0,IF(BY49>0,BY49+1,1)) -> 0 | BZ50: =IF(BY50=0,0,IF(CA$13=$Z$1,VLOOKUP(BY50,$AI$109:$AQ$168,CA$16),1/CA$14)) -> 0 | CA50: =CA$10*BZ50 -> 0 | CB50: =IF(OR($Z50<CD$11,$Z50>=CD$11+CD$15,CD$10=0,CD$11=0,CD$12=0,CD$14=0),0,IF(CB49>0,CB49+1,1)) -> 0 | CC50: =IF(CB50=0,0,IF(CD$13=$Z$1,VLOOKUP(CB50,$AI$109:$AQ$168,CD$16),1/CD$14)) -> 0 | CD50: =CD$10*CC50 -> 0 | CE50: =IF(OR($Z50<CG$11,$Z50>=CG$11+CG$15,CG$10=0,CG$11=0,CG$12=0,CG$14=0),0,IF(CE49>0,CE49+1,1)) -> 0 | CF50: =IF(CE50=0,0,IF(CG$13=$Z$1,VLOOKUP(CE50,$AI$109:$AQ$168,CG$16),1/CG$14)) -> 0 | CG50: =CG$10*CF50 -> 0 | CH50: =IF(OR($Z50<CJ$11,$Z50>=CJ$11+CJ$15,CJ$10=0,CJ$11=0,CJ$12=0,CJ$14=0),0,IF(CH49>0,CH49+1,1)) -> 0 | CI50: =IF(CH50=0,0,IF(CJ$13=$Z$1,VLOOKUP(CH50,$AI$109:$AQ$168,CJ$16),1/CJ$14)) -> 0 | CJ50: =CJ$10*CI50 -> 0 | CK50: =IF(OR($Z50<CM$11,$Z50>=CM$11+CM$15,CM$10=0,CM$11=0,CM$12=0,CM$14=0),0,IF(CK49>0,CK49+1,1)) -> 0 | CL50: =IF(CK50=0,0,IF(CM$13=$Z$1,VLOOKUP(CK50,$AI$109:$AQ$168,CM$16),1/CM$14)) -> 0 | CM50: =CM$10*CL50 -> 0 | CN50: =IF(OR($Z50<CP$11,$Z50>=CP$11+CP$15,CP$10=0,CP$11=0,CP$12=0,CP$14=0),0,IF(CN49>0,CN49+1,1)) -> 0 | CO50: =IF(CN50=0,0,IF(CP$13=$Z$1,VLOOKUP(CN50,$AI$109:$AQ$168,CP$16),1/CP$14)) -> 0 | CP50: =CP$10*CO50 -> 0 | CQ50: =IF(OR($Z50<CS$11,$Z50>=CS$11+CS$15,CS$10=0,CS$11=0,CS$12=0,CS$14=0),0,IF(CQ49>0,CQ49+1,1)) -> 0 | CR50: =IF(CQ50=0,0,IF(CS$13=$Z$1,VLOOKUP(CQ50,$AI$109:$AQ$168,CS$16),1/CS$14)) -> 0 | CS50: =CS$10*CR50 -> 0 | CT50: =IF(OR($Z50<CV$11,$Z50>=CV$11+CV$15,CV$10=0,CV$11=0,CV$12=0,CV$14=0),0,IF(CT49>0,CT49+1,1)) -> 0 | CU50: =IF(CT50=0,0,IF(CV$13=$Z$1,VLOOKUP(CT50,$AI$109:$AQ$168,CV$16),1/CV$14)) -> 0 | CV50: =CV$10*CU50 -> 0 | CW50: =IF(OR($Z50<CY$11,$Z50>=CY$11+CY$15,CY$10=0,CY$11=0,CY$12=0,CY$14=0),0,IF(CW49>0,CW49+1,1)) -> 0 | CX50: =IF(CW50=0,0,IF(CY$13=$Z$1,VLOOKUP(CW50,$AI$109:$AQ$168,CY$16),1/CY$14)) -> 0 | CY50: =CY$10*CX50 -> 0 | CZ50: 9 | DA50: 0 | DB50: 0 | DC50: 0 | DD50: 26209.52717 | DE50: 0 | DF50: 0 | DG50: 0 | DH50: 0 | DI50: 0 | DK50: =SUM(($E$32:$E$81=$CZ50)*($F$32:$F$81=DK$16)*$D$32:$D$81) -> 0 | DL50: =SUM(($E$32:$E$81=$CZ50)*($F$32:$F$81=DL$16)*($D$32:$D$81)) -> 0 | DM50: =SUM(($E$32:$E$81=$CZ50)*($F$32:$F$81=DM$16)*$D$32:$D$81) -> 0 | DN50: =SUM(($E$32:$E$81=$CZ50)*($F$32:$F$81=DN$16)*$D$32:$D$81) -> 0 | DO50: =SUM(($E$32:$E$81=$CZ50)*($F$32:$F$81=DO$16)*$D$32:$D$81) -> 0 | DP50: =SUM(($E$32:$E$81=$CZ50)*($F$32:$F$81=DP$16)*$D$32:$D$81) -> 0 | DQ50: =SUM(($E$32:$E$81=$CZ50)*($F$32:$F$81=DQ$16)*$D$32:$D$81) -> 0 | DR50: =SUM(($E$32:$E$81=$CZ50)*($F$32:$F$81=DR$16)*$D$32:$D$81) -> 0 | DS50: =SUM(($E$32:$E$81=$CZ50)*($F$32:$F$81=DS$16)*$D$32:$D$81) -> 0 | DU50: =$DA$50 -> 0 | DV50: =$DB$50 -> 0 | DW50: =$DC$50 -> 0 | DX50: =$DD$50 -> 26209.52717 | DY50: =$DE$50 -> 0 | DZ50: =$DF$50 -> 0 | EA50: =$DG$50 -> 0 | EB50: =$DH$50 -> 0 | EC50: =$DI$50 -> 0 | EE50: =$DK$50 -> 0 | EF50: =$DL$50 -> 0 | EG50: =$DM$50 -> 0 | EH50: =$DN$50 -> 0 | EI50: =$DO$50 -> 0 | EJ50: =$DP$50 -> 0 | EK50: =$DQ$50 -> 0 | EL50: =$DR$50 -> 0 | EM50: =$DS$50 -> 0
A51: 20 | B51: Depreciation #20 | P51: 0 | Z51: 10 | AA51: Mon 10 | AB51: 7 | AC51: 0.01190833333 | AD51: 6429.7855 | AE51: 0 | AF51: 0 | AG51: 0 | AK51: 0 | AL51: 0 | AM51: 0 | AQ51: 0 | AR51: 0 | AS51: 0 | AZ51: 0 | BA51: 0 | BB51: 0 | BC51: 8 | BD51: 0.01190833333 | BE51: 15016.40833 | BF51: 0 | BG51: 0 | BH51: 0 | BJ51: 0 | BK51: 0 | BL51: 0 | BM51: 0 | BN51: 0 | BO51: 0 | BP51: 0 | BQ51: 0 | BR51: 0 | BS51: 8 | BT51: 0.01190833333 | BU51: 4763.333333 | BV51: 0 | BW51: 0 | BX51: 0 | BY51: 0 | BZ51: 0 | CA51: 0 | CB51: 0 | CC51: 0 | CD51: 0 | CE51: 0 | CF51: 0 | CG51: 0 | CH51: 0 | CI51: 0 | CJ51: 0 | CK51: 0 | CL51: 0 | CM51: 0 | CN51: 0 | CO51: 0 | CP51: 0 | CQ51: 0 | CR51: 0 | CS51: 0 | CT51: 0 | CU51: 0 | CV51: 0 | CW51: 0 | CX51: 0 | CY51: 0 | CZ51: 10 | DA51: 0 | DB51: 0 | DC51: 0 | DD51: 26209.52717 | DE51: 0 | DF51: 0 | DG51: 0 | DH51: 0 | DI51: 0 | DK51: =SUM(($E$32:$E$81=$CZ51)*($F$32:$F$81=DK$16)*$D$32:$D$81) -> 0 | DL51: =SUM(($E$32:$E$81=$CZ51)*($F$32:$F$81=DL$16)*($D$32:$D$81)) -> 0 | DM51: =SUM(($E$32:$E$81=$CZ51)*($F$32:$F$81=DM$16)*$D$32:$D$81) -> 0 | DN51: =SUM(($E$32:$E$81=$CZ51)*($F$32:$F$81=DN$16)*$D$32:$D$81) -> 0 | DO51: =SUM(($E$32:$E$81=$CZ51)*($F$32:$F$81=DO$16)*$D$32:$D$81) -> 0 | DP51: =SUM(($E$32:$E$81=$CZ51)*($F$32:$F$81=DP$16)*$D$32:$D$81) -> 0 | DQ51: =SUM(($E$32:$E$81=$CZ51)*($F$32:$F$81=DQ$16)*$D$32:$D$81) -> 0 | DR51: =SUM(($E$32:$E$81=$CZ51)*($F$32:$F$81=DR$16)*$D$32:$D$81) -> 0 | DS51: =SUM(($E$32:$E$81=$CZ51)*($F$32:$F$81=DS$16)*$D$32:$D$81) -> 0 | DU51: =$DA$51 -> 0 | DV51: =$DB$51 -> 0 | DW51: =$DC$51 -> 0 | DX51: =$DD$51 -> 26209.52717 | DY51: =$DE$51 -> 0 | DZ51: =$DF$51 -> 0 | EA51: =$DG$51 -> 0 | EB51: =$DH$51 -> 0 | EC51: =$DI$51 -> 0 | EE51: =$DK$51 -> 0 | EF51: =$DL$51 -> 0 | EG51: =$DM$51 -> 0 | EH51: =$DN$51 -> 0 | EI51: =$DO$51 -> 0 | EJ51: =$DP$51 -> 0 | EK51: =$DQ$51 -> 0 | EL51: =$DR$51 -> 0 | EM51: =$DS$51 -> 0
A52: 21 | B52: Depreciation #21 | P52: 0 | Z52: 11 | AA52: Mon 11 | AB52: 8 | AC52: 0.01190833333 | AD52: 6429.7855 | AE52: 0 | AF52: 0 | AG52: 0 | AK52: 0 | AL52: 0 | AM52: 0 | AQ52: 0 | AR52: 0 | AS52: 0 | AZ52: 0 | BA52: 0 | BB52: 0 | BC52: 9 | BD52: 0.01190833333 | BE52: 15016.40833 | BF52: 0 | BG52: 0 | BH52: 0 | BJ52: 0 | BK52: 0 | BL52: 0 | BM52: 0 | BN52: 0 | BO52: 0 | BP52: 0 | BQ52: 0 | BR52: 0 | BS52: 9 | BT52: 0.01190833333 | BU52: 4763.333333 | BV52: 0 | BW52: 0 | BX52: 0 | BY52: 0 | BZ52: 0 | CA52: 0 | CB52: 0 | CC52: 0 | CD52: 0 | CE52: 0 | CF52: 0 | CG52: 0 | CH52: 0 | CI52: 0 | CJ52: 0 | CK52: 0 | CL52: 0 | CM52: 0 | CN52: 0 | CO52: 0 | CP52: 0 | CQ52: 0 | CR52: 0 | CS52: 0 | CT52: 0 | CU52: 0 | CV52: 0 | CW52: 0 | CX52: 0 | CY52: 0 | CZ52: 11 | DA52: 0 | DB52: 0 | DC52: 0 | DD52: 26209.52717 | DE52: 0 | DF52: 0 | DG52: 0 | DH52: 0 | DI52: 0 | DK52: =SUM(($E$32:$E$81=$CZ52)*($F$32:$F$81=DK$16)*$D$32:$D$81) -> 0 | DL52: =SUM(($E$32:$E$81=$CZ52)*($F$32:$F$81=DL$16)*($D$32:$D$81)) -> 0 | DM52: =SUM(($E$32:$E$81=$CZ52)*($F$32:$F$81=DM$16)*$D$32:$D$81) -> 0 | DN52: =SUM(($E$32:$E$81=$CZ52)*($F$32:$F$81=DN$16)*$D$32:$D$81) -> 0 | DO52: =SUM(($E$32:$E$81=$CZ52)*($F$32:$F$81=DO$16)*$D$32:$D$81) -> 0 | DP52: =SUM(($E$32:$E$81=$CZ52)*($F$32:$F$81=DP$16)*$D$32:$D$81) -> 0 | DQ52: =SUM(($E$32:$E$81=$CZ52)*($F$32:$F$81=DQ$16)*$D$32:$D$81) -> 0 | DR52: =SUM(($E$32:$E$81=$CZ52)*($F$32:$F$81=DR$16)*$D$32:$D$81) -> 0 | DS52: =SUM(($E$32:$E$81=$CZ52)*($F$32:$F$81=DS$16)*$D$32:$D$81) -> 0 | DU52: =$DA$52 -> 0 | DV52: =$DB$52 -> 0 | DW52: =$DC$52 -> 0 | DX52: =$DD$52 -> 26209.52717 | DY52: =$DE$52 -> 0 | DZ52: =$DF$52 -> 0 | EA52: =$DG$52 -> 0 | EB52: =$DH$52 -> 0 | EC52: =$DI$52 -> 0 | EE52: =$DK$52 -> 0 | EF52: =$DL$52 -> 0 | EG52: =$DM$52 -> 0 | EH52: =$DN$52 -> 0 | EI52: =$DO$52 -> 0 | EJ52: =$DP$52 -> 0 | EK52: =$DQ$52 -> 0 | EL52: =$DR$52 -> 0 | EM52: =$DS$52 -> 0
A53: 22 | B53: Depreciation #22 | P53: 0 | Z53: 12 | AA53: Mon 12 | AB53: 9 | AC53: 0.01190833333 | AD53: 6429.7855 | AE53: 1 | AF53: 0.01190833333 | AG53: 6429.7855 | AK53: 0 | AL53: 0 | AM53: 0 | AQ53: 0 | AR53: 0 | AS53: 0 | AZ53: 0 | BA53: 0 | BB53: 0 | BC53: 10 | BD53: 0.01190833333 | BE53: 15016.40833 | BF53: 0 | BG53: 0 | BH53: 0 | BJ53: 0 | BK53: 0 | BL53: 0 | BM53: 0 | BN53: 0 | BO53: 0 | BP53: 0 | BQ53: 0 | BR53: 0 | BS53: 10 | BT53: 0.01190833333 | BU53: 4763.333333 | BV53: 0 | BW53: 0 | BX53: 0 | BY53: 0 | BZ53: 0 | CA53: 0 | CB53: 0 | CC53: 0 | CD53: 0 | CE53: 0 | CF53: 0 | CG53: 0 | CH53: 0 | CI53: 0 | CJ53: 0 | CK53: 0 | CL53: 0 | CM53: 0 | CN53: 0 | CO53: 0 | CP53: 0 | CQ53: 0 | CR53: 0 | CS53: 0 | CT53: 0 | CU53: 0 | CV53: 0 | CW53: 0 | CX53: 0 | CY53: 0 | CZ53: 12 | DA53: 0 | DB53: 0 | DC53: 0 | DD53: 32639.31267 | DE53: 0 | DF53: 0 | DG53: 0 | DH53: 0 | DI53: 0 | DK53: =SUM(($E$32:$E$81=$CZ53)*($F$32:$F$81=DK$16)*$D$32:$D$81) -> 0 | DL53: =SUM(($E$32:$E$81=$CZ53)*($F$32:$F$81=DL$16)*($D$32:$D$81)) -> 0 | DM53: =SUM(($E$32:$E$81=$CZ53)*($F$32:$F$81=DM$16)*$D$32:$D$81) -> 0 | DN53: =SUM(($E$32:$E$81=$CZ53)*($F$32:$F$81=DN$16)*$D$32:$D$81) -> 539940 | DO53: =SUM(($E$32:$E$81=$CZ53)*($F$32:$F$81=DO$16)*$D$32:$D$81) -> 0 | DP53: =SUM(($E$32:$E$81=$CZ53)*($F$32:$F$81=DP$16)*$D$32:$D$81) -> 0 | DQ53: =SUM(($E$32:$E$81=$CZ53)*($F$32:$F$81=DQ$16)*$D$32:$D$81) -> 0 | DR53: =SUM(($E$32:$E$81=$CZ53)*($F$32:$F$81=DR$16)*$D$32:$D$81) -> 0 | DS53: =SUM(($E$32:$E$81=$CZ53)*($F$32:$F$81=DS$16)*$D$32:$D$81) -> 0 | DU53: =$DA$53 -> 0 | DV53: =$DB$53 -> 0 | DW53: =$DC$53 -> 0 | DX53: =$DD$53 -> 32639.31267 | DY53: =$DE$53 -> 0 | DZ53: =$DF$53 -> 0 | EA53: =$DG$53 -> 0 | EB53: =$DH$53 -> 0 | EC53: =$DI$53 -> 0 | EE53: =$DK$53 -> 0 | EF53: =$DL$53 -> 0 | EG53: =$DM$53 -> 0 | EH53: =$DN$53 -> 539940 | EI53: =$DO$53 -> 0 | EJ53: =$DP$53 -> 0 | EK53: =$DQ$53 -> 0 | EL53: =$DR$53 -> 0 | EM53: =$DS$53 -> 0
A54: 23 | B54: Depreciation #23 | P54: 0 | Z54: 13 | AA54: Mon 13 | AB54: 10 | AC54: 0.01190833333 | AD54: 6429.7855 | AE54: 2 | AF54: 0.01190833333 | AG54: 6429.7855 | AK54: 0 | AL54: 0 | AM54: 0 | AQ54: 0 | AR54: 0 | AS54: 0 | AZ54: 0 | BA54: 0 | BB54: 0 | BC54: 11 | BD54: 0.01190833333 | BE54: 15016.40833 | BF54: 0 | BG54: 0 | BH54: 0 | BJ54: 0 | BK54: 0 | BL54: 0 | BM54: 0 | BN54: 0 | BO54: 0 | BP54: 0 | BQ54: 0 | BR54: 0 | BS54: 11 | BT54: 0.01190833333 | BU54: 4763.333333 | BV54: 0 | BW54: 0 | BX54: 0 | BY54: 0 | BZ54: 0 | CA54: 0 | CB54: 0 | CC54: 0 | CD54: 0 | CE54: 0 | CF54: 0 | CG54: 0 | CH54: 0 | CI54: 0 | CJ54: 0 | CK54: 0 | CL54: 0 | CM54: 0 | CN54: 0 | CO54: 0 | CP54: 0 | CQ54: 0 | CR54: 0 | CS54: 0 | CT54: 0 | CU54: 0 | CV54: 0 | CW54: 0 | CX54: 0 | CY54: 0 | CZ54: 13 | DA54: 0 | DB54: 0 | DC54: 0 | DD54: 32639.31267 | DE54: 0 | DF54: 0 | DG54: 0 | DH54: 0 | DI54: 0 | DK54: =SUM(($E$32:$E$81=$CZ54)*($F$32:$F$81=DK$16)*$D$32:$D$81) -> 0 | DL54: =SUM(($E$32:$E$81=$CZ54)*($F$32:$F$81=DL$16)*($D$32:$D$81)) -> 0 | DM54: =SUM(($E$32:$E$81=$CZ54)*($F$32:$F$81=DM$16)*$D$32:$D$81) -> 0 | DN54: =SUM(($E$32:$E$81=$CZ54)*($F$32:$F$81=DN$16)*$D$32:$D$81) -> 0 | DO54: =SUM(($E$32:$E$81=$CZ54)*($F$32:$F$81=DO$16)*$D$32:$D$81) -> 0 | DP54: =SUM(($E$32:$E$81=$CZ54)*($F$32:$F$81=DP$16)*$D$32:$D$81) -> 0 | DQ54: =SUM(($E$32:$E$81=$CZ54)*($F$32:$F$81=DQ$16)*$D$32:$D$81) -> 0 | DR54: =SUM(($E$32:$E$81=$CZ54)*($F$32:$F$81=DR$16)*$D$32:$D$81) -> 0 | DS54: =SUM(($E$32:$E$81=$CZ54)*($F$32:$F$81=DS$16)*$D$32:$D$81) -> 0 | DU54: =$DA$54 -> 0 | DV54: =$DB$54 -> 0 | DW54: =$DC$54 -> 0 | DX54: =$DD$54 -> 32639.31267 | DY54: =$DE$54 -> 0 | DZ54: =$DF$54 -> 0 | EA54: =$DG$54 -> 0 | EB54: =$DH$54 -> 0 | EC54: =$DI$54 -> 0 | EE54: =$DK$54 -> 0 | EF54: =$DL$54 -> 0 | EG54: =$DM$54 -> 0 | EH54: =$DN$54 -> 0 | EI54: =$DO$54 -> 0 | EJ54: =$DP$54 -> 0 | EK54: =$DQ$54 -> 0 | EL54: =$DR$54 -> 0 | EM54: =$DS$54 -> 0
A55: 24 | B55: Depreciation #24 | P55: 0 | Z55: 14 | AA55: Mon 14 | AB55: 11 | AC55: 0.01190833333 | AD55: 6429.7855 | AE55: 3 | AF55: 0.01190833333 | AG55: 6429.7855 | AK55: 0 | AL55: 0 | AM55: 0 | AQ55: 0 | AR55: 0 | AS55: 0 | AZ55: 0 | BA55: 0 | BB55: 0 | BC55: 12 | BD55: 0.01190833333 | BE55: 15016.40833 | BF55: 0 | BG55: 0 | BH55: 0 | BJ55: 0 | BK55: 0 | BL55: 0 | BM55: 0 | BN55: 0 | BO55: 0 | BP55: 0 | BQ55: 0 | BR55: 0 | BS55: 12 | BT55: 0.01190833333 | BU55: 4763.333333 | BV55: 0 | BW55: 0 | BX55: 0 | BY55: 0 | BZ55: 0 | CA55: 0 | CB55: 0 | CC55: 0 | CD55: 0 | CE55: 0 | CF55: 0 | CG55: 0 | CH55: 0 | CI55: 0 | CJ55: 0 | CK55: 0 | CL55: 0 | CM55: 0 | CN55: 0 | CO55: 0 | CP55: 0 | CQ55: 0 | CR55: 0 | CS55: 0 | CT55: 0 | CU55: 0 | CV55: 0 | CW55: 0 | CX55: 0 | CY55: 0 | CZ55: 14 | DA55: 0 | DB55: 0 | DC55: 0 | DD55: 32639.31267 | DE55: 0 | DF55: 0 | DG55: 0 | DH55: 0 | DI55: 0 | DK55: =SUM(($E$32:$E$81=$CZ55)*($F$32:$F$81=DK$16)*$D$32:$D$81) -> 0 | DL55: =SUM(($E$32:$E$81=$CZ55)*($F$32:$F$81=DL$16)*($D$32:$D$81)) -> 0 | DM55: =SUM(($E$32:$E$81=$CZ55)*($F$32:$F$81=DM$16)*$D$32:$D$81) -> 0 | DN55: =SUM(($E$32:$E$81=$CZ55)*($F$32:$F$81=DN$16)*$D$32:$D$81) -> 0 | DO55: =SUM(($E$32:$E$81=$CZ55)*($F$32:$F$81=DO$16)*$D$32:$D$81) -> 0 | DP55: =SUM(($E$32:$E$81=$CZ55)*($F$32:$F$81=DP$16)*$D$32:$D$81) -> 0 | DQ55: =SUM(($E$32:$E$81=$CZ55)*($F$32:$F$81=DQ$16)*$D$32:$D$81) -> 0 | DR55: =SUM(($E$32:$E$81=$CZ55)*($F$32:$F$81=DR$16)*$D$32:$D$81) -> 0 | DS55: =SUM(($E$32:$E$81=$CZ55)*($F$32:$F$81=DS$16)*$D$32:$D$81) -> 0 | DU55: =$DA$55 -> 0 | DV55: =$DB$55 -> 0 | DW55: =$DC$55 -> 0 | DX55: =$DD$55 -> 32639.31267 | DY55: =$DE$55 -> 0 | DZ55: =$DF$55 -> 0 | EA55: =$DG$55 -> 0 | EB55: =$DH$55 -> 0 | EC55: =$DI$55 -> 0 | EE55: =$DK$55 -> 0 | EF55: =$DL$55 -> 0 | EG55: =$DM$55 -> 0 | EH55: =$DN$55 -> 0 | EI55: =$DO$55 -> 0 | EJ55: =$DP$55 -> 0 | EK55: =$DQ$55 -> 0 | EL55: =$DR$55 -> 0 | EM55: =$DS$55 -> 0
A56: 25 | B56: Depreciation #25 | P56: 0 | Z56: 15 | AA56: Mon 15 | AB56: 12 | AC56: 0.01190833333 | AD56: 6429.7855 | AE56: 4 | AF56: 0.01190833333 | AG56: 6429.7855 | AK56: 0 | AL56: 0 | AM56: 0 | AQ56: 0 | AR56: 0 | AS56: 0 | AZ56: 0 | BA56: 0 | BB56: 0 | BC56: 13 | BD56: 0.02040833333 | BE56: 25734.90833 | BF56: 0 | BG56: 0 | BH56: 0 | BJ56: 0 | BK56: 0 | BL56: 0 | BM56: 0 | BN56: 0 | BO56: 0 | BP56: 0 | BQ56: 0 | BR56: 0 | BS56: 13 | BT56: 0.02040833333 | BU56: 8163.333333 | BV56: 0 | BW56: 0 | BX56: 0 | BY56: 0 | BZ56: 0 | CA56: 0 | CB56: 0 | CC56: 0 | CD56: 0 | CE56: 0 | CF56: 0 | CG56: 0 | CH56: 0 | CI56: 0 | CJ56: 0 | CK56: 0 | CL56: 0 | CM56: 0 | CN56: 0 | CO56: 0 | CP56: 0 | CQ56: 0 | CR56: 0 | CS56: 0 | CT56: 0 | CU56: 0 | CV56: 0 | CW56: 0 | CX56: 0 | CY56: 0 | CZ56: 15 | DA56: 0 | DB56: 0 | DC56: 0 | DD56: 46757.81267 | DE56: 0 | DF56: 0 | DG56: 0 | DH56: 0 | DI56: 0 | DK56: =SUM(($E$32:$E$81=$CZ56)*($F$32:$F$81=DK$16)*$D$32:$D$81) -> 0 | DL56: =SUM(($E$32:$E$81=$CZ56)*($F$32:$F$81=DL$16)*($D$32:$D$81)) -> 0 | DM56: =SUM(($E$32:$E$81=$CZ56)*($F$32:$F$81=DM$16)*$D$32:$D$81) -> 0 | DN56: =SUM(($E$32:$E$81=$CZ56)*($F$32:$F$81=DN$16)*$D$32:$D$81) -> 0 | DO56: =SUM(($E$32:$E$81=$CZ56)*($F$32:$F$81=DO$16)*$D$32:$D$81) -> 0 | DP56: =SUM(($E$32:$E$81=$CZ56)*($F$32:$F$81=DP$16)*$D$32:$D$81) -> 0 | DQ56: =SUM(($E$32:$E$81=$CZ56)*($F$32:$F$81=DQ$16)*$D$32:$D$81) -> 0 | DR56: =SUM(($E$32:$E$81=$CZ56)*($F$32:$F$81=DR$16)*$D$32:$D$81) -> 0 | DS56: =SUM(($E$32:$E$81=$CZ56)*($F$32:$F$81=DS$16)*$D$32:$D$81) -> 0 | DU56: =$DA$56 -> 0 | DV56: =$DB$56 -> 0 | DW56: =$DC$56 -> 0 | DX56: =$DD$56 -> 46757.81267 | DY56: =$DE$56 -> 0 | DZ56: =$DF$56 -> 0 | EA56: =$DG$56 -> 0 | EB56: =$DH$56 -> 0 | EC56: =$DI$56 -> 0 | EE56: =$DK$56 -> 0 | EF56: =$DL$56 -> 0 | EG56: =$DM$56 -> 0 | EH56: =$DN$56 -> 0 | EI56: =$DO$56 -> 0 | EJ56: =$DP$56 -> 0 | EK56: =$DQ$56 -> 0 | EL56: =$DR$56 -> 0 | EM56: =$DS$56 -> 0
A57: 26 | B57: Expenditure #26 | P57: =IF(D57*E57*F57<>0,1,0) -> 0 | Z57: 16 | AA57: Mon 16 | AB57: 13 | AC57: 0.02040833333 | AD57: 11019.2755 | AE57: 5 | AF57: 0.01190833333 | AG57: 6429.7855 | AK57: 0 | AL57: 0 | AM57: 0 | AQ57: 0 | AR57: 0 | AS57: 0 | AZ57: 0 | BA57: 0 | BB57: 0 | BC57: 14 | BD57: 0.02040833333 | BE57: 25734.90833 | BF57: 0 | BG57: 0 | BH57: 0 | BJ57: 0 | BK57: 0 | BL57: 0 | BM57: 0 | BN57: 0 | BO57: 0 | BP57: 0 | BQ57: 0 | BR57: 0 | BS57: 14 | BT57: 0.02040833333 | BU57: 8163.333333 | BV57: 0 | BW57: 0 | BX57: 0 | BY57: 0 | BZ57: 0 | CA57: 0 | CB57: 0 | CC57: 0 | CD57: 0 | CE57: 0 | CF57: 0 | CG57: 0 | CH57: 0 | CI57: 0 | CJ57: 0 | CK57: 0 | CL57: 0 | CM57: 0 | CN57: 0 | CO57: 0 | CP57: 0 | CQ57: 0 | CR57: 0 | CS57: 0 | CT57: 0 | CU57: 0 | CV57: 0 | CW57: 0 | CX57: 0 | CY57: 0 | CZ57: 16 | DA57: 0 | DB57: 0 | DC57: 0 | DD57: 51347.30267 | DE57: 0 | DF57: 0 | DG57: 0 | DH57: 0 | DI57: 0 | DK57: =SUM(($E$32:$E$81=$CZ57)*($F$32:$F$81=DK$16)*$D$32:$D$81) -> 0 | DL57: =SUM(($E$32:$E$81=$CZ57)*($F$32:$F$81=DL$16)*($D$32:$D$81)) -> 0 | DM57: =SUM(($E$32:$E$81=$CZ57)*($F$32:$F$81=DM$16)*$D$32:$D$81) -> 0 | DN57: =SUM(($E$32:$E$81=$CZ57)*($F$32:$F$81=DN$16)*$D$32:$D$81) -> 0 | DO57: =SUM(($E$32:$E$81=$CZ57)*($F$32:$F$81=DO$16)*$D$32:$D$81) -> 0 | DP57: =SUM(($E$32:$E$81=$CZ57)*($F$32:$F$81=DP$16)*$D$32:$D$81) -> 0 | DQ57: =SUM(($E$32:$E$81=$CZ57)*($F$32:$F$81=DQ$16)*$D$32:$D$81) -> 0 | DR57: =SUM(($E$32:$E$81=$CZ57)*($F$32:$F$81=DR$16)*$D$32:$D$81) -> 0 | DS57: =SUM(($E$32:$E$81=$CZ57)*($F$32:$F$81=DS$16)*$D$32:$D$81) -> 0 | DU57: =$DA$57 -> 0 | DV57: =$DB$57 -> 0 | DW57: =$DC$57 -> 0 | DX57: =$DD$57 -> 51347.30267 | DY57: =$DE$57 -> 0 | DZ57: =$DF$57 -> 0 | EA57: =$DG$57 -> 0 | EB57: =$DH$57 -> 0 | EC57: =$DI$57 -> 0 | EE57: =$DK$57 -> 0 | EF57: =$DL$57 -> 0 | EG57: =$DM$57 -> 0 | EH57: =$DN$57 -> 0 | EI57: =$DO$57 -> 0 | EJ57: =$DP$57 -> 0 | EK57: =$DQ$57 -> 0 | EL57: =$DR$57 -> 0 | EM57: =$DS$57 -> 0
A58: 27 | B58: Expenditure #27 | P58: 0 | Z58: 17 | AA58: Mon 17 | AB58: 14 | AC58: 0.02040833333 | AD58: 11019.2755 | AE58: 6 | AF58: 0.01190833333 | AG58: 6429.7855 | AK58: 0 | AL58: 0 | AM58: 0 | AQ58: 0 | AR58: 0 | AS58: 0 | AZ58: 0 | BA58: 0 | BB58: 0 | BC58: 15 | BD58: 0.02040833333 | BE58: 25734.90833 | BF58: 0 | BG58: 0 | BH58: 0 | BJ58: 0 | BK58: 0 | BL58: 0 | BM58: 0 | BN58: 0 | BO58: 0 | BP58: 0 | BQ58: 0 | BR58: 0 | BS58: 15 | BT58: 0.02040833333 | BU58: 8163.333333 | BV58: 0 | BW58: 0 | BX58: 0 | BY58: 0 | BZ58: 0 | CA58: 0 | CB58: 0 | CC58: 0 | CD58: 0 | CE58: 0 | CF58: 0 | CG58: 0 | CH58: 0 | CI58: 0 | CJ58: 0 | CK58: 0 | CL58: 0 | CM58: 0 | CN58: 0 | CO58: 0 | CP58: 0 | CQ58: 0 | CR58: 0 | CS58: 0 | CT58: 0 | CU58: 0 | CV58: 0 | CW58: 0 | CX58: 0 | CY58: 0 | CZ58: 17 | DA58: 0 | DB58: =SUMIF($AD$12:$CY$12,DB$16,$AD58:$CY58) -> 0 | DC58: 0 | DD58: 51347.30267 | DE58: 0 | DF58: 0 | DG58: 0 | DH58: 0 | DI58: 0 | DK58: =SUM(($E$32:$E$81=$CZ58)*($F$32:$F$81=DK$16)*$D$32:$D$81) -> 0 | DL58: =SUM(($E$32:$E$81=$CZ58)*($F$32:$F$81=DL$16)*($D$32:$D$81)) -> 0 | DM58: =SUM(($E$32:$E$81=$CZ58)*($F$32:$F$81=DM$16)*$D$32:$D$81) -> 0 | DN58: =SUM(($E$32:$E$81=$CZ58)*($F$32:$F$81=DN$16)*$D$32:$D$81) -> 0 | DO58: =SUM(($E$32:$E$81=$CZ58)*($F$32:$F$81=DO$16)*$D$32:$D$81) -> 0 | DP58: =SUM(($E$32:$E$81=$CZ58)*($F$32:$F$81=DP$16)*$D$32:$D$81) -> 0 | DQ58: =SUM(($E$32:$E$81=$CZ58)*($F$32:$F$81=DQ$16)*$D$32:$D$81) -> 0 | DR58: =SUM(($E$32:$E$81=$CZ58)*($F$32:$F$81=DR$16)*$D$32:$D$81) -> 0 | DS58: =SUM(($E$32:$E$81=$CZ58)*($F$32:$F$81=DS$16)*$D$32:$D$81) -> 0 | DU58: =$DA$58 -> 0 | DV58: =$DB$58 -> 0 | DW58: =$DC$58 -> 0 | DX58: =$DD$58 -> 51347.30267 | DY58: =$DE$58 -> 0 | DZ58: =$DF$58 -> 0 | EA58: =$DG$58 -> 0 | EB58: =$DH$58 -> 0 | EC58: =$DI$58 -> 0 | EE58: =$DK$58 -> 0 | EF58: =$DL$58 -> 0 | EG58: =$DM$58 -> 0 | EH58: =$DN$58 -> 0 | EI58: =$DO$58 -> 0 | EJ58: =$DP$58 -> 0 | EK58: =$DQ$58 -> 0 | EL58: =$DR$58 -> 0 | EM58: =$DS$58 -> 0
A59: 28 | B59: Expenditure #28 | P59: 0 | Z59: 18 | AA59: Mon 18 | AB59: 15 | AC59: 0.02040833333 | AD59: 11019.2755 | AE59: 7 | AF59: 0.01190833333 | AG59: 6429.7855 | AK59: 1 | AL59: 0.01190833333 | AM59: 6429.7855 | AQ59: 0 | AR59: 0 | AS59: 0 | AZ59: 0 | BA59: 0 | BB59: 0 | BC59: 16 | BD59: 0.02040833333 | BE59: 25734.90833 | BF59: 1 | BG59: 0.01190833333 | BH59: 15016.40833 | BJ59: 0 | BK59: 0 | BL59: 0 | BM59: 0 | BN59: 0 | BO59: 0 | BP59: 1 | BQ59: 0.01190833333 | BR59: 4763.333333 | BS59: 16 | BT59: 0.02040833333 | BU59: 8163.333333 | BV59: 0 | BW59: 0 | BX59: 0 | BY59: 0 | BZ59: 0 | CA59: 0 | CB59: 0 | CC59: 0 | CD59: 0 | CE59: 0 | CF59: 0 | CG59: 0 | CH59: 0 | CI59: 0 | CJ59: 0 | CK59: 0 | CL59: 0 | CM59: 0 | CN59: 0 | CO59: 0 | CP59: 0 | CQ59: 0 | CR59: 0 | CS59: 0 | CT59: 0 | CU59: 0 | CV59: 0 | CW59: 0 | CX59: 0 | CY59: 0 | CZ59: 18 | DA59: 0 | DB59: 0 | DC59: 0 | DD59: 77556.82983 | DE59: 0 | DF59: 0 | DG59: 0 | DH59: 0 | DI59: 0 | DK59: =SUM(($E$32:$E$81=$CZ59)*($F$32:$F$81=DK$16)*$D$32:$D$81) -> 0 | DL59: =SUM(($E$32:$E$81=$CZ59)*($F$32:$F$81=DL$16)*($D$32:$D$81)) -> 0 | DM59: =SUM(($E$32:$E$81=$CZ59)*($F$32:$F$81=DM$16)*$D$32:$D$81) -> 0 | DN59: =SUM(($E$32:$E$81=$CZ59)*($F$32:$F$81=DN$16)*$D$32:$D$81) -> 2200940 | DO59: =SUM(($E$32:$E$81=$CZ59)*($F$32:$F$81=DO$16)*$D$32:$D$81) -> 0 | DP59: =SUM(($E$32:$E$81=$CZ59)*($F$32:$F$81=DP$16)*$D$32:$D$81) -> 0 | DQ59: =SUM(($E$32:$E$81=$CZ59)*($F$32:$F$81=DQ$16)*$D$32:$D$81) -> 0 | DR59: =SUM(($E$32:$E$81=$CZ59)*($F$32:$F$81=DR$16)*$D$32:$D$81) -> 0 | DS59: =SUM(($E$32:$E$81=$CZ59)*($F$32:$F$81=DS$16)*$D$32:$D$81) -> 0 | DU59: =$DA$59 -> 0 | DV59: =$DB$59 -> 0 | DW59: =$DC$59 -> 0 | DX59: =$DD$59 -> 77556.82983 | DY59: =$DE$59 -> 0 | DZ59: =$DF$59 -> 0 | EA59: =$DG$59 -> 0 | EB59: =$DH$59 -> 0 | EC59: =$DI$59 -> 0 | EE59: =$DK$59 -> 0 | EF59: =$DL$59 -> 0 | EG59: =$DM$59 -> 0 | EH59: =$DN$59 -> 2200940 | EI59: =$DO$59 -> 0 | EJ59: =$DP$59 -> 0 | EK59: =$DQ$59 -> 0 | EL59: =$DR$59 -> 0 | EM59: =$DS$59 -> 0
A60: 29 | B60: Expenditure #29 | P60: 0 | Z60: 19 | AA60: Mon 19 | AB60: 16 | AC60: 0.02040833333 | AD60: 11019.2755 | AE60: 8 | AF60: 0.01190833333 | AG60: 6429.7855 | AK60: 2 | AL60: 0.01190833333 | AM60: 6429.7855 | AQ60: 0 | AR60: 0 | AS60: 0 | AZ60: 0 | BA60: 0 | BB60: 0 | BC60: 17 | BD60: 0.02040833333 | BE60: 25734.90833 | BF60: 2 | BG60: 0.01190833333 | BH60: 15016.40833 | BJ60: 0 | BK60: 0 | BL60: 0 | BM60: 0 | BN60: 0 | BO60: 0 | BP60: 2 | BQ60: 0.01190833333 | BR60: 4763.333333 | BS60: 17 | BT60: 0.02040833333 | BU60: 8163.333333 | BV60: 0 | BW60: 0 | BX60: 0 | BY60: 0 | BZ60: 0 | CA60: 0 | CB60: 0 | CC60: 0 | CD60: 0 | CE60: 0 | CF60: 0 | CG60: 0 | CH60: 0 | CI60: 0 | CJ60: 0 | CK60: 0 | CL60: 0 | CM60: 0 | CN60: 0 | CO60: 0 | CP60: 0 | CQ60: 0 | CR60: 0 | CS60: 0 | CT60: 0 | CU60: 0 | CV60: 0 | CW60: 0 | CX60: 0 | CY60: 0 | CZ60: 19 | DA60: 0 | DB60: 0 | DC60: 0 | DD60: 77556.82983 | DE60: 0 | DF60: 0 | DG60: 0 | DH60: 0 | DI60: 0 | DK60: =SUM(($E$32:$E$81=$CZ60)*($F$32:$F$81=DK$16)*$D$32:$D$81) -> 0 | DL60: =SUM(($E$32:$E$81=$CZ60)*($F$32:$F$81=DL$16)*($D$32:$D$81)) -> 0 | DM60: =SUM(($E$32:$E$81=$CZ60)*($F$32:$F$81=DM$16)*$D$32:$D$81) -> 0 | DN60: =SUM(($E$32:$E$81=$CZ60)*($F$32:$F$81=DN$16)*$D$32:$D$81) -> 0 | DO60: =SUM(($E$32:$E$81=$CZ60)*($F$32:$F$81=DO$16)*$D$32:$D$81) -> 0 | DP60: =SUM(($E$32:$E$81=$CZ60)*($F$32:$F$81=DP$16)*$D$32:$D$81) -> 0 | DQ60: =SUM(($E$32:$E$81=$CZ60)*($F$32:$F$81=DQ$16)*$D$32:$D$81) -> 0 | DR60: =SUM(($E$32:$E$81=$CZ60)*($F$32:$F$81=DR$16)*$D$32:$D$81) -> 0 | DS60: =SUM(($E$32:$E$81=$CZ60)*($F$32:$F$81=DS$16)*$D$32:$D$81) -> 0 | DU60: =$DA$60 -> 0 | DV60: =$DB$60 -> 0 | DW60: =$DC$60 -> 0 | DX60: =$DD$60 -> 77556.82983 | DY60: =$DE$60 -> 0 | DZ60: =$DF$60 -> 0 | EA60: =$DG$60 -> 0 | EB60: =$DH$60 -> 0 | EC60: =$DI$60 -> 0 | EE60: =$DK$60 -> 0 | EF60: =$DL$60 -> 0 | EG60: =$DM$60 -> 0 | EH60: =$DN$60 -> 0 | EI60: =$DO$60 -> 0 | EJ60: =$DP$60 -> 0 | EK60: =$DQ$60 -> 0 | EL60: =$DR$60 -> 0 | EM60: =$DS$60 -> 0
A61: 30 | B61: Expenditure #30 | P61: 0 | Z61: 20 | AA61: Mon 20 | AB61: 17 | AC61: 0.02040833333 | AD61: 11019.2755 | AE61: 9 | AF61: 0.01190833333 | AG61: 6429.7855 | AK61: 3 | AL61: 0.01190833333 | AM61: 6429.7855 | AQ61: 0 | AR61: 0 | AS61: 0 | AZ61: 0 | BA61: 0 | BB61: 0 | BC61: 18 | BD61: 0.02040833333 | BE61: 25734.90833 | BF61: 3 | BG61: 0.01190833333 | BH61: 15016.40833 | BJ61: 0 | BK61: 0 | BL61: 0 | BM61: 0 | BN61: 0 | BO61: 0 | BP61: 3 | BQ61: 0.01190833333 | BR61: 4763.333333 | BS61: 18 | BT61: 0.02040833333 | BU61: 8163.333333 | BV61: 0 | BW61: 0 | BX61: 0 | BY61: 0 | BZ61: 0 | CA61: 0 | CB61: 0 | CC61: 0 | CD61: 0 | CE61: 0 | CF61: 0 | CG61: 0 | CH61: 0 | CI61: 0 | CJ61: 0 | CK61: 0 | CL61: 0 | CM61: 0 | CN61: 0 | CO61: 0 | CP61: 0 | CQ61: 0 | CR61: 0 | CS61: 0 | CT61: 0 | CU61: 0 | CV61: 0 | CW61: 0 | CX61: 0 | CY61: 0 | CZ61: 20 | DA61: 0 | DB61: 0 | DC61: 0 | DD61: 77556.82983 | DE61: 0 | DF61: 0 | DG61: 0 | DH61: 0 | DI61: 0 | DK61: =SUM(($E$32:$E$81=$CZ61)*($F$32:$F$81=DK$16)*$D$32:$D$81) -> 0 | DL61: =SUM(($E$32:$E$81=$CZ61)*($F$32:$F$81=DL$16)*($D$32:$D$81)) -> 0 | DM61: =SUM(($E$32:$E$81=$CZ61)*($F$32:$F$81=DM$16)*$D$32:$D$81) -> 0 | DN61: =SUM(($E$32:$E$81=$CZ61)*($F$32:$F$81=DN$16)*$D$32:$D$81) -> 0 | DO61: =SUM(($E$32:$E$81=$CZ61)*($F$32:$F$81=DO$16)*$D$32:$D$81) -> 0 | DP61: =SUM(($E$32:$E$81=$CZ61)*($F$32:$F$81=DP$16)*$D$32:$D$81) -> 0 | DQ61: =SUM(($E$32:$E$81=$CZ61)*($F$32:$F$81=DQ$16)*$D$32:$D$81) -> 0 | DR61: =SUM(($E$32:$E$81=$CZ61)*($F$32:$F$81=DR$16)*$D$32:$D$81) -> 0 | DS61: =SUM(($E$32:$E$81=$CZ61)*($F$32:$F$81=DS$16)*$D$32:$D$81) -> 0 | DU61: =$DA$61 -> 0 | DV61: =$DB$61 -> 0 | DW61: =$DC$61 -> 0 | DX61: =$DD$61 -> 77556.82983 | DY61: =$DE$61 -> 0 | DZ61: =$DF$61 -> 0 | EA61: =$DG$61 -> 0 | EB61: =$DH$61 -> 0 | EC61: =$DI$61 -> 0 | EE61: =$DK$61 -> 0 | EF61: =$DL$61 -> 0 | EG61: =$DM$61 -> 0 | EH61: =$DN$61 -> 0 | EI61: =$DO$61 -> 0 | EJ61: =$DP$61 -> 0 | EK61: =$DQ$61 -> 0 | EL61: =$DR$61 -> 0 | EM61: =$DS$61 -> 0
A62: 31 | B62: Expenditure #31 | P62: 0 | Z62: 21 | AA62: Mon 21 | AB62: 18 | AC62: 0.02040833333 | AD62: 11019.2755 | AE62: 10 | AF62: 0.01190833333 | AG62: 6429.7855 | AK62: 4 | AL62: 0.01190833333 | AM62: 6429.7855 | AQ62: 0 | AR62: 0 | AS62: 0 | AZ62: 0 | BA62: 0 | BB62: 0 | BC62: 19 | BD62: 0.02040833333 | BE62: 25734.90833 | BF62: 4 | BG62: 0.01190833333 | BH62: 15016.40833 | BJ62: 0 | BK62: 0 | BL62: 0 | BM62: 0 | BN62: 0 | BO62: 0 | BP62: 4 | BQ62: 0.01190833333 | BR62: 4763.333333 | BS62: 19 | BT62: 0.02040833333 | BU62: 8163.333333 | BV62: 0 | BW62: 0 | BX62: 0 | BY62: 0 | BZ62: 0 | CA62: 0 | CB62: 0 | CC62: 0 | CD62: 0 | CE62: 0 | CF62: 0 | CG62: 0 | CH62: 0 | CI62: 0 | CJ62: 0 | CK62: 0 | CL62: 0 | CM62: 0 | CN62: 0 | CO62: 0 | CP62: 0 | CQ62: 0 | CR62: 0 | CS62: 0 | CT62: 0 | CU62: 0 | CV62: 0 | CW62: 0 | CX62: 0 | CY62: 0 | CZ62: 21 | DA62: 0 | DB62: 0 | DC62: 0 | DD62: 77556.82983 | DE62: 0 | DF62: 0 | DG62: 0 | DH62: 0 | DI62: 0 | DK62: =SUM(($E$32:$E$81=$CZ62)*($F$32:$F$81=DK$16)*$D$32:$D$81) -> 0 | DL62: =SUM(($E$32:$E$81=$CZ62)*($F$32:$F$81=DL$16)*($D$32:$D$81)) -> 0 | DM62: =SUM(($E$32:$E$81=$CZ62)*($F$32:$F$81=DM$16)*$D$32:$D$81) -> 0 | DN62: =SUM(($E$32:$E$81=$CZ62)*($F$32:$F$81=DN$16)*$D$32:$D$81) -> 0 | DO62: =SUM(($E$32:$E$81=$CZ62)*($F$32:$F$81=DO$16)*$D$32:$D$81) -> 0 | DP62: =SUM(($E$32:$E$81=$CZ62)*($F$32:$F$81=DP$16)*$D$32:$D$81) -> 0 | DQ62: =SUM(($E$32:$E$81=$CZ62)*($F$32:$F$81=DQ$16)*$D$32:$D$81) -> 0 | DR62: =SUM(($E$32:$E$81=$CZ62)*($F$32:$F$81=DR$16)*$D$32:$D$81) -> 0 | DS62: =SUM(($E$32:$E$81=$CZ62)*($F$32:$F$81=DS$16)*$D$32:$D$81) -> 0 | DU62: =$DA$62 -> 0 | DV62: =$DB$62 -> 0 | DW62: =$DC$62 -> 0 | DX62: =$DD$62 -> 77556.82983 | DY62: =$DE$62 -> 0 | DZ62: =$DF$62 -> 0 | EA62: =$DG$62 -> 0 | EB62: =$DH$62 -> 0 | EC62: =$DI$62 -> 0 | EE62: =$DK$62 -> 0 | EF62: =$DL$62 -> 0 | EG62: =$DM$62 -> 0 | EH62: =$DN$62 -> 0 | EI62: =$DO$62 -> 0 | EJ62: =$DP$62 -> 0 | EK62: =$DQ$62 -> 0 | EL62: =$DR$62 -> 0 | EM62: =$DS$62 -> 0
A63: 32 | B63: Expenditure #32 | P63: 0 | Z63: 22 | AA63: Mon 22 | AB63: 19 | AC63: 0.02040833333 | AD63: 11019.2755 | AE63: 11 | AF63: 0.01190833333 | AG63: 6429.7855 | AK63: 5 | AL63: 0.01190833333 | AM63: 6429.7855 | AQ63: 0 | AR63: 0 | AS63: 0 | AZ63: 0 | BA63: 0 | BB63: 0 | BC63: 20 | BD63: 0.02040833333 | BE63: 25734.90833 | BF63: 5 | BG63: 0.01190833333 | BH63: 15016.40833 | BJ63: 0 | BK63: 0 | BL63: 0 | BM63: 0 | BN63: 0 | BO63: 0 | BP63: 5 | BQ63: 0.01190833333 | BR63: 4763.333333 | BS63: 20 | BT63: 0.02040833333 | BU63: 8163.333333 | BV63: 0 | BW63: 0 | BX63: 0 | BY63: 0 | BZ63: 0 | CA63: 0 | CB63: 0 | CC63: 0 | CD63: 0 | CE63: 0 | CF63: 0 | CG63: 0 | CH63: 0 | CI63: 0 | CJ63: 0 | CK63: 0 | CL63: 0 | CM63: 0 | CN63: 0 | CO63: 0 | CP63: 0 | CQ63: 0 | CR63: 0 | CS63: 0 | CT63: 0 | CU63: 0 | CV63: 0 | CW63: 0 | CX63: 0 | CY63: 0 | CZ63: 22 | DA63: 0 | DB63: 0 | DC63: 0 | DD63: 77556.82983 | DE63: 0 | DF63: 0 | DG63: 0 | DH63: 0 | DI63: 0 | DK63: =SUM(($E$32:$E$81=$CZ63)*($F$32:$F$81=DK$16)*$D$32:$D$81) -> 0 | DL63: =SUM(($E$32:$E$81=$CZ63)*($F$32:$F$81=DL$16)*($D$32:$D$81)) -> 0 | DM63: =SUM(($E$32:$E$81=$CZ63)*($F$32:$F$81=DM$16)*$D$32:$D$81) -> 0 | DN63: =SUM(($E$32:$E$81=$CZ63)*($F$32:$F$81=DN$16)*$D$32:$D$81) -> 0 | DO63: =SUM(($E$32:$E$81=$CZ63)*($F$32:$F$81=DO$16)*$D$32:$D$81) -> 0 | DP63: =SUM(($E$32:$E$81=$CZ63)*($F$32:$F$81=DP$16)*$D$32:$D$81) -> 0 | DQ63: =SUM(($E$32:$E$81=$CZ63)*($F$32:$F$81=DQ$16)*$D$32:$D$81) -> 0 | DR63: =SUM(($E$32:$E$81=$CZ63)*($F$32:$F$81=DR$16)*$D$32:$D$81) -> 0 | DS63: =SUM(($E$32:$E$81=$CZ63)*($F$32:$F$81=DS$16)*$D$32:$D$81) -> 0 | DU63: =$DA$63 -> 0 | DV63: =$DB$63 -> 0 | DW63: =$DC$63 -> 0 | DX63: =$DD$63 -> 77556.82983 | DY63: =$DE$63 -> 0 | DZ63: =$DF$63 -> 0 | EA63: =$DG$63 -> 0 | EB63: =$DH$63 -> 0 | EC63: =$DI$63 -> 0 | EE63: =$DK$63 -> 0 | EF63: =$DL$63 -> 0 | EG63: =$DM$63 -> 0 | EH63: =$DN$63 -> 0 | EI63: =$DO$63 -> 0 | EJ63: =$DP$63 -> 0 | EK63: =$DQ$63 -> 0 | EL63: =$DR$63 -> 0 | EM63: =$DS$63 -> 0
A64: 33 | B64: Expenditure #33 | P64: 0 | Z64: 23 | AA64: Mon 23 | AB64: 20 | AC64: 0.02040833333 | AD64: 11019.2755 | AE64: 12 | AF64: 0.01190833333 | AG64: 6429.7855 | AK64: 6 | AL64: 0.01190833333 | AM64: 6429.7855 | AQ64: 0 | AR64: 0 | AS64: 0 | AZ64: 0 | BA64: 0 | BB64: 0 | BC64: 21 | BD64: 0.02040833333 | BE64: 25734.90833 | BF64: 6 | BG64: 0.01190833333 | BH64: 15016.40833 | BJ64: 0 | BK64: 0 | BL64: 0 | BM64: 0 | BN64: 0 | BO64: 0 | BP64: 6 | BQ64: 0.01190833333 | BR64: 4763.333333 | BS64: 21 | BT64: 0.02040833333 | BU64: 8163.333333 | BV64: 0 | BW64: 0 | BX64: 0 | BY64: 0 | BZ64: 0 | CA64: 0 | CB64: 0 | CC64: 0 | CD64: 0 | CE64: 0 | CF64: 0 | CG64: 0 | CH64: 0 | CI64: 0 | CJ64: 0 | CK64: 0 | CL64: 0 | CM64: 0 | CN64: 0 | CO64: 0 | CP64: 0 | CQ64: 0 | CR64: 0 | CS64: 0 | CT64: 0 | CU64: 0 | CV64: 0 | CW64: 0 | CX64: 0 | CY64: 0 | CZ64: 23 | DA64: 0 | DB64: 0 | DC64: 0 | DD64: 77556.82983 | DE64: 0 | DF64: 0 | DG64: 0 | DH64: 0 | DI64: 0 | DK64: =SUM(($E$32:$E$81=$CZ64)*($F$32:$F$81=DK$16)*$D$32:$D$81) -> 0 | DL64: =SUM(($E$32:$E$81=$CZ64)*($F$32:$F$81=DL$16)*($D$32:$D$81)) -> 0 | DM64: =SUM(($E$32:$E$81=$CZ64)*($F$32:$F$81=DM$16)*$D$32:$D$81) -> 0 | DN64: =SUM(($E$32:$E$81=$CZ64)*($F$32:$F$81=DN$16)*$D$32:$D$81) -> 0 | DO64: =SUM(($E$32:$E$81=$CZ64)*($F$32:$F$81=DO$16)*$D$32:$D$81) -> 0 | DP64: =SUM(($E$32:$E$81=$CZ64)*($F$32:$F$81=DP$16)*$D$32:$D$81) -> 0 | DQ64: =SUM(($E$32:$E$81=$CZ64)*($F$32:$F$81=DQ$16)*$D$32:$D$81) -> 0 | DR64: =SUM(($E$32:$E$81=$CZ64)*($F$32:$F$81=DR$16)*$D$32:$D$81) -> 0 | DS64: =SUM(($E$32:$E$81=$CZ64)*($F$32:$F$81=DS$16)*$D$32:$D$81) -> 0 | DU64: =$DA$64 -> 0 | DV64: =$DB$64 -> 0 | DW64: =$DC$64 -> 0 | DX64: =$DD$64 -> 77556.82983 | DY64: =$DE$64 -> 0 | DZ64: =$DF$64 -> 0 | EA64: =$DG$64 -> 0 | EB64: =$DH$64 -> 0 | EC64: =$DI$64 -> 0 | EE64: =$DK$64 -> 0 | EF64: =$DL$64 -> 0 | EG64: =$DM$64 -> 0 | EH64: =$DN$64 -> 0 | EI64: =$DO$64 -> 0 | EJ64: =$DP$64 -> 0 | EK64: =$DQ$64 -> 0 | EL64: =$DR$64 -> 0 | EM64: =$DS$64 -> 0
A65: 34 | B65: Expenditure #34 | P65: 0 | Z65: 24 | AA65: Mon 24 | AB65: 21 | AC65: 0.02040833333 | AD65: 11019.2755 | AE65: 13 | AF65: 0.02040833333 | AG65: 11019.2755 | AK65: 7 | AL65: 0.01190833333 | AM65: 6429.7855 | AQ65: 0 | AR65: 0 | AS65: 0 | AZ65: 0 | BA65: 0 | BB65: 0 | BC65: 22 | BD65: 0.02040833333 | BE65: 25734.90833 | BF65: 7 | BG65: 0.01190833333 | BH65: 15016.40833 | BJ65: 0 | BK65: 0 | BL65: 0 | BM65: 0 | BN65: 0 | BO65: 0 | BP65: 7 | BQ65: 0.01190833333 | BR65: 4763.333333 | BS65: 22 | BT65: 0.02040833333 | BU65: 8163.333333 | BV65: 1 | BW65: 0.01190833333 | BX65: 6429.7855 | BY65: 0 | BZ65: 0 | CA65: 0 | CB65: 0 | CC65: 0 | CD65: 0 | CE65: 0 | CF65: 0 | CG65: 0 | CH65: 0 | CI65: 0 | CJ65: 0 | CK65: 0 | CL65: 0 | CM65: 0 | CN65: 0 | CO65: 0 | CP65: 0 | CQ65: 0 | CR65: 0 | CS65: 0 | CT65: 0 | CU65: 0 | CV65: 0 | CW65: 0 | CX65: 0 | CY65: 0 | CZ65: 24 | DA65: 0 | DB65: 0 | DC65: 0 | DD65: 88576.10533 | DE65: 0 | DF65: 0 | DG65: 0 | DH65: 0 | DI65: 0 | DK65: =SUM(($E$32:$E$81=$CZ65)*($F$32:$F$81=DK$16)*$D$32:$D$81) -> 0 | DL65: =SUM(($E$32:$E$81=$CZ65)*($F$32:$F$81=DL$16)*($D$32:$D$81)) -> 0 | DM65: =SUM(($E$32:$E$81=$CZ65)*($F$32:$F$81=DM$16)*$D$32:$D$81) -> 0 | DN65: =SUM(($E$32:$E$81=$CZ65)*($F$32:$F$81=DN$16)*$D$32:$D$81) -> 539940 | DO65: =SUM(($E$32:$E$81=$CZ65)*($F$32:$F$81=DO$16)*$D$32:$D$81) -> 0 | DP65: =SUM(($E$32:$E$81=$CZ65)*($F$32:$F$81=DP$16)*$D$32:$D$81) -> 0 | DQ65: =SUM(($E$32:$E$81=$CZ65)*($F$32:$F$81=DQ$16)*$D$32:$D$81) -> 0 | DR65: =SUM(($E$32:$E$81=$CZ65)*($F$32:$F$81=DR$16)*$D$32:$D$81) -> 0 | DS65: =SUM(($E$32:$E$81=$CZ65)*($F$32:$F$81=DS$16)*$D$32:$D$81) -> 0 | DU65: =$DA$65 -> 0 | DV65: =$DB$65 -> 0 | DW65: =$DC$65 -> 0 | DX65: =$DD$65 -> 88576.10533 | DY65: =$DE$65 -> 0 | DZ65: =$DF$65 -> 0 | EA65: =$DG$65 -> 0 | EB65: =$DH$65 -> 0 | EC65: =$DI$65 -> 0 | EE65: =$DK$65 -> 0 | EF65: =$DL$65 -> 0 | EG65: =$DM$65 -> 0 | EH65: =$DN$65 -> 539940 | EI65: =$DO$65 -> 0 | EJ65: =$DP$65 -> 0 | EK65: =$DQ$65 -> 0 | EL65: =$DR$65 -> 0 | EM65: =$DS$65 -> 0
A66: 35 | B66: Expenditure #35 | P66: 0 | Z66: 25 | AA66: Mon 25 | AB66: 22 | AC66: 0.02040833333 | AD66: 11019.2755 | AE66: 14 | AF66: 0.02040833333 | AG66: 11019.2755 | AK66: 8 | AL66: 0.01190833333 | AM66: 6429.7855 | AQ66: 0 | AR66: 0 | AS66: 0 | AZ66: 0 | BA66: 0 | BB66: 0 | BC66: 23 | BD66: 0.02040833333 | BE66: 25734.90833 | BF66: 8 | BG66: 0.01190833333 | BH66: 15016.40833 | BJ66: 0 | BK66: 0 | BL66: 0 | BM66: 0 | BN66: 0 | BO66: 0 | BP66: 8 | BQ66: 0.01190833333 | BR66: 4763.333333 | BS66: 23 | BT66: 0.02040833333 | BU66: 8163.333333 | BV66: 2 | BW66: 0.01190833333 | BX66: 6429.7855 | BY66: 0 | BZ66: 0 | CA66: 0 | CB66: 0 | CC66: 0 | CD66: 0 | CE66: 0 | CF66: 0 | CG66: 0 | CH66: 0 | CI66: 0 | CJ66: 0 | CK66: 0 | CL66: 0 | CM66: 0 | CN66: 0 | CO66: 0 | CP66: 0 | CQ66: 0 | CR66: 0 | CS66: 0 | CT66: 0 | CU66: 0 | CV66: 0 | CW66: 0 | CX66: 0 | CY66: 0 | CZ66: 25 | DA66: 0 | DB66: 0 | DC66: 0 | DD66: 88576.10533 | DE66: 0 | DF66: 0 | DG66: 0 | DH66: 0 | DI66: 0 | DK66: =SUM(($E$32:$E$81=$CZ66)*($F$32:$F$81=DK$16)*$D$32:$D$81) -> 0 | DL66: =SUM(($E$32:$E$81=$CZ66)*($F$32:$F$81=DL$16)*($D$32:$D$81)) -> 0 | DM66: =SUM(($E$32:$E$81=$CZ66)*($F$32:$F$81=DM$16)*$D$32:$D$81) -> 0 | DN66: =SUM(($E$32:$E$81=$CZ66)*($F$32:$F$81=DN$16)*$D$32:$D$81) -> 0 | DO66: =SUM(($E$32:$E$81=$CZ66)*($F$32:$F$81=DO$16)*$D$32:$D$81) -> 0 | DP66: =SUM(($E$32:$E$81=$CZ66)*($F$32:$F$81=DP$16)*$D$32:$D$81) -> 0 | DQ66: =SUM(($E$32:$E$81=$CZ66)*($F$32:$F$81=DQ$16)*$D$32:$D$81) -> 0 | DR66: =SUM(($E$32:$E$81=$CZ66)*($F$32:$F$81=DR$16)*$D$32:$D$81) -> 0 | DS66: =SUM(($E$32:$E$81=$CZ66)*($F$32:$F$81=DS$16)*$D$32:$D$81) -> 0 | DU66: =$DA$66 -> 0 | DV66: =$DB$66 -> 0 | DW66: =$DC$66 -> 0 | DX66: =$DD$66 -> 88576.10533 | DY66: =$DE$66 -> 0 | DZ66: =$DF$66 -> 0 | EA66: =$DG$66 -> 0 | EB66: =$DH$66 -> 0 | EC66: =$DI$66 -> 0 | EE66: =$DK$66 -> 0 | EF66: =$DL$66 -> 0 | EG66: =$DM$66 -> 0 | EH66: =$DN$66 -> 0 | EI66: =$DO$66 -> 0 | EJ66: =$DP$66 -> 0 | EK66: =$DQ$66 -> 0 | EL66: =$DR$66 -> 0 | EM66: =$DS$66 -> 0
A67: 36 | B67: Expenditure #36 | P67: 0 | Z67: 26 | AA67: Mon 26 | AB67: 23 | AC67: 0.02040833333 | AD67: 11019.2755 | AE67: 15 | AF67: 0.02040833333 | AG67: 11019.2755 | AK67: 9 | AL67: 0.01190833333 | AM67: 6429.7855 | AQ67: 0 | AR67: 0 | AS67: 0 | AZ67: 0 | BA67: 0 | BB67: 0 | BC67: 24 | BD67: 0.02040833333 | BE67: 25734.90833 | BF67: 9 | BG67: 0.01190833333 | BH67: 15016.40833 | BJ67: 0 | BK67: 0 | BL67: 0 | BM67: 0 | BN67: 0 | BO67: 0 | BP67: 9 | BQ67: 0.01190833333 | BR67: 4763.333333 | BS67: 24 | BT67: 0.02040833333 | BU67: 8163.333333 | BV67: 3 | BW67: 0.01190833333 | BX67: 6429.7855 | BY67: 0 | BZ67: 0 | CA67: 0 | CB67: 0 | CC67: 0 | CD67: 0 | CE67: 0 | CF67: 0 | CG67: 0 | CH67: 0 | CI67: 0 | CJ67: 0 | CK67: 0 | CL67: 0 | CM67: 0 | CN67: 0 | CO67: 0 | CP67: 0 | CQ67: 0 | CR67: 0 | CS67: 0 | CT67: 0 | CU67: 0 | CV67: 0 | CW67: 0 | CX67: 0 | CY67: 0 | CZ67: 26 | DA67: 0 | DB67: 0 | DC67: 0 | DD67: 88576.10533 | DE67: 0 | DF67: 0 | DG67: 0 | DH67: 0 | DI67: 0 | DK67: =SUM(($E$32:$E$81=$CZ67)*($F$32:$F$81=DK$16)*$D$32:$D$81) -> 0 | DL67: =SUM(($E$32:$E$81=$CZ67)*($F$32:$F$81=DL$16)*($D$32:$D$81)) -> 0 | DM67: =SUM(($E$32:$E$81=$CZ67)*($F$32:$F$81=DM$16)*$D$32:$D$81) -> 0 | DN67: =SUM(($E$32:$E$81=$CZ67)*($F$32:$F$81=DN$16)*$D$32:$D$81) -> 0 | DO67: =SUM(($E$32:$E$81=$CZ67)*($F$32:$F$81=DO$16)*$D$32:$D$81) -> 0 | DP67: =SUM(($E$32:$E$81=$CZ67)*($F$32:$F$81=DP$16)*$D$32:$D$81) -> 0 | DQ67: =SUM(($E$32:$E$81=$CZ67)*($F$32:$F$81=DQ$16)*$D$32:$D$81) -> 0 | DR67: =SUM(($E$32:$E$81=$CZ67)*($F$32:$F$81=DR$16)*$D$32:$D$81) -> 0 | DS67: =SUM(($E$32:$E$81=$CZ67)*($F$32:$F$81=DS$16)*$D$32:$D$81) -> 0 | DU67: =$DA$67 -> 0 | DV67: =$DB$67 -> 0 | DW67: =$DC$67 -> 0 | DX67: =$DD$67 -> 88576.10533 | DY67: =$DE$67 -> 0 | DZ67: =$DF$67 -> 0 | EA67: =$DG$67 -> 0 | EB67: =$DH$67 -> 0 | EC67: =$DI$67 -> 0 | EE67: =$DK$67 -> 0 | EF67: =$DL$67 -> 0 | EG67: =$DM$67 -> 0 | EH67: =$DN$67 -> 0 | EI67: =$DO$67 -> 0 | EJ67: =$DP$67 -> 0 | EK67: =$DQ$67 -> 0 | EL67: =$DR$67 -> 0 | EM67: =$DS$67 -> 0
A68: 37 | B68: Expenditure #37 | P68: 0 | Z68: 27 | AA68: Mon 27 | AB68: 24 | AC68: 0.02040833333 | AD68: 11019.2755 | AE68: 16 | AF68: 0.02040833333 | AG68: 11019.2755 | AK68: 10 | AL68: 0.01190833333 | AM68: 6429.7855 | AQ68: 0 | AR68: 0 | AS68: 0 | AZ68: 0 | BA68: 0 | BB68: 0 | BC68: 25 | BD68: 0.014575 | BE68: 18379.075 | BF68: 10 | BG68: 0.01190833333 | BH68: 15016.40833 | BJ68: 0 | BK68: 0 | BL68: 0 | BM68: 0 | BN68: 0 | BO68: 0 | BP68: 10 | BQ68: 0.01190833333 | BR68: 4763.333333 | BS68: 25 | BT68: 0.014575 | BU68: 5830 | BV68: 4 | BW68: 0.01190833333 | BX68: 6429.7855 | BY68: 0 | BZ68: 0 | CA68: 0 | CB68: 0 | CC68: 0 | CD68: 0 | CE68: 0 | CF68: 0 | CG68: 0 | CH68: 0 | CI68: 0 | CJ68: 0 | CK68: 0 | CL68: 0 | CM68: 0 | CN68: 0 | CO68: 0 | CP68: 0 | CQ68: 0 | CR68: 0 | CS68: 0 | CT68: 0 | CU68: 0 | CV68: 0 | CW68: 0 | CX68: 0 | CY68: 0 | CZ68: 27 | DA68: 0 | DB68: =SUMIF($AD$12:$CY$12,DB$16,$AD68:$CY68) -> 0 | DC68: 0 | DD68: 78886.93867 | DE68: 0 | DF68: 0 | DG68: 0 | DH68: 0 | DI68: 0 | DK68: =SUM(($E$32:$E$81=$CZ68)*($F$32:$F$81=DK$16)*$D$32:$D$81) -> 0 | DL68: =SUM(($E$32:$E$81=$CZ68)*($F$32:$F$81=DL$16)*($D$32:$D$81)) -> 0 | DM68: =SUM(($E$32:$E$81=$CZ68)*($F$32:$F$81=DM$16)*$D$32:$D$81) -> 0 | DN68: =SUM(($E$32:$E$81=$CZ68)*($F$32:$F$81=DN$16)*$D$32:$D$81) -> 0 | DO68: =SUM(($E$32:$E$81=$CZ68)*($F$32:$F$81=DO$16)*$D$32:$D$81) -> 0 | DP68: =SUM(($E$32:$E$81=$CZ68)*($F$32:$F$81=DP$16)*$D$32:$D$81) -> 0 | DQ68: =SUM(($E$32:$E$81=$CZ68)*($F$32:$F$81=DQ$16)*$D$32:$D$81) -> 0 | DR68: =SUM(($E$32:$E$81=$CZ68)*($F$32:$F$81=DR$16)*$D$32:$D$81) -> 0 | DS68: =SUM(($E$32:$E$81=$CZ68)*($F$32:$F$81=DS$16)*$D$32:$D$81) -> 0 | DU68: =$DA$68 -> 0 | DV68: =$DB$68 -> 0 | DW68: =$DC$68 -> 0 | DX68: =$DD$68 -> 78886.93867 | DY68: =$DE$68 -> 0 | DZ68: =$DF$68 -> 0 | EA68: =$DG$68 -> 0 | EB68: =$DH$68 -> 0 | EC68: =$DI$68 -> 0 | EE68: =$DK$68 -> 0 | EF68: =$DL$68 -> 0 | EG68: =$DM$68 -> 0 | EH68: =$DN$68 -> 0 | EI68: =$DO$68 -> 0 | EJ68: =$DP$68 -> 0 | EK68: =$DQ$68 -> 0 | EL68: =$DR$68 -> 0 | EM68: =$DS$68 -> 0
A69: 38 | B69: Expenditure #38 | P69: 0 | Z69: 28 | AA69: Mon 28 | AB69: 25 | AC69: 0.014575 | AD69: 7869.6255 | AE69: 17 | AF69: 0.02040833333 | AG69: 11019.2755 | AK69: 11 | AL69: 0.01190833333 | AM69: 6429.7855 | AQ69: 0 | AR69: 0 | AS69: 0 | AZ69: 0 | BA69: 0 | BB69: 0 | BC69: 26 | BD69: 0.014575 | BE69: 18379.075 | BF69: 11 | BG69: 0.01190833333 | BH69: 15016.40833 | BJ69: 0 | BK69: 0 | BL69: 0 | BM69: 0 | BN69: 0 | BO69: 0 | BP69: 11 | BQ69: 0.01190833333 | BR69: 4763.333333 | BS69: 26 | BT69: 0.014575 | BU69: 5830 | BV69: 5 | BW69: 0.01190833333 | BX69: 6429.7855 | BY69: 0 | BZ69: 0 | CA69: 0 | CB69: 0 | CC69: 0 | CD69: 0 | CE69: 0 | CF69: 0 | CG69: 0 | CH69: 0 | CI69: 0 | CJ69: 0 | CK69: 0 | CL69: 0 | CM69: 0 | CN69: 0 | CO69: 0 | CP69: 0 | CQ69: 0 | CR69: 0 | CS69: 0 | CT69: 0 | CU69: 0 | CV69: 0 | CW69: 0 | CX69: 0 | CY69: 0 | CZ69: 28 | DA69: 0 | DB69: 0 | DC69: 0 | DD69: 75737.28867 | DE69: 0 | DF69: 0 | DG69: 0 | DH69: 0 | DI69: 0 | DK69: =SUM(($E$32:$E$81=$CZ69)*($F$32:$F$81=DK$16)*$D$32:$D$81) -> 0 | DL69: =SUM(($E$32:$E$81=$CZ69)*($F$32:$F$81=DL$16)*($D$32:$D$81)) -> 0 | DM69: =SUM(($E$32:$E$81=$CZ69)*($F$32:$F$81=DM$16)*$D$32:$D$81) -> 0 | DN69: =SUM(($E$32:$E$81=$CZ69)*($F$32:$F$81=DN$16)*$D$32:$D$81) -> 0 | DO69: =SUM(($E$32:$E$81=$CZ69)*($F$32:$F$81=DO$16)*$D$32:$D$81) -> 0 | DP69: =SUM(($E$32:$E$81=$CZ69)*($F$32:$F$81=DP$16)*$D$32:$D$81) -> 0 | DQ69: =SUM(($E$32:$E$81=$CZ69)*($F$32:$F$81=DQ$16)*$D$32:$D$81) -> 0 | DR69: =SUM(($E$32:$E$81=$CZ69)*($F$32:$F$81=DR$16)*$D$32:$D$81) -> 0 | DS69: =SUM(($E$32:$E$81=$CZ69)*($F$32:$F$81=DS$16)*$D$32:$D$81) -> 0 | DU69: =$DA$69 -> 0 | DV69: =$DB$69 -> 0 | DW69: =$DC$69 -> 0 | DX69: =$DD$69 -> 75737.28867 | DY69: =$DE$69 -> 0 | DZ69: =$DF$69 -> 0 | EA69: =$DG$69 -> 0 | EB69: =$DH$69 -> 0 | EC69: =$DI$69 -> 0 | EE69: =$DK$69 -> 0 | EF69: =$DL$69 -> 0 | EG69: =$DM$69 -> 0 | EH69: =$DN$69 -> 0 | EI69: =$DO$69 -> 0 | EJ69: =$DP$69 -> 0 | EK69: =$DQ$69 -> 0 | EL69: =$DR$69 -> 0 | EM69: =$DS$69 -> 0
A70: 39 | B70: Expenditure #39 | P70: 0 | Z70: 29 | AA70: Mon 29 | AB70: 26 | AC70: 0.014575 | AD70: 7869.6255 | AE70: 18 | AF70: 0.02040833333 | AG70: 11019.2755 | AK70: 12 | AL70: 0.01190833333 | AM70: 6429.7855 | AQ70: 0 | AR70: 0 | AS70: 0 | AZ70: 0 | BA70: 0 | BB70: 0 | BC70: 27 | BD70: 0.014575 | BE70: 18379.075 | BF70: 12 | BG70: 0.01190833333 | BH70: 15016.40833 | BJ70: 0 | BK70: 0 | BL70: 0 | BM70: 0 | BN70: 0 | BO70: 0 | BP70: 12 | BQ70: 0.01190833333 | BR70: 4763.333333 | BS70: 27 | BT70: 0.014575 | BU70: 5830 | BV70: 6 | BW70: 0.01190833333 | BX70: 6429.7855 | BY70: 0 | BZ70: 0 | CA70: 0 | CB70: 0 | CC70: 0 | CD70: 0 | CE70: 0 | CF70: 0 | CG70: 0 | CH70: 0 | CI70: 0 | CJ70: 0 | CK70: 0 | CL70: 0 | CM70: 0 | CN70: 0 | CO70: 0 | CP70: 0 | CQ70: 0 | CR70: 0 | CS70: 0 | CT70: 0 | CU70: 0 | CV70: 0 | CW70: 0 | CX70: 0 | CY70: 0 | CZ70: 29 | DA70: 0 | DB70: 0 | DC70: 0 | DD70: 75737.28867 | DE70: 0 | DF70: 0 | DG70: 0 | DH70: 0 | DI70: 0 | DK70: =SUM(($E$32:$E$81=$CZ70)*($F$32:$F$81=DK$16)*$D$32:$D$81) -> 0 | DL70: =SUM(($E$32:$E$81=$CZ70)*($F$32:$F$81=DL$16)*($D$32:$D$81)) -> 0 | DM70: =SUM(($E$32:$E$81=$CZ70)*($F$32:$F$81=DM$16)*$D$32:$D$81) -> 0 | DN70: =SUM(($E$32:$E$81=$CZ70)*($F$32:$F$81=DN$16)*$D$32:$D$81) -> 0 | DO70: =SUM(($E$32:$E$81=$CZ70)*($F$32:$F$81=DO$16)*$D$32:$D$81) -> 0 | DP70: =SUM(($E$32:$E$81=$CZ70)*($F$32:$F$81=DP$16)*$D$32:$D$81) -> 0 | DQ70: =SUM(($E$32:$E$81=$CZ70)*($F$32:$F$81=DQ$16)*$D$32:$D$81) -> 0 | DR70: =SUM(($E$32:$E$81=$CZ70)*($F$32:$F$81=DR$16)*$D$32:$D$81) -> 0 | DS70: =SUM(($E$32:$E$81=$CZ70)*($F$32:$F$81=DS$16)*$D$32:$D$81) -> 0 | DU70: =$DA$70 -> 0 | DV70: =$DB$70 -> 0 | DW70: =$DC$70 -> 0 | DX70: =$DD$70 -> 75737.28867 | DY70: =$DE$70 -> 0 | DZ70: =$DF$70 -> 0 | EA70: =$DG$70 -> 0 | EB70: =$DH$70 -> 0 | EC70: =$DI$70 -> 0 | EE70: =$DK$70 -> 0 | EF70: =$DL$70 -> 0 | EG70: =$DM$70 -> 0 | EH70: =$DN$70 -> 0 | EI70: =$DO$70 -> 0 | EJ70: =$DP$70 -> 0 | EK70: =$DQ$70 -> 0 | EL70: =$DR$70 -> 0 | EM70: =$DS$70 -> 0
A71: 40 | B71: Expenditure #40 | P71: 0 | Z71: 30 | AA71: Mon 30 | AB71: 27 | AC71: 0.014575 | AD71: 7869.6255 | AE71: 19 | AF71: 0.02040833333 | AG71: 11019.2755 | AK71: 13 | AL71: 0.02040833333 | AM71: 11019.2755 | AQ71: 0 | AR71: 0 | AS71: 0 | AZ71: 1 | BA71: 0.01190833333 | BB71: 4763.333333 | BC71: 28 | BD71: 0.014575 | BE71: 18379.075 | BF71: 13 | BG71: 0.02040833333 | BH71: 25734.90833 | BJ71: 1 | BK71: 0.01190833333 | BL71: 15016.40833 | BM71: 1 | BN71: 0.01190833333 | BO71: 6429.7855 | BP71: 13 | BQ71: 0.02040833333 | BR71: 8163.333333 | BS71: 28 | BT71: 0.014575 | BU71: 5830 | BV71: 7 | BW71: 0.01190833333 | BX71: 6429.7855 | BY71: 0 | BZ71: 0 | CA71: 0 | CB71: 0 | CC71: 0 | CD71: 0 | CE71: 0 | CF71: 0 | CG71: 0 | CH71: 0 | CI71: 0 | CJ71: 0 | CK71: 0 | CL71: 0 | CM71: 0 | CN71: 0 | CO71: 0 | CP71: 0 | CQ71: 0 | CR71: 0 | CS71: 0 | CT71: 0 | CU71: 0 | CV71: 0 | CW71: 0 | CX71: 0 | CY71: 0 | CZ71: 30 | DA71: 0 | DB71: 0 | DC71: 0 | DD71: 120654.8058 | DE71: 0 | DF71: 0 | DG71: 0 | DH71: 0 | DI71: 0 | DK71: =SUM(($E$32:$E$81=$CZ71)*($F$32:$F$81=DK$16)*$D$32:$D$81) -> 0 | DL71: =SUM(($E$32:$E$81=$CZ71)*($F$32:$F$81=DL$16)*($D$32:$D$81)) -> 0 | DM71: =SUM(($E$32:$E$81=$CZ71)*($F$32:$F$81=DM$16)*$D$32:$D$81) -> 0 | DN71: =SUM(($E$32:$E$81=$CZ71)*($F$32:$F$81=DN$16)*$D$32:$D$81) -> 2200940 | DO71: =SUM(($E$32:$E$81=$CZ71)*($F$32:$F$81=DO$16)*$D$32:$D$81) -> 0 | DP71: =SUM(($E$32:$E$81=$CZ71)*($F$32:$F$81=DP$16)*$D$32:$D$81) -> 0 | DQ71: =SUM(($E$32:$E$81=$CZ71)*($F$32:$F$81=DQ$16)*$D$32:$D$81) -> 0 | DR71: =SUM(($E$32:$E$81=$CZ71)*($F$32:$F$81=DR$16)*$D$32:$D$81) -> 0 | DS71: =SUM(($E$32:$E$81=$CZ71)*($F$32:$F$81=DS$16)*$D$32:$D$81) -> 0 | DU71: =$DA$71 -> 0 | DV71: =$DB$71 -> 0 | DW71: =$DC$71 -> 0 | DX71: =$DD$71 -> 120654.8058 | DY71: =$DE$71 -> 0 | DZ71: =$DF$71 -> 0 | EA71: =$DG$71 -> 0 | EB71: =$DH$71 -> 0 | EC71: =$DI$71 -> 0 | EE71: =$DK$71 -> 0 | EF71: =$DL$71 -> 0 | EG71: =$DM$71 -> 0 | EH71: =$DN$71 -> 2200940 | EI71: =$DO$71 -> 0 | EJ71: =$DP$71 -> 0 | EK71: =$DQ$71 -> 0 | EL71: =$DR$71 -> 0 | EM71: =$DS$71 -> 0
A72: 41 | B72: Expenditure #41 | P72: 0 | Z72: 31 | AA72: Mon 31 | AB72: 28 | AC72: 0.014575 | AD72: 7869.6255 | AE72: 20 | AF72: 0.02040833333 | AG72: 11019.2755 | AK72: 14 | AL72: 0.02040833333 | AM72: 11019.2755 | AQ72: 0 | AR72: 0 | AS72: 0 | AZ72: 2 | BA72: 0.01190833333 | BB72: 4763.333333 | BC72: 29 | BD72: 0.014575 | BE72: 18379.075 | BF72: 14 | BG72: 0.02040833333 | BH72: 25734.90833 | BJ72: 2 | BK72: 0.01190833333 | BL72: 15016.40833 | BM72: 2 | BN72: 0.01190833333 | BO72: 6429.7855 | BP72: 14 | BQ72: 0.02040833333 | BR72: 8163.333333 | BS72: 29 | BT72: 0.014575 | BU72: 5830 | BV72: 8 | BW72: 0.01190833333 | BX72: 6429.7855 | BY72: 0 | BZ72: 0 | CA72: 0 | CB72: 0 | CC72: 0 | CD72: 0 | CE72: 0 | CF72: 0 | CG72: 0 | CH72: 0 | CI72: 0 | CJ72: 0 | CK72: 0 | CL72: 0 | CM72: 0 | CN72: 0 | CO72: 0 | CP72: 0 | CQ72: 0 | CR72: 0 | CS72: 0 | CT72: 0 | CU72: 0 | CV72: 0 | CW72: 0 | CX72: 0 | CY72: 0 | CZ72: 31 | DA72: 0 | DB72: 0 | DC72: 0 | DD72: 120654.8058 | DE72: 0 | DF72: 0 | DG72: 0 | DH72: 0 | DI72: 0 | DK72: =SUM(($E$32:$E$81=$CZ72)*($F$32:$F$81=DK$16)*$D$32:$D$81) -> 0 | DL72: =SUM(($E$32:$E$81=$CZ72)*($F$32:$F$81=DL$16)*($D$32:$D$81)) -> 0 | DM72: =SUM(($E$32:$E$81=$CZ72)*($F$32:$F$81=DM$16)*$D$32:$D$81) -> 0 | DN72: =SUM(($E$32:$E$81=$CZ72)*($F$32:$F$81=DN$16)*$D$32:$D$81) -> 0 | DO72: =SUM(($E$32:$E$81=$CZ72)*($F$32:$F$81=DO$16)*$D$32:$D$81) -> 0 | DP72: =SUM(($E$32:$E$81=$CZ72)*($F$32:$F$81=DP$16)*$D$32:$D$81) -> 0 | DQ72: =SUM(($E$32:$E$81=$CZ72)*($F$32:$F$81=DQ$16)*$D$32:$D$81) -> 0 | DR72: =SUM(($E$32:$E$81=$CZ72)*($F$32:$F$81=DR$16)*$D$32:$D$81) -> 0 | DS72: =SUM(($E$32:$E$81=$CZ72)*($F$32:$F$81=DS$16)*$D$32:$D$81) -> 0 | DU72: =$DA$72 -> 0 | DV72: =$DB$72 -> 0 | DW72: =$DC$72 -> 0 | DX72: =$DD$72 -> 120654.8058 | DY72: =$DE$72 -> 0 | DZ72: =$DF$72 -> 0 | EA72: =$DG$72 -> 0 | EB72: =$DH$72 -> 0 | EC72: =$DI$72 -> 0 | EE72: =$DK$72 -> 0 | EF72: =$DL$72 -> 0 | EG72: =$DM$72 -> 0 | EH72: =$DN$72 -> 0 | EI72: =$DO$72 -> 0 | EJ72: =$DP$72 -> 0 | EK72: =$DQ$72 -> 0 | EL72: =$DR$72 -> 0 | EM72: =$DS$72 -> 0
A73: 42 | B73: Expenditure #42 | P73: 0 | Z73: 32 | AA73: Mon 32 | AB73: 29 | AC73: 0.014575 | AD73: 7869.6255 | AE73: 21 | AF73: 0.02040833333 | AG73: 11019.2755 | AK73: 15 | AL73: 0.02040833333 | AM73: 11019.2755 | AQ73: 0 | AR73: 0 | AS73: 0 | AZ73: 3 | BA73: 0.01190833333 | BB73: 4763.333333 | BC73: 30 | BD73: 0.014575 | BE73: 18379.075 | BF73: 15 | BG73: 0.02040833333 | BH73: 25734.90833 | BJ73: 3 | BK73: 0.01190833333 | BL73: 15016.40833 | BM73: 3 | BN73: 0.01190833333 | BO73: 6429.7855 | BP73: 15 | BQ73: 0.02040833333 | BR73: 8163.333333 | BS73: 30 | BT73: 0.014575 | BU73: 5830 | BV73: 9 | BW73: 0.01190833333 | BX73: 6429.7855 | BY73: 0 | BZ73: 0 | CA73: 0 | CB73: 0 | CC73: 0 | CD73: 0 | CE73: 0 | CF73: 0 | CG73: 0 | CH73: 0 | CI73: 0 | CJ73: 0 | CK73: 0 | CL73: 0 | CM73: 0 | CN73: 0 | CO73: 0 | CP73: 0 | CQ73: 0 | CR73: 0 | CS73: 0 | CT73: 0 | CU73: 0 | CV73: 0 | CW73: 0 | CX73: 0 | CY73: 0 | CZ73: 32 | DA73: 0 | DB73: 0 | DC73: 0 | DD73: 120654.8058 | DE73: 0 | DF73: 0 | DG73: 0 | DH73: 0 | DI73: 0 | DK73: =SUM(($E$32:$E$81=$CZ73)*($F$32:$F$81=DK$16)*$D$32:$D$81) -> 0 | DL73: =SUM(($E$32:$E$81=$CZ73)*($F$32:$F$81=DL$16)*($D$32:$D$81)) -> 0 | DM73: =SUM(($E$32:$E$81=$CZ73)*($F$32:$F$81=DM$16)*$D$32:$D$81) -> 0 | DN73: =SUM(($E$32:$E$81=$CZ73)*($F$32:$F$81=DN$16)*$D$32:$D$81) -> 0 | DO73: =SUM(($E$32:$E$81=$CZ73)*($F$32:$F$81=DO$16)*$D$32:$D$81) -> 0 | DP73: =SUM(($E$32:$E$81=$CZ73)*($F$32:$F$81=DP$16)*$D$32:$D$81) -> 0 | DQ73: =SUM(($E$32:$E$81=$CZ73)*($F$32:$F$81=DQ$16)*$D$32:$D$81) -> 0 | DR73: =SUM(($E$32:$E$81=$CZ73)*($F$32:$F$81=DR$16)*$D$32:$D$81) -> 0 | DS73: =SUM(($E$32:$E$81=$CZ73)*($F$32:$F$81=DS$16)*$D$32:$D$81) -> 0 | DU73: =$DA$73 -> 0 | DV73: =$DB$73 -> 0 | DW73: =$DC$73 -> 0 | DX73: =$DD$73 -> 120654.8058 | DY73: =$DE$73 -> 0 | DZ73: =$DF$73 -> 0 | EA73: =$DG$73 -> 0 | EB73: =$DH$73 -> 0 | EC73: =$DI$73 -> 0 | EE73: =$DK$73 -> 0 | EF73: =$DL$73 -> 0 | EG73: =$DM$73 -> 0 | EH73: =$DN$73 -> 0 | EI73: =$DO$73 -> 0 | EJ73: =$DP$73 -> 0 | EK73: =$DQ$73 -> 0 | EL73: =$DR$73 -> 0 | EM73: =$DS$73 -> 0
A74: 43 | B74: Expenditure #43 | P74: 0 | Z74: 33 | AA74: Mon 33 | AB74: 30 | AC74: 0.014575 | AD74: 7869.6255 | AE74: 22 | AF74: 0.02040833333 | AG74: 11019.2755 | AK74: 16 | AL74: 0.02040833333 | AM74: 11019.2755 | AQ74: 0 | AR74: 0 | AS74: 0 | AZ74: 4 | BA74: 0.01190833333 | BB74: 4763.333333 | BC74: 31 | BD74: 0.014575 | BE74: 18379.075 | BF74: 16 | BG74: 0.02040833333 | BH74: 25734.90833 | BJ74: 4 | BK74: 0.01190833333 | BL74: 15016.40833 | BM74: 4 | BN74: 0.01190833333 | BO74: 6429.7855 | BP74: 16 | BQ74: 0.02040833333 | BR74: 8163.333333 | BS74: 31 | BT74: 0.014575 | BU74: 5830 | BV74: 10 | BW74: 0.01190833333 | BX74: 6429.7855 | BY74: 0 | BZ74: 0 | CA74: 0 | CB74: 0 | CC74: 0 | CD74: 0 | CE74: 0 | CF74: 0 | CG74: 0 | CH74: 0 | CI74: 0 | CJ74: 0 | CK74: 0 | CL74: 0 | CM74: 0 | CN74: 0 | CO74: 0 | CP74: 0 | CQ74: 0 | CR74: 0 | CS74: 0 | CT74: 0 | CU74: 0 | CV74: 0 | CW74: 0 | CX74: 0 | CY74: 0 | CZ74: 33 | DA74: =SUMIF($AD$12:$CY$12,DA$16,$AD74:$CY74) -> 0 | DB74: 0 | DC74: 0 | DD74: 120654.8058 | DE74: 0 | DF74: 0 | DG74: 0 | DH74: 0 | DI74: 0 | DK74: =SUM(($E$32:$E$81=$CZ74)*($F$32:$F$81=DK$16)*$D$32:$D$81) -> 0 | DL74: =SUM(($E$32:$E$81=$CZ74)*($F$32:$F$81=DL$16)*($D$32:$D$81)) -> 0 | DM74: =SUM(($E$32:$E$81=$CZ74)*($F$32:$F$81=DM$16)*$D$32:$D$81) -> 0 | DN74: =SUM(($E$32:$E$81=$CZ74)*($F$32:$F$81=DN$16)*$D$32:$D$81) -> 0 | DO74: =SUM(($E$32:$E$81=$CZ74)*($F$32:$F$81=DO$16)*$D$32:$D$81) -> 0 | DP74: =SUM(($E$32:$E$81=$CZ74)*($F$32:$F$81=DP$16)*$D$32:$D$81) -> 0 | DQ74: =SUM(($E$32:$E$81=$CZ74)*($F$32:$F$81=DQ$16)*$D$32:$D$81) -> 0 | DR74: =SUM(($E$32:$E$81=$CZ74)*($F$32:$F$81=DR$16)*$D$32:$D$81) -> 0 | DS74: =SUM(($E$32:$E$81=$CZ74)*($F$32:$F$81=DS$16)*$D$32:$D$81) -> 0 | DU74: =$DA$74 -> 0 | DV74: =$DB$74 -> 0 | DW74: =$DC$74 -> 0 | DX74: =$DD$74 -> 120654.8058 | DY74: =$DE$74 -> 0 | DZ74: =$DF$74 -> 0 | EA74: =$DG$74 -> 0 | EB74: =$DH$74 -> 0 | EC74: =$DI$74 -> 0 | EE74: =$DK$74 -> 0 | EF74: =$DL$74 -> 0 | EG74: =$DM$74 -> 0 | EH74: =$DN$74 -> 0 | EI74: =$DO$74 -> 0 | EJ74: =$DP$74 -> 0 | EK74: =$DQ$74 -> 0 | EL74: =$DR$74 -> 0 | EM74: =$DS$74 -> 0
A75: 44 | B75: Expenditure #44 | P75: 0 | Z75: 34 | AA75: Mon 34 | AB75: 31 | AC75: 0.014575 | AD75: 7869.6255 | AE75: 23 | AF75: 0.02040833333 | AG75: 11019.2755 | AK75: 17 | AL75: 0.02040833333 | AM75: 11019.2755 | AQ75: 0 | AR75: 0 | AS75: 0 | AZ75: 5 | BA75: 0.01190833333 | BB75: 4763.333333 | BC75: 32 | BD75: 0.014575 | BE75: 18379.075 | BF75: 17 | BG75: 0.02040833333 | BH75: 25734.90833 | BJ75: 5 | BK75: 0.01190833333 | BL75: 15016.40833 | BM75: 5 | BN75: 0.01190833333 | BO75: 6429.7855 | BP75: 17 | BQ75: 0.02040833333 | BR75: 8163.333333 | BS75: 32 | BT75: 0.014575 | BU75: 5830 | BV75: 11 | BW75: 0.01190833333 | BX75: 6429.7855 | BY75: 0 | BZ75: 0 | CA75: 0 | CB75: 0 | CC75: 0 | CD75: 0 | CE75: 0 | CF75: 0 | CG75: 0 | CH75: 0 | CI75: 0 | CJ75: 0 | CK75: 0 | CL75: 0 | CM75: 0 | CN75: 0 | CO75: 0 | CP75: 0 | CQ75: 0 | CR75: 0 | CS75: 0 | CT75: 0 | CU75: 0 | CV75: 0 | CW75: 0 | CX75: 0 | CY75: 0 | CZ75: 34 | DA75: 0 | DB75: 0 | DC75: 0 | DD75: 120654.8058 | DE75: 0 | DF75: 0 | DG75: 0 | DH75: 0 | DI75: 0 | DK75: =SUM(($E$32:$E$81=$CZ75)*($F$32:$F$81=DK$16)*$D$32:$D$81) -> 0 | DL75: =SUM(($E$32:$E$81=$CZ75)*($F$32:$F$81=DL$16)*($D$32:$D$81)) -> 0 | DM75: =SUM(($E$32:$E$81=$CZ75)*($F$32:$F$81=DM$16)*$D$32:$D$81) -> 0 | DN75: =SUM(($E$32:$E$81=$CZ75)*($F$32:$F$81=DN$16)*$D$32:$D$81) -> 0 | DO75: =SUM(($E$32:$E$81=$CZ75)*($F$32:$F$81=DO$16)*$D$32:$D$81) -> 0 | DP75: =SUM(($E$32:$E$81=$CZ75)*($F$32:$F$81=DP$16)*$D$32:$D$81) -> 0 | DQ75: =SUM(($E$32:$E$81=$CZ75)*($F$32:$F$81=DQ$16)*$D$32:$D$81) -> 0 | DR75: =SUM(($E$32:$E$81=$CZ75)*($F$32:$F$81=DR$16)*$D$32:$D$81) -> 0 | DS75: =SUM(($E$32:$E$81=$CZ75)*($F$32:$F$81=DS$16)*$D$32:$D$81) -> 0 | DU75: =$DA$75 -> 0 | DV75: =$DB$75 -> 0 | DW75: =$DC$75 -> 0 | DX75: =$DD$75 -> 120654.8058 | DY75: =$DE$75 -> 0 | DZ75: =$DF$75 -> 0 | EA75: =$DG$75 -> 0 | EB75: =$DH$75 -> 0 | EC75: =$DI$75 -> 0 | EE75: =$DK$75 -> 0 | EF75: =$DL$75 -> 0 | EG75: =$DM$75 -> 0 | EH75: =$DN$75 -> 0 | EI75: =$DO$75 -> 0 | EJ75: =$DP$75 -> 0 | EK75: =$DQ$75 -> 0 | EL75: =$DR$75 -> 0 | EM75: =$DS$75 -> 0
A76: 45 | B76: Expenditure #45 | P76: 0 | Z76: 35 | AA76: Mon 35 | AB76: 32 | AC76: 0.014575 | AD76: 7869.6255 | AE76: 24 | AF76: 0.02040833333 | AG76: 11019.2755 | AK76: 18 | AL76: 0.02040833333 | AM76: 11019.2755 | AQ76: 0 | AR76: 0 | AS76: 0 | AZ76: 6 | BA76: 0.01190833333 | BB76: 4763.333333 | BC76: 33 | BD76: 0.014575 | BE76: 18379.075 | BF76: 18 | BG76: 0.02040833333 | BH76: 25734.90833 | BJ76: 6 | BK76: 0.01190833333 | BL76: 15016.40833 | BM76: 6 | BN76: 0.01190833333 | BO76: 6429.7855 | BP76: 18 | BQ76: 0.02040833333 | BR76: 8163.333333 | BS76: 33 | BT76: 0.014575 | BU76: 5830 | BV76: 12 | BW76: 0.01190833333 | BX76: 6429.7855 | BY76: 0 | BZ76: 0 | CA76: 0 | CB76: 0 | CC76: 0 | CD76: 0 | CE76: 0 | CF76: 0 | CG76: 0 | CH76: 0 | CI76: 0 | CJ76: 0 | CK76: 0 | CL76: 0 | CM76: 0 | CN76: 0 | CO76: 0 | CP76: 0 | CQ76: 0 | CR76: 0 | CS76: 0 | CT76: 0 | CU76: 0 | CV76: 0 | CW76: 0 | CX76: 0 | CY76: 0 | CZ76: 35 | DA76: 0 | DB76: 0 | DC76: 0 | DD76: 120654.8058 | DE76: 0 | DF76: 0 | DG76: 0 | DH76: 0 | DI76: 0 | DK76: =SUM(($E$32:$E$81=$CZ76)*($F$32:$F$81=DK$16)*$D$32:$D$81) -> 0 | DL76: =SUM(($E$32:$E$81=$CZ76)*($F$32:$F$81=DL$16)*($D$32:$D$81)) -> 0 | DM76: =SUM(($E$32:$E$81=$CZ76)*($F$32:$F$81=DM$16)*$D$32:$D$81) -> 0 | DN76: =SUM(($E$32:$E$81=$CZ76)*($F$32:$F$81=DN$16)*$D$32:$D$81) -> 0 | DO76: =SUM(($E$32:$E$81=$CZ76)*($F$32:$F$81=DO$16)*$D$32:$D$81) -> 0 | DP76: =SUM(($E$32:$E$81=$CZ76)*($F$32:$F$81=DP$16)*$D$32:$D$81) -> 0 | DQ76: =SUM(($E$32:$E$81=$CZ76)*($F$32:$F$81=DQ$16)*$D$32:$D$81) -> 0 | DR76: =SUM(($E$32:$E$81=$CZ76)*($F$32:$F$81=DR$16)*$D$32:$D$81) -> 0 | DS76: =SUM(($E$32:$E$81=$CZ76)*($F$32:$F$81=DS$16)*$D$32:$D$81) -> 0 | DU76: =$DA$76 -> 0 | DV76: =$DB$76 -> 0 | DW76: =$DC$76 -> 0 | DX76: =$DD$76 -> 120654.8058 | DY76: =$DE$76 -> 0 | DZ76: =$DF$76 -> 0 | EA76: =$DG$76 -> 0 | EB76: =$DH$76 -> 0 | EC76: =$DI$76 -> 0 | EE76: =$DK$76 -> 0 | EF76: =$DL$76 -> 0 | EG76: =$DM$76 -> 0 | EH76: =$DN$76 -> 0 | EI76: =$DO$76 -> 0 | EJ76: =$DP$76 -> 0 | EK76: =$DQ$76 -> 0 | EL76: =$DR$76 -> 0 | EM76: =$DS$76 -> 0
A77: 46 | B77: Expenditure #46 | P77: 0 | Z77: 36 | AA77: Mon 36 | AB77: 33 | AC77: 0.014575 | AD77: 7869.6255 | AE77: 25 | AF77: 0.014575 | AG77: 7869.6255 | AK77: 19 | AL77: 0.02040833333 | AM77: 11019.2755 | AQ77: 1 | AR77: 0.01190833333 | AS77: 6429.7855 | AZ77: 7 | BA77: 0.01190833333 | BB77: 4763.333333 | BC77: 34 | BD77: 0.014575 | BE77: 18379.075 | BF77: 19 | BG77: 0.02040833333 | BH77: 25734.90833 | BJ77: 7 | BK77: 0.01190833333 | BL77: 15016.40833 | BM77: 7 | BN77: 0.01190833333 | BO77: 6429.7855 | BP77: 19 | BQ77: 0.02040833333 | BR77: 8163.333333 | BS77: 34 | BT77: 0.014575 | BU77: 5830 | BV77: 13 | BW77: 0.02040833333 | BX77: 11019.2755 | BY77: 0 | BZ77: 0 | CA77: 0 | CB77: 0 | CC77: 0 | CD77: 0 | CE77: 0 | CF77: 0 | CG77: 0 | CH77: 0 | CI77: 0 | CJ77: 0 | CK77: 0 | CL77: 0 | CM77: 0 | CN77: 0 | CO77: 0 | CP77: 0 | CQ77: 0 | CR77: 0 | CS77: 0 | CT77: 0 | CU77: 0 | CV77: 0 | CW77: 0 | CX77: 0 | CY77: 0 | CZ77: 36 | DA77: 0 | DB77: 0 | DC77: 0 | DD77: 128524.4313 | DE77: 0 | DF77: 0 | DG77: 0 | DH77: 0 | DI77: 0 | DK77: =SUM(($E$32:$E$81=$CZ77)*($F$32:$F$81=DK$16)*$D$32:$D$81) -> 0 | DL77: =SUM(($E$32:$E$81=$CZ77)*($F$32:$F$81=DL$16)*($D$32:$D$81)) -> 0 | DM77: =SUM(($E$32:$E$81=$CZ77)*($F$32:$F$81=DM$16)*$D$32:$D$81) -> 0 | DN77: =SUM(($E$32:$E$81=$CZ77)*($F$32:$F$81=DN$16)*$D$32:$D$81) -> 539940 | DO77: =SUM(($E$32:$E$81=$CZ77)*($F$32:$F$81=DO$16)*$D$32:$D$81) -> 0 | DP77: =SUM(($E$32:$E$81=$CZ77)*($F$32:$F$81=DP$16)*$D$32:$D$81) -> 0 | DQ77: =SUM(($E$32:$E$81=$CZ77)*($F$32:$F$81=DQ$16)*$D$32:$D$81) -> 0 | DR77: =SUM(($E$32:$E$81=$CZ77)*($F$32:$F$81=DR$16)*$D$32:$D$81) -> 0 | DS77: =SUM(($E$32:$E$81=$CZ77)*($F$32:$F$81=DS$16)*$D$32:$D$81) -> 0 | DU77: =$DA$77 -> 0 | DV77: =$DB$77 -> 0 | DW77: =$DC$77 -> 0 | DX77: =$DD$77 -> 128524.4313 | DY77: =$DE$77 -> 0 | DZ77: =$DF$77 -> 0 | EA77: =$DG$77 -> 0 | EB77: =$DH$77 -> 0 | EC77: =$DI$77 -> 0 | EE77: =$DK$77 -> 0 | EF77: =$DL$77 -> 0 | EG77: =$DM$77 -> 0 | EH77: =$DN$77 -> 539940 | EI77: =$DO$77 -> 0 | EJ77: =$DP$77 -> 0 | EK77: =$DQ$77 -> 0 | EL77: =$DR$77 -> 0 | EM77: =$DS$77 -> 0
A78: 47 | B78: Expenditure #47 | P78: 0 | Z78: 37 | AA78: Mon 37 | AB78: 34 | AC78: 0.014575 | AD78: 7869.6255 | AE78: 26 | AF78: 0.014575 | AG78: 7869.6255 | AK78: 20 | AL78: 0.02040833333 | AM78: 11019.2755 | AQ78: 2 | AR78: 0.01190833333 | AS78: 6429.7855 | AZ78: 8 | BA78: 0.01190833333 | BB78: 4763.333333 | BC78: 35 | BD78: 0.014575 | BE78: 18379.075 | BF78: 20 | BG78: 0.02040833333 | BH78: 25734.90833 | BJ78: 8 | BK78: 0.01190833333 | BL78: 15016.40833 | BM78: 8 | BN78: 0.01190833333 | BO78: 6429.7855 | BP78: 20 | BQ78: 0.02040833333 | BR78: 8163.333333 | BS78: 35 | BT78: 0.014575 | BU78: 5830 | BV78: 14 | BW78: 0.02040833333 | BX78: 11019.2755 | BY78: 0 | BZ78: 0 | CA78: 0 | CB78: 0 | CC78: 0 | CD78: 0 | CE78: 0 | CF78: 0 | CG78: 0 | CH78: 0 | CI78: 0 | CJ78: 0 | CK78: 0 | CL78: 0 | CM78: 0 | CN78: 0 | CO78: 0 | CP78: 0 | CQ78: 0 | CR78: 0 | CS78: 0 | CT78: 0 | CU78: 0 | CV78: 0 | CW78: 0 | CX78: 0 | CY78: 0 | CZ78: 37 | DA78: 0 | DB78: =SUMIF($AD$12:$CY$12,DB$16,$AD78:$CY78) -> 0 | DC78: 0 | DD78: 128524.4313 | DE78: 0 | DF78: 0 | DG78: 0 | DH78: 0 | DI78: 0 | DK78: =SUM(($E$32:$E$81=$CZ78)*($F$32:$F$81=DK$16)*$D$32:$D$81) -> 0 | DL78: =SUM(($E$32:$E$81=$CZ78)*($F$32:$F$81=DL$16)*($D$32:$D$81)) -> 0 | DM78: =SUM(($E$32:$E$81=$CZ78)*($F$32:$F$81=DM$16)*$D$32:$D$81) -> 0 | DN78: =SUM(($E$32:$E$81=$CZ78)*($F$32:$F$81=DN$16)*$D$32:$D$81) -> 0 | DO78: =SUM(($E$32:$E$81=$CZ78)*($F$32:$F$81=DO$16)*$D$32:$D$81) -> 0 | DP78: =SUM(($E$32:$E$81=$CZ78)*($F$32:$F$81=DP$16)*$D$32:$D$81) -> 0 | DQ78: =SUM(($E$32:$E$81=$CZ78)*($F$32:$F$81=DQ$16)*$D$32:$D$81) -> 0 | DR78: =SUM(($E$32:$E$81=$CZ78)*($F$32:$F$81=DR$16)*$D$32:$D$81) -> 0 | DS78: =SUM(($E$32:$E$81=$CZ78)*($F$32:$F$81=DS$16)*$D$32:$D$81) -> 0 | DU78: =$DA$78 -> 0 | DV78: =$DB$78 -> 0 | DW78: =$DC$78 -> 0 | DX78: =$DD$78 -> 128524.4313 | DY78: =$DE$78 -> 0 | DZ78: =$DF$78 -> 0 | EA78: =$DG$78 -> 0 | EB78: =$DH$78 -> 0 | EC78: =$DI$78 -> 0 | EE78: =$DK$78 -> 0 | EF78: =$DL$78 -> 0 | EG78: =$DM$78 -> 0 | EH78: =$DN$78 -> 0 | EI78: =$DO$78 -> 0 | EJ78: =$DP$78 -> 0 | EK78: =$DQ$78 -> 0 | EL78: =$DR$78 -> 0 | EM78: =$DS$78 -> 0
A79: 48 | B79: Expenditure #48 | P79: 0 | Z79: 38 | AA79: Mon 38 | AB79: 35 | AC79: 0.014575 | AD79: 7869.6255 | AE79: 27 | AF79: 0.014575 | AG79: 7869.6255 | AK79: 21 | AL79: 0.02040833333 | AM79: 11019.2755 | AQ79: 3 | AR79: 0.01190833333 | AS79: 6429.7855 | AZ79: 9 | BA79: 0.01190833333 | BB79: 4763.333333 | BC79: 36 | BD79: 0.014575 | BE79: 18379.075 | BF79: 21 | BG79: 0.02040833333 | BH79: 25734.90833 | BJ79: 9 | BK79: 0.01190833333 | BL79: 15016.40833 | BM79: 9 | BN79: 0.01190833333 | BO79: 6429.7855 | BP79: 21 | BQ79: 0.02040833333 | BR79: 8163.333333 | BS79: 36 | BT79: 0.014575 | BU79: 5830 | BV79: 15 | BW79: 0.02040833333 | BX79: 11019.2755 | BY79: 0 | BZ79: 0 | CA79: 0 | CB79: 0 | CC79: 0 | CD79: 0 | CE79: 0 | CF79: 0 | CG79: 0 | CH79: 0 | CI79: 0 | CJ79: 0 | CK79: 0 | CL79: 0 | CM79: 0 | CN79: 0 | CO79: 0 | CP79: 0 | CQ79: 0 | CR79: 0 | CS79: 0 | CT79: 0 | CU79: 0 | CV79: 0 | CW79: 0 | CX79: 0 | CY79: 0 | CZ79: 38 | DA79: 0 | DB79: 0 | DC79: 0 | DD79: 128524.4313 | DE79: 0 | DF79: 0 | DG79: 0 | DH79: 0 | DI79: 0 | DK79: =SUM(($E$32:$E$81=$CZ79)*($F$32:$F$81=DK$16)*$D$32:$D$81) -> 0 | DL79: =SUM(($E$32:$E$81=$CZ79)*($F$32:$F$81=DL$16)*($D$32:$D$81)) -> 0 | DM79: =SUM(($E$32:$E$81=$CZ79)*($F$32:$F$81=DM$16)*$D$32:$D$81) -> 0 | DN79: =SUM(($E$32:$E$81=$CZ79)*($F$32:$F$81=DN$16)*$D$32:$D$81) -> 0 | DO79: =SUM(($E$32:$E$81=$CZ79)*($F$32:$F$81=DO$16)*$D$32:$D$81) -> 0 | DP79: =SUM(($E$32:$E$81=$CZ79)*($F$32:$F$81=DP$16)*$D$32:$D$81) -> 0 | DQ79: =SUM(($E$32:$E$81=$CZ79)*($F$32:$F$81=DQ$16)*$D$32:$D$81) -> 0 | DR79: =SUM(($E$32:$E$81=$CZ79)*($F$32:$F$81=DR$16)*$D$32:$D$81) -> 0 | DS79: =SUM(($E$32:$E$81=$CZ79)*($F$32:$F$81=DS$16)*$D$32:$D$81) -> 0 | DU79: =$DA$79 -> 0 | DV79: =$DB$79 -> 0 | DW79: =$DC$79 -> 0 | DX79: =$DD$79 -> 128524.4313 | DY79: =$DE$79 -> 0 | DZ79: =$DF$79 -> 0 | EA79: =$DG$79 -> 0 | EB79: =$DH$79 -> 0 | EC79: =$DI$79 -> 0 | EE79: =$DK$79 -> 0 | EF79: =$DL$79 -> 0 | EG79: =$DM$79 -> 0 | EH79: =$DN$79 -> 0 | EI79: =$DO$79 -> 0 | EJ79: =$DP$79 -> 0 | EK79: =$DQ$79 -> 0 | EL79: =$DR$79 -> 0 | EM79: =$DS$79 -> 0
A80: 49 | B80: Expenditure #49 | P80: 0 | Z80: 39 | AA80: Mon 39 | AB80: 36 | AC80: 0.014575 | AD80: 7869.6255 | AE80: 28 | AF80: 0.014575 | AG80: 7869.6255 | AK80: 22 | AL80: 0.02040833333 | AM80: 11019.2755 | AQ80: 4 | AR80: 0.01190833333 | AS80: 6429.7855 | AZ80: 10 | BA80: 0.01190833333 | BB80: 4763.333333 | BC80: 37 | BD80: 0.01040833333 | BE80: 13124.90833 | BF80: 22 | BG80: 0.02040833333 | BH80: 25734.90833 | BJ80: 10 | BK80: 0.01190833333 | BL80: 15016.40833 | BM80: 10 | BN80: 0.01190833333 | BO80: 6429.7855 | BP80: 22 | BQ80: 0.02040833333 | BR80: 8163.333333 | BS80: 37 | BT80: 0.01040833333 | BU80: 4163.333333 | BV80: 16 | BW80: 0.02040833333 | BX80: 11019.2755 | BY80: 0 | BZ80: 0 | CA80: 0 | CB80: 0 | CC80: 0 | CD80: 0 | CE80: 0 | CF80: 0 | CG80: 0 | CH80: 0 | CI80: 0 | CJ80: 0 | CK80: 0 | CL80: 0 | CM80: 0 | CN80: 0 | CO80: 0 | CP80: 0 | CQ80: 0 | CR80: 0 | CS80: 0 | CT80: 0 | CU80: 0 | CV80: 0 | CW80: 0 | CX80: 0 | CY80: 0 | CZ80: 39 | DA80: 0 | DB80: 0 | DC80: 0 | DD80: 121603.598 | DE80: 0 | DF80: 0 | DG80: 0 | DH80: 0 | DI80: 0 | DK80: =SUM(($E$32:$E$81=$CZ80)*($F$32:$F$81=DK$16)*$D$32:$D$81) -> 0 | DL80: =SUM(($E$32:$E$81=$CZ80)*($F$32:$F$81=DL$16)*($D$32:$D$81)) -> 0 | DM80: =SUM(($E$32:$E$81=$CZ80)*($F$32:$F$81=DM$16)*$D$32:$D$81) -> 0 | DN80: =SUM(($E$32:$E$81=$CZ80)*($F$32:$F$81=DN$16)*$D$32:$D$81) -> 0 | DO80: =SUM(($E$32:$E$81=$CZ80)*($F$32:$F$81=DO$16)*$D$32:$D$81) -> 0 | DP80: =SUM(($E$32:$E$81=$CZ80)*($F$32:$F$81=DP$16)*$D$32:$D$81) -> 0 | DQ80: =SUM(($E$32:$E$81=$CZ80)*($F$32:$F$81=DQ$16)*$D$32:$D$81) -> 0 | DR80: =SUM(($E$32:$E$81=$CZ80)*($F$32:$F$81=DR$16)*$D$32:$D$81) -> 0 | DS80: =SUM(($E$32:$E$81=$CZ80)*($F$32:$F$81=DS$16)*$D$32:$D$81) -> 0 | DU80: =$DA$80 -> 0 | DV80: =$DB$80 -> 0 | DW80: =$DC$80 -> 0 | DX80: =$DD$80 -> 121603.598 | DY80: =$DE$80 -> 0 | DZ80: =$DF$80 -> 0 | EA80: =$DG$80 -> 0 | EB80: =$DH$80 -> 0 | EC80: =$DI$80 -> 0 | EE80: =$DK$80 -> 0 | EF80: =$DL$80 -> 0 | EG80: =$DM$80 -> 0 | EH80: =$DN$80 -> 0 | EI80: =$DO$80 -> 0 | EJ80: =$DP$80 -> 0 | EK80: =$DQ$80 -> 0 | EL80: =$DR$80 -> 0 | EM80: =$DS$80 -> 0
A81: 50 | B81: Expenditure #50 | P81: 0 | Z81: 40 | AA81: Mon 40 | AB81: 37 | AC81: 0.01040833333 | AD81: 5619.8755 | AE81: 29 | AF81: 0.014575 | AG81: 7869.6255 | AK81: 23 | AL81: 0.02040833333 | AM81: 11019.2755 | AQ81: 5 | AR81: 0.01190833333 | AS81: 6429.7855 | AZ81: 11 | BA81: 0.01190833333 | BB81: 4763.333333 | BC81: 38 | BD81: 0.01040833333 | BE81: 13124.90833 | BF81: 23 | BG81: 0.02040833333 | BH81: 25734.90833 | BJ81: 11 | BK81: 0.01190833333 | BL81: 15016.40833 | BM81: 11 | BN81: 0.01190833333 | BO81: 6429.7855 | BP81: 23 | BQ81: 0.02040833333 | BR81: 8163.333333 | BS81: 38 | BT81: 0.01040833333 | BU81: 4163.333333 | BV81: 17 | BW81: 0.02040833333 | BX81: 11019.2755 | BY81: 0 | BZ81: 0 | CA81: 0 | CB81: 0 | CC81: 0 | CD81: 0 | CE81: 0 | CF81: 0 | CG81: 0 | CH81: 0 | CI81: 0 | CJ81: 0 | CK81: 0 | CL81: 0 | CM81: 0 | CN81: 0 | CO81: 0 | CP81: 0 | CQ81: 0 | CR81: 0 | CS81: 0 | CT81: 0 | CU81: 0 | CV81: 0 | CW81: 0 | CX81: 0 | CY81: 0 | CZ81: 40 | DA81: 0 | DB81: 0 | DC81: 0 | DD81: 119353.848 | DE81: 0 | DF81: 0 | DG81: 0 | DH81: 0 | DI81: 0 | DK81: =SUM(($E$32:$E$81=$CZ81)*($F$32:$F$81=DK$16)*$D$32:$D$81) -> 0 | DL81: =SUM(($E$32:$E$81=$CZ81)*($F$32:$F$81=DL$16)*($D$32:$D$81)) -> 0 | DM81: =SUM(($E$32:$E$81=$CZ81)*($F$32:$F$81=DM$16)*$D$32:$D$81) -> 0 | DN81: =SUM(($E$32:$E$81=$CZ81)*($F$32:$F$81=DN$16)*$D$32:$D$81) -> 0 | DO81: =SUM(($E$32:$E$81=$CZ81)*($F$32:$F$81=DO$16)*$D$32:$D$81) -> 0 | DP81: =SUM(($E$32:$E$81=$CZ81)*($F$32:$F$81=DP$16)*$D$32:$D$81) -> 0 | DQ81: =SUM(($E$32:$E$81=$CZ81)*($F$32:$F$81=DQ$16)*$D$32:$D$81) -> 0 | DR81: =SUM(($E$32:$E$81=$CZ81)*($F$32:$F$81=DR$16)*$D$32:$D$81) -> 0 | DS81: =SUM(($E$32:$E$81=$CZ81)*($F$32:$F$81=DS$16)*$D$32:$D$81) -> 0 | DU81: =$DA$81 -> 0 | DV81: =$DB$81 -> 0 | DW81: =$DC$81 -> 0 | DX81: =$DD$81 -> 119353.848 | DY81: =$DE$81 -> 0 | DZ81: =$DF$81 -> 0 | EA81: =$DG$81 -> 0 | EB81: =$DH$81 -> 0 | EC81: =$DI$81 -> 0 | EE81: =$DK$81 -> 0 | EF81: =$DL$81 -> 0 | EG81: =$DM$81 -> 0 | EH81: =$DN$81 -> 0 | EI81: =$DO$81 -> 0 | EJ81: =$DP$81 -> 0 | EK81: =$DQ$81 -> 0 | EL81: =$DR$81 -> 0 | EM81: =$DS$81 -> 0
P82: =SUM(P32:P81)+P96 -> 16 | Z82: 41 | AA82: Mon 41 | AB82: =IF(OR($Z82<AD$11,$Z82>=AD$11+AD$15,AD$10=0,AD$11=0,AD$12=0,AD$14=0),0,IF(AB81>0,AB81+1,1)) -> 38 | AC82: =IF(AB82=0,0,IF(AD$13=$Z$1,VLOOKUP(AB82,$AI$109:$AQ$168,AD$16),1/AD$14)) -> 0.01040833333 | AD82: =AD$10*AC82 -> 5619.8755 | AE82: =IF(OR($Z82<AG$11,$Z82>=AG$11+AG$15,AG$10=0,AG$11=0,AG$12=0,AG$14=0),0,IF(AE81>0,AE81+1,1)) -> 30 | AF82: =IF(AE82=0,0,IF(AG$13=$Z$1,VLOOKUP(AE82,$AI$109:$AQ$168,AG$16),1/AG$14)) -> 0.014575 | AG82: =AG$10*AF82 -> 7869.6255 | AH82: =IF(OR($Z82<AJ$11,$Z82>=AJ$11+AJ$15,AJ$10=0,AJ$11=0,AJ$12=0,AJ$14=0),0,IF(AH81>0,AH81+1,1)) ->  | AI82: =IF(AH82=0,0,IF(AJ$13=$Z$1,VLOOKUP(AH82,$AI$109:$AQ$168,AJ$16),1/AJ$14)) ->  | AJ82: =AJ$10*AI82 ->  | AK82: =IF(OR($Z82<AM$11,$Z82>=AM$11+AM$15,AM$10=0,AM$11=0,AM$12=0,AM$14=0),0,IF(AK81>0,AK81+1,1)) -> 24 | AL82: =IF(AK82=0,0,IF(AM$13=$Z$1,VLOOKUP(AK82,$AI$109:$AQ$168,AM$16),1/AM$14)) -> 0.02040833333 | AM82: =AM$10*AL82 -> 11019.2755 | AN82: =IF(OR($Z82<AP$11,$Z82>=AP$11+AP$15,AP$10=0,AP$11=0,AP$12=0,AP$14=0),0,IF(AN81>0,AN81+1,1)) ->  | AO82: =IF(AN82=0,0,IF(AP$13=$Z$1,VLOOKUP(AN82,$AI$109:$AQ$168,AP$16),1/AP$14)) ->  | AP82: =AP$10*AO82 ->  | AQ82: =IF(OR($Z82<AS$11,$Z82>=AS$11+AS$15,AS$10=0,AS$11=0,AS$12=0,AS$14=0),0,IF(AQ81>0,AQ81+1,1)) -> 6 | AR82: =IF(AQ82=0,0,IF(AS$13=$Z$1,VLOOKUP(AQ82,$AI$109:$AQ$168,AS$16),1/AS$14)) -> 0.01190833333 | AS82: =AS$10*AR82 -> 6429.7855 | AT82: =IF(OR($Z82<AV$11,$Z82>=AV$11+AV$15,AV$10=0,AV$11=0,AV$12=0,AV$14=0),0,IF(AT81>0,AT81+1,1)) ->  | AU82: =IF(AT82=0,0,IF(AV$13=$Z$1,VLOOKUP(AT82,$AI$109:$AQ$168,AV$16),1/AV$14)) ->  | AV82: =AV$10*AU82 ->  | AW82: =IF(OR($Z82<AY$11,$Z82>=AY$11+AY$15,AY$10=0,AY$11=0,AY$12=0,AY$14=0),0,IF(AW81>0,AW81+1,1)) ->  | AX82: =IF(AW82=0,0,IF(AY$13=$Z$1,VLOOKUP(AW82,$AI$109:$AQ$168,AY$16),1/AY$14)) ->  | AY82: =AY$10*AX82 ->  | AZ82: =IF(OR($Z82<BB$11,$Z82>=BB$11+BB$15,BB$10=0,BB$11=0,BB$12=0,BB$14=0),0,IF(AZ81>0,AZ81+1,1)) -> 12 | BA82: =IF(AZ82=0,0,IF(BB$13=$Z$1,VLOOKUP(AZ82,$AI$109:$AQ$168,BB$16),1/BB$14)) -> 0.01190833333 | BB82: =BB$10*BA82 -> 4763.333333 | BC82: =IF(OR($Z82<BE$11,$Z82>=BE$11+BE$15,BE$10=0,BE$11=0,BE$12=0,BE$14=0),0,IF(BC81>0,BC81+1,1)) -> 39 | BD82: =IF(BC82=0,0,IF(BE$13=$Z$1,VLOOKUP(BC82,$AI$109:$AQ$168,BE$16),1/BE$14)) -> 0.01040833333 | BE82: =BE$10*BD82 -> 13124.90833 | BF82: =IF(OR($Z82<BH$11,$Z82>=BH$11+BH$15,BH$10=0,BH$11=0,BH$12=0,BH$14=0),0,IF(BF81>0,BF81+1,1)) -> 24 | BG82: =IF(BF82=0,0,IF(BH$13=$Z$1,VLOOKUP(BF82,$AI$109:$AQ$168,BH$16),1/BH$14)) -> 0.02040833333 | BH82: =BH$10*BG82 -> 25734.90833 | BJ82: =IF(OR($Z82<BL$11,$Z82>=BL$11+BL$15,BL$10=0,BL$11=0,BL$12=0,BL$14=0),0,IF(BJ81>0,BJ81+1,1)) -> 12 | BK82: =IF(BJ82=0,0,IF(BL$13=$Z$1,VLOOKUP(BJ82,$AI$109:$AQ$168,BL$16),1/BL$14)) -> 0.01190833333 | BL82: =BL$10*BK82 -> 15016.40833 | BM82: =IF(OR($Z82<BO$11,$Z82>=BO$11+BO$15,BO$10=0,BO$11=0,BO$12=0,BO$14=0),0,IF(BM81>0,BM81+1,1)) -> 12 | BN82: =IF(BM82=0,0,IF(BO$13=$Z$1,VLOOKUP(BM82,$AI$109:$AQ$168,BO$16),1/BO$14)) -> 0.01190833333 | BO82: =BO$10*BN82 -> 6429.7855 | BP82: =IF(OR($Z82<BR$11,$Z82>=BR$11+BR$15,BR$10=0,BR$11=0,BR$12=0,BR$14=0),0,IF(BP81>0,BP81+1,1)) -> 24 | BQ82: =IF(BP82=0,0,IF(BR$13=$Z$1,VLOOKUP(BP82,$AI$109:$AQ$168,BR$16),1/BR$14)) -> 0.02040833333 | BR82: =BR$10*BQ82 -> 8163.333333 | BS82: =IF(OR($Z82<BU$11,$Z82>=BU$11+BU$15,BU$10=0,BU$11=0,BU$12=0,BU$14=0),0,IF(BS81>0,BS81+1,1)) -> 39 | BT82: =IF(BS82=0,0,IF(BU$13=$Z$1,VLOOKUP(BS82,$AI$109:$AQ$168,BU$16),1/BU$14)) -> 0.01040833333 | BU82: =BU$10*BT82 -> 4163.333333 | BV82: =IF(OR($Z82<BX$11,$Z82>=BX$11+BX$15,BX$10=0,BX$11=0,BX$12=0,BX$14=0),0,IF(BV81>0,BV81+1,1)) -> 18 | BW82: =IF(BV82=0,0,IF(BX$13=$Z$1,VLOOKUP(BV82,$AI$109:$AQ$168,BX$16),1/BX$14)) -> 0.02040833333 | BX82: =BX$10*BW82 -> 11019.2755 | BY82: =IF(OR($Z82<CA$11,$Z82>=CA$11+CA$15,CA$10=0,CA$11=0,CA$12=0,CA$14=0),0,IF(BY81>0,BY81+1,1)) -> 0 | BZ82: =IF(BY82=0,0,IF(CA$13=$Z$1,VLOOKUP(BY82,$AI$109:$AQ$168,CA$16),1/CA$14)) -> 0 | CA82: =CA$10*BZ82 -> 0 | CB82: =IF(OR($Z82<CD$11,$Z82>=CD$11+CD$15,CD$10=0,CD$11=0,CD$12=0,CD$14=0),0,IF(CB81>0,CB81+1,1)) -> 0 | CC82: =IF(CB82=0,0,IF(CD$13=$Z$1,VLOOKUP(CB82,$AI$109:$AQ$168,CD$16),1/CD$14)) -> 0 | CD82: =CD$10*CC82 -> 0 | CE82: =IF(OR($Z82<CG$11,$Z82>=CG$11+CG$15,CG$10=0,CG$11=0,CG$12=0,CG$14=0),0,IF(CE81>0,CE81+1,1)) -> 0 | CF82: =IF(CE82=0,0,IF(CG$13=$Z$1,VLOOKUP(CE82,$AI$109:$AQ$168,CG$16),1/CG$14)) -> 0 | CG82: =CG$10*CF82 -> 0 | CH82: =IF(OR($Z82<CJ$11,$Z82>=CJ$11+CJ$15,CJ$10=0,CJ$11=0,CJ$12=0,CJ$14=0),0,IF(CH81>0,CH81+1,1)) -> 0 | CI82: =IF(CH82=0,0,IF(CJ$13=$Z$1,VLOOKUP(CH82,$AI$109:$AQ$168,CJ$16),1/CJ$14)) -> 0 | CJ82: =CJ$10*CI82 -> 0 | CK82: =IF(OR($Z82<CM$11,$Z82>=CM$11+CM$15,CM$10=0,CM$11=0,CM$12=0,CM$14=0),0,IF(CK81>0,CK81+1,1)) -> 0 | CL82: =IF(CK82=0,0,IF(CM$13=$Z$1,VLOOKUP(CK82,$AI$109:$AQ$168,CM$16),1/CM$14)) -> 0 | CM82: =CM$10*CL82 -> 0 | CN82: =IF(OR($Z82<CP$11,$Z82>=CP$11+CP$15,CP$10=0,CP$11=0,CP$12=0,CP$14=0),0,IF(CN81>0,CN81+1,1)) -> 0 | CO82: =IF(CN82=0,0,IF(CP$13=$Z$1,VLOOKUP(CN82,$AI$109:$AQ$168,CP$16),1/CP$14)) -> 0 | CP82: =CP$10*CO82 -> 0 | CQ82: =IF(OR($Z82<CS$11,$Z82>=CS$11+CS$15,CS$10=0,CS$11=0,CS$12=0,CS$14=0),0,IF(CQ81>0,CQ81+1,1)) -> 0 | CR82: =IF(CQ82=0,0,IF(CS$13=$Z$1,VLOOKUP(CQ82,$AI$109:$AQ$168,CS$16),1/CS$14)) -> 0 | CS82: =CS$10*CR82 -> 0 | CT82: =IF(OR($Z82<CV$11,$Z82>=CV$11+CV$15,CV$10=0,CV$11=0,CV$12=0,CV$14=0),0,IF(CT81>0,CT81+1,1)) -> 0 | CU82: =IF(CT82=0,0,IF(CV$13=$Z$1,VLOOKUP(CT82,$AI$109:$AQ$168,CV$16),1/CV$14)) -> 0 | CV82: =CV$10*CU82 -> 0 | CW82: =IF(OR($Z82<CY$11,$Z82>=CY$11+CY$15,CY$10=0,CY$11=0,CY$12=0,CY$14=0),0,IF(CW81>0,CW81+1,1)) -> 0 | CX82: =IF(CW82=0,0,IF(CY$13=$Z$1,VLOOKUP(CW82,$AI$109:$AQ$168,CY$16),1/CY$14)) -> 0 | CY82: =CY$10*CX82 -> 0 | CZ82: 41 | DA82: 0 | DB82: 0 | DC82: 0 | DD82: 119353.848 | DE82: 0 | DF82: 0 | DG82: 0 | DH82: 0 | DI82: 0 | DK82: =SUM(($E$32:$E$81=$CZ82)*($F$32:$F$81=DK$16)*$D$32:$D$81) -> 0 | DL82: =SUM(($E$32:$E$81=$CZ82)*($F$32:$F$81=DL$16)*($D$32:$D$81)) -> 0 | DM82: =SUM(($E$32:$E$81=$CZ82)*($F$32:$F$81=DM$16)*$D$32:$D$81) -> 0 | DN82: =SUM(($E$32:$E$81=$CZ82)*($F$32:$F$81=DN$16)*$D$32:$D$81) -> 0 | DO82: =SUM(($E$32:$E$81=$CZ82)*($F$32:$F$81=DO$16)*$D$32:$D$81) -> 0 | DP82: =SUM(($E$32:$E$81=$CZ82)*($F$32:$F$81=DP$16)*$D$32:$D$81) -> 0 | DQ82: =SUM(($E$32:$E$81=$CZ82)*($F$32:$F$81=DQ$16)*$D$32:$D$81) -> 0 | DR82: =SUM(($E$32:$E$81=$CZ82)*($F$32:$F$81=DR$16)*$D$32:$D$81) -> 0 | DS82: =SUM(($E$32:$E$81=$CZ82)*($F$32:$F$81=DS$16)*$D$32:$D$81) -> 0 | DU82: =$DA$82 -> 0 | DV82: =$DB$82 -> 0 | DW82: =$DC$82 -> 0 | DX82: =$DD$82 -> 119353.848 | DY82: =$DE$82 -> 0 | DZ82: =$DF$82 -> 0 | EA82: =$DG$82 -> 0 | EB82: =$DH$82 -> 0 | EC82: =$DI$82 -> 0 | EE82: =$DK$82 -> 0 | EF82: =$DL$82 -> 0 | EG82: =$DM$82 -> 0 | EH82: =$DN$82 -> 0 | EI82: =$DO$82 -> 0 | EJ82: =$DP$82 -> 0 | EK82: =$DQ$82 -> 0 | EL82: =$DR$82 -> 0 | EM82: =$DS$82 -> 0
N83: =1/0 ->  | Z83: 42 | AA83: Mon 42 | AB83: 39 | AC83: 0.01040833333 | AD83: 5619.8755 | AE83: 31 | AF83: 0.014575 | AG83: 7869.6255 | AK83: 25 | AL83: 0.014575 | AM83: 7869.6255 | AQ83: 7 | AR83: 0.01190833333 | AS83: 6429.7855 | AZ83: 13 | BA83: 0.02040833333 | BB83: 8163.333333 | BC83: 40 | BD83: 0.01040833333 | BE83: 13124.90833 | BF83: 25 | BG83: 0.014575 | BH83: 18379.075 | BJ83: 13 | BK83: 0.02040833333 | BL83: 25734.90833 | BM83: 13 | BN83: 0.02040833333 | BO83: 11019.2755 | BP83: 25 | BQ83: 0.014575 | BR83: 5830 | BS83: 40 | BT83: 0.01040833333 | BU83: 4163.333333 | BV83: 19 | BW83: 0.02040833333 | BX83: 11019.2755 | BY83: 0 | BZ83: 0 | CA83: 0 | CB83: 0 | CC83: 0 | CD83: 0 | CE83: 0 | CF83: 0 | CG83: 0 | CH83: 0 | CI83: 0 | CJ83: 0 | CK83: 0 | CL83: 0 | CM83: 0 | CN83: 0 | CO83: 0 | CP83: 0 | CQ83: 0 | CR83: 0 | CS83: 0 | CT83: 0 | CU83: 0 | CV83: 0 | CW83: 0 | CX83: 0 | CY83: 0 | CZ83: 42 | DA83: 0 | DB83: 0 | DC83: 0 | DD83: 125223.0213 | DE83: 0 | DF83: 0 | DG83: 0 | DH83: 0 | DI83: 0 | DK83: =SUM(($E$32:$E$81=$CZ83)*($F$32:$F$81=DK$16)*$D$32:$D$81) -> 0 | DL83: =SUM(($E$32:$E$81=$CZ83)*($F$32:$F$81=DL$16)*($D$32:$D$81)) -> 0 | DM83: =SUM(($E$32:$E$81=$CZ83)*($F$32:$F$81=DM$16)*$D$32:$D$81) -> 0 | DN83: =SUM(($E$32:$E$81=$CZ83)*($F$32:$F$81=DN$16)*$D$32:$D$81) -> 0 | DO83: =SUM(($E$32:$E$81=$CZ83)*($F$32:$F$81=DO$16)*$D$32:$D$81) -> 0 | DP83: =SUM(($E$32:$E$81=$CZ83)*($F$32:$F$81=DP$16)*$D$32:$D$81) -> 0 | DQ83: =SUM(($E$32:$E$81=$CZ83)*($F$32:$F$81=DQ$16)*$D$32:$D$81) -> 0 | DR83: =SUM(($E$32:$E$81=$CZ83)*($F$32:$F$81=DR$16)*$D$32:$D$81) -> 0 | DS83: =SUM(($E$32:$E$81=$CZ83)*($F$32:$F$81=DS$16)*$D$32:$D$81) -> 0 | DU83: =$DA$83 -> 0 | DV83: =$DB$83 -> 0 | DW83: =$DC$83 -> 0 | DX83: =$DD$83 -> 125223.0213 | DY83: =$DE$83 -> 0 | DZ83: =$DF$83 -> 0 | EA83: =$DG$83 -> 0 | EB83: =$DH$83 -> 0 | EC83: =$DI$83 -> 0 | EE83: =$DK$83 -> 0 | EF83: =$DL$83 -> 0 | EG83: =$DM$83 -> 0 | EH83: =$DN$83 -> 0 | EI83: =$DO$83 -> 0 | EJ83: =$DP$83 -> 0 | EK83: =$DQ$83 -> 0 | EL83: =$DR$83 -> 0 | EM83: =$DS$83 -> 0
C84: =IF(COUNTIF(E32:E81,"<0")>0,"(With a prior period entry, you need to enter information on Historicals)","") ->  | Z84: 43 | AA84: Mon 43 | AB84: 40 | AC84: 0.01040833333 | AD84: 5619.8755 | AE84: 32 | AF84: 0.014575 | AG84: 7869.6255 | AK84: 26 | AL84: 0.014575 | AM84: 7869.6255 | AQ84: 8 | AR84: 0.01190833333 | AS84: 6429.7855 | AZ84: 14 | BA84: 0.02040833333 | BB84: 8163.333333 | BC84: 41 | BD84: 0.01040833333 | BE84: 13124.90833 | BF84: 26 | BG84: 0.014575 | BH84: 18379.075 | BJ84: 14 | BK84: 0.02040833333 | BL84: 25734.90833 | BM84: 14 | BN84: 0.02040833333 | BO84: 11019.2755 | BP84: 26 | BQ84: 0.014575 | BR84: 5830 | BS84: 41 | BT84: 0.01040833333 | BU84: 4163.333333 | BV84: 20 | BW84: 0.02040833333 | BX84: 11019.2755 | BY84: 0 | BZ84: 0 | CA84: 0 | CB84: 0 | CC84: 0 | CD84: 0 | CE84: 0 | CF84: 0 | CG84: 0 | CH84: 0 | CI84: 0 | CJ84: 0 | CK84: 0 | CL84: 0 | CM84: 0 | CN84: 0 | CO84: 0 | CP84: 0 | CQ84: 0 | CR84: 0 | CS84: 0 | CT84: 0 | CU84: 0 | CV84: 0 | CW84: 0 | CX84: 0 | CY84: 0 | CZ84: 43 | DA84: 0 | DB84: 0 | DC84: 0 | DD84: 125223.0213 | DE84: 0 | DF84: 0 | DG84: 0 | DH84: 0 | DI84: 0 | DK84: =SUM(($E$32:$E$81=$CZ84)*($F$32:$F$81=DK$16)*$D$32:$D$81) -> 0 | DL84: =SUM(($E$32:$E$81=$CZ84)*($F$32:$F$81=DL$16)*($D$32:$D$81)) -> 0 | DM84: =SUM(($E$32:$E$81=$CZ84)*($F$32:$F$81=DM$16)*$D$32:$D$81) -> 0 | DN84: =SUM(($E$32:$E$81=$CZ84)*($F$32:$F$81=DN$16)*$D$32:$D$81) -> 0 | DO84: =SUM(($E$32:$E$81=$CZ84)*($F$32:$F$81=DO$16)*$D$32:$D$81) -> 0 | DP84: =SUM(($E$32:$E$81=$CZ84)*($F$32:$F$81=DP$16)*$D$32:$D$81) -> 0 | DQ84: =SUM(($E$32:$E$81=$CZ84)*($F$32:$F$81=DQ$16)*$D$32:$D$81) -> 0 | DR84: =SUM(($E$32:$E$81=$CZ84)*($F$32:$F$81=DR$16)*$D$32:$D$81) -> 0 | DS84: =SUM(($E$32:$E$81=$CZ84)*($F$32:$F$81=DS$16)*$D$32:$D$81) -> 0 | DU84: =$DA$84 -> 0 | DV84: =$DB$84 -> 0 | DW84: =$DC$84 -> 0 | DX84: =$DD$84 -> 125223.0213 | DY84: =$DE$84 -> 0 | DZ84: =$DF$84 -> 0 | EA84: =$DG$84 -> 0 | EB84: =$DH$84 -> 0 | EC84: =$DI$84 -> 0 | EE84: =$DK$84 -> 0 | EF84: =$DL$84 -> 0 | EG84: =$DM$84 -> 0 | EH84: =$DN$84 -> 0 | EI84: =$DO$84 -> 0 | EJ84: =$DP$84 -> 0 | EK84: =$DQ$84 -> 0 | EL84: =$DR$84 -> 0 | EM84: =$DS$84 -> 0
B85: Intangible - Amortized | C85: Description | D85: Amount | E85: Month | F85: Years | Z85: 44 | AA85: Mon 44 | AB85: 41 | AC85: 0.01040833333 | AD85: 5619.8755 | AE85: 33 | AF85: 0.014575 | AG85: 7869.6255 | AK85: 27 | AL85: 0.014575 | AM85: 7869.6255 | AQ85: 9 | AR85: 0.01190833333 | AS85: 6429.7855 | AZ85: 15 | BA85: 0.02040833333 | BB85: 8163.333333 | BC85: 42 | BD85: 0.01040833333 | BE85: 13124.90833 | BF85: 27 | BG85: 0.014575 | BH85: 18379.075 | BJ85: 15 | BK85: 0.02040833333 | BL85: 25734.90833 | BM85: 15 | BN85: 0.02040833333 | BO85: 11019.2755 | BP85: 27 | BQ85: 0.014575 | BR85: 5830 | BS85: 42 | BT85: 0.01040833333 | BU85: 4163.333333 | BV85: 21 | BW85: 0.02040833333 | BX85: 11019.2755 | BY85: 0 | BZ85: 0 | CA85: 0 | CB85: 0 | CC85: 0 | CD85: 0 | CE85: 0 | CF85: 0 | CG85: 0 | CH85: 0 | CI85: 0 | CJ85: 0 | CK85: 0 | CL85: 0 | CM85: 0 | CN85: 0 | CO85: 0 | CP85: 0 | CQ85: 0 | CR85: 0 | CS85: 0 | CT85: 0 | CU85: 0 | CV85: 0 | CW85: 0 | CX85: 0 | CY85: 0 | CZ85: 44 | DA85: 0 | DB85: 0 | DC85: 0 | DD85: 125223.0213 | DE85: 0 | DF85: 0 | DG85: 0 | DH85: 0 | DI85: 0 | DK85: =SUM(($E$32:$E$81=$CZ85)*($F$32:$F$81=DK$16)*$D$32:$D$81) -> 0 | DL85: =SUM(($E$32:$E$81=$CZ85)*($F$32:$F$81=DL$16)*($D$32:$D$81)) -> 0 | DM85: =SUM(($E$32:$E$81=$CZ85)*($F$32:$F$81=DM$16)*$D$32:$D$81) -> 0 | DN85: =SUM(($E$32:$E$81=$CZ85)*($F$32:$F$81=DN$16)*$D$32:$D$81) -> 0 | DO85: =SUM(($E$32:$E$81=$CZ85)*($F$32:$F$81=DO$16)*$D$32:$D$81) -> 0 | DP85: =SUM(($E$32:$E$81=$CZ85)*($F$32:$F$81=DP$16)*$D$32:$D$81) -> 0 | DQ85: =SUM(($E$32:$E$81=$CZ85)*($F$32:$F$81=DQ$16)*$D$32:$D$81) -> 0 | DR85: =SUM(($E$32:$E$81=$CZ85)*($F$32:$F$81=DR$16)*$D$32:$D$81) -> 0 | DS85: =SUM(($E$32:$E$81=$CZ85)*($F$32:$F$81=DS$16)*$D$32:$D$81) -> 0 | DU85: =$DA$85 -> 0 | DV85: =$DB$85 -> 0 | DW85: =$DC$85 -> 0 | DX85: =$DD$85 -> 125223.0213 | DY85: =$DE$85 -> 0 | DZ85: =$DF$85 -> 0 | EA85: =$DG$85 -> 0 | EB85: =$DH$85 -> 0 | EC85: =$DI$85 -> 0 | EE85: =$DK$85 -> 0 | EF85: =$DL$85 -> 0 | EG85: =$DM$85 -> 0 | EH85: =$DN$85 -> 0 | EI85: =$DO$85 -> 0 | EJ85: =$DP$85 -> 0 | EK85: =$DQ$85 -> 0 | EL85: =$DR$85 -> 0 | EM85: =$DS$85 -> 0
B86: Amortization #1 | P86: =IF(F86="Land",1,IF(D86*E86*F86<>0,1,0)) -> 0 | Z86: 45 | AA86: Mon 45 | AB86: 42 | AC86: 0.01040833333 | AD86: 5619.8755 | AE86: 34 | AF86: 0.014575 | AG86: 7869.6255 | AK86: 28 | AL86: 0.014575 | AM86: 7869.6255 | AQ86: 10 | AR86: 0.01190833333 | AS86: 6429.7855 | AZ86: 16 | BA86: 0.02040833333 | BB86: 8163.333333 | BC86: 43 | BD86: 0.01040833333 | BE86: 13124.90833 | BF86: 28 | BG86: 0.014575 | BH86: 18379.075 | BJ86: 16 | BK86: 0.02040833333 | BL86: 25734.90833 | BM86: 16 | BN86: 0.02040833333 | BO86: 11019.2755 | BP86: 28 | BQ86: 0.014575 | BR86: 5830 | BS86: 43 | BT86: 0.01040833333 | BU86: 4163.333333 | BV86: 22 | BW86: 0.02040833333 | BX86: 11019.2755 | BY86: 0 | BZ86: 0 | CA86: 0 | CB86: 0 | CC86: 0 | CD86: 0 | CE86: 0 | CF86: 0 | CG86: 0 | CH86: 0 | CI86: 0 | CJ86: 0 | CK86: 0 | CL86: 0 | CM86: 0 | CN86: 0 | CO86: 0 | CP86: 0 | CQ86: 0 | CR86: 0 | CS86: 0 | CT86: 0 | CU86: 0 | CV86: 0 | CW86: 0 | CX86: 0 | CY86: 0 | CZ86: 45 | DA86: 0 | DB86: 0 | DC86: 0 | DD86: 125223.0213 | DE86: 0 | DF86: 0 | DG86: 0 | DH86: 0 | DI86: 0 | DK86: =SUM(($E$32:$E$81=$CZ86)*($F$32:$F$81=DK$16)*$D$32:$D$81) -> 0 | DL86: =SUM(($E$32:$E$81=$CZ86)*($F$32:$F$81=DL$16)*($D$32:$D$81)) -> 0 | DM86: =SUM(($E$32:$E$81=$CZ86)*($F$32:$F$81=DM$16)*$D$32:$D$81) -> 0 | DN86: =SUM(($E$32:$E$81=$CZ86)*($F$32:$F$81=DN$16)*$D$32:$D$81) -> 0 | DO86: =SUM(($E$32:$E$81=$CZ86)*($F$32:$F$81=DO$16)*$D$32:$D$81) -> 0 | DP86: =SUM(($E$32:$E$81=$CZ86)*($F$32:$F$81=DP$16)*$D$32:$D$81) -> 0 | DQ86: =SUM(($E$32:$E$81=$CZ86)*($F$32:$F$81=DQ$16)*$D$32:$D$81) -> 0 | DR86: =SUM(($E$32:$E$81=$CZ86)*($F$32:$F$81=DR$16)*$D$32:$D$81) -> 0 | DS86: =SUM(($E$32:$E$81=$CZ86)*($F$32:$F$81=DS$16)*$D$32:$D$81) -> 0 | DU86: =$DA$86 -> 0 | DV86: =$DB$86 -> 0 | DW86: =$DC$86 -> 0 | DX86: =$DD$86 -> 125223.0213 | DY86: =$DE$86 -> 0 | DZ86: =$DF$86 -> 0 | EA86: =$DG$86 -> 0 | EB86: =$DH$86 -> 0 | EC86: =$DI$86 -> 0 | EE86: =$DK$86 -> 0 | EF86: =$DL$86 -> 0 | EG86: =$DM$86 -> 0 | EH86: =$DN$86 -> 0 | EI86: =$DO$86 -> 0 | EJ86: =$DP$86 -> 0 | EK86: =$DQ$86 -> 0 | EL86: =$DR$86 -> 0 | EM86: =$DS$86 -> 0
B87: Amortization #2 | P87: =IF(F87="Land",1,IF(D87*E87*F87<>0,1,0)) -> 0 | Z87: 46 | AA87: Mon 46 | AB87: 43 | AC87: 0.01040833333 | AD87: 5619.8755 | AE87: 35 | AF87: 0.014575 | AG87: 7869.6255 | AK87: 29 | AL87: 0.014575 | AM87: 7869.6255 | AQ87: 11 | AR87: 0.01190833333 | AS87: 6429.7855 | AZ87: 17 | BA87: 0.02040833333 | BB87: 8163.333333 | BC87: 44 | BD87: 0.01040833333 | BE87: 13124.90833 | BF87: 29 | BG87: 0.014575 | BH87: 18379.075 | BJ87: 17 | BK87: 0.02040833333 | BL87: 25734.90833 | BM87: 17 | BN87: 0.02040833333 | BO87: 11019.2755 | BP87: 29 | BQ87: 0.014575 | BR87: 5830 | BS87: 44 | BT87: 0.01040833333 | BU87: 4163.333333 | BV87: 23 | BW87: 0.02040833333 | BX87: 11019.2755 | BY87: 0 | BZ87: 0 | CA87: 0 | CB87: 0 | CC87: 0 | CD87: 0 | CE87: 0 | CF87: 0 | CG87: 0 | CH87: 0 | CI87: 0 | CJ87: 0 | CK87: 0 | CL87: 0 | CM87: 0 | CN87: 0 | CO87: 0 | CP87: 0 | CQ87: 0 | CR87: 0 | CS87: 0 | CT87: 0 | CU87: 0 | CV87: 0 | CW87: 0 | CX87: 0 | CY87: 0 | CZ87: 46 | DA87: 0 | DB87: 0 | DC87: 0 | DD87: 125223.0213 | DE87: 0 | DF87: 0 | DG87: 0 | DH87: 0 | DI87: 0 | DK87: =SUM(($E$32:$E$81=$CZ87)*($F$32:$F$81=DK$16)*$D$32:$D$81) -> 0 | DL87: =SUM(($E$32:$E$81=$CZ87)*($F$32:$F$81=DL$16)*($D$32:$D$81)) -> 0 | DM87: =SUM(($E$32:$E$81=$CZ87)*($F$32:$F$81=DM$16)*$D$32:$D$81) -> 0 | DN87: =SUM(($E$32:$E$81=$CZ87)*($F$32:$F$81=DN$16)*$D$32:$D$81) -> 0 | DO87: =SUM(($E$32:$E$81=$CZ87)*($F$32:$F$81=DO$16)*$D$32:$D$81) -> 0 | DP87: =SUM(($E$32:$E$81=$CZ87)*($F$32:$F$81=DP$16)*$D$32:$D$81) -> 0 | DQ87: =SUM(($E$32:$E$81=$CZ87)*($F$32:$F$81=DQ$16)*$D$32:$D$81) -> 0 | DR87: =SUM(($E$32:$E$81=$CZ87)*($F$32:$F$81=DR$16)*$D$32:$D$81) -> 0 | DS87: =SUM(($E$32:$E$81=$CZ87)*($F$32:$F$81=DS$16)*$D$32:$D$81) -> 0 | DU87: =$DA$87 -> 0 | DV87: =$DB$87 -> 0 | DW87: =$DC$87 -> 0 | DX87: =$DD$87 -> 125223.0213 | DY87: =$DE$87 -> 0 | DZ87: =$DF$87 -> 0 | EA87: =$DG$87 -> 0 | EB87: =$DH$87 -> 0 | EC87: =$DI$87 -> 0 | EE87: =$DK$87 -> 0 | EF87: =$DL$87 -> 0 | EG87: =$DM$87 -> 0 | EH87: =$DN$87 -> 0 | EI87: =$DO$87 -> 0 | EJ87: =$DP$87 -> 0 | EK87: =$DQ$87 -> 0 | EL87: =$DR$87 -> 0 | EM87: =$DS$87 -> 0
B88: Amortization #3 | P88: 0 | Z88: 47 | AA88: Mon 47 | AB88: 44 | AC88: 0.01040833333 | AD88: 5619.8755 | AE88: 36 | AF88: 0.014575 | AG88: 7869.6255 | AK88: 30 | AL88: 0.014575 | AM88: 7869.6255 | AQ88: 12 | AR88: 0.01190833333 | AS88: 6429.7855 | AZ88: 18 | BA88: 0.02040833333 | BB88: 8163.333333 | BC88: 45 | BD88: 0.01040833333 | BE88: 13124.90833 | BF88: 30 | BG88: 0.014575 | BH88: 18379.075 | BJ88: 18 | BK88: 0.02040833333 | BL88: 25734.90833 | BM88: 18 | BN88: 0.02040833333 | BO88: 11019.2755 | BP88: 30 | BQ88: 0.014575 | BR88: 5830 | BS88: 45 | BT88: 0.01040833333 | BU88: 4163.333333 | BV88: 24 | BW88: 0.02040833333 | BX88: 11019.2755 | BY88: 0 | BZ88: 0 | CA88: 0 | CB88: 0 | CC88: 0 | CD88: 0 | CE88: 0 | CF88: 0 | CG88: 0 | CH88: 0 | CI88: 0 | CJ88: 0 | CK88: 0 | CL88: 0 | CM88: 0 | CN88: 0 | CO88: 0 | CP88: 0 | CQ88: 0 | CR88: 0 | CS88: 0 | CT88: 0 | CU88: 0 | CV88: 0 | CW88: 0 | CX88: 0 | CY88: 0 | CZ88: 47 | DA88: 0 | DB88: =SUMIF($AD$12:$CY$12,DB$16,$AD88:$CY88) -> 0 | DC88: 0 | DD88: 125223.0213 | DE88: 0 | DF88: 0 | DG88: 0 | DH88: 0 | DI88: 0 | DK88: =SUM(($E$32:$E$81=$CZ88)*($F$32:$F$81=DK$16)*$D$32:$D$81) -> 0 | DL88: =SUM(($E$32:$E$81=$CZ88)*($F$32:$F$81=DL$16)*($D$32:$D$81)) -> 0 | DM88: =SUM(($E$32:$E$81=$CZ88)*($F$32:$F$81=DM$16)*$D$32:$D$81) -> 0 | DN88: =SUM(($E$32:$E$81=$CZ88)*($F$32:$F$81=DN$16)*$D$32:$D$81) -> 0 | DO88: =SUM(($E$32:$E$81=$CZ88)*($F$32:$F$81=DO$16)*$D$32:$D$81) -> 0 | DP88: =SUM(($E$32:$E$81=$CZ88)*($F$32:$F$81=DP$16)*$D$32:$D$81) -> 0 | DQ88: =SUM(($E$32:$E$81=$CZ88)*($F$32:$F$81=DQ$16)*$D$32:$D$81) -> 0 | DR88: =SUM(($E$32:$E$81=$CZ88)*($F$32:$F$81=DR$16)*$D$32:$D$81) -> 0 | DS88: =SUM(($E$32:$E$81=$CZ88)*($F$32:$F$81=DS$16)*$D$32:$D$81) -> 0 | DU88: =$DA$88 -> 0 | DV88: =$DB$88 -> 0 | DW88: =$DC$88 -> 0 | DX88: =$DD$88 -> 125223.0213 | DY88: =$DE$88 -> 0 | DZ88: =$DF$88 -> 0 | EA88: =$DG$88 -> 0 | EB88: =$DH$88 -> 0 | EC88: =$DI$88 -> 0 | EE88: =$DK$88 -> 0 | EF88: =$DL$88 -> 0 | EG88: =$DM$88 -> 0 | EH88: =$DN$88 -> 0 | EI88: =$DO$88 -> 0 | EJ88: =$DP$88 -> 0 | EK88: =$DQ$88 -> 0 | EL88: =$DR$88 -> 0 | EM88: =$DS$88 -> 0
B89: Amortization #4 | P89: 0 | Z89: 48 | AA89: Mon 48 | AB89: 45 | AC89: 0.01040833333 | AD89: 5619.8755 | AE89: 37 | AF89: 0.01040833333 | AG89: 5619.8755 | AK89: 31 | AL89: 0.014575 | AM89: 7869.6255 | AQ89: 13 | AR89: 0.02040833333 | AS89: 11019.2755 | AZ89: 19 | BA89: 0.02040833333 | BB89: 8163.333333 | BC89: 46 | BD89: 0.01040833333 | BE89: 13124.90833 | BF89: 31 | BG89: 0.014575 | BH89: 18379.075 | BJ89: 19 | BK89: 0.02040833333 | BL89: 25734.90833 | BM89: 19 | BN89: 0.02040833333 | BO89: 11019.2755 | BP89: 31 | BQ89: 0.014575 | BR89: 5830 | BS89: 46 | BT89: 0.01040833333 | BU89: 4163.333333 | BV89: 25 | BW89: 0.014575 | BX89: 7869.6255 | BY89: 0 | BZ89: 0 | CA89: 0 | CB89: 0 | CC89: 0 | CD89: 0 | CE89: 0 | CF89: 0 | CG89: 0 | CH89: 0 | CI89: 0 | CJ89: 0 | CK89: 0 | CL89: 0 | CM89: 0 | CN89: 0 | CO89: 0 | CP89: 0 | CQ89: 0 | CR89: 0 | CS89: 0 | CT89: 0 | CU89: 0 | CV89: 0 | CW89: 0 | CX89: 0 | CY89: 0 | CZ89: 48 | DA89: 0 | DB89: 0 | DC89: 0 | DD89: 124413.1113 | DE89: 0 | DF89: 0 | DG89: 0 | DH89: 0 | DI89: 0 | DK89: =SUM(($E$32:$E$81=$CZ89)*($F$32:$F$81=DK$16)*$D$32:$D$81) -> 0 | DL89: =SUM(($E$32:$E$81=$CZ89)*($F$32:$F$81=DL$16)*($D$32:$D$81)) -> 0 | DM89: =SUM(($E$32:$E$81=$CZ89)*($F$32:$F$81=DM$16)*$D$32:$D$81) -> 0 | DN89: =SUM(($E$32:$E$81=$CZ89)*($F$32:$F$81=DN$16)*$D$32:$D$81) -> 0 | DO89: =SUM(($E$32:$E$81=$CZ89)*($F$32:$F$81=DO$16)*$D$32:$D$81) -> 0 | DP89: =SUM(($E$32:$E$81=$CZ89)*($F$32:$F$81=DP$16)*$D$32:$D$81) -> 0 | DQ89: =SUM(($E$32:$E$81=$CZ89)*($F$32:$F$81=DQ$16)*$D$32:$D$81) -> 0 | DR89: =SUM(($E$32:$E$81=$CZ89)*($F$32:$F$81=DR$16)*$D$32:$D$81) -> 0 | DS89: =SUM(($E$32:$E$81=$CZ89)*($F$32:$F$81=DS$16)*$D$32:$D$81) -> 0 | DU89: =$DA$89 -> 0 | DV89: =$DB$89 -> 0 | DW89: =$DC$89 -> 0 | DX89: =$DD$89 -> 124413.1113 | DY89: =$DE$89 -> 0 | DZ89: =$DF$89 -> 0 | EA89: =$DG$89 -> 0 | EB89: =$DH$89 -> 0 | EC89: =$DI$89 -> 0 | EE89: =$DK$89 -> 0 | EF89: =$DL$89 -> 0 | EG89: =$DM$89 -> 0 | EH89: =$DN$89 -> 0 | EI89: =$DO$89 -> 0 | EJ89: =$DP$89 -> 0 | EK89: =$DQ$89 -> 0 | EL89: =$DR$89 -> 0 | EM89: =$DS$89 -> 0
B90: Amortization #5 | P90: 0 | Z90: 49 | AA90: Mon 49 | AB90: 46 | AC90: 0.01040833333 | AD90: 5619.8755 | AE90: 38 | AF90: 0.01040833333 | AG90: 5619.8755 | AK90: 32 | AL90: 0.014575 | AM90: 7869.6255 | AQ90: 14 | AR90: 0.02040833333 | AS90: 11019.2755 | AZ90: 20 | BA90: 0.02040833333 | BB90: 8163.333333 | BC90: 47 | BD90: 0.01040833333 | BE90: 13124.90833 | BF90: 32 | BG90: 0.014575 | BH90: 18379.075 | BJ90: 20 | BK90: 0.02040833333 | BL90: 25734.90833 | BM90: 20 | BN90: 0.02040833333 | BO90: 11019.2755 | BP90: 32 | BQ90: 0.014575 | BR90: 5830 | BS90: 47 | BT90: 0.01040833333 | BU90: 4163.333333 | BV90: 26 | BW90: 0.014575 | BX90: 7869.6255 | BY90: 0 | BZ90: 0 | CA90: 0 | CB90: 0 | CC90: 0 | CD90: 0 | CE90: 0 | CF90: 0 | CG90: 0 | CH90: 0 | CI90: 0 | CJ90: 0 | CK90: 0 | CL90: 0 | CM90: 0 | CN90: 0 | CO90: 0 | CP90: 0 | CQ90: 0 | CR90: 0 | CS90: 0 | CT90: 0 | CU90: 0 | CV90: 0 | CW90: 0 | CX90: 0 | CY90: 0 | CZ90: 49 | DA90: 0 | DB90: 0 | DC90: 0 | DD90: 124413.1113 | DE90: 0 | DF90: 0 | DG90: 0 | DH90: 0 | DI90: 0 | DK90: =SUM(($E$32:$E$81=$CZ90)*($F$32:$F$81=DK$16)*$D$32:$D$81) -> 0 | DL90: =SUM(($E$32:$E$81=$CZ90)*($F$32:$F$81=DL$16)*($D$32:$D$81)) -> 0 | DM90: =SUM(($E$32:$E$81=$CZ90)*($F$32:$F$81=DM$16)*$D$32:$D$81) -> 0 | DN90: =SUM(($E$32:$E$81=$CZ90)*($F$32:$F$81=DN$16)*$D$32:$D$81) -> 0 | DO90: =SUM(($E$32:$E$81=$CZ90)*($F$32:$F$81=DO$16)*$D$32:$D$81) -> 0 | DP90: =SUM(($E$32:$E$81=$CZ90)*($F$32:$F$81=DP$16)*$D$32:$D$81) -> 0 | DQ90: =SUM(($E$32:$E$81=$CZ90)*($F$32:$F$81=DQ$16)*$D$32:$D$81) -> 0 | DR90: =SUM(($E$32:$E$81=$CZ90)*($F$32:$F$81=DR$16)*$D$32:$D$81) -> 0 | DS90: =SUM(($E$32:$E$81=$CZ90)*($F$32:$F$81=DS$16)*$D$32:$D$81) -> 0 | DU90: =$DA$90 -> 0 | DV90: =$DB$90 -> 0 | DW90: =$DC$90 -> 0 | DX90: =$DD$90 -> 124413.1113 | DY90: =$DE$90 -> 0 | DZ90: =$DF$90 -> 0 | EA90: =$DG$90 -> 0 | EB90: =$DH$90 -> 0 | EC90: =$DI$90 -> 0 | EE90: =$DK$90 -> 0 | EF90: =$DL$90 -> 0 | EG90: =$DM$90 -> 0 | EH90: =$DN$90 -> 0 | EI90: =$DO$90 -> 0 | EJ90: =$DP$90 -> 0 | EK90: =$DQ$90 -> 0 | EL90: =$DR$90 -> 0 | EM90: =$DS$90 -> 0
B91: Amortization #6 | P91: 0 | Z91: 50 | AA91: Mon 50 | AB91: 47 | AC91: 0.01040833333 | AD91: 5619.8755 | AE91: 39 | AF91: 0.01040833333 | AG91: 5619.8755 | AK91: 33 | AL91: 0.014575 | AM91: 7869.6255 | AQ91: 15 | AR91: 0.02040833333 | AS91: 11019.2755 | AZ91: 21 | BA91: 0.02040833333 | BB91: 8163.333333 | BC91: 48 | BD91: 0.01040833333 | BE91: 13124.90833 | BF91: 33 | BG91: 0.014575 | BH91: 18379.075 | BJ91: 21 | BK91: 0.02040833333 | BL91: 25734.90833 | BM91: 21 | BN91: 0.02040833333 | BO91: 11019.2755 | BP91: 33 | BQ91: 0.014575 | BR91: 5830 | BS91: 48 | BT91: 0.01040833333 | BU91: 4163.333333 | BV91: 27 | BW91: 0.014575 | BX91: 7869.6255 | BY91: 0 | BZ91: 0 | CA91: 0 | CB91: 0 | CC91: 0 | CD91: 0 | CE91: 0 | CF91: 0 | CG91: 0 | CH91: 0 | CI91: 0 | CJ91: 0 | CK91: 0 | CL91: 0 | CM91: 0 | CN91: 0 | CO91: 0 | CP91: 0 | CQ91: 0 | CR91: 0 | CS91: 0 | CT91: 0 | CU91: 0 | CV91: 0 | CW91: 0 | CX91: 0 | CY91: 0 | CZ91: 50 | DA91: 0 | DB91: 0 | DC91: 0 | DD91: 124413.1113 | DE91: 0 | DF91: 0 | DG91: 0 | DH91: 0 | DI91: 0 | DK91: =SUM(($E$32:$E$81=$CZ91)*($F$32:$F$81=DK$16)*$D$32:$D$81) -> 0 | DL91: =SUM(($E$32:$E$81=$CZ91)*($F$32:$F$81=DL$16)*($D$32:$D$81)) -> 0 | DM91: =SUM(($E$32:$E$81=$CZ91)*($F$32:$F$81=DM$16)*$D$32:$D$81) -> 0 | DN91: =SUM(($E$32:$E$81=$CZ91)*($F$32:$F$81=DN$16)*$D$32:$D$81) -> 0 | DO91: =SUM(($E$32:$E$81=$CZ91)*($F$32:$F$81=DO$16)*$D$32:$D$81) -> 0 | DP91: =SUM(($E$32:$E$81=$CZ91)*($F$32:$F$81=DP$16)*$D$32:$D$81) -> 0 | DQ91: =SUM(($E$32:$E$81=$CZ91)*($F$32:$F$81=DQ$16)*$D$32:$D$81) -> 0 | DR91: =SUM(($E$32:$E$81=$CZ91)*($F$32:$F$81=DR$16)*$D$32:$D$81) -> 0 | DS91: =SUM(($E$32:$E$81=$CZ91)*($F$32:$F$81=DS$16)*$D$32:$D$81) -> 0 | DU91: =$DA$91 -> 0 | DV91: =$DB$91 -> 0 | DW91: =$DC$91 -> 0 | DX91: =$DD$91 -> 124413.1113 | DY91: =$DE$91 -> 0 | DZ91: =$DF$91 -> 0 | EA91: =$DG$91 -> 0 | EB91: =$DH$91 -> 0 | EC91: =$DI$91 -> 0 | EE91: =$DK$91 -> 0 | EF91: =$DL$91 -> 0 | EG91: =$DM$91 -> 0 | EH91: =$DN$91 -> 0 | EI91: =$DO$91 -> 0 | EJ91: =$DP$91 -> 0 | EK91: =$DQ$91 -> 0 | EL91: =$DR$91 -> 0 | EM91: =$DS$91 -> 0
B92: Amortization #7 | P92: 0 | Z92: 51 | AA92: Mon 51 | AB92: 48 | AC92: 0.01040833333 | AD92: 5619.8755 | AE92: 40 | AF92: 0.01040833333 | AG92: 5619.8755 | AK92: 34 | AL92: 0.014575 | AM92: 7869.6255 | AQ92: 16 | AR92: 0.02040833333 | AS92: 11019.2755 | AZ92: 22 | BA92: 0.02040833333 | BB92: 8163.333333 | BC92: 49 | BD92: 0.007441666667 | BE92: 9383.941667 | BF92: 34 | BG92: 0.014575 | BH92: 18379.075 | BJ92: 22 | BK92: 0.02040833333 | BL92: 25734.90833 | BM92: 22 | BN92: 0.02040833333 | BO92: 11019.2755 | BP92: 34 | BQ92: 0.014575 | BR92: 5830 | BS92: 49 | BT92: 0.007441666667 | BU92: 2976.666667 | BV92: 28 | BW92: 0.014575 | BX92: 7869.6255 | BY92: 0 | BZ92: 0 | CA92: 0 | CB92: 0 | CC92: 0 | CD92: 0 | CE92: 0 | CF92: 0 | CG92: 0 | CH92: 0 | CI92: 0 | CJ92: 0 | CK92: 0 | CL92: 0 | CM92: 0 | CN92: 0 | CO92: 0 | CP92: 0 | CQ92: 0 | CR92: 0 | CS92: 0 | CT92: 0 | CU92: 0 | CV92: 0 | CW92: 0 | CX92: 0 | CY92: 0 | CZ92: 51 | DA92: 0 | DB92: 0 | DC92: 0 | DD92: 119485.478 | DE92: 0 | DF92: 0 | DG92: 0 | DH92: 0 | DI92: 0 | DK92: =SUM(($E$32:$E$81=$CZ92)*($F$32:$F$81=DK$16)*$D$32:$D$81) -> 0 | DL92: =SUM(($E$32:$E$81=$CZ92)*($F$32:$F$81=DL$16)*($D$32:$D$81)) -> 0 | DM92: =SUM(($E$32:$E$81=$CZ92)*($F$32:$F$81=DM$16)*$D$32:$D$81) -> 0 | DN92: =SUM(($E$32:$E$81=$CZ92)*($F$32:$F$81=DN$16)*$D$32:$D$81) -> 0 | DO92: =SUM(($E$32:$E$81=$CZ92)*($F$32:$F$81=DO$16)*$D$32:$D$81) -> 0 | DP92: =SUM(($E$32:$E$81=$CZ92)*($F$32:$F$81=DP$16)*$D$32:$D$81) -> 0 | DQ92: =SUM(($E$32:$E$81=$CZ92)*($F$32:$F$81=DQ$16)*$D$32:$D$81) -> 0 | DR92: =SUM(($E$32:$E$81=$CZ92)*($F$32:$F$81=DR$16)*$D$32:$D$81) -> 0 | DS92: =SUM(($E$32:$E$81=$CZ92)*($F$32:$F$81=DS$16)*$D$32:$D$81) -> 0 | DU92: =$DA$92 -> 0 | DV92: =$DB$92 -> 0 | DW92: =$DC$92 -> 0 | DX92: =$DD$92 -> 119485.478 | DY92: =$DE$92 -> 0 | DZ92: =$DF$92 -> 0 | EA92: =$DG$92 -> 0 | EB92: =$DH$92 -> 0 | EC92: =$DI$92 -> 0 | EE92: =$DK$92 -> 0 | EF92: =$DL$92 -> 0 | EG92: =$DM$92 -> 0 | EH92: =$DN$92 -> 0 | EI92: =$DO$92 -> 0 | EJ92: =$DP$92 -> 0 | EK92: =$DQ$92 -> 0 | EL92: =$DR$92 -> 0 | EM92: =$DS$92 -> 0
B93: Amortization #8 | P93: 0 | Z93: 52 | AA93: Mon 52 | AB93: 49 | AC93: 0.007441666667 | AD93: 4018.0535 | AE93: 41 | AF93: 0.01040833333 | AG93: 5619.8755 | AK93: 35 | AL93: 0.014575 | AM93: 7869.6255 | AQ93: 17 | AR93: 0.02040833333 | AS93: 11019.2755 | AZ93: 23 | BA93: 0.02040833333 | BB93: 8163.333333 | BC93: 50 | BD93: 0.007441666667 | BE93: 9383.941667 | BF93: 35 | BG93: 0.014575 | BH93: 18379.075 | BJ93: 23 | BK93: 0.02040833333 | BL93: 25734.90833 | BM93: 23 | BN93: 0.02040833333 | BO93: 11019.2755 | BP93: 35 | BQ93: 0.014575 | BR93: 5830 | BS93: 50 | BT93: 0.007441666667 | BU93: 2976.666667 | BV93: 29 | BW93: 0.014575 | BX93: 7869.6255 | BY93: 0 | BZ93: 0 | CA93: 0 | CB93: 0 | CC93: 0 | CD93: 0 | CE93: 0 | CF93: 0 | CG93: 0 | CH93: 0 | CI93: 0 | CJ93: 0 | CK93: 0 | CL93: 0 | CM93: 0 | CN93: 0 | CO93: 0 | CP93: 0 | CQ93: 0 | CR93: 0 | CS93: 0 | CT93: 0 | CU93: 0 | CV93: 0 | CW93: 0 | CX93: 0 | CY93: 0 | CZ93: 52 | DA93: 0 | DB93: 0 | DC93: 0 | DD93: 117883.656 | DE93: 0 | DF93: 0 | DG93: 0 | DH93: 0 | DI93: 0 | DK93: =SUM(($E$32:$E$81=$CZ93)*($F$32:$F$81=DK$16)*$D$32:$D$81) -> 0 | DL93: =SUM(($E$32:$E$81=$CZ93)*($F$32:$F$81=DL$16)*($D$32:$D$81)) -> 0 | DM93: =SUM(($E$32:$E$81=$CZ93)*($F$32:$F$81=DM$16)*$D$32:$D$81) -> 0 | DN93: =SUM(($E$32:$E$81=$CZ93)*($F$32:$F$81=DN$16)*$D$32:$D$81) -> 0 | DO93: =SUM(($E$32:$E$81=$CZ93)*($F$32:$F$81=DO$16)*$D$32:$D$81) -> 0 | DP93: =SUM(($E$32:$E$81=$CZ93)*($F$32:$F$81=DP$16)*$D$32:$D$81) -> 0 | DQ93: =SUM(($E$32:$E$81=$CZ93)*($F$32:$F$81=DQ$16)*$D$32:$D$81) -> 0 | DR93: =SUM(($E$32:$E$81=$CZ93)*($F$32:$F$81=DR$16)*$D$32:$D$81) -> 0 | DS93: =SUM(($E$32:$E$81=$CZ93)*($F$32:$F$81=DS$16)*$D$32:$D$81) -> 0 | DU93: =$DA$93 -> 0 | DV93: =$DB$93 -> 0 | DW93: =$DC$93 -> 0 | DX93: =$DD$93 -> 117883.656 | DY93: =$DE$93 -> 0 | DZ93: =$DF$93 -> 0 | EA93: =$DG$93 -> 0 | EB93: =$DH$93 -> 0 | EC93: =$DI$93 -> 0 | EE93: =$DK$93 -> 0 | EF93: =$DL$93 -> 0 | EG93: =$DM$93 -> 0 | EH93: =$DN$93 -> 0 | EI93: =$DO$93 -> 0 | EJ93: =$DP$93 -> 0 | EK93: =$DQ$93 -> 0 | EL93: =$DR$93 -> 0 | EM93: =$DS$93 -> 0
B94: Amortization #9 | P94: 0 | Z94: 53 | AA94: Mon 53 | AB94: 50 | AC94: 0.007441666667 | AD94: 4018.0535 | AE94: 42 | AF94: 0.01040833333 | AG94: 5619.8755 | AK94: 36 | AL94: 0.014575 | AM94: 7869.6255 | AQ94: 18 | AR94: 0.02040833333 | AS94: 11019.2755 | AZ94: 24 | BA94: 0.02040833333 | BB94: 8163.333333 | BC94: 51 | BD94: 0.007441666667 | BE94: 9383.941667 | BF94: 36 | BG94: 0.014575 | BH94: 18379.075 | BJ94: 24 | BK94: 0.02040833333 | BL94: 25734.90833 | BM94: 24 | BN94: 0.02040833333 | BO94: 11019.2755 | BP94: 36 | BQ94: 0.014575 | BR94: 5830 | BS94: 51 | BT94: 0.007441666667 | BU94: 2976.666667 | BV94: 30 | BW94: 0.014575 | BX94: 7869.6255 | BY94: 0 | BZ94: 0 | CA94: 0 | CB94: 0 | CC94: 0 | CD94: 0 | CE94: 0 | CF94: 0 | CG94: 0 | CH94: 0 | CI94: 0 | CJ94: 0 | CK94: 0 | CL94: 0 | CM94: 0 | CN94: 0 | CO94: 0 | CP94: 0 | CQ94: 0 | CR94: 0 | CS94: 0 | CT94: 0 | CU94: 0 | CV94: 0 | CW94: 0 | CX94: 0 | CY94: 0 | CZ94: 53 | DA94: 0 | DB94: 0 | DC94: 0 | DD94: 117883.656 | DE94: 0 | DF94: 0 | DG94: 0 | DH94: 0 | DI94: 0 | DK94: =SUM(($E$32:$E$81=$CZ94)*($F$32:$F$81=DK$16)*$D$32:$D$81) -> 0 | DL94: =SUM(($E$32:$E$81=$CZ94)*($F$32:$F$81=DL$16)*($D$32:$D$81)) -> 0 | DM94: =SUM(($E$32:$E$81=$CZ94)*($F$32:$F$81=DM$16)*$D$32:$D$81) -> 0 | DN94: =SUM(($E$32:$E$81=$CZ94)*($F$32:$F$81=DN$16)*$D$32:$D$81) -> 0 | DO94: =SUM(($E$32:$E$81=$CZ94)*($F$32:$F$81=DO$16)*$D$32:$D$81) -> 0 | DP94: =SUM(($E$32:$E$81=$CZ94)*($F$32:$F$81=DP$16)*$D$32:$D$81) -> 0 | DQ94: =SUM(($E$32:$E$81=$CZ94)*($F$32:$F$81=DQ$16)*$D$32:$D$81) -> 0 | DR94: =SUM(($E$32:$E$81=$CZ94)*($F$32:$F$81=DR$16)*$D$32:$D$81) -> 0 | DS94: =SUM(($E$32:$E$81=$CZ94)*($F$32:$F$81=DS$16)*$D$32:$D$81) -> 0 | DU94: =$DA$94 -> 0 | DV94: =$DB$94 -> 0 | DW94: =$DC$94 -> 0 | DX94: =$DD$94 -> 117883.656 | DY94: =$DE$94 -> 0 | DZ94: =$DF$94 -> 0 | EA94: =$DG$94 -> 0 | EB94: =$DH$94 -> 0 | EC94: =$DI$94 -> 0 | EE94: =$DK$94 -> 0 | EF94: =$DL$94 -> 0 | EG94: =$DM$94 -> 0 | EH94: =$DN$94 -> 0 | EI94: =$DO$94 -> 0 | EJ94: =$DP$94 -> 0 | EK94: =$DQ$94 -> 0 | EL94: =$DR$94 -> 0 | EM94: =$DS$94 -> 0
B95: Amortization #10 | P95: 0 | Z95: 54 | AA95: Mon 54 | AB95: 51 | AC95: 0.007441666667 | AD95: 4018.0535 | AE95: 43 | AF95: 0.01040833333 | AG95: 5619.8755 | AK95: 37 | AL95: 0.01040833333 | AM95: 5619.8755 | AQ95: 19 | AR95: 0.02040833333 | AS95: 11019.2755 | AZ95: 25 | BA95: 0.014575 | BB95: 5830 | BC95: 52 | BD95: 0.007441666667 | BE95: 9383.941667 | BF95: 37 | BG95: 0.01040833333 | BH95: 13124.90833 | BJ95: 25 | BK95: 0.014575 | BL95: 18379.075 | BM95: 25 | BN95: 0.014575 | BO95: 7869.6255 | BP95: 37 | BQ95: 0.01040833333 | BR95: 4163.333333 | BS95: 52 | BT95: 0.007441666667 | BU95: 2976.666667 | BV95: 31 | BW95: 0.014575 | BX95: 7869.6255 | BY95: 0 | BZ95: 0 | CA95: 0 | CB95: 0 | CC95: 0 | CD95: 0 | CE95: 0 | CF95: 0 | CG95: 0 | CH95: 0 | CI95: 0 | CJ95: 0 | CK95: 0 | CL95: 0 | CM95: 0 | CN95: 0 | CO95: 0 | CP95: 0 | CQ95: 0 | CR95: 0 | CS95: 0 | CT95: 0 | CU95: 0 | CV95: 0 | CW95: 0 | CX95: 0 | CY95: 0 | CZ95: 54 | DA95: 0 | DB95: 0 | DC95: 0 | DD95: 95874.256 | DE95: 0 | DF95: 0 | DG95: 0 | DH95: 0 | DI95: 0 | DK95: =SUM(($E$32:$E$81=$CZ95)*($F$32:$F$81=DK$16)*$D$32:$D$81) -> 0 | DL95: =SUM(($E$32:$E$81=$CZ95)*($F$32:$F$81=DL$16)*($D$32:$D$81)) -> 0 | DM95: =SUM(($E$32:$E$81=$CZ95)*($F$32:$F$81=DM$16)*$D$32:$D$81) -> 0 | DN95: =SUM(($E$32:$E$81=$CZ95)*($F$32:$F$81=DN$16)*$D$32:$D$81) -> 0 | DO95: =SUM(($E$32:$E$81=$CZ95)*($F$32:$F$81=DO$16)*$D$32:$D$81) -> 0 | DP95: =SUM(($E$32:$E$81=$CZ95)*($F$32:$F$81=DP$16)*$D$32:$D$81) -> 0 | DQ95: =SUM(($E$32:$E$81=$CZ95)*($F$32:$F$81=DQ$16)*$D$32:$D$81) -> 0 | DR95: =SUM(($E$32:$E$81=$CZ95)*($F$32:$F$81=DR$16)*$D$32:$D$81) -> 0 | DS95: =SUM(($E$32:$E$81=$CZ95)*($F$32:$F$81=DS$16)*$D$32:$D$81) -> 0 | DU95: =$DA$95 -> 0 | DV95: =$DB$95 -> 0 | DW95: =$DC$95 -> 0 | DX95: =$DD$95 -> 95874.256 | DY95: =$DE$95 -> 0 | DZ95: =$DF$95 -> 0 | EA95: =$DG$95 -> 0 | EB95: =$DH$95 -> 0 | EC95: =$DI$95 -> 0 | EE95: =$DK$95 -> 0 | EF95: =$DL$95 -> 0 | EG95: =$DM$95 -> 0 | EH95: =$DN$95 -> 0 | EI95: =$DO$95 -> 0 | EJ95: =$DP$95 -> 0 | EK95: =$DQ$95 -> 0 | EL95: =$DR$95 -> 0 | EM95: =$DS$95 -> 0
P96: =SUM(P86:P95) -> 0 | Z96: 55 | AA96: Mon 55 | AB96: 52 | AC96: 0.007441666667 | AD96: 4018.0535 | AE96: 44 | AF96: 0.01040833333 | AG96: 5619.8755 | AK96: 38 | AL96: 0.01040833333 | AM96: 5619.8755 | AQ96: 20 | AR96: 0.02040833333 | AS96: 11019.2755 | AZ96: 26 | BA96: 0.014575 | BB96: 5830 | BC96: 53 | BD96: 0.007441666667 | BE96: 9383.941667 | BF96: 38 | BG96: 0.01040833333 | BH96: 13124.90833 | BJ96: 26 | BK96: 0.014575 | BL96: 18379.075 | BM96: 26 | BN96: 0.014575 | BO96: 7869.6255 | BP96: 38 | BQ96: 0.01040833333 | BR96: 4163.333333 | BS96: 53 | BT96: 0.007441666667 | BU96: 2976.666667 | BV96: 32 | BW96: 0.014575 | BX96: 7869.6255 | BY96: 0 | BZ96: 0 | CA96: 0 | CB96: 0 | CC96: 0 | CD96: 0 | CE96: 0 | CF96: 0 | CG96: 0 | CH96: 0 | CI96: 0 | CJ96: 0 | CK96: 0 | CL96: 0 | CM96: 0 | CN96: 0 | CO96: 0 | CP96: 0 | CQ96: 0 | CR96: 0 | CS96: 0 | CT96: 0 | CU96: 0 | CV96: 0 | CW96: 0 | CX96: 0 | CY96: 0 | CZ96: 55 | DA96: 0 | DB96: 0 | DC96: 0 | DD96: 95874.256 | DE96: 0 | DF96: 0 | DG96: 0 | DH96: 0 | DI96: 0 | DK96: =SUM(($E$32:$E$81=$CZ96)*($F$32:$F$81=DK$16)*$D$32:$D$81) -> 0 | DL96: =SUM(($E$32:$E$81=$CZ96)*($F$32:$F$81=DL$16)*($D$32:$D$81)) -> 0 | DM96: =SUM(($E$32:$E$81=$CZ96)*($F$32:$F$81=DM$16)*$D$32:$D$81) -> 0 | DN96: =SUM(($E$32:$E$81=$CZ96)*($F$32:$F$81=DN$16)*$D$32:$D$81) -> 0 | DO96: =SUM(($E$32:$E$81=$CZ96)*($F$32:$F$81=DO$16)*$D$32:$D$81) -> 0 | DP96: =SUM(($E$32:$E$81=$CZ96)*($F$32:$F$81=DP$16)*$D$32:$D$81) -> 0 | DQ96: =SUM(($E$32:$E$81=$CZ96)*($F$32:$F$81=DQ$16)*$D$32:$D$81) -> 0 | DR96: =SUM(($E$32:$E$81=$CZ96)*($F$32:$F$81=DR$16)*$D$32:$D$81) -> 0 | DS96: =SUM(($E$32:$E$81=$CZ96)*($F$32:$F$81=DS$16)*$D$32:$D$81) -> 0 | DU96: =$DA$96 -> 0 | DV96: =$DB$96 -> 0 | DW96: =$DC$96 -> 0 | DX96: =$DD$96 -> 95874.256 | DY96: =$DE$96 -> 0 | DZ96: =$DF$96 -> 0 | EA96: =$DG$96 -> 0 | EB96: =$DH$96 -> 0 | EC96: =$DI$96 -> 0 | EE96: =$DK$96 -> 0 | EF96: =$DL$96 -> 0 | EG96: =$DM$96 -> 0 | EH96: =$DN$96 -> 0 | EI96: =$DO$96 -> 0 | EJ96: =$DP$96 -> 0 | EK96: =$DQ$96 -> 0 | EL96: =$DR$96 -> 0 | EM96: =$DS$96 -> 0
Z97: 56 | AA97: Mon 56 | AB97: 53 | AC97: 0.007441666667 | AD97: 4018.0535 | AE97: 45 | AF97: 0.01040833333 | AG97: 5619.8755 | AK97: 39 | AL97: 0.01040833333 | AM97: 5619.8755 | AQ97: 21 | AR97: 0.02040833333 | AS97: 11019.2755 | AZ97: 27 | BA97: 0.014575 | BB97: 5830 | BC97: 54 | BD97: 0.007441666667 | BE97: 9383.941667 | BF97: 39 | BG97: 0.01040833333 | BH97: 13124.90833 | BJ97: 27 | BK97: 0.014575 | BL97: 18379.075 | BM97: 27 | BN97: 0.014575 | BO97: 7869.6255 | BP97: 39 | BQ97: 0.01040833333 | BR97: 4163.333333 | BS97: 54 | BT97: 0.007441666667 | BU97: 2976.666667 | BV97: 33 | BW97: 0.014575 | BX97: 7869.6255 | BY97: 0 | BZ97: 0 | CA97: 0 | CB97: 0 | CC97: 0 | CD97: 0 | CE97: 0 | CF97: 0 | CG97: 0 | CH97: 0 | CI97: 0 | CJ97: 0 | CK97: 0 | CL97: 0 | CM97: 0 | CN97: 0 | CO97: 0 | CP97: 0 | CQ97: 0 | CR97: 0 | CS97: 0 | CT97: 0 | CU97: 0 | CV97: 0 | CW97: 0 | CX97: 0 | CY97: 0 | CZ97: 56 | DA97: 0 | DB97: 0 | DC97: 0 | DD97: 95874.256 | DE97: 0 | DF97: 0 | DG97: 0 | DH97: 0 | DI97: 0 | DK97: =SUM(($E$32:$E$81=$CZ97)*($F$32:$F$81=DK$16)*$D$32:$D$81) -> 0 | DL97: =SUM(($E$32:$E$81=$CZ97)*($F$32:$F$81=DL$16)*($D$32:$D$81)) -> 0 | DM97: =SUM(($E$32:$E$81=$CZ97)*($F$32:$F$81=DM$16)*$D$32:$D$81) -> 0 | DN97: =SUM(($E$32:$E$81=$CZ97)*($F$32:$F$81=DN$16)*$D$32:$D$81) -> 0 | DO97: =SUM(($E$32:$E$81=$CZ97)*($F$32:$F$81=DO$16)*$D$32:$D$81) -> 0 | DP97: =SUM(($E$32:$E$81=$CZ97)*($F$32:$F$81=DP$16)*$D$32:$D$81) -> 0 | DQ97: =SUM(($E$32:$E$81=$CZ97)*($F$32:$F$81=DQ$16)*$D$32:$D$81) -> 0 | DR97: =SUM(($E$32:$E$81=$CZ97)*($F$32:$F$81=DR$16)*$D$32:$D$81) -> 0 | DS97: =SUM(($E$32:$E$81=$CZ97)*($F$32:$F$81=DS$16)*$D$32:$D$81) -> 0 | DU97: =$DA$97 -> 0 | DV97: =$DB$97 -> 0 | DW97: =$DC$97 -> 0 | DX97: =$DD$97 -> 95874.256 | DY97: =$DE$97 -> 0 | DZ97: =$DF$97 -> 0 | EA97: =$DG$97 -> 0 | EB97: =$DH$97 -> 0 | EC97: =$DI$97 -> 0 | EE97: =$DK$97 -> 0 | EF97: =$DL$97 -> 0 | EG97: =$DM$97 -> 0 | EH97: =$DN$97 -> 0 | EI97: =$DO$97 -> 0 | EJ97: =$DP$97 -> 0 | EK97: =$DQ$97 -> 0 | EL97: =$DR$97 -> 0 | EM97: =$DS$97 -> 0
Z98: 57 | AA98: Mon 57 | AB98: 54 | AC98: 0.007441666667 | AD98: 4018.0535 | AE98: 46 | AF98: 0.01040833333 | AG98: 5619.8755 | AK98: 40 | AL98: 0.01040833333 | AM98: 5619.8755 | AQ98: 22 | AR98: 0.02040833333 | AS98: 11019.2755 | AZ98: 28 | BA98: 0.014575 | BB98: 5830 | BC98: 55 | BD98: 0.007441666667 | BE98: 9383.941667 | BF98: 40 | BG98: 0.01040833333 | BH98: 13124.90833 | BJ98: 28 | BK98: 0.014575 | BL98: 18379.075 | BM98: 28 | BN98: 0.014575 | BO98: 7869.6255 | BP98: 40 | BQ98: 0.01040833333 | BR98: 4163.333333 | BS98: 55 | BT98: 0.007441666667 | BU98: 2976.666667 | BV98: 34 | BW98: 0.014575 | BX98: 7869.6255 | BY98: 0 | BZ98: 0 | CA98: 0 | CB98: 0 | CC98: 0 | CD98: 0 | CE98: 0 | CF98: 0 | CG98: 0 | CH98: 0 | CI98: 0 | CJ98: 0 | CK98: 0 | CL98: 0 | CM98: 0 | CN98: 0 | CO98: 0 | CP98: 0 | CQ98: 0 | CR98: 0 | CS98: 0 | CT98: 0 | CU98: 0 | CV98: 0 | CW98: 0 | CX98: 0 | CY98: 0 | CZ98: 57 | DA98: 0 | DB98: 0 | DC98: 0 | DD98: 95874.256 | DE98: 0 | DF98: 0 | DG98: 0 | DH98: 0 | DI98: 0 | DK98: =SUM(($E$32:$E$81=$CZ98)*($F$32:$F$81=DK$16)*$D$32:$D$81) -> 0 | DL98: =SUM(($E$32:$E$81=$CZ98)*($F$32:$F$81=DL$16)*($D$32:$D$81)) -> 0 | DM98: =SUM(($E$32:$E$81=$CZ98)*($F$32:$F$81=DM$16)*$D$32:$D$81) -> 0 | DN98: =SUM(($E$32:$E$81=$CZ98)*($F$32:$F$81=DN$16)*$D$32:$D$81) -> 0 | DO98: =SUM(($E$32:$E$81=$CZ98)*($F$32:$F$81=DO$16)*$D$32:$D$81) -> 0 | DP98: =SUM(($E$32:$E$81=$CZ98)*($F$32:$F$81=DP$16)*$D$32:$D$81) -> 0 | DQ98: =SUM(($E$32:$E$81=$CZ98)*($F$32:$F$81=DQ$16)*$D$32:$D$81) -> 0 | DR98: =SUM(($E$32:$E$81=$CZ98)*($F$32:$F$81=DR$16)*$D$32:$D$81) -> 0 | DS98: =SUM(($E$32:$E$81=$CZ98)*($F$32:$F$81=DS$16)*$D$32:$D$81) -> 0 | DU98: =$DA$98 -> 0 | DV98: =$DB$98 -> 0 | DW98: =$DC$98 -> 0 | DX98: =$DD$98 -> 95874.256 | DY98: =$DE$98 -> 0 | DZ98: =$DF$98 -> 0 | EA98: =$DG$98 -> 0 | EB98: =$DH$98 -> 0 | EC98: =$DI$98 -> 0 | EE98: =$DK$98 -> 0 | EF98: =$DL$98 -> 0 | EG98: =$DM$98 -> 0 | EH98: =$DN$98 -> 0 | EI98: =$DO$98 -> 0 | EJ98: =$DP$98 -> 0 | EK98: =$DQ$98 -> 0 | EL98: =$DR$98 -> 0 | EM98: =$DS$98 -> 0
C99: =IF(COUNTIF(E86:E95,"<0")>0,"(With a prior period entry, you need to enter information on Historicals)","") ->  | Z99: 58 | AA99: Mon 58 | AB99: 55 | AC99: 0.007441666667 | AD99: 4018.0535 | AE99: 47 | AF99: 0.01040833333 | AG99: 5619.8755 | AK99: 41 | AL99: 0.01040833333 | AM99: 5619.8755 | AQ99: 23 | AR99: 0.02040833333 | AS99: 11019.2755 | AZ99: 29 | BA99: 0.014575 | BB99: 5830 | BC99: 56 | BD99: 0.007441666667 | BE99: 9383.941667 | BF99: 41 | BG99: 0.01040833333 | BH99: 13124.90833 | BJ99: 29 | BK99: 0.014575 | BL99: 18379.075 | BM99: 29 | BN99: 0.014575 | BO99: 7869.6255 | BP99: 41 | BQ99: 0.01040833333 | BR99: 4163.333333 | BS99: 56 | BT99: 0.007441666667 | BU99: 2976.666667 | BV99: 35 | BW99: 0.014575 | BX99: 7869.6255 | BY99: 0 | BZ99: 0 | CA99: 0 | CB99: 0 | CC99: 0 | CD99: 0 | CE99: 0 | CF99: 0 | CG99: 0 | CH99: 0 | CI99: 0 | CJ99: 0 | CK99: 0 | CL99: 0 | CM99: 0 | CN99: 0 | CO99: 0 | CP99: 0 | CQ99: 0 | CR99: 0 | CS99: 0 | CT99: 0 | CU99: 0 | CV99: 0 | CW99: 0 | CX99: 0 | CY99: 0 | CZ99: 58 | DA99: 0 | DB99: 0 | DC99: 0 | DD99: 95874.256 | DE99: 0 | DF99: 0 | DG99: 0 | DH99: 0 | DI99: 0 | DK99: =SUM(($E$32:$E$81=$CZ99)*($F$32:$F$81=DK$16)*$D$32:$D$81) -> 0 | DL99: =SUM(($E$32:$E$81=$CZ99)*($F$32:$F$81=DL$16)*($D$32:$D$81)) -> 0 | DM99: =SUM(($E$32:$E$81=$CZ99)*($F$32:$F$81=DM$16)*$D$32:$D$81) -> 0 | DN99: =SUM(($E$32:$E$81=$CZ99)*($F$32:$F$81=DN$16)*$D$32:$D$81) -> 0 | DO99: =SUM(($E$32:$E$81=$CZ99)*($F$32:$F$81=DO$16)*$D$32:$D$81) -> 0 | DP99: =SUM(($E$32:$E$81=$CZ99)*($F$32:$F$81=DP$16)*$D$32:$D$81) -> 0 | DQ99: =SUM(($E$32:$E$81=$CZ99)*($F$32:$F$81=DQ$16)*$D$32:$D$81) -> 0 | DR99: =SUM(($E$32:$E$81=$CZ99)*($F$32:$F$81=DR$16)*$D$32:$D$81) -> 0 | DS99: =SUM(($E$32:$E$81=$CZ99)*($F$32:$F$81=DS$16)*$D$32:$D$81) -> 0 | DU99: =$DA$99 -> 0 | DV99: =$DB$99 -> 0 | DW99: =$DC$99 -> 0 | DX99: =$DD$99 -> 95874.256 | DY99: =$DE$99 -> 0 | DZ99: =$DF$99 -> 0 | EA99: =$DG$99 -> 0 | EB99: =$DH$99 -> 0 | EC99: =$DI$99 -> 0 | EE99: =$DK$99 -> 0 | EF99: =$DL$99 -> 0 | EG99: =$DM$99 -> 0 | EH99: =$DN$99 -> 0 | EI99: =$DO$99 -> 0 | EJ99: =$DP$99 -> 0 | EK99: =$DQ$99 -> 0 | EL99: =$DR$99 -> 0 | EM99: =$DS$99 -> 0
Z100: 59 | AA100: Mon 59 | AB100: 56 | AC100: 0.007441666667 | AD100: 4018.0535 | AE100: 48 | AF100: 0.01040833333 | AG100: 5619.8755 | AK100: 42 | AL100: 0.01040833333 | AM100: 5619.8755 | AQ100: 24 | AR100: 0.02040833333 | AS100: 11019.2755 | AZ100: 30 | BA100: 0.014575 | BB100: 5830 | BC100: 57 | BD100: 0.007441666667 | BE100: 9383.941667 | BF100: 42 | BG100: 0.01040833333 | BH100: 13124.90833 | BJ100: 30 | BK100: 0.014575 | BL100: 18379.075 | BM100: 30 | BN100: 0.014575 | BO100: 7869.6255 | BP100: 42 | BQ100: 0.01040833333 | BR100: 4163.333333 | BS100: 57 | BT100: 0.007441666667 | BU100: 2976.666667 | BV100: 36 | BW100: 0.014575 | BX100: 7869.6255 | BY100: 0 | BZ100: 0 | CA100: 0 | CB100: 0 | CC100: 0 | CD100: 0 | CE100: 0 | CF100: 0 | CG100: 0 | CH100: 0 | CI100: 0 | CJ100: 0 | CK100: 0 | CL100: 0 | CM100: 0 | CN100: 0 | CO100: 0 | CP100: 0 | CQ100: 0 | CR100: 0 | CS100: 0 | CT100: 0 | CU100: 0 | CV100: 0 | CW100: 0 | CX100: 0 | CY100: 0 | CZ100: 59 | DA100: 0 | DB100: 0 | DC100: 0 | DD100: 95874.256 | DE100: 0 | DF100: 0 | DG100: 0 | DH100: 0 | DI100: 0 | DK100: =SUM(($E$32:$E$81=$CZ100)*($F$32:$F$81=DK$16)*$D$32:$D$81) -> 0 | DL100: =SUM(($E$32:$E$81=$CZ100)*($F$32:$F$81=DL$16)*($D$32:$D$81)) -> 0 | DM100: =SUM(($E$32:$E$81=$CZ100)*($F$32:$F$81=DM$16)*$D$32:$D$81) -> 0 | DN100: =SUM(($E$32:$E$81=$CZ100)*($F$32:$F$81=DN$16)*$D$32:$D$81) -> 0 | DO100: =SUM(($E$32:$E$81=$CZ100)*($F$32:$F$81=DO$16)*$D$32:$D$81) -> 0 | DP100: =SUM(($E$32:$E$81=$CZ100)*($F$32:$F$81=DP$16)*$D$32:$D$81) -> 0 | DQ100: =SUM(($E$32:$E$81=$CZ100)*($F$32:$F$81=DQ$16)*$D$32:$D$81) -> 0 | DR100: =SUM(($E$32:$E$81=$CZ100)*($F$32:$F$81=DR$16)*$D$32:$D$81) -> 0 | DS100: =SUM(($E$32:$E$81=$CZ100)*($F$32:$F$81=DS$16)*$D$32:$D$81) -> 0 | DU100: =$DA$100 -> 0 | DV100: =$DB$100 -> 0 | DW100: =$DC$100 -> 0 | DX100: =$DD$100 -> 95874.256 | DY100: =$DE$100 -> 0 | DZ100: =$DF$100 -> 0 | EA100: =$DG$100 -> 0 | EB100: =$DH$100 -> 0 | EC100: =$DI$100 -> 0 | EE100: =$DK$100 -> 0 | EF100: =$DL$100 -> 0 | EG100: =$DM$100 -> 0 | EH100: =$DN$100 -> 0 | EI100: =$DO$100 -> 0 | EJ100: =$DP$100 -> 0 | EK100: =$DQ$100 -> 0 | EL100: =$DR$100 -> 0 | EM100: =$DS$100 -> 0
Z101: 60 | AA101: Mon 60 | AB101: 57 | AC101: 0.007441666667 | AD101: 4018.0535 | AE101: 49 | AF101: 0.007441666667 | AG101: 4018.0535 | AK101: 43 | AL101: 0.01040833333 | AM101: 5619.8755 | AQ101: 25 | AR101: 0.014575 | AS101: 7869.6255 | AZ101: 31 | BA101: 0.014575 | BB101: 5830 | BC101: 58 | BD101: 0.007441666667 | BE101: 9383.941667 | BF101: 43 | BG101: 0.01040833333 | BH101: 13124.90833 | BJ101: 31 | BK101: 0.014575 | BL101: 18379.075 | BM101: 31 | BN101: 0.014575 | BO101: 7869.6255 | BP101: 43 | BQ101: 0.01040833333 | BR101: 4163.333333 | BS101: 58 | BT101: 0.007441666667 | BU101: 2976.666667 | BV101: 37 | BW101: 0.01040833333 | BX101: 5619.8755 | BY101: 0 | BZ101: 0 | CA101: 0 | CB101: 0 | CC101: 0 | CD101: 0 | CE101: 0 | CF101: 0 | CG101: 0 | CH101: 0 | CI101: 0 | CJ101: 0 | CK101: 0 | CL101: 0 | CM101: 0 | CN101: 0 | CO101: 0 | CP101: 0 | CQ101: 0 | CR101: 0 | CS101: 0 | CT101: 0 | CU101: 0 | CV101: 0 | CW101: 0 | CX101: 0 | CY101: 0 | CZ101: 60 | DA101: 0 | DB101: 0 | DC101: 0 | DD101: 88873.034 | DE101: 0 | DF101: 0 | DG101: 0 | DH101: 0 | DI101: 0 | DK101: =SUM(($E$32:$E$81=$CZ101)*($F$32:$F$81=DK$16)*$D$32:$D$81) -> 0 | DL101: =SUM(($E$32:$E$81=$CZ101)*($F$32:$F$81=DL$16)*($D$32:$D$81)) -> 0 | DM101: =SUM(($E$32:$E$81=$CZ101)*($F$32:$F$81=DM$16)*$D$32:$D$81) -> 0 | DN101: =SUM(($E$32:$E$81=$CZ101)*($F$32:$F$81=DN$16)*$D$32:$D$81) -> 0 | DO101: =SUM(($E$32:$E$81=$CZ101)*($F$32:$F$81=DO$16)*$D$32:$D$81) -> 0 | DP101: =SUM(($E$32:$E$81=$CZ101)*($F$32:$F$81=DP$16)*$D$32:$D$81) -> 0 | DQ101: =SUM(($E$32:$E$81=$CZ101)*($F$32:$F$81=DQ$16)*$D$32:$D$81) -> 0 | DR101: =SUM(($E$32:$E$81=$CZ101)*($F$32:$F$81=DR$16)*$D$32:$D$81) -> 0 | DS101: =SUM(($E$32:$E$81=$CZ101)*($F$32:$F$81=DS$16)*$D$32:$D$81) -> 0 | DU101: =$DA$101 -> 0 | DV101: =$DB$101 -> 0 | DW101: =$DC$101 -> 0 | DX101: =$DD$101 -> 88873.034 | DY101: =$DE$101 -> 0 | DZ101: =$DF$101 -> 0 | EA101: =$DG$101 -> 0 | EB101: =$DH$101 -> 0 | EC101: =$DI$101 -> 0 | EE101: =$DK$101 -> 0 | EF101: =$DL$101 -> 0 | EG101: =$DM$101 -> 0 | EH101: =$DN$101 -> 0 | EI101: =$DO$101 -> 0 | EJ101: =$DP$101 -> 0 | EK101: =$DQ$101 -> 0 | EL101: =$DR$101 -> 0 | EM101: =$DS$101 -> 0
AD102: =SUM(AD18:AD101) -> 407425.2255 | AG102: =SUM(AG18:AG101) -> 375280.7975 | AJ102: =SUM(AJ18:AJ101) ->  | AM102: =SUM(AM18:AM101) -> 343163.3665 | AP102: =SUM(AP18:AP101) ->  | AS102: =SUM(AS18:AS101) -> 217258.3575 | AV102: =SUM(AV18:AV101) ->  | AY102: =SUM(AY18:AY101) ->  | BB102: =SUM(BB18:BB101) -> 195930 | BE102: =SUM(BE18:BE101) -> 960903.0167 | BH102: =SUM(BH18:BH101) -> 801439.0583 | BL102: =SUM(BL18:BL101) -> 617669.325 | BO102: =SUM(BO18:BO101) -> 264476.1105 | BR102: =SUM(BR18:BR101) -> 254223.3333 | BU102: =SUM(BU18:BU101) -> 304806.6667 | BX102: =SUM(BX18:BX101) -> 309444.1135 | CA102: =SUM(CA18:CA101) -> 0 | CD102: =SUM(CD18:CD101) -> 0 | CG102: =SUM(CG18:CG101) -> 0 | CJ102: =SUM(CJ18:CJ101) -> 0 | CM102: =SUM(CM18:CM101) -> 0 | CP102: =SUM(CP18:CP101) -> 0 | CS102: =SUM(CS18:CS101) -> 0 | CV102: =SUM(CV18:CV101) -> 0 | CY102: =SUM(CY18:CY101) -> 0 | DA102: =SUM(DA17:DA101) -> 0 | DB102: =SUM(DB18:DB101) -> 0 | DC102: =SUM(DC18:DC101) -> 0 | DD102: =SUM(DD18:DD101) -> 5052019.371 | DE102: =SUM(DE17:DE101) -> 0 | DF102: =SUM(DF17:DF101) -> 0 | DG102: =SUM(DG17:DG101) -> 0 | DH102: =SUM(DH17:DH101) -> 0 | DI102: =SUM(DI17:DI101) -> 0
CZ104: Total Expenditures | DA104: =SUMIF($F32:$F81,DA16,$D32:$D81) -> 0 | DB104: 0 | DC104: 0 | DD104: 8222640 | DE104: 0 | DF104: 0 | DG104: 0 | DH104: 0 | DI104: 0
CZ105: Balance Sheet Line Maker | DA105: =IF(DA102>0,1,0) -> 0 | DB105: 0 | DC105: 0 | DD105: 1 | DE105: 0 | DF105: 0 | DG105: 0 | DH105: 0 | DI105: 0
AJ106: 3 | AK106: 5 | AL106: 7 | AM106: 10 | AN106: 15 | AO106: 20 | AP106: 27.5 | AQ106: 39 | AR106: Land
AJ107: 2 | AK107: 3 | AL107: 4 | AM107: 5 | AN107: 6 | AO107: 7 | AP107: 8 | AQ107: 9
AA108: Recovery Year | AB108: 3 | AC108: 5 | AD108: 7 | AE108: 10 | AF108: 15 | AG108: 20
AA109: 1 | AB109: 33.33 | AC109: 20 | AD109: 14.29 | AE109: 10 | AF109: 5 | AG109: 3.75 | AI109: 1 | AJ109: =AB$109/12/100 -> 0.027775 | AK109: =AC$109/12/100 -> 0.01666666667 | AL109: =AD$109/12/100 -> 0.01190833333 | AM109: =AE$109/12/100 -> 0.008333333333 | AN109: =AF$109/12/100 -> 0.004166666667 | AO109: =AG$109/12/100 -> 0.003125 | AP109: 0.00303030303 | AQ109: 0.002136752137
AA110: 2 | AB110: 44.45 | AC110: 32 | AD110: 24.49 | AE110: 18 | AF110: 9.5 | AG110: 7.219 | AI110: 2 | AJ110: 0.027775 | AK110: 0.01666666667 | AL110: 0.01190833333 | AM110: 0.008333333333 | AN110: 0.004166666667 | AO110: 0.003125 | AP110: 0.00303030303 | AQ110: 0.002136752137
AA111: 3 | AB111: 14.81 | AC111: 19.2 | AD111: 17.49 | AE111: 14.4 | AF111: 8.55 | AG111: 6.677 | AI111: 3 | AJ111: 0.027775 | AK111: 0.01666666667 | AL111: 0.01190833333 | AM111: 0.008333333333 | AN111: 0.004166666667 | AO111: 0.003125 | AP111: 0.00303030303 | AQ111: 0.002136752137
AA112: 4 | AB112: 7.41 | AC112: 11.52 | AD112: 12.49 | AE112: 11.52 | AF112: 7.7 | AG112: 6.177 | AI112: 4 | AJ112: 0.027775 | AK112: 0.01666666667 | AL112: 0.01190833333 | AM112: 0.008333333333 | AN112: 0.004166666667 | AO112: 0.003125 | AP112: 0.00303030303 | AQ112: 0.002136752137
AA113: 5 | AC113: 11.52 | AD113: 8.93 | AE113: 9.22 | AF113: 6.93 | AG113: 5.713 | AI113: 5 | AJ113: 0.027775 | AK113: 0.01666666667 | AL113: 0.01190833333 | AM113: 0.008333333333 | AN113: 0.004166666667 | AO113: 0.003125 | AP113: 0.00303030303 | AQ113: 0.002136752137
AA114: 6 | AC114: 5.76 | AD114: 8.93 | AE114: 7.37 | AF114: 6.23 | AG114: 5.285 | AI114: 6 | AJ114: 0.027775 | AK114: 0.01666666667 | AL114: 0.01190833333 | AM114: 0.008333333333 | AN114: 0.004166666667 | AO114: 0.003125 | AP114: 0.00303030303 | AQ114: 0.002136752137
AA115: 7 | AD115: 8.93 | AE115: 6.55 | AF115: 5.9 | AG115: 4.888 | AI115: 7 | AJ115: 0.027775 | AK115: 0.01666666667 | AL115: 0.01190833333 | AM115: 0.008333333333 | AN115: 0.004166666667 | AO115: 0.003125 | AP115: 0.00303030303 | AQ115: 0.002136752137
AA116: 8 | AD116: 4.46 | AE116: 6.55 | AF116: 5.9 | AG116: 4.522 | AI116: 8 | AJ116: 0.027775 | AK116: 0.01666666667 | AL116: 0.01190833333 | AM116: 0.008333333333 | AN116: 0.004166666667 | AO116: 0.003125 | AP116: 0.00303030303 | AQ116: 0.002136752137
AA117: 9 | AE117: 6.56 | AF117: 5.91 | AG117: 4.462 | AI117: 9 | AJ117: 0.027775 | AK117: 0.01666666667 | AL117: 0.01190833333 | AM117: 0.008333333333 | AN117: 0.004166666667 | AO117: 0.003125 | AP117: 0.00303030303 | AQ117: 0.002136752137
AA118: 10 | AE118: 6.55 | AF118: 5.9 | AG118: 4.461 | AI118: 10 | AJ118: 0.027775 | AK118: 0.01666666667 | AL118: 0.01190833333 | AM118: 0.008333333333 | AN118: 0.004166666667 | AO118: 0.003125 | AP118: 0.00303030303 | AQ118: 0.002136752137
AA119: 11 | AE119: 3.28 | AF119: 5.91 | AG119: 4.462 | AI119: 11 | AJ119: 0.027775 | AK119: 0.01666666667 | AL119: 0.01190833333 | AM119: 0.008333333333 | AN119: 0.004166666667 | AO119: 0.003125 | AP119: 0.00303030303 | AQ119: 0.002136752137
AA120: 12 | AF120: 5.9 | AG120: 4.461 | AI120: 12 | AJ120: 0.027775 | AK120: 0.01666666667 | AL120: 0.01190833333 | AM120: 0.008333333333 | AN120: 0.004166666667 | AO120: 0.003125 | AP120: 0.00303030303 | AQ120: 0.002136752137
AA121: 13 | AF121: 5.91 | AG121: 4.462 | AI121: 13 | AJ121: =AB$110/12/100 -> 0.03704166667 | AK121: =AC$110/12/100 -> 0.02666666667 | AL121: =AD$110/12/100 -> 0.02040833333 | AM121: =AE$110/12/100 -> 0.015 | AN121: =AF$110/12/100 -> 0.007916666667 | AO121: =AG$110/12/100 -> 0.006015833333 | AP121: 0.00303030303 | AQ121: 0.002136752137
AA122: 14 | AF122: 5.9 | AG122: 4.461 | AI122: 14 | AJ122: 0.03704166667 | AK122: 0.02666666667 | AL122: 0.02040833333 | AM122: 0.015 | AN122: 0.007916666667 | AO122: 0.006015833333 | AP122: 0.00303030303 | AQ122: 0.002136752137
AA123: 15 | AF123: 5.91 | AG123: 4.462 | AI123: 15 | AJ123: 0.03704166667 | AK123: 0.02666666667 | AL123: 0.02040833333 | AM123: 0.015 | AN123: 0.007916666667 | AO123: 0.006015833333 | AP123: 0.00303030303 | AQ123: 0.002136752137
AA124: 16 | AF124: 2.95 | AG124: 4.461 | AI124: 16 | AJ124: 0.03704166667 | AK124: 0.02666666667 | AL124: 0.02040833333 | AM124: 0.015 | AN124: 0.007916666667 | AO124: 0.006015833333 | AP124: 0.00303030303 | AQ124: 0.002136752137
AA125: 17 | AG125: 4.462 | AI125: 17 | AJ125: 0.03704166667 | AK125: 0.02666666667 | AL125: 0.02040833333 | AM125: 0.015 | AN125: 0.007916666667 | AO125: 0.006015833333 | AP125: 0.00303030303 | AQ125: 0.002136752137
AA126: 18 | AG126: 4.461 | AI126: 18 | AJ126: 0.03704166667 | AK126: 0.02666666667 | AL126: 0.02040833333 | AM126: 0.015 | AN126: 0.007916666667 | AO126: 0.006015833333 | AP126: 0.00303030303 | AQ126: 0.002136752137
AA127: 19 | AG127: 4.462 | AI127: 19 | AJ127: 0.03704166667 | AK127: 0.02666666667 | AL127: 0.02040833333 | AM127: 0.015 | AN127: 0.007916666667 | AO127: 0.006015833333 | AP127: 0.00303030303 | AQ127: 0.002136752137
AA128: 20 | AG128: 4.461 | AI128: 20 | AJ128: 0.03704166667 | AK128: 0.02666666667 | AL128: 0.02040833333 | AM128: 0.015 | AN128: 0.007916666667 | AO128: 0.006015833333 | AP128: 0.00303030303 | AQ128: 0.002136752137
AA129: 21 | AG129: 2.231 | AI129: 21 | AJ129: 0.03704166667 | AK129: 0.02666666667 | AL129: 0.02040833333 | AM129: 0.015 | AN129: 0.007916666667 | AO129: 0.006015833333 | AP129: 0.00303030303 | AQ129: 0.002136752137
AC130: =100/AD14 -> 1.111111111 | AI130: 22 | AJ130: 0.03704166667 | AK130: 0.02666666667 | AL130: 0.02040833333 | AM130: 0.015 | AN130: 0.007916666667 | AO130: 0.006015833333 | AP130: 0.00303030303 | AQ130: 0.002136752137
AI131: 23 | AJ131: 0.03704166667 | AK131: 0.02666666667 | AL131: 0.02040833333 | AM131: 0.015 | AN131: 0.007916666667 | AO131: 0.006015833333 | AP131: 0.00303030303 | AQ131: 0.002136752137
AI132: 24 | AJ132: 0.03704166667 | AK132: 0.02666666667 | AL132: 0.02040833333 | AM132: 0.015 | AN132: 0.007916666667 | AO132: 0.006015833333 | AP132: 0.00303030303 | AQ132: 0.002136752137
AI133: 25 | AJ133: =AB$111/12/100 -> 0.01234166667 | AK133: =AC$111/12/100 -> 0.016 | AL133: =AD$111/12/100 -> 0.014575 | AM133: =AE$111/12/100 -> 0.012 | AN133: =AF$111/12/100 -> 0.007125 | AO133: =AG$111/12/100 -> 0.005564166667 | AP133: 0.00303030303 | AQ133: 0.002136752137
AI134: 26 | AJ134: 0.01234166667 | AK134: 0.016 | AL134: 0.014575 | AM134: 0.012 | AN134: 0.007125 | AO134: 0.005564166667 | AP134: 0.00303030303 | AQ134: 0.002136752137
AI135: 27 | AJ135: 0.01234166667 | AK135: 0.016 | AL135: 0.014575 | AM135: 0.012 | AN135: 0.007125 | AO135: 0.005564166667 | AP135: 0.00303030303 | AQ135: 0.002136752137
AI136: 28 | AJ136: 0.01234166667 | AK136: 0.016 | AL136: 0.014575 | AM136: 0.012 | AN136: 0.007125 | AO136: 0.005564166667 | AP136: 0.00303030303 | AQ136: 0.002136752137
AI137: 29 | AJ137: 0.01234166667 | AK137: 0.016 | AL137: 0.014575 | AM137: 0.012 | AN137: 0.007125 | AO137: 0.005564166667 | AP137: 0.00303030303 | AQ137: 0.002136752137
AC138: =1/AD14*100 -> 1.111111111 | AI138: 30 | AJ138: 0.01234166667 | AK138: 0.016 | AL138: 0.014575 | AM138: 0.012 | AN138: 0.007125 | AO138: 0.005564166667 | AP138: 0.00303030303 | AQ138: 0.002136752137
AI139: 31 | AJ139: 0.01234166667 | AK139: 0.016 | AL139: 0.014575 | AM139: 0.012 | AN139: 0.007125 | AO139: 0.005564166667 | AP139: 0.00303030303 | AQ139: 0.002136752137
AI140: 32 | AJ140: 0.01234166667 | AK140: 0.016 | AL140: 0.014575 | AM140: 0.012 | AN140: 0.007125 | AO140: 0.005564166667 | AP140: 0.00303030303 | AQ140: 0.002136752137
AI141: 33 | AJ141: 0.01234166667 | AK141: 0.016 | AL141: 0.014575 | AM141: 0.012 | AN141: 0.007125 | AO141: 0.005564166667 | AP141: 0.00303030303 | AQ141: 0.002136752137
AI142: 34 | AJ142: 0.01234166667 | AK142: 0.016 | AL142: 0.014575 | AM142: 0.012 | AN142: 0.007125 | AO142: 0.005564166667 | AP142: 0.00303030303 | AQ142: 0.002136752137
AI143: 35 | AJ143: 0.01234166667 | AK143: 0.016 | AL143: 0.014575 | AM143: 0.012 | AN143: 0.007125 | AO143: 0.005564166667 | AP143: 0.00303030303 | AQ143: 0.002136752137
AI144: 36 | AJ144: 0.01234166667 | AK144: 0.016 | AL144: 0.014575 | AM144: 0.012 | AN144: 0.007125 | AO144: 0.005564166667 | AP144: 0.00303030303 | AQ144: 0.002136752137
AI145: 37 | AJ145: =AB$112/6/100 -> 0.01235 | AK145: =AC$112/12/100 -> 0.0096 | AL145: =AD$112/12/100 -> 0.01040833333 | AM145: =AE$112/12/100 -> 0.0096 | AN145: =AF$112/12/100 -> 0.006416666667 | AO145: =AG$112/12/100 -> 0.0051475 | AP145: 0.00303030303 | AQ145: 0.002136752137
AI146: 38 | AJ146: 0.01235 | AK146: 0.0096 | AL146: 0.01040833333 | AM146: 0.0096 | AN146: 0.006416666667 | AO146: 0.0051475 | AP146: 0.00303030303 | AQ146: 0.002136752137
AI147: 39 | AJ147: 0.01235 | AK147: 0.0096 | AL147: 0.01040833333 | AM147: 0.0096 | AN147: 0.006416666667 | AO147: 0.0051475 | AP147: 0.00303030303 | AQ147: 0.002136752137
AI148: 40 | AJ148: 0.01235 | AK148: 0.0096 | AL148: 0.01040833333 | AM148: 0.0096 | AN148: 0.006416666667 | AO148: 0.0051475 | AP148: 0.00303030303 | AQ148: 0.002136752137
AI149: 41 | AJ149: 0.01235 | AK149: 0.0096 | AL149: 0.01040833333 | AM149: 0.0096 | AN149: 0.006416666667 | AO149: 0.0051475 | AP149: 0.00303030303 | AQ149: 0.002136752137
AI150: 42 | AJ150: 0.01235 | AK150: 0.0096 | AL150: 0.01040833333 | AM150: 0.0096 | AN150: 0.006416666667 | AO150: 0.0051475 | AP150: 0.00303030303 | AQ150: 0.002136752137
AI151: 43 | AK151: 0.0096 | AL151: 0.01040833333 | AM151: 0.0096 | AN151: 0.006416666667 | AO151: 0.0051475 | AP151: 0.00303030303 | AQ151: 0.002136752137
AI152: 44 | AK152: 0.0096 | AL152: 0.01040833333 | AM152: 0.0096 | AN152: 0.006416666667 | AO152: 0.0051475 | AP152: 0.00303030303 | AQ152: 0.002136752137
AI153: 45 | AK153: 0.0096 | AL153: 0.01040833333 | AM153: 0.0096 | AN153: 0.006416666667 | AO153: 0.0051475 | AP153: 0.00303030303 | AQ153: 0.002136752137
AI154: 46 | AK154: 0.0096 | AL154: 0.01040833333 | AM154: 0.0096 | AN154: 0.006416666667 | AO154: 0.0051475 | AP154: 0.00303030303 | AQ154: 0.002136752137
AI155: 47 | AK155: 0.0096 | AL155: 0.01040833333 | AM155: 0.0096 | AN155: 0.006416666667 | AO155: 0.0051475 | AP155: 0.00303030303 | AQ155: 0.002136752137
AI156: 48 | AK156: 0.0096 | AL156: 0.01040833333 | AM156: 0.0096 | AN156: 0.006416666667 | AO156: 0.0051475 | AP156: 0.00303030303 | AQ156: 0.002136752137
AI157: 49 | AK157: =AC$113/12/100 -> 0.0096 | AL157: =AD$113/12/100 -> 0.007441666667 | AM157: =AE$113/12/100 -> 0.007683333333 | AN157: =AF$113/12/100 -> 0.005775 | AO157: =AG$113/12/100 -> 0.004760833333 | AP157: 0.00303030303 | AQ157: 0.002136752137
AI158: 50 | AK158: 0.0096 | AL158: 0.007441666667 | AM158: 0.007683333333 | AN158: 0.005775 | AO158: 0.004760833333 | AP158: 0.00303030303 | AQ158: 0.002136752137
AI159: 51 | AK159: 0.0096 | AL159: 0.007441666667 | AM159: 0.007683333333 | AN159: 0.005775 | AO159: 0.004760833333 | AP159: 0.00303030303 | AQ159: 0.002136752137
AI160: 52 | AK160: 0.0096 | AL160: 0.007441666667 | AM160: 0.007683333333 | AN160: 0.005775 | AO160: 0.004760833333 | AP160: 0.00303030303 | AQ160: 0.002136752137
B161: Historicals | I161: ='Chart Data'!E5 -> 35052636.96 | AI161: 53 | AK161: 0.0096 | AL161: 0.007441666667 | AM161: 0.007683333333 | AN161: 0.005775 | AO161: 0.004760833333 | AP161: 0.00303030303 | AQ161: 0.002136752137
B162: Assets | F162: NOLCF | H162: NOLCF = Net Operating Loss | AI162: 54 | AK162: 0.0096 | AL162: 0.007441666667 | AM162: 0.007683333333 | AN162: 0.005775 | AO162: 0.004760833333 | AP162: 0.00303030303 | AQ162: 0.002136752137
B163: Current Assets | H163: Carryforward. Enter an amount only if | AI163: 55 | AK163: 0.0096 | AL163: 0.007441666667 | AM163: 0.007683333333 | AN163: 0.005775 | AO163: 0.004760833333 | AP163: 0.00303030303 | AQ163: 0.002136752137
B164: Cash & Equivalents | H164: you have a C Corp, with prior period | AI164: 56 | AK164: 0.0096 | AL164: 0.007441666667 | AM164: 0.007683333333 | AN164: 0.005775 | AO164: 0.004760833333 | AP164: 0.00303030303 | AQ164: 0.002136752137
B165: Trade Accounts Receivable (net) | H165: losses to offset future taxes. | AI165: 57 | AK165: 0.0096 | AL165: 0.007441666667 | AM165: 0.007683333333 | AN165: 0.005775 | AO165: 0.004760833333 | AP165: 0.00303030303 | AQ165: 0.002136752137
B166: Inventory | AI166: 58 | AK166: 0.0096 | AL166: 0.007441666667 | AM166: 0.007683333333 | AN166: 0.005775 | AO166: 0.004760833333 | AP166: 0.00303030303 | AQ166: 0.002136752137
B167: Total Current Assets | D167: =SUM(D164:D166) -> 0 | AI167: 59 | AK167: 0.0096 | AL167: 0.007441666667 | AM167: 0.007683333333 | AN167: 0.005775 | AO167: 0.004760833333 | AP167: 0.00303030303 | AQ167: 0.002136752137
AI168: 60 | AK168: 0.0096 | AL168: 0.007441666667 | AM168: 0.007683333333 | AN168: 0.005775 | AO168: 0.004760833333 | AP168: 0.00303030303 | AQ168: 0.002136752137
B169: Intangible Assets | D169: =BB330 -> 0 | AP169: 0.00303030303 | AQ169: 0.002136752137
B170: Less: Accumulated Amortization | D170: =BB344 -> 0
B171: Net Intangible Assets | D171: =D169-D170 -> 0
AP172: 0.00303030303 | AQ172: 0.002136752137
B173: Fixed Assets
B174: =I34 -> Software | D174: =BC198 -> 0
B175: =I35 -> Computers | D175: 0
B176: =I36 -> Furniture & Equipment | D176: 0 | BB176: Historical Amounts
B177: =V1 -> Vessels / Greenhouses | D177: 0 | E177: (The amounts of these assets come
B178: =I37 -> Leasehold Improvements | D178: 0 | E178: from when you enter negative month
B179: =V2 -> Farm Buildings | D179: 0 | E179: numbers in Capital Expenditures.)
B180: =I38 -> Residential Rental Property | D180: 0
B181: =I39 -> Non-Residential Property | D181: 0
B182: =I40 -> Land | D182: 0
B183: Less: Accumulated Depreciation | D183: =BC194 -> 0 | AC183: Mon -24 | AD183: Mon -23 | AE183: Mon -22 | AF183: Mon -21 | AG183: Mon -20 | AH183: Mon -19 | AI183: Mon -18 | AJ183: Mon -17 | AK183: Mon -16 | AL183: Mon -15 | AM183: Mon -14 | AN183: Mon -13 | AO183: Mon -12 | AP183: Mon -11 | AQ183: Mon -10 | AR183: Mon -9 | AS183: Mon -8 | AT183: Mon -7 | AU183: Mon -6 | AV183: Mon -5 | AW183: Mon -4 | AX183: Mon -3 | AY183: Mon -2 | AZ183: Mon -1 | BB183: Accumulated | BE183: Mon 1 | BF183: Mon 2 | BG183: Mon 3 | BH183: Mon 4 | BJ183: Mon 5 | BK183: Mon 6 | BL183: Mon 7 | BM183: Mon 8 | BN183: Mon 9 | BO183: Mon 10 | BP183: Mon 11 | BQ183: Mon 12 | BR183: Mon 13 | BS183: Mon 14 | BT183: Mon 15 | BU183: Mon 16 | BV183: Mon 17 | BW183: Mon 18 | BX183: Mon 19 | BY183: Mon 20 | BZ183: Mon 21 | CA183: Mon 22 | CB183: Mon 23 | CC183: Mon 24 | CD183: Mon 25 | CE183: Mon 26 | CF183: Mon 27 | CG183: Mon 28 | CH183: Mon 29 | CI183: Mon 30 | CJ183: Mon 31 | CK183: Mon 32 | CL183: Mon 33 | CM183: Mon 34 | CN183: Mon 35 | CO183: Mon 36 | CP183: Mon 37 | CQ183: Mon 38 | CR183: Mon 39 | CS183: Mon 40 | CT183: Mon 41 | CU183: Mon 42 | CV183: Mon 43 | CW183: Mon 44 | CX183: Mon 45 | CY183: Mon 46 | CZ183: Mon 47 | DA183: Mon 48 | DB183: Mon 49 | DC183: Mon 50 | DD183: Mon 51 | DE183: Mon 52 | DF183: Mon 53 | DG183: Mon 54 | DH183: Mon 55 | DI183: Mon 56 | DJ183: Mon 57 | DK183: Mon 58 | DL183: Mon 59 | DM183: Mon 60
B184: Total Fixed Assets | D184: =IF(SUM(D174:D182)>0,SUM(D174:D182)-D183,D183) -> 0 | E184: =SUM(D175:D178) -> 0 | AB184: Depreciation | BB184: Depreciation
AB185: 3 | AC185: =$DB$18 -> 0 | AD185: =$DB$19 -> 0 | AE185: =$DB$20 -> 0 | AF185: =$DB$21 -> 0 | AG185: =$DB$22 -> 0 | AH185: =$DB$23 -> 0 | AI185: =$DB$24 -> 0 | AJ185: =$DB$25 -> 0 | AK185: =$DB$26 -> 0 | AL185: =$DB$27 -> 0 | AM185: =$DB$28 -> 0 | AN185: =$DB$29 -> 0 | AO185: =$DB$30 -> 0 | AP185: =$DB$31 -> 0 | AQ185: =$DB$32 -> 0 | AR185: =$DB$33 -> 0 | AS185: =$DB$34 -> 0 | AT185: =$DB$35 -> 0 | AU185: =$DB$36 -> 0 | AV185: =$DB$37 -> 0 | AW185: =$DB$38 -> 0 | AX185: =$DB$39 -> 0 | AY185: =$DB$40 -> 0 | AZ185: =$DB$41 -> 0 | BB185: 3 | BC185: =SUM(AC185:BA185) -> 0 | BE185: =$DB$42 -> 0 | BF185: =$DB$43 -> 0 | BG185: =$DB$44 -> 0 | BH185: =$DB$45 -> 0 | BJ185: =$DB$46 -> 0 | BK185: =$DB$47 -> 0 | BL185: =$DB$48 -> 0 | BM185: =$DB$49 -> 0 | BN185: =$DB$50 -> 0 | BO185: =$DB$51 -> 0 | BP185: =$DB$52 -> 0 | BQ185: =$DB$53 -> 0 | BR185: =$DB$54 -> 0 | BS185: =$DB$55 -> 0 | BT185: =$DB$56 -> 0 | BU185: =$DB$57 -> 0 | BV185: =$DB$58 -> 0 | BW185: =$DB$59 -> 0 | BX185: =$DB$60 -> 0 | BY185: =$DB$61 -> 0 | BZ185: =$DB$62 -> 0 | CA185: =$DB$63 -> 0 | CB185: =$DB$64 -> 0 | CC185: =$DB$65 -> 0 | CD185: =$DB$66 -> 0 | CE185: =$DB$67 -> 0 | CF185: =$DB$68 -> 0 | CG185: =$DB$69 -> 0 | CH185: =$DB$70 -> 0 | CI185: =$DB$71 -> 0 | CJ185: =$DB$72 -> 0 | CK185: =$DB$73 -> 0 | CL185: =$DB$74 -> 0 | CM185: =$DB$75 -> 0 | CN185: =$DB$76 -> 0 | CO185: =$DB$77 -> 0 | CP185: =$DB$78 -> 0 | CQ185: =$DB$79 -> 0 | CR185: =$DB$80 -> 0 | CS185: =$DB$81 -> 0 | CT185: =$DB$82 -> 0 | CU185: =$DB$83 -> 0 | CV185: =$DB$84 -> 0 | CW185: =$DB$85 -> 0 | CX185: =$DB$86 -> 0 | CY185: =$DB$87 -> 0 | CZ185: =$DB$88 -> 0 | DA185: =$DB$89 -> 0 | DB185: =$DB$90 -> 0 | DC185: =$DB$91 -> 0 | DD185: =$DB$92 -> 0 | DE185: =$DB$93 -> 0 | DF185: =$DB$94 -> 0 | DG185: =$DB$95 -> 0 | DH185: =$DB$96 -> 0 | DI185: =$DB$97 -> 0 | DJ185: =$DB$98 -> 0 | DK185: =$DB$99 -> 0 | DL185: =$DB$100 -> 0 | DM185: =$DB$101 -> 0
B186: Total Assets | D186: =D167+D171+D184 -> 0 | AB186: 5 | AC186: =$DC$18 -> 0 | AD186: =$DC$19 -> 0 | AE186: =$DC$20 -> 0 | AF186: =$DC$21 -> 0 | AG186: =$DC$22 -> 0 | AH186: =$DC$23 -> 0 | AI186: =$DC$24 -> 0 | AJ186: =$DC$25 -> 0 | AK186: =$DC$26 -> 0 | AL186: =$DC$27 -> 0 | AM186: =$DC$28 -> 0 | AN186: =$DC$29 -> 0 | AO186: =$DC$30 -> 0 | AP186: =$DC$31 -> 0 | AQ186: =$DC$32 -> 0 | AR186: =$DC$33 -> 0 | AS186: =$DC$34 -> 0 | AT186: =$DC$35 -> 0 | AU186: =$DC$36 -> 0 | AV186: =$DC$37 -> 0 | AW186: =$DC$38 -> 0 | AX186: =$DC$39 -> 0 | AY186: =$DC$40 -> 0 | AZ186: =$DC$41 -> 0 | BB186: 5 | BC186: 0 | BE186: =$DC$42 -> 0 | BF186: =$DC$43 -> 0 | BG186: =$DC$44 -> 0 | BH186: =$DC$45 -> 0 | BJ186: =$DC$46 -> 0 | BK186: =$DC$47 -> 0 | BL186: =$DC$48 -> 0 | BM186: =$DC$49 -> 0 | BN186: =$DC$50 -> 0 | BO186: =$DC$51 -> 0 | BP186: =$DC$52 -> 0 | BQ186: =$DC$53 -> 0 | BR186: =$DC$54 -> 0 | BS186: =$DC$55 -> 0 | BT186: =$DC$56 -> 0 | BU186: =$DC$57 -> 0 | BV186: =$DC$58 -> 0 | BW186: =$DC$59 -> 0 | BX186: =$DC$60 -> 0 | BY186: =$DC$61 -> 0 | BZ186: =$DC$62 -> 0 | CA186: =$DC$63 -> 0 | CB186: =$DC$64 -> 0 | CC186: =$DC$65 -> 0 | CD186: =$DC$66 -> 0 | CE186: =$DC$67 -> 0 | CF186: =$DC$68 -> 0 | CG186: =$DC$69 -> 0 | CH186: =$DC$70 -> 0 | CI186: =$DC$71 -> 0 | CJ186: =$DC$72 -> 0 | CK186: =$DC$73 -> 0 | CL186: =$DC$74 -> 0 | CM186: =$DC$75 -> 0 | CN186: =$DC$76 -> 0 | CO186: =$DC$77 -> 0 | CP186: =$DC$78 -> 0 | CQ186: =$DC$79 -> 0 | CR186: =$DC$80 -> 0 | CS186: =$DC$81 -> 0 | CT186: =$DC$82 -> 0 | CU186: =$DC$83 -> 0 | CV186: =$DC$84 -> 0 | CW186: =$DC$85 -> 0 | CX186: =$DC$86 -> 0 | CY186: =$DC$87 -> 0 | CZ186: =$DC$88 -> 0 | DA186: =$DC$89 -> 0 | DB186: =$DC$90 -> 0 | DC186: =$DC$91 -> 0 | DD186: =$DC$92 -> 0 | DE186: =$DC$93 -> 0 | DF186: =$DC$94 -> 0 | DG186: =$DC$95 -> 0 | DH186: =$DC$96 -> 0 | DI186: =$DC$97 -> 0 | DJ186: =$DC$98 -> 0 | DK186: =$DC$99 -> 0 | DL186: =$DC$100 -> 0 | DM186: =$DC$101 -> 0
AB187: 7 | AC187: =$DD$18 -> 0 | AD187: =$DD$19 -> 0 | AE187: =$DD$20 -> 0 | AF187: =$DD$21 -> 0 | AG187: =$DD$22 -> 0 | AH187: =$DD$23 -> 0 | AI187: =$DD$24 -> 0 | AJ187: =$DD$25 -> 0 | AK187: =$DD$26 -> 0 | AL187: =$DD$27 -> 0 | AM187: =$DD$28 -> 0 | AN187: =$DD$29 -> 0 | AO187: =$DD$30 -> 0 | AP187: =$DD$31 -> 0 | AQ187: =$DD$32 -> 0 | AR187: =$DD$33 -> 0 | AS187: =$DD$34 -> 0 | AT187: =$DD$35 -> 0 | AU187: =$DD$36 -> 0 | AV187: =$DD$37 -> 0 | AW187: =$DD$38 -> 0 | AX187: =$DD$39 -> 0 | AY187: =$DD$40 -> 0 | AZ187: =$DD$41 -> 0 | BB187: 7 | BC187: 0 | BE187: =$DD$42 -> 0 | BF187: =$DD$43 -> 0 | BG187: =$DD$44 -> 19779.74167 | BH187: =$DD$45 -> 26209.52717 | BJ187: =$DD$46 -> 26209.52717 | BK187: =$DD$47 -> 26209.52717 | BL187: =$DD$48 -> 26209.52717 | BM187: =$DD$49 -> 26209.52717 | BN187: =$DD$50 -> 26209.52717 | BO187: =$DD$51 -> 26209.52717 | BP187: =$DD$52 -> 26209.52717 | BQ187: =$DD$53 -> 32639.31267 | BR187: =$DD$54 -> 32639.31267 | BS187: =$DD$55 -> 32639.31267 | BT187: =$DD$56 -> 46757.81267 | BU187: =$DD$57 -> 51347.30267 | BV187: =$DD$58 -> 51347.30267 | BW187: =$DD$59 -> 77556.82983 | BX187: =$DD$60 -> 77556.82983 | BY187: =$DD$61 -> 77556.82983 | BZ187: =$DD$62 -> 77556.82983 | CA187: =$DD$63 -> 77556.82983 | CB187: =$DD$64 -> 77556.82983 | CC187: =$DD$65 -> 88576.10533 | CD187: =$DD$66 -> 88576.10533 | CE187: =$DD$67 -> 88576.10533 | CF187: =$DD$68 -> 78886.93867 | CG187: =$DD$69 -> 75737.28867 | CH187: =$DD$70 -> 75737.28867 | CI187: =$DD$71 -> 120654.8058 | CJ187: =$DD$72 -> 120654.8058 | CK187: =$DD$73 -> 120654.8058 | CL187: =$DD$74 -> 120654.8058 | CM187: =$DD$75 -> 120654.8058 | CN187: =$DD$76 -> 120654.8058 | CO187: =$DD$77 -> 128524.4313 | CP187: =$DD$78 -> 128524.4313 | CQ187: =$DD$79 -> 128524.4313 | CR187: =$DD$80 -> 121603.598 | CS187: =$DD$81 -> 119353.848 | CT187: =$DD$82 -> 119353.848 | CU187: =$DD$83 -> 125223.0213 | CV187: =$DD$84 -> 125223.0213 | CW187: =$DD$85 -> 125223.0213 | CX187: =$DD$86 -> 125223.0213 | CY187: =$DD$87 -> 125223.0213 | CZ187: =$DD$88 -> 125223.0213 | DA187: =$DD$89 -> 124413.1113 | DB187: =$DD$90 -> 124413.1113 | DC187: =$DD$91 -> 124413.1113 | DD187: =$DD$92 -> 119485.478 | DE187: =$DD$93 -> 117883.656 | DF187: =$DD$94 -> 117883.656 | DG187: =$DD$95 -> 95874.256 | DH187: =$DD$96 -> 95874.256 | DI187: =$DD$97 -> 95874.256 | DJ187: =$DD$98 -> 95874.256 | DK187: =$DD$99 -> 95874.256 | DL187: =$DD$100 -> 95874.256 | DM187: =$DD$101 -> 88873.034
B188: =IF(OR(Company_Type="LLC",Company_Type="LLP"),"Liabilities and Members' Capital",IF(Company_Type="S Corp","Liabilities and Shareholders' Equity","Liabilities and Stockholders' Equity")) -> Liabilities and Members' Capital | G188: Note: Short-Term is less than 12 months. | AB188: 10 | AC188: =$DE$18 -> 0 | AD188: =$DE$19 -> 0 | AE188: =$DE$20 -> 0 | AF188: =$DE$21 -> 0 | AG188: =$DE$22 -> 0 | AH188: =$DE$23 -> 0 | AI188: =$DE$24 -> 0 | AJ188: =$DE$25 -> 0 | AK188: =$DE$26 -> 0 | AL188: =$DE$27 -> 0 | AM188: =$DE$28 -> 0 | AN188: =$DE$29 -> 0 | AO188: =$DE$30 -> 0 | AP188: =$DE$31 -> 0 | AQ188: =$DE$32 -> 0 | AR188: =$DE$33 -> 0 | AS188: =$DE$34 -> 0 | AT188: =$DE$35 -> 0 | AU188: =$DE$36 -> 0 | AV188: =$DE$37 -> 0 | AW188: =$DE$38 -> 0 | AX188: =$DE$39 -> 0 | AY188: =$DE$40 -> 0 | AZ188: =$DE$41 -> 0 | BB188: 10 | BC188: 0 | BE188: =$DE$42 -> 0 | BF188: =$DE$43 -> 0 | BG188: =$DE$44 -> 0 | BH188: =$DE$45 -> 0 | BJ188: =$DE$46 -> 0 | BK188: =$DE$47 -> 0 | BL188: =$DE$48 -> 0 | BM188: =$DE$49 -> 0 | BN188: =$DE$50 -> 0 | BO188: =$DE$51 -> 0 | BP188: =$DE$52 -> 0 | BQ188: =$DE$53 -> 0 | BR188: =$DE$54 -> 0 | BS188: =$DE$55 -> 0 | BT188: =$DE$56 -> 0 | BU188: =$DE$57 -> 0 | BV188: =$DE$58 -> 0 | BW188: =$DE$59 -> 0 | BX188: =$DE$60 -> 0 | BY188: =$DE$61 -> 0 | BZ188: =$DE$62 -> 0 | CA188: =$DE$63 -> 0 | CB188: =$DE$64 -> 0 | CC188: =$DE$65 -> 0 | CD188: =$DE$66 -> 0 | CE188: =$DE$67 -> 0 | CF188: =$DE$68 -> 0 | CG188: =$DE$69 -> 0 | CH188: =$DE$70 -> 0 | CI188: =$DE$71 -> 0 | CJ188: =$DE$72 -> 0 | CK188: =$DE$73 -> 0 | CL188: =$DE$74 -> 0 | CM188: =$DE$75 -> 0 | CN188: =$DE$76 -> 0 | CO188: =$DE$77 -> 0 | CP188: =$DE$78 -> 0 | CQ188: =$DE$79 -> 0 | CR188: =$DE$80 -> 0 | CS188: =$DE$81 -> 0 | CT188: =$DE$82 -> 0 | CU188: =$DE$83 -> 0 | CV188: =$DE$84 -> 0 | CW188: =$DE$85 -> 0 | CX188: =$DE$86 -> 0 | CY188: =$DE$87 -> 0 | CZ188: =$DE$88 -> 0 | DA188: =$DE$89 -> 0 | DB188: =$DE$90 -> 0 | DC188: =$DE$91 -> 0 | DD188: =$DE$92 -> 0 | DE188: =$DE$93 -> 0 | DF188: =$DE$94 -> 0 | DG188: =$DE$95 -> 0 | DH188: =$DE$96 -> 0 | DI188: =$DE$97 -> 0 | DJ188: =$DE$98 -> 0 | DK188: =$DE$99 -> 0 | DL188: =$DE$100 -> 0 | DM188: =$DE$101 -> 0
AB189: 15 | AC189: =$DF$18 -> 0 | AD189: =$DF$19 -> 0 | AE189: =$DF$20 -> 0 | AF189: =$DF$21 -> 0 | AG189: =$DF$22 -> 0 | AH189: =$DF$23 -> 0 | AI189: =$DF$24 -> 0 | AJ189: =$DF$25 -> 0 | AK189: =$DF$26 -> 0 | AL189: =$DF$27 -> 0 | AM189: =$DF$28 -> 0 | AN189: =$DF$29 -> 0 | AO189: =$DF$30 -> 0 | AP189: =$DF$31 -> 0 | AQ189: =$DF$32 -> 0 | AR189: =$DF$33 -> 0 | AS189: =$DF$34 -> 0 | AT189: =$DF$35 -> 0 | AU189: =$DF$36 -> 0 | AV189: =$DF$37 -> 0 | AW189: =$DF$38 -> 0 | AX189: =$DF$39 -> 0 | AY189: =$DF$40 -> 0 | AZ189: =$DF$41 -> 0 | BB189: 15 | BC189: 0 | BE189: =$DF$42 -> 0 | BF189: =$DF$43 -> 0 | BG189: =$DF$44 -> 0 | BH189: =$DF$45 -> 0 | BJ189: =$DF$46 -> 0 | BK189: =$DF$47 -> 0 | BL189: =$DF$48 -> 0 | BM189: =$DF$49 -> 0 | BN189: =$DF$50 -> 0 | BO189: =$DF$51 -> 0 | BP189: =$DF$52 -> 0 | BQ189: =$DF$53 -> 0 | BR189: =$DF$54 -> 0 | BS189: =$DF$55 -> 0 | BT189: =$DF$56 -> 0 | BU189: =$DF$57 -> 0 | BV189: =$DF$58 -> 0 | BW189: =$DF$59 -> 0 | BX189: =$DF$60 -> 0 | BY189: =$DF$61 -> 0 | BZ189: =$DF$62 -> 0 | CA189: =$DF$63 -> 0 | CB189: =$DF$64 -> 0 | CC189: =$DF$65 -> 0 | CD189: =$DF$66 -> 0 | CE189: =$DF$67 -> 0 | CF189: =$DF$68 -> 0 | CG189: =$DF$69 -> 0 | CH189: =$DF$70 -> 0 | CI189: =$DF$71 -> 0 | CJ189: =$DF$72 -> 0 | CK189: =$DF$73 -> 0 | CL189: =$DF$74 -> 0 | CM189: =$DF$75 -> 0 | CN189: =$DF$76 -> 0 | CO189: =$DF$77 -> 0 | CP189: =$DF$78 -> 0 | CQ189: =$DF$79 -> 0 | CR189: =$DF$80 -> 0 | CS189: =$DF$81 -> 0 | CT189: =$DF$82 -> 0 | CU189: =$DF$83 -> 0 | CV189: =$DF$84 -> 0 | CW189: =$DF$85 -> 0 | CX189: =$DF$86 -> 0 | CY189: =$DF$87 -> 0 | CZ189: =$DF$88 -> 0 | DA189: =$DF$89 -> 0 | DB189: =$DF$90 -> 0 | DC189: =$DF$91 -> 0 | DD189: =$DF$92 -> 0 | DE189: =$DF$93 -> 0 | DF189: =$DF$94 -> 0 | DG189: =$DF$95 -> 0 | DH189: =$DF$96 -> 0 | DI189: =$DF$97 -> 0 | DJ189: =$DF$98 -> 0 | DK189: =$DF$99 -> 0 | DL189: =$DF$100 -> 0 | DM189: =$DF$101 -> 0
B190: Current Liabilities | G190: Short-Term | AB190: 20 | AC190: =$DG$18 -> 0 | AD190: =$DG$19 -> 0 | AE190: =$DG$20 -> 0 | AF190: =$DG$21 -> 0 | AG190: =$DG$22 -> 0 | AH190: =$DG$23 -> 0 | AI190: =$DG$24 -> 0 | AJ190: =$DG$25 -> 0 | AK190: =$DG$26 -> 0 | AL190: =$DG$27 -> 0 | AM190: =$DG$28 -> 0 | AN190: =$DG$29 -> 0 | AO190: =$DG$30 -> 0 | AP190: =$DG$31 -> 0 | AQ190: =$DG$32 -> 0 | AR190: =$DG$33 -> 0 | AS190: =$DG$34 -> 0 | AT190: =$DG$35 -> 0 | AU190: =$DG$36 -> 0 | AV190: =$DG$37 -> 0 | AW190: =$DG$38 -> 0 | AX190: =$DG$39 -> 0 | AY190: =$DG$40 -> 0 | AZ190: =$DG$41 -> 0 | BB190: 20 | BC190: 0 | BE190: =$DG$42 -> 0 | BF190: =$DG$43 -> 0 | BG190: =$DG$44 -> 0 | BH190: =$DG$45 -> 0 | BJ190: =$DG$46 -> 0 | BK190: =$DG$47 -> 0 | BL190: =$DG$48 -> 0 | BM190: =$DG$49 -> 0 | BN190: =$DG$50 -> 0 | BO190: =$DG$51 -> 0 | BP190: =$DG$52 -> 0 | BQ190: =$DG$53 -> 0 | BR190: =$DG$54 -> 0 | BS190: =$DG$55 -> 0 | BT190: =$DG$56 -> 0 | BU190: =$DG$57 -> 0 | BV190: =$DG$58 -> 0 | BW190: =$DG$59 -> 0 | BX190: =$DG$60 -> 0 | BY190: =$DG$61 -> 0 | BZ190: =$DG$62 -> 0 | CA190: =$DG$63 -> 0 | CB190: =$DG$64 -> 0 | CC190: =$DG$65 -> 0 | CD190: =$DG$66 -> 0 | CE190: =$DG$67 -> 0 | CF190: =$DG$68 -> 0 | CG190: =$DG$69 -> 0 | CH190: =$DG$70 -> 0 | CI190: =$DG$71 -> 0 | CJ190: =$DG$72 -> 0 | CK190: =$DG$73 -> 0 | CL190: =$DG$74 -> 0 | CM190: =$DG$75 -> 0 | CN190: =$DG$76 -> 0 | CO190: =$DG$77 -> 0 | CP190: =$DG$78 -> 0 | CQ190: =$DG$79 -> 0 | CR190: =$DG$80 -> 0 | CS190: =$DG$81 -> 0 | CT190: =$DG$82 -> 0 | CU190: =$DG$83 -> 0 | CV190: =$DG$84 -> 0 | CW190: =$DG$85 -> 0 | CX190: =$DG$86 -> 0 | CY190: =$DG$87 -> 0 | CZ190: =$DG$88 -> 0 | DA190: =$DG$89 -> 0 | DB190: =$DG$90 -> 0 | DC190: =$DG$91 -> 0 | DD190: =$DG$92 -> 0 | DE190: =$DG$93 -> 0 | DF190: =$DG$94 -> 0 | DG190: =$DG$95 -> 0 | DH190: =$DG$96 -> 0 | DI190: =$DG$97 -> 0 | DJ190: =$DG$98 -> 0 | DK190: =$DG$99 -> 0 | DL190: =$DG$100 -> 0 | DM190: =$DG$101 -> 0
B191: Accounts Payable | F191: Interest Rate | H191: =IF(AND(D192>0,OR(G191="",G192="")),"Please enter an interest rate and number of months.","") ->  | AB191: 27.5 | AC191: =$DH$18 -> 0 | AD191: =$DH$19 -> 0 | AE191: =$DH$20 -> 0 | AF191: =$DH$21 -> 0 | AG191: =$DH$22 -> 0 | AH191: =$DH$23 -> 0 | AI191: =$DH$24 -> 0 | AJ191: =$DH$25 -> 0 | AK191: =$DH$26 -> 0 | AL191: =$DH$27 -> 0 | AM191: =$DH$28 -> 0 | AN191: =$DH$29 -> 0 | AO191: =$DH$30 -> 0 | AP191: =$DH$31 -> 0 | AQ191: =$DH$32 -> 0 | AR191: =$DH$33 -> 0 | AS191: =$DH$34 -> 0 | AT191: =$DH$35 -> 0 | AU191: =$DH$36 -> 0 | AV191: =$DH$37 -> 0 | AW191: =$DH$38 -> 0 | AX191: =$DH$39 -> 0 | AY191: =$DH$40 -> 0 | AZ191: =$DH$41 -> 0 | BB191: 27.5 | BC191: 0 | BE191: =$DH$42 -> 0 | BF191: =$DH$43 -> 0 | BG191: =$DH$44 -> 0 | BH191: =$DH$45 -> 0 | BJ191: =$DH$46 -> 0 | BK191: =$DH$47 -> 0 | BL191: =$DH$48 -> 0 | BM191: =$DH$49 -> 0 | BN191: =$DH$50 -> 0 | BO191: =$DH$51 -> 0 | BP191: =$DH$52 -> 0 | BQ191: =$DH$53 -> 0 | BR191: =$DH$54 -> 0 | BS191: =$DH$55 -> 0 | BT191: =$DH$56 -> 0 | BU191: =$DH$57 -> 0 | BV191: =$DH$58 -> 0 | BW191: =$DH$59 -> 0 | BX191: =$DH$60 -> 0 | BY191: =$DH$61 -> 0 | BZ191: =$DH$62 -> 0 | CA191: =$DH$63 -> 0 | CB191: =$DH$64 -> 0 | CC191: =$DH$65 -> 0 | CD191: =$DH$66 -> 0 | CE191: =$DH$67 -> 0 | CF191: =$DH$68 -> 0 | CG191: =$DH$69 -> 0 | CH191: =$DH$70 -> 0 | CI191: =$DH$71 -> 0 | CJ191: =$DH$72 -> 0 | CK191: =$DH$73 -> 0 | CL191: =$DH$74 -> 0 | CM191: =$DH$75 -> 0 | CN191: =$DH$76 -> 0 | CO191: =$DH$77 -> 0 | CP191: =$DH$78 -> 0 | CQ191: =$DH$79 -> 0 | CR191: =$DH$80 -> 0 | CS191: =$DH$81 -> 0 | CT191: =$DH$82 -> 0 | CU191: =$DH$83 -> 0 | CV191: =$DH$84 -> 0 | CW191: =$DH$85 -> 0 | CX191: =$DH$86 -> 0 | CY191: =$DH$87 -> 0 | CZ191: =$DH$88 -> 0 | DA191: =$DH$89 -> 0 | DB191: =$DH$90 -> 0 | DC191: =$DH$91 -> 0 | DD191: =$DH$92 -> 0 | DE191: =$DH$93 -> 0 | DF191: =$DH$94 -> 0 | DG191: =$DH$95 -> 0 | DH191: =$DH$96 -> 0 | DI191: =$DH$97 -> 0 | DJ191: =$DH$98 -> 0 | DK191: =$DH$99 -> 0 | DL191: =$DH$100 -> 0 | DM191: =$DH$101 -> 0
B192: Short-Term Debt | F192: Months (1-11) | AB192: 39 | AC192: =$DI$18 -> 0 | AD192: =$DI$19 -> 0 | AE192: =$DI$20 -> 0 | AF192: =$DI$21 -> 0 | AG192: =$DI$22 -> 0 | AH192: =$DI$23 -> 0 | AI192: =$DI$24 -> 0 | AJ192: =$DI$25 -> 0 | AK192: =$DI$26 -> 0 | AL192: =$DI$27 -> 0 | AM192: =$DI$28 -> 0 | AN192: =$DI$29 -> 0 | AO192: =$DI$30 -> 0 | AP192: =$DI$31 -> 0 | AQ192: =$DI$32 -> 0 | AR192: =$DI$33 -> 0 | AS192: =$DI$34 -> 0 | AT192: =$DI$35 -> 0 | AU192: =$DI$36 -> 0 | AV192: =$DI$37 -> 0 | AW192: =$DI$38 -> 0 | AX192: =$DI$39 -> 0 | AY192: =$DI$40 -> 0 | AZ192: =$DI$41 -> 0 | BB192: 39 | BC192: 0 | BE192: =$DI$42 -> 0 | BF192: =$DI$43 -> 0 | BG192: =$DI$44 -> 0 | BH192: =$DI$45 -> 0 | BJ192: =$DI$46 -> 0 | BK192: =$DI$47 -> 0 | BL192: =$DI$48 -> 0 | BM192: =$DI$49 -> 0 | BN192: =$DI$50 -> 0 | BO192: =$DI$51 -> 0 | BP192: =$DI$52 -> 0 | BQ192: =$DI$53 -> 0 | BR192: =$DI$54 -> 0 | BS192: =$DI$55 -> 0 | BT192: =$DI$56 -> 0 | BU192: =$DI$57 -> 0 | BV192: =$DI$58 -> 0 | BW192: =$DI$59 -> 0 | BX192: =$DI$60 -> 0 | BY192: =$DI$61 -> 0 | BZ192: =$DI$62 -> 0 | CA192: =$DI$63 -> 0 | CB192: =$DI$64 -> 0 | CC192: =$DI$65 -> 0 | CD192: =$DI$66 -> 0 | CE192: =$DI$67 -> 0 | CF192: =$DI$68 -> 0 | CG192: =$DI$69 -> 0 | CH192: =$DI$70 -> 0 | CI192: =$DI$71 -> 0 | CJ192: =$DI$72 -> 0 | CK192: =$DI$73 -> 0 | CL192: =$DI$74 -> 0 | CM192: =$DI$75 -> 0 | CN192: =$DI$76 -> 0 | CO192: =$DI$77 -> 0 | CP192: =$DI$78 -> 0 | CQ192: =$DI$79 -> 0 | CR192: =$DI$80 -> 0 | CS192: =$DI$81 -> 0 | CT192: =$DI$82 -> 0 | CU192: =$DI$83 -> 0 | CV192: =$DI$84 -> 0 | CW192: =$DI$85 -> 0 | CX192: =$DI$86 -> 0 | CY192: =$DI$87 -> 0 | CZ192: =$DI$88 -> 0 | DA192: =$DI$89 -> 0 | DB192: =$DI$90 -> 0 | DC192: =$DI$91 -> 0 | DD192: =$DI$92 -> 0 | DE192: =$DI$93 -> 0 | DF192: =$DI$94 -> 0 | DG192: =$DI$95 -> 0 | DH192: =$DI$96 -> 0 | DI192: =$DI$97 -> 0 | DJ192: =$DI$98 -> 0 | DK192: =$DI$99 -> 0 | DL192: =$DI$100 -> 0 | DM192: =$DI$101 -> 0
B193: Total Current Liabilities | D193: =SUM(D191:D192) -> 0 | AB193: Land | AC193: =$DA$18 -> 0 | AD193: =$DA$19 -> 0 | AE193: =$DA$20 -> 0 | AF193: =$DA$21 -> 0 | AG193: =$DA$22 -> 0 | AH193: =$DA$23 -> 0 | AI193: =$DA$24 -> 0 | AJ193: =$DA$25 -> 0 | AK193: =$DA$26 -> 0 | AL193: =$DA$27 -> 0 | AM193: =$DA$28 -> 0 | AN193: =$DA$29 -> 0 | AO193: =$DA$30 -> 0 | AP193: =$DA$31 -> 0 | AQ193: =$DA$32 -> 0 | AR193: =$DA$33 -> 0 | AS193: =$DA$34 -> 0 | AT193: =$DA$35 -> 0 | AU193: =$DA$36 -> 0 | AV193: =$DA$37 -> 0 | AW193: =$DA$38 -> 0 | AX193: =$DA$39 -> 0 | AY193: =$DA$40 -> 0 | AZ193: =$DA$41 -> 0 | BB193: Land | BC193: 0 | BE193: =$DA$42 -> 0 | BF193: =$DA$43 -> 0 | BG193: =$DA$44 -> 0 | BH193: =$DA$45 -> 0 | BJ193: =$DA$46 -> 0 | BK193: =$DA$47 -> 0 | BL193: =$DA$48 -> 0 | BM193: =$DA$49 -> 0 | BN193: =$DA$50 -> 0 | BO193: =$DA$51 -> 0 | BP193: =$DA$52 -> 0 | BQ193: =$DA$53 -> 0 | BR193: =$DA$54 -> 0 | BS193: =$DA$55 -> 0 | BT193: =$DA$56 -> 0 | BU193: =$DA$57 -> 0 | BV193: =$DA$58 -> 0 | BW193: =$DA$59 -> 0 | BX193: =$DA$60 -> 0 | BY193: =$DA$61 -> 0 | BZ193: =$DA$62 -> 0 | CA193: =$DA$63 -> 0 | CB193: =$DA$64 -> 0 | CC193: =$DA$65 -> 0 | CD193: =$DA$66 -> 0 | CE193: =$DA$67 -> 0 | CF193: =$DA$68 -> 0 | CG193: =$DA$69 -> 0 | CH193: =$DA$70 -> 0 | CI193: =$DA$71 -> 0 | CJ193: =$DA$72 -> 0 | CK193: =$DA$73 -> 0 | CL193: =$DA$74 -> 0 | CM193: =$DA$75 -> 0 | CN193: =$DA$76 -> 0 | CO193: =$DA$77 -> 0 | CP193: =$DA$78 -> 0 | CQ193: =$DA$79 -> 0 | CR193: =$DA$80 -> 0 | CS193: =$DA$81 -> 0 | CT193: =$DA$82 -> 0 | CU193: =$DA$83 -> 0 | CV193: =$DA$84 -> 0 | CW193: =$DA$85 -> 0 | CX193: =$DA$86 -> 0 | CY193: =$DA$87 -> 0 | CZ193: =$DA$88 -> 0 | DA193: =$DA$89 -> 0 | DB193: =$DA$90 -> 0 | DC193: =$DA$91 -> 0 | DD193: =$DA$92 -> 0 | DE193: =$DA$93 -> 0 | DF193: =$DA$94 -> 0 | DG193: =$DA$95 -> 0 | DH193: =$DA$96 -> 0 | DI193: =$DA$97 -> 0 | DJ193: =$DA$98 -> 0 | DK193: =$DA$99 -> 0 | DL193: =$DA$100 -> 0 | DM193: =$DA$101 -> 0
G194: Long-Term | AC194: =SUM(AC185:AC193) -> 0 | AD194: =SUM(AD185:AD193) -> 0 | AE194: 0 | AF194: 0 | AG194: 0 | AH194: 0 | AI194: 0 | AJ194: 0 | AK194: 0 | AL194: 0 | AM194: 0 | AN194: 0 | AO194: 0 | AP194: 0 | AQ194: 0 | AR194: 0 | AS194: =SUM(AS185:AS193) -> 0 | AT194: 0 | AU194: 0 | AV194: 0 | AW194: 0 | AX194: 0 | AY194: 0 | AZ194: 0 | BC194: =SUM(BC185:BC193) -> 0 | BE194: =SUM(BE185:BE193) -> 0 | BF194: =SUM(BF185:BF193) -> 0 | BG194: =SUM(BG185:BG193) -> 19779.74167 | BH194: =SUM(BH185:BH193) -> 26209.52717 | BJ194: =SUM(BJ185:BJ193) -> 26209.52717 | BK194: 26209.52717 | BL194: 26209.52717 | BM194: 26209.52717 | BN194: 26209.52717 | BO194: 26209.52717 | BP194: 26209.52717 | BQ194: 32639.31267 | BR194: 32639.31267 | BS194: 32639.31267 | BT194: 46757.81267 | BU194: 51347.30267 | BV194: 51347.30267 | BW194: 77556.82983 | BX194: 77556.82983 | BY194: 77556.82983 | BZ194: 77556.82983 | CA194: 77556.82983 | CB194: 77556.82983 | CC194: 88576.10533 | CD194: 88576.10533 | CE194: 88576.10533 | CF194: 78886.93867 | CG194: 75737.28867 | CH194: 75737.28867 | CI194: 120654.8058 | CJ194: 120654.8058 | CK194: 120654.8058 | CL194: 120654.8058 | CM194: 120654.8058 | CN194: 120654.8058 | CO194: 128524.4313 | CP194: =SUM(CP185:CP193) -> 128524.4313 | CQ194: 128524.4313 | CR194: 121603.598 | CS194: 119353.848 | CT194: 119353.848 | CU194: 125223.0213 | CV194: 125223.0213 | CW194: 125223.0213 | CX194: 125223.0213 | CY194: 125223.0213 | CZ194: 125223.0213 | DA194: 124413.1113 | DB194: 124413.1113 | DC194: 124413.1113 | DD194: 119485.478 | DE194: 117883.656 | DF194: 117883.656 | DG194: 95874.256 | DH194: 95874.256 | DI194: 95874.256 | DJ194: 95874.256 | DK194: 95874.256 | DL194: 95874.256 | DM194: 88873.034
B196: Non-Current Liabilities | F196: Interest Rate | H196: =IF(AND(D197>0,OR(G196="",G197="")),"Please enter an interest rate and number of months.","") -> 
B197: Long-Term Debt | F197: Loan Months | AB197: Purchases | BB197: Purchases
B198: Total Non-Current Liabilities | D198: =SUM(D197) -> 0 | AB198: 3 | AC198: =$DL$18 -> 0 | AD198: =$DL$19 -> 0 | AE198: =$DL$20 -> 0 | AF198: =$DL$21 -> 0 | AG198: =$DL$22 -> 0 | AH198: =$DL$23 -> 0 | AI198: =$DL$24 -> 0 | AJ198: =$DL$25 -> 0 | AK198: =$DL$26 -> 0 | AL198: =$DL$27 -> 0 | AM198: =$DL$28 -> 0 | AN198: =$DL$29 -> 0 | AO198: =$DL$30 -> 0 | AP198: =$DL$31 -> 0 | AQ198: =$DL$32 -> 0 | AR198: =$DL$33 -> 0 | AS198: =$DL$34 -> 0 | AT198: =$DL$35 -> 0 | AU198: =$DL$36 -> 0 | AV198: =$DL$37 -> 0 | AW198: =$DL$38 -> 0 | AX198: =$DL$39 -> 0 | AY198: =$DL$40 -> 0 | AZ198: =$DL$41 -> 0 | BB198: 3 | BC198: =SUM(AC198:BA198) -> 0 | BE198: =$DL$42 -> 0 | BF198: =$DL$43 -> 0 | BG198: =$DL$44 -> 0 | BH198: =$DL$45 -> 0 | BJ198: =$DL$46 -> 0 | BK198: =$DL$47 -> 0 | BL198: =$DL$48 -> 0 | BM198: =$DL$49 -> 0 | BN198: =$DL$50 -> 0 | BO198: =$DL$51 -> 0 | BP198: =$DL$52 -> 0 | BQ198: =$DL$53 -> 0 | BR198: =$DL$54 -> 0 | BS198: =$DL$55 -> 0 | BT198: =$DL$56 -> 0 | BU198: =$DL$57 -> 0 | BV198: =$DL$58 -> 0 | BW198: =$DL$59 -> 0 | BX198: =$DL$60 -> 0 | BY198: =$DL$61 -> 0 | BZ198: =$DL$62 -> 0 | CA198: =$DL$63 -> 0 | CB198: =$DL$64 -> 0 | CC198: =$DL$65 -> 0 | CD198: =$DL$66 -> 0 | CE198: =$DL$67 -> 0 | CF198: =$DL$68 -> 0 | CG198: =$DL$69 -> 0 | CH198: =$DL$70 -> 0 | CI198: =$DL$71 -> 0 | CJ198: =$DL$72 -> 0 | CK198: =$DL$73 -> 0 | CL198: =$DL$74 -> 0 | CM198: =$DL$75 -> 0 | CN198: =$DL$76 -> 0 | CO198: =$DL$77 -> 0 | CP198: =$DL$78 -> 0 | CQ198: =$DL$79 -> 0 | CR198: =$DL$80 -> 0 | CS198: =$DL$81 -> 0 | CT198: =$DL$82 -> 0 | CU198: =$DL$83 -> 0 | CV198: =$DL$84 -> 0 | CW198: =$DL$85 -> 0 | CX198: =$DL$86 -> 0 | CY198: =$DL$87 -> 0 | CZ198: =$DL$88 -> 0 | DA198: =$DL$89 -> 0 | DB198: =$DL$90 -> 0 | DC198: =$DL$91 -> 0 | DD198: =$DL$92 -> 0 | DE198: =$DL$93 -> 0 | DF198: =$DL$94 -> 0 | DG198: =$DL$95 -> 0 | DH198: =$DL$96 -> 0 | DI198: =$DL$97 -> 0 | DJ198: =$DL$98 -> 0 | DK198: =$DL$99 -> 0 | DL198: =$DL$100 -> 0 | DM198: =$DL$101 -> 0
AB199: 5 | AC199: =$DM$18 -> 0 | AD199: =$DM$19 -> 0 | AE199: =$DM$20 -> 0 | AF199: =$DM$21 -> 0 | AG199: =$DM$22 -> 0 | AH199: =$DM$23 -> 0 | AI199: =$DM$24 -> 0 | AJ199: =$DM$25 -> 0 | AK199: =$DM$26 -> 0 | AL199: =$DM$27 -> 0 | AM199: =$DM$28 -> 0 | AN199: =$DM$29 -> 0 | AO199: =$DM$30 -> 0 | AP199: =$DM$31 -> 0 | AQ199: =$DM$32 -> 0 | AR199: =$DM$33 -> 0 | AS199: =$DM$34 -> 0 | AT199: =$DM$35 -> 0 | AU199: =$DM$36 -> 0 | AV199: =$DM$37 -> 0 | AW199: =$DM$38 -> 0 | AX199: =$DM$39 -> 0 | AY199: =$DM$40 -> 0 | AZ199: =$DM$41 -> 0 | BB199: 5 | BC199: 0 | BE199: =$DM$42 -> 0 | BF199: =$DM$43 -> 0 | BG199: =$DM$44 -> 0 | BH199: =$DM$45 -> 0 | BJ199: =$DM$46 -> 0 | BK199: =$DM$47 -> 0 | BL199: =$DM$48 -> 0 | BM199: =$DM$49 -> 0 | BN199: =$DM$50 -> 0 | BO199: =$DM$51 -> 0 | BP199: =$DM$52 -> 0 | BQ199: =$DM$53 -> 0 | BR199: =$DM$54 -> 0 | BS199: =$DM$55 -> 0 | BT199: =$DM$56 -> 0 | BU199: =$DM$57 -> 0 | BV199: =$DM$58 -> 0 | BW199: =$DM$59 -> 0 | BX199: =$DM$60 -> 0 | BY199: =$DM$61 -> 0 | BZ199: =$DM$62 -> 0 | CA199: =$DM$63 -> 0 | CB199: =$DM$64 -> 0 | CC199: =$DM$65 -> 0 | CD199: =$DM$66 -> 0 | CE199: =$DM$67 -> 0 | CF199: =$DM$68 -> 0 | CG199: =$DM$69 -> 0 | CH199: =$DM$70 -> 0 | CI199: =$DM$71 -> 0 | CJ199: =$DM$72 -> 0 | CK199: =$DM$73 -> 0 | CL199: =$DM$74 -> 0 | CM199: =$DM$75 -> 0 | CN199: =$DM$76 -> 0 | CO199: =$DM$77 -> 0 | CP199: =$DM$78 -> 0 | CQ199: =$DM$79 -> 0 | CR199: =$DM$80 -> 0 | CS199: =$DM$81 -> 0 | CT199: =$DM$82 -> 0 | CU199: =$DM$83 -> 0 | CV199: =$DM$84 -> 0 | CW199: =$DM$85 -> 0 | CX199: =$DM$86 -> 0 | CY199: =$DM$87 -> 0 | CZ199: =$DM$88 -> 0 | DA199: =$DM$89 -> 0 | DB199: =$DM$90 -> 0 | DC199: =$DM$91 -> 0 | DD199: =$DM$92 -> 0 | DE199: =$DM$93 -> 0 | DF199: =$DM$94 -> 0 | DG199: =$DM$95 -> 0 | DH199: =$DM$96 -> 0 | DI199: =$DM$97 -> 0 | DJ199: =$DM$98 -> 0 | DK199: =$DM$99 -> 0 | DL199: =$DM$100 -> 0 | DM199: =$DM$101 -> 0
B200: Total Liabilities | D200: =D193+D198 -> 0 | AB200: 7 | AC200: =$DN$18 -> 0 | AD200: =$DN$19 -> 0 | AE200: =$DN$20 -> 0 | AF200: =$DN$21 -> 0 | AG200: =$DN$22 -> 0 | AH200: =$DN$23 -> 0 | AI200: =$DN$24 -> 0 | AJ200: =$DN$25 -> 0 | AK200: =$DN$26 -> 0 | AL200: =$DN$27 -> 0 | AM200: =$DN$28 -> 0 | AN200: =$DN$29 -> 0 | AO200: =$DN$30 -> 0 | AP200: =$DN$31 -> 0 | AQ200: =$DN$32 -> 0 | AR200: =$DN$33 -> 0 | AS200: =$DN$34 -> 0 | AT200: =$DN$35 -> 0 | AU200: =$DN$36 -> 0 | AV200: =$DN$37 -> 0 | AW200: =$DN$38 -> 0 | AX200: =$DN$39 -> 0 | AY200: =$DN$40 -> 0 | AZ200: =$DN$41 -> 0 | BB200: 7 | BC200: 0 | BE200: =$DN$42 -> 0 | BF200: =$DN$43 -> 0 | BG200: =$DN$44 -> 1661000 | BH200: =$DN$45 -> 539940 | BJ200: =$DN$46 -> 0 | BK200: =$DN$47 -> 0 | BL200: =$DN$48 -> 0 | BM200: =$DN$49 -> 0 | BN200: =$DN$50 -> 0 | BO200: =$DN$51 -> 0 | BP200: =$DN$52 -> 0 | BQ200: =$DN$53 -> 539940 | BR200: =$DN$54 -> 0 | BS200: =$DN$55 -> 0 | BT200: =$DN$56 -> 0 | BU200: =$DN$57 -> 0 | BV200: =$DN$58 -> 0 | BW200: =$DN$59 -> 2200940 | BX200: =$DN$60 -> 0 | BY200: =$DN$61 -> 0 | BZ200: =$DN$62 -> 0 | CA200: =$DN$63 -> 0 | CB200: =$DN$64 -> 0 | CC200: =$DN$65 -> 539940 | CD200: =$DN$66 -> 0 | CE200: =$DN$67 -> 0 | CF200: =$DN$68 -> 0 | CG200: =$DN$69 -> 0 | CH200: =$DN$70 -> 0 | CI200: =$DN$71 -> 2200940 | CJ200: =$DN$72 -> 0 | CK200: =$DN$73 -> 0 | CL200: =$DN$74 -> 0 | CM200: =$DN$75 -> 0 | CN200: =$DN$76 -> 0 | CO200: =$DN$77 -> 539940 | CP200: =$DN$78 -> 0 | CQ200: =$DN$79 -> 0 | CR200: =$DN$80 -> 0 | CS200: =$DN$81 -> 0 | CT200: =$DN$82 -> 0 | CU200: =$DN$83 -> 0 | CV200: =$DN$84 -> 0 | CW200: =$DN$85 -> 0 | CX200: =$DN$86 -> 0 | CY200: =$DN$87 -> 0 | CZ200: =$DN$88 -> 0 | DA200: =$DN$89 -> 0 | DB200: =$DN$90 -> 0 | DC200: =$DN$91 -> 0 | DD200: =$DN$92 -> 0 | DE200: =$DN$93 -> 0 | DF200: =$DN$94 -> 0 | DG200: =$DN$95 -> 0 | DH200: =$DN$96 -> 0 | DI200: =$DN$97 -> 0 | DJ200: =$DN$98 -> 0 | DK200: =$DN$99 -> 0 | DL200: =$DN$100 -> 0 | DM200: =$DN$101 -> 0
AB201: 10 | AC201: =$DO$18 -> 0 | AD201: =$DO$19 -> 0 | AE201: =$DO$20 -> 0 | AF201: =$DO$21 -> 0 | AG201: =$DO$22 -> 0 | AH201: =$DO$23 -> 0 | AI201: =$DO$24 -> 0 | AJ201: =$DO$25 -> 0 | AK201: =$DO$26 -> 0 | AL201: =$DO$27 -> 0 | AM201: =$DO$28 -> 0 | AN201: =$DO$29 -> 0 | AO201: =$DO$30 -> 0 | AP201: =$DO$31 -> 0 | AQ201: =$DO$32 -> 0 | AR201: =$DO$33 -> 0 | AS201: =$DO$34 -> 0 | AT201: =$DO$35 -> 0 | AU201: =$DO$36 -> 0 | AV201: =$DO$37 -> 0 | AW201: =$DO$38 -> 0 | AX201: =$DO$39 -> 0 | AY201: =$DO$40 -> 0 | AZ201: =$DO$41 -> 0 | BB201: 10 | BC201: 0 | BE201: =$DO$42 -> 0 | BF201: =$DO$43 -> 0 | BG201: =$DO$44 -> 0 | BH201: =$DO$45 -> 0 | BJ201: =$DO$46 -> 0 | BK201: =$DO$47 -> 0 | BL201: =$DO$48 -> 0 | BM201: =$DO$49 -> 0 | BN201: =$DO$50 -> 0 | BO201: =$DO$51 -> 0 | BP201: =$DO$52 -> 0 | BQ201: =$DO$53 -> 0 | BR201: =$DO$54 -> 0 | BS201: =$DO$55 -> 0 | BT201: =$DO$56 -> 0 | BU201: =$DO$57 -> 0 | BV201: =$DO$58 -> 0 | BW201: =$DO$59 -> 0 | BX201: =$DO$60 -> 0 | BY201: =$DO$61 -> 0 | BZ201: =$DO$62 -> 0 | CA201: =$DO$63 -> 0 | CB201: =$DO$64 -> 0 | CC201: =$DO$65 -> 0 | CD201: =$DO$66 -> 0 | CE201: =$DO$67 -> 0 | CF201: =$DO$68 -> 0 | CG201: =$DO$69 -> 0 | CH201: =$DO$70 -> 0 | CI201: =$DO$71 -> 0 | CJ201: =$DO$72 -> 0 | CK201: =$DO$73 -> 0 | CL201: =$DO$74 -> 0 | CM201: =$DO$75 -> 0 | CN201: =$DO$76 -> 0 | CO201: =$DO$77 -> 0 | CP201: =$DO$78 -> 0 | CQ201: =$DO$79 -> 0 | CR201: =$DO$80 -> 0 | CS201: =$DO$81 -> 0 | CT201: =$DO$82 -> 0 | CU201: =$DO$83 -> 0 | CV201: =$DO$84 -> 0 | CW201: =$DO$85 -> 0 | CX201: =$DO$86 -> 0 | CY201: =$DO$87 -> 0 | CZ201: =$DO$88 -> 0 | DA201: =$DO$89 -> 0 | DB201: =$DO$90 -> 0 | DC201: =$DO$91 -> 0 | DD201: =$DO$92 -> 0 | DE201: =$DO$93 -> 0 | DF201: =$DO$94 -> 0 | DG201: =$DO$95 -> 0 | DH201: =$DO$96 -> 0 | DI201: =$DO$97 -> 0 | DJ201: =$DO$98 -> 0 | DK201: =$DO$99 -> 0 | DL201: =$DO$100 -> 0 | DM201: =$DO$101 -> 0
B202: =IF(OR(Company_Type="LLC",Company_Type="LLP"),"Members' Capital",IF(Company_Type="S Corp","Shareholders' Equity","Stockholders' Equity")) -> Members' Capital | AB202: 15 | AC202: =$DP$18 -> 0 | AD202: =$DP$19 -> 0 | AE202: =$DP$20 -> 0 | AF202: =$DP$21 -> 0 | AG202: =$DP$22 -> 0 | AH202: =$DP$23 -> 0 | AI202: =$DP$24 -> 0 | AJ202: =$DP$25 -> 0 | AK202: =$DP$26 -> 0 | AL202: =$DP$27 -> 0 | AM202: =$DP$28 -> 0 | AN202: =$DP$29 -> 0 | AO202: =$DP$30 -> 0 | AP202: =$DP$31 -> 0 | AQ202: =$DP$32 -> 0 | AR202: =$DP$33 -> 0 | AS202: =$DP$34 -> 0 | AT202: =$DP$35 -> 0 | AU202: =$DP$36 -> 0 | AV202: =$DP$37 -> 0 | AW202: =$DP$38 -> 0 | AX202: =$DP$39 -> 0 | AY202: =$DP$40 -> 0 | AZ202: =$DP$41 -> 0 | BB202: 15 | BC202: 0 | BE202: =$DP$42 -> 0 | BF202: =$DP$43 -> 0 | BG202: =$DP$44 -> 0 | BH202: =$DP$45 -> 0 | BJ202: =$DP$46 -> 0 | BK202: =$DP$47 -> 0 | BL202: =$DP$48 -> 0 | BM202: =$DP$49 -> 0 | BN202: =$DP$50 -> 0 | BO202: =$DP$51 -> 0 | BP202: =$DP$52 -> 0 | BQ202: =$DP$53 -> 0 | BR202: =$DP$54 -> 0 | BS202: =$DP$55 -> 0 | BT202: =$DP$56 -> 0 | BU202: =$DP$57 -> 0 | BV202: =$DP$58 -> 0 | BW202: =$DP$59 -> 0 | BX202: =$DP$60 -> 0 | BY202: =$DP$61 -> 0 | BZ202: =$DP$62 -> 0 | CA202: =$DP$63 -> 0 | CB202: =$DP$64 -> 0 | CC202: =$DP$65 -> 0 | CD202: =$DP$66 -> 0 | CE202: =$DP$67 -> 0 | CF202: =$DP$68 -> 0 | CG202: =$DP$69 -> 0 | CH202: =$DP$70 -> 0 | CI202: =$DP$71 -> 0 | CJ202: =$DP$72 -> 0 | CK202: =$DP$73 -> 0 | CL202: =$DP$74 -> 0 | CM202: =$DP$75 -> 0 | CN202: =$DP$76 -> 0 | CO202: =$DP$77 -> 0 | CP202: =$DP$78 -> 0 | CQ202: =$DP$79 -> 0 | CR202: =$DP$80 -> 0 | CS202: =$DP$81 -> 0 | CT202: =$DP$82 -> 0 | CU202: =$DP$83 -> 0 | CV202: =$DP$84 -> 0 | CW202: =$DP$85 -> 0 | CX202: =$DP$86 -> 0 | CY202: =$DP$87 -> 0 | CZ202: =$DP$88 -> 0 | DA202: =$DP$89 -> 0 | DB202: =$DP$90 -> 0 | DC202: =$DP$91 -> 0 | DD202: =$DP$92 -> 0 | DE202: =$DP$93 -> 0 | DF202: =$DP$94 -> 0 | DG202: =$DP$95 -> 0 | DH202: =$DP$96 -> 0 | DI202: =$DP$97 -> 0 | DJ202: =$DP$98 -> 0 | DK202: =$DP$99 -> 0 | DL202: =$DP$100 -> 0 | DM202: =$DP$101 -> 0
B203: =IF(OR(Company_Type="LLC",Company_Type="LLP"),"Capital",IF(Company_Type="S Corp","Equity","Preferred Stock")) -> Capital | D203: =IF(Company_Type="C Corp",Calcs!H16,Calcs!H17) -> 0 | E203: =IF(Company_Type="C Corp"," (These amounts comes from negative months on Investment)"," (This amount comes from negative months on Investment)") -> (This amount comes from negative months on Investment) | AB203: 20 | AC203: =$DQ$18 -> 0 | AD203: =$DQ$19 -> 0 | AE203: =$DQ$20 -> 0 | AF203: =$DQ$21 -> 0 | AG203: =$DQ$22 -> 0 | AH203: =$DQ$23 -> 0 | AI203: =$DQ$24 -> 0 | AJ203: =$DQ$25 -> 0 | AK203: =$DQ$26 -> 0 | AL203: =$DQ$27 -> 0 | AM203: =$DQ$28 -> 0 | AN203: =$DQ$29 -> 0 | AO203: =$DQ$30 -> 0 | AP203: =$DQ$31 -> 0 | AQ203: =$DQ$32 -> 0 | AR203: =$DQ$33 -> 0 | AS203: =$DQ$34 -> 0 | AT203: =$DQ$35 -> 0 | AU203: =$DQ$36 -> 0 | AV203: =$DQ$37 -> 0 | AW203: =$DQ$38 -> 0 | AX203: =$DQ$39 -> 0 | AY203: =$DQ$40 -> 0 | AZ203: =$DQ$41 -> 0 | BB203: 20 | BC203: 0 | BE203: =$DQ$42 -> 0 | BF203: =$DQ$43 -> 0 | BG203: =$DQ$44 -> 0 | BH203: =$DQ$45 -> 0 | BJ203: =$DQ$46 -> 0 | BK203: =$DQ$47 -> 0 | BL203: =$DQ$48 -> 0 | BM203: =$DQ$49 -> 0 | BN203: =$DQ$50 -> 0 | BO203: =$DQ$51 -> 0 | BP203: =$DQ$52 -> 0 | BQ203: =$DQ$53 -> 0 | BR203: =$DQ$54 -> 0 | BS203: =$DQ$55 -> 0 | BT203: =$DQ$56 -> 0 | BU203: =$DQ$57 -> 0 | BV203: =$DQ$58 -> 0 | BW203: =$DQ$59 -> 0 | BX203: =$DQ$60 -> 0 | BY203: =$DQ$61 -> 0 | BZ203: =$DQ$62 -> 0 | CA203: =$DQ$63 -> 0 | CB203: =$DQ$64 -> 0 | CC203: =$DQ$65 -> 0 | CD203: =$DQ$66 -> 0 | CE203: =$DQ$67 -> 0 | CF203: =$DQ$68 -> 0 | CG203: =$DQ$69 -> 0 | CH203: =$DQ$70 -> 0 | CI203: =$DQ$71 -> 0 | CJ203: =$DQ$72 -> 0 | CK203: =$DQ$73 -> 0 | CL203: =$DQ$74 -> 0 | CM203: =$DQ$75 -> 0 | CN203: =$DQ$76 -> 0 | CO203: =$DQ$77 -> 0 | CP203: =$DQ$78 -> 0 | CQ203: =$DQ$79 -> 0 | CR203: =$DQ$80 -> 0 | CS203: =$DQ$81 -> 0 | CT203: =$DQ$82 -> 0 | CU203: =$DQ$83 -> 0 | CV203: =$DQ$84 -> 0 | CW203: =$DQ$85 -> 0 | CX203: =$DQ$86 -> 0 | CY203: =$DQ$87 -> 0 | CZ203: =$DQ$88 -> 0 | DA203: =$DQ$89 -> 0 | DB203: =$DQ$90 -> 0 | DC203: =$DQ$91 -> 0 | DD203: =$DQ$92 -> 0 | DE203: =$DQ$93 -> 0 | DF203: =$DQ$94 -> 0 | DG203: =$DQ$95 -> 0 | DH203: =$DQ$96 -> 0 | DI203: =$DQ$97 -> 0 | DJ203: =$DQ$98 -> 0 | DK203: =$DQ$99 -> 0 | DL203: =$DQ$100 -> 0 | DM203: =$DQ$101 -> 0
B204: =IF(OR(Company_Type="LLC",Company_Type="LLP"),"Accumulated Member Earnings",IF(Company_Type="S Corp","Accumulated Shareholder Earnings","Common Stock")) -> Accumulated Member Earnings | D204: =IF(Company_Type="C Corp",Calcs!H17,0) -> 0 | E204: =IF(Company_Type="C Corp"," (These amounts comes from negative months on Investment)","") ->  | AB204: 27.5 | AC204: =$DR$18 -> 0 | AD204: =$DR$19 -> 0 | AE204: =$DR$20 -> 0 | AF204: =$DR$21 -> 0 | AG204: =$DR$22 -> 0 | AH204: =$DR$23 -> 0 | AI204: =$DR$24 -> 0 | AJ204: =$DR$25 -> 0 | AK204: =$DR$26 -> 0 | AL204: =$DR$27 -> 0 | AM204: =$DR$28 -> 0 | AN204: =$DR$29 -> 0 | AO204: =$DR$30 -> 0 | AP204: =$DR$31 -> 0 | AQ204: =$DR$32 -> 0 | AR204: =$DR$33 -> 0 | AS204: =$DR$34 -> 0 | AT204: =$DR$35 -> 0 | AU204: =$DR$36 -> 0 | AV204: =$DR$37 -> 0 | AW204: =$DR$38 -> 0 | AX204: =$DR$39 -> 0 | AY204: =$DR$40 -> 0 | AZ204: =$DR$41 -> 0 | BB204: 27.5 | BC204: 0 | BE204: =$DR$42 -> 0 | BF204: =$DR$43 -> 0 | BG204: =$DR$44 -> 0 | BH204: =$DR$45 -> 0 | BJ204: =$DR$46 -> 0 | BK204: =$DR$47 -> 0 | BL204: =$DR$48 -> 0 | BM204: =$DR$49 -> 0 | BN204: =$DR$50 -> 0 | BO204: =$DR$51 -> 0 | BP204: =$DR$52 -> 0 | BQ204: =$DR$53 -> 0 | BR204: =$DR$54 -> 0 | BS204: =$DR$55 -> 0 | BT204: =$DR$56 -> 0 | BU204: =$DR$57 -> 0 | BV204: =$DR$58 -> 0 | BW204: =$DR$59 -> 0 | BX204: =$DR$60 -> 0 | BY204: =$DR$61 -> 0 | BZ204: =$DR$62 -> 0 | CA204: =$DR$63 -> 0 | CB204: =$DR$64 -> 0 | CC204: =$DR$65 -> 0 | CD204: =$DR$66 -> 0 | CE204: =$DR$67 -> 0 | CF204: =$DR$68 -> 0 | CG204: =$DR$69 -> 0 | CH204: =$DR$70 -> 0 | CI204: =$DR$71 -> 0 | CJ204: =$DR$72 -> 0 | CK204: =$DR$73 -> 0 | CL204: =$DR$74 -> 0 | CM204: =$DR$75 -> 0 | CN204: =$DR$76 -> 0 | CO204: =$DR$77 -> 0 | CP204: =$DR$78 -> 0 | CQ204: =$DR$79 -> 0 | CR204: =$DR$80 -> 0 | CS204: =$DR$81 -> 0 | CT204: =$DR$82 -> 0 | CU204: =$DR$83 -> 0 | CV204: =$DR$84 -> 0 | CW204: =$DR$85 -> 0 | CX204: =$DR$86 -> 0 | CY204: =$DR$87 -> 0 | CZ204: =$DR$88 -> 0 | DA204: =$DR$89 -> 0 | DB204: =$DR$90 -> 0 | DC204: =$DR$91 -> 0 | DD204: =$DR$92 -> 0 | DE204: =$DR$93 -> 0 | DF204: =$DR$94 -> 0 | DG204: =$DR$95 -> 0 | DH204: =$DR$96 -> 0 | DI204: =$DR$97 -> 0 | DJ204: =$DR$98 -> 0 | DK204: =$DR$99 -> 0 | DL204: =$DR$100 -> 0 | DM204: =$DR$101 -> 0
B205: =IF(OR(Company_Type="LLC",Company_Type="LLP"),"Accumulated Member Distributions",IF(Company_Type="S Corp","Accumulated Shareholder Distributions","Retained Earnings (Accumulated Deficit)")) -> Accumulated Member Distributions | AB205: 39 | AC205: =$DS$18 -> 0 | AD205: =$DS$19 -> 0 | AE205: =$DS$20 -> 0 | AF205: =$DS$21 -> 0 | AG205: =$DS$22 -> 0 | AH205: =$DS$23 -> 0 | AI205: =$DS$24 -> 0 | AJ205: =$DS$25 -> 0 | AK205: =$DS$26 -> 0 | AL205: =$DS$27 -> 0 | AM205: =$DS$28 -> 0 | AN205: =$DS$29 -> 0 | AO205: =$DS$30 -> 0 | AP205: =$DS$31 -> 0 | AQ205: =$DS$32 -> 0 | AR205: =$DS$33 -> 0 | AS205: =$DS$34 -> 0 | AT205: =$DS$35 -> 0 | AU205: =$DS$36 -> 0 | AV205: =$DS$37 -> 0 | AW205: =$DS$38 -> 0 | AX205: =$DS$39 -> 0 | AY205: =$DS$40 -> 0 | AZ205: =$DS$41 -> 0 | BB205: 39 | BC205: 0 | BE205: =$DS$42 -> 0 | BF205: =$DS$43 -> 0 | BG205: =$DS$44 -> 0 | BH205: =$DS$45 -> 0 | BJ205: =$DS$46 -> 0 | BK205: =$DS$47 -> 0 | BL205: =$DS$48 -> 0 | BM205: =$DS$49 -> 0 | BN205: =$DS$50 -> 0 | BO205: =$DS$51 -> 0 | BP205: =$DS$52 -> 0 | BQ205: =$DS$53 -> 0 | BR205: =$DS$54 -> 0 | BS205: =$DS$55 -> 0 | BT205: =$DS$56 -> 0 | BU205: =$DS$57 -> 0 | BV205: =$DS$58 -> 0 | BW205: =$DS$59 -> 0 | BX205: =$DS$60 -> 0 | BY205: =$DS$61 -> 0 | BZ205: =$DS$62 -> 0 | CA205: =$DS$63 -> 0 | CB205: =$DS$64 -> 0 | CC205: =$DS$65 -> 0 | CD205: =$DS$66 -> 0 | CE205: =$DS$67 -> 0 | CF205: =$DS$68 -> 0 | CG205: =$DS$69 -> 0 | CH205: =$DS$70 -> 0 | CI205: =$DS$71 -> 0 | CJ205: =$DS$72 -> 0 | CK205: =$DS$73 -> 0 | CL205: =$DS$74 -> 0 | CM205: =$DS$75 -> 0 | CN205: =$DS$76 -> 0 | CO205: =$DS$77 -> 0 | CP205: =$DS$78 -> 0 | CQ205: =$DS$79 -> 0 | CR205: =$DS$80 -> 0 | CS205: =$DS$81 -> 0 | CT205: =$DS$82 -> 0 | CU205: =$DS$83 -> 0 | CV205: =$DS$84 -> 0 | CW205: =$DS$85 -> 0 | CX205: =$DS$86 -> 0 | CY205: =$DS$87 -> 0 | CZ205: =$DS$88 -> 0 | DA205: =$DS$89 -> 0 | DB205: =$DS$90 -> 0 | DC205: =$DS$91 -> 0 | DD205: =$DS$92 -> 0 | DE205: =$DS$93 -> 0 | DF205: =$DS$94 -> 0 | DG205: =$DS$95 -> 0 | DH205: =$DS$96 -> 0 | DI205: =$DS$97 -> 0 | DJ205: =$DS$98 -> 0 | DK205: =$DS$99 -> 0 | DL205: =$DS$100 -> 0 | DM205: =$DS$101 -> 0
... 149 more rows

Sheet Expenses
A1: ='Chart Data'!A1 -> 21517920 | B1: ='Chart Data'!B1 -> 76377600 | C1: ='Chart Data'!C1 -> 146880000 | D1: ='Chart Data'!D1 -> 205632000 | F1: ='Chart Data'!E1 -> 211507200 | G1: ='Chart Data'!F1 -> P&L | H1: ='Chart Data'!G1 -> 0 | I1: ='Chart Data'!H1 -> Least Cash | J1: ='Chart Data'!I1 -> -3145756.45 | K1: ='Chart Data'!J1 -> Net Sales | L1: ='Chart Data'!K1 -> Co. Type | M1: ='Chart Data'!L1 -> LLC
A2: ='Chart Data'!A2 -> 8790000 | B2: ='Chart Data'!B2 -> 31200000 | C2: ='Chart Data'!C2 -> 60000000 | D2: ='Chart Data'!D2 -> 84000000 | F2: ='Chart Data'!E2 -> 86400000 | G2: Expenses | H2: ='Chart Data'!G2 -> 0 | I2: ='Chart Data'!H2 -> Most Cash | J2: ='Chart Data'!I2 -> 107523558.6 | K2: ='Chart Data'!J2 -> COGS | L2: ='Chart Data'!K2 -> Taxes | M2: ='Chart Data'!L2 -> 22583343.36 | W2: Year 1 | X2: Year 2 | Y2: Year 3 | Z2: =IF($G$5=36,"Total","Year 4") -> Year 4 | AA2: =IF($G$5=36,"","Year 5") -> Year 5 | AB2: =IF($G$5=36,"","Total") -> Total
A3: ='Chart Data'!A3 -> 11413249.23 | B3: ='Chart Data'!B3 -> 27725749.05 | C3: ='Chart Data'!C3 -> 46899990.33 | D3: ='Chart Data'!D3 -> 62208742.16 | F3: ='Chart Data'!E3 -> 65417940.81 | G3: =G2&" - " &Name -> Expenses - ACTS CerarMix Solutions International LLC "Structure Division" Pro Forma Financial Statements | H3: ='Chart Data'!G3 -> 0 | I3: ='Chart Data'!H3 -> Breakeven | J3: ='Chart Data'!I3 -> Mon 10 | K3: ='Chart Data'!J3 -> Expenses | L3: ='Chart Data'!K3 -> Cap. Ex. | M3: ='Chart Data'!L3 -> 8222640 | V3: Sales / Mktg. | W3: =CL90 -> 723000 | X3: =CX90 -> 846000 | Y3: =DJ90 -> 846000 | Z3: =IF($G$5=36,EI90,DV90) -> 846000 | AA3: =IF($G$5=36,"",EH90) -> 846000 | AB3: =IF($G$5=36,"",EI90) -> 4107000
A4: ='Chart Data'!A4 -> 672599.718 | B4: ='Chart Data'!B4 -> 7438568.648 | C4: ='Chart Data'!C4 -> 16762885.38 | D4: ='Chart Data'!D4 -> 24665169.97 | F4: ='Chart Data'!E4 -> 24636622.22 | G4: ='Chart Data'!F4 -> 60 | H4: ='Chart Data'!G4 -> 0 | I4: ='Chart Data'!H4 -> Investment | J4: ='Chart Data'!I4 -> 0 | K4: ='Chart Data'!J4 -> Tax Dep Int | L4: ='Chart Data'!K4 -> Max. Emp. | M4: ='Chart Data'!L4 -> 640 | V4: Operating | W4: =CL89 -> 1575316 | X4: =CX89 -> 2425496 | Y4: =DJ89 -> 3572501.6 | Z4: =IF($G$5=36,EI89,DV89) -> 4393318.992 | AA4: =IF($G$5=36,"",EH89) -> 4643981.459 | AB4: =IF($G$5=36,"",EI89) -> 16610614.05
A5: ='Chart Data'!A5 -> 642071.057 | B5: ='Chart Data'!B5 -> 10013282.3 | C5: ='Chart Data'!C5 -> 23217124.28 | D5: ='Chart Data'!D5 -> 34758087.87 | F5: ='Chart Data'!E5 -> 35052636.96 | G5: ='Chart Data'!F5 -> 60 | H5: ='Chart Data'!G5 -> 0 | I5: ='Chart Data'!H5 -> Debt | J5: ='Chart Data'!I5 -> 0 | K5: ='Chart Data'!J5 -> Net Income | L5: ='Chart Data'!K5 -> Valuation | M5: ='Chart Data'!L5 -> Revenue (1x) | V5: Total | W5: =CL92 -> 2298316 | X5: =CX92 -> 3271496 | Y5: =DJ92 -> 4418501.6 | Z5: =IF($G$5=36,EI92,DV92) -> 5239318.992 | AA5: =IF($G$5=36,"",EH92) -> 5489981.459 | AB5: =IF($G$5=36,"",EI92) -> 20717614.05 | AF5: =SUMPRODUCT((ExpMonths<13)*(Expenses!$G$36:$G$85>0))+SUMPRODUCT((ExpMonths<13)*(Expenses!$J$37:$J$86>0))+SUMPRODUCT((ExpMonths<13)*(Expenses!$L$37:$L$86>0)) -> 12
AF6: =SUMIF(ExpMonths,"<13",$G36:$G85) -> 132000
AC7: =SUMPRODUCT((ExpMonths<37)*(Expenses!$G$36:$G$85>0))-SUM($V3:W3) -> -722973 | AD7: =SUMPRODUCT((ExpMonths<49)*(Expenses!$G$36:$G$85>0))-SUM($V3:X3) -> -1568973 | AE7: =SUMPRODUCT((ExpMonths>48)*(Expenses!$G$36:$G$85>0)) -> 0
E20: Days Payable | F20: 30 | G20: (Click Help for information) | Q20: 1 | R20: 2 | S20: 3 | T20: 4 | U20: 5 | V20: 6 | W20: 7 | X20: 8 | Y20: 9 | Z20: 10 | AA20: 11 | AB20: 12 | AC20: 13 | AD20: 14 | AE20: 15 | AF20: 16 | AG20: 17 | AH20: 18 | AI20: 19 | AJ20: 20 | AK20: 21 | AL20: 22 | AM20: 23 | AN20: 24 | AO20: 25 | AP20: 26 | AQ20: 27 | AR20: 28 | AS20: 29 | AT20: 30 | AU20: 31 | AV20: 32 | AW20: 33 | AX20: 34 | AY20: 35 | AZ20: 36 | BA20: 37 | BB20: 38 | BC20: 39 | BD20: 40 | BE20: 41 | BF20: 42 | BG20: 43 | BH20: 44 | BI20: 45 | BJ20: 46 | BK20: 47 | BL20: 48 | BM20: 49 | BN20: 50 | BO20: 51 | BP20: 52 | BQ20: 53 | BR20: 54 | BS20: 55 | BT20: 56 | BU20: 57 | BV20: 58 | BW20: 59 | BX20: 60 | CA20: 1 | CB20: 2 | CC20: 3 | CD20: 4 | CE20: 5 | CF20: 6 | CG20: 7 | CH20: 8 | CI20: 9 | CJ20: 10 | CK20: 11 | CL20: 12 | CM20: 13 | CN20: 14 | CO20: 15 | CP20: 16 | CQ20: 17 | CR20: 18 | CS20: 19 | CT20: 20 | CU20: 21 | CV20: 22 | CW20: 23 | CX20: 24 | CY20: 25 | CZ20: 26 | DA20: 27 | DB20: 28 | DC20: 29 | DD20: 30 | DE20: 31 | DF20: 32 | DG20: 33 | DH20: 34 | DI20: 35 | DJ20: 36 | DK20: 37 | DL20: 38 | DM20: 39 | DN20: 40 | DO20: 41 | DP20: 42 | DQ20: 43 | DR20: 44 | DS20: 45 | DT20: 46 | DU20: 47 | DV20: 48 | DW20: 49 | DX20: 50 | DY20: 51 | DZ20: 52 | EA20: 53 | EB20: 54 | EC20: 55 | ED20: 56 | EE20: 57 | EF20: 58 | EG20: 59 | EH20: 60 | EJ20: Annual Flat Rate Expenses
D21: Expense Formulas | J21: Sales
F22: Recurring Monthly Amount | J22: % of Sales | L22: Mo. Amt. | M22: Rows | Q22: One-Time Expenses | CA22: Formula Results
D23: Sales & Marketing Expenses | F23: Start Mon. | G23: Amount | H23: Ann. Inc. % | J23: % | L23: $ | M23: Top | N23: Bottom | Q23: ='Chart Data'!$A$308 -> Mon 1 | R23: ='Chart Data'!$B$308 -> Mon 2 | S23: ='Chart Data'!$C$308 -> Mon 3 | T23: ='Chart Data'!$D$308 -> Mon 4 | U23: ='Chart Data'!$E$308 -> Mon 5 | V23: ='Chart Data'!$F$308 -> Mon 6 | W23: ='Chart Data'!$G$308 -> Mon 7 | X23: ='Chart Data'!$H$308 -> Mon 8 | Y23: ='Chart Data'!$I$308 -> Mon 9 | Z23: ='Chart Data'!$J$308 -> Mon 10 | AA23: ='Chart Data'!$K$308 -> Mon 11 | AB23: ='Chart Data'!$L$308 -> Mon 12 | AC23: ='Chart Data'!$M$308 -> Mon 13 | AD23: ='Chart Data'!$N$308 -> Mon 14 | AE23: ='Chart Data'!$O$308 -> Mon 15 | AF23: ='Chart Data'!$P$308 -> Mon 16 | AG23: ='Chart Data'!$Q$308 -> Mon 17 | AH23: ='Chart Data'!$R$308 -> Mon 18 | AI23: ='Chart Data'!$S$308 -> Mon 19 | AJ23: ='Chart Data'!$T$308 -> Mon 20 | AK23: ='Chart Data'!$U$308 -> Mon 21 | AL23: ='Chart Data'!$V$308 -> Mon 22 | AM23: ='Chart Data'!$W$308 -> Mon 23 | AN23: ='Chart Data'!$X$308 -> Mon 24 | AO23: ='Chart Data'!$Y$308 -> Mon 25 | AP23: ='Chart Data'!$Z$308 -> Mon 26 | AQ23: ='Chart Data'!$AA$308 -> Mon 27 | AR23: ='Chart Data'!$AB$308 -> Mon 28 | AS23: ='Chart Data'!$AC$308 -> Mon 29 | AT23: ='Chart Data'!$AD$308 -> Mon 30 | AU23: ='Chart Data'!$AE$308 -> Mon 31 | AV23: ='Chart Data'!$AF$308 -> Mon 32 | AW23: ='Chart Data'!$AG$308 -> Mon 33 | AX23: ='Chart Data'!$AH$308 -> Mon 34 | AY23: ='Chart Data'!$AI$308 -> Mon 35 | AZ23: ='Chart Data'!$AJ$308 -> Mon 36 | BA23: ='Chart Data'!$AK$308 -> Mon 37 | BB23: ='Chart Data'!$AL$308 -> Mon 38 | BC23: ='Chart Data'!$AM$308 -> Mon 39 | BD23: ='Chart Data'!$AN$308 -> Mon 40 | BE23: ='Chart Data'!$AO$308 -> Mon 41 | BF23: ='Chart Data'!$AP$308 -> Mon 42 | BG23: ='Chart Data'!$AQ$308 -> Mon 43 | BH23: ='Chart Data'!$AR$308 -> Mon 44 | BI23: ='Chart Data'!$AS$308 -> Mon 45 | BJ23: ='Chart Data'!$AT$308 -> Mon 46 | BK23: ='Chart Data'!$AU$308 -> Mon 47 | BL23: ='Chart Data'!$AV$308 -> Mon 48 | BM23: ='Chart Data'!$AW$308 -> Mon 49 | BN23: ='Chart Data'!$AX$308 -> Mon 50 | BO23: ='Chart Data'!$AY$308 -> Mon 51 | BP23: ='Chart Data'!$AZ$308 -> Mon 52 | BQ23: ='Chart Data'!$BA$308 -> Mon 53 | BR23: ='Chart Data'!$BB$308 -> Mon 54 | BS23: ='Chart Data'!$BC$308 -> Mon 55 | BT23: ='Chart Data'!$BD$308 -> Mon 56 | BU23: ='Chart Data'!$BE$308 -> Mon 57 | BV23: ='Chart Data'!$BF$308 -> Mon 58 | BW23: ='Chart Data'!$BG$308 -> Mon 59 | BX23: ='Chart Data'!$BH$308 -> Mon 60 | CA23: ='Chart Data'!$A$308 -> Mon 1 | CB23: ='Chart Data'!$B$308 -> Mon 2 | CC23: ='Chart Data'!$C$308 -> Mon 3 | CD23: ='Chart Data'!$D$308 -> Mon 4 | CE23: ='Chart Data'!$E$308 -> Mon 5 | CF23: ='Chart Data'!$F$308 -> Mon 6 | CG23: ='Chart Data'!$G$308 -> Mon 7 | CH23: ='Chart Data'!$H$308 -> Mon 8 | CI23: ='Chart Data'!$I$308 -> Mon 9 | CJ23: ='Chart Data'!$J$308 -> Mon 10 | CK23: ='Chart Data'!$K$308 -> Mon 11 | CL23: ='Chart Data'!$L$308 -> Mon 12 | CM23: ='Chart Data'!$M$308 -> Mon 13 | CN23: ='Chart Data'!$N$308 -> Mon 14 | CO23: ='Chart Data'!$O$308 -> Mon 15 | CP23: ='Chart Data'!$P$308 -> Mon 16 | CQ23: ='Chart Data'!$Q$308 -> Mon 17 | CR23: ='Chart Data'!$R$308 -> Mon 18 | CS23: ='Chart Data'!$S$308 -> Mon 19 | CT23: ='Chart Data'!$T$308 -> Mon 20 | CU23: ='Chart Data'!$U$308 -> Mon 21 | CV23: ='Chart Data'!$V$308 -> Mon 22 | CW23: ='Chart Data'!$W$308 -> Mon 23 | CX23: ='Chart Data'!$X$308 -> Mon 24 | CY23: ='Chart Data'!$Y$308 -> Mon 25 | CZ23: ='Chart Data'!$Z$308 -> Mon 26 | DA23: ='Chart Data'!$AA$308 -> Mon 27 | DB23: ='Chart Data'!$AB$308 -> Mon 28 | DC23: ='Chart Data'!$AC$308 -> Mon 29 | DD23: ='Chart Data'!$AD$308 -> Mon 30 | DE23: ='Chart Data'!$AE$308 -> Mon 31 | DF23: ='Chart Data'!$AF$308 -> Mon 32 | DG23: ='Chart Data'!$AG$308 -> Mon 33 | DH23: ='Chart Data'!$AH$308 -> Mon 34 | DI23: ='Chart Data'!$AI$308 -> Mon 35 | DJ23: ='Chart Data'!$AJ$308 -> Mon 36 | DK23: ='Chart Data'!$AK$308 -> Mon 37 | DL23: ='Chart Data'!$AL$308 -> Mon 38 | DM23: ='Chart Data'!$AM$308 -> Mon 39 | DN23: ='Chart Data'!$AN$308 -> Mon 40 | DO23: ='Chart Data'!$AO$308 -> Mon 41 | DP23: ='Chart Data'!$AP$308 -> Mon 42 | DQ23: ='Chart Data'!$AQ$308 -> Mon 43 | DR23: ='Chart Data'!$AR$308 -> Mon 44 | DS23: ='Chart Data'!$AS$308 -> Mon 45 | DT23: ='Chart Data'!$AT$308 -> Mon 46 | DU23: ='Chart Data'!$AU$308 -> Mon 47 | DV23: ='Chart Data'!$AV$308 -> Mon 48 | DW23: ='Chart Data'!$AW$308 -> Mon 49 | DX23: ='Chart Data'!$AX$308 -> Mon 50 | DY23: ='Chart Data'!$AY$308 -> Mon 51 | DZ23: ='Chart Data'!$AZ$308 -> Mon 52 | EA23: ='Chart Data'!$BA$308 -> Mon 53 | EB23: ='Chart Data'!$BB$308 -> Mon 54 | EC23: ='Chart Data'!$BC$308 -> Mon 55 | ED23: ='Chart Data'!$BD$308 -> Mon 56 | EE23: ='Chart Data'!$BE$308 -> Mon 57 | EF23: ='Chart Data'!$BF$308 -> Mon 58 | EG23: ='Chart Data'!$BG$308 -> Mon 59 | EH23: ='Chart Data'!$BH$308 -> Mon 60 | EJ23: Year 1 | EK23: Year 2 | EL23: Year 3 | EM23: Year 4 | EN23: Year 5 | EP23: Year 1 | EQ23: Year 2 | ER23: Year 3 | ES23: Year 4 | ET23: Year 5
D24: Advertising | F24: 7 | G24: 10000 | H24: 0.05 | I24: -and- | M24: 1 | N24: 50 | Q24: 2000 | R24: 2000 | S24: 4000 | T24: 4000 | U24: 6000 | V24: 6000 | CA24: =IF($F24>CA$20,0,$EJ24)+IF($J24>0,$J24*CA$91,0)+Q24 -> 2000 | CB24: =IF($F24>CB$20,0,$EJ24)+IF($J24>0,$J24*CB$91,0)+R24 -> 2000 | CC24: 4000 | CD24: 4000 | CE24: 6000 | CF24: 6000 | CG24: 10000 | CH24: 10000 | CI24: 10000 | CJ24: 10000 | CK24: 10000 | CL24: 10000 | CM24: 10000 | CN24: 10000 | CO24: 10000 | CP24: 10000 | CQ24: 10000 | CR24: 10000 | CS24: 10000 | CT24: 10000 | CU24: 10000 | CV24: 10000 | CW24: 10000 | CX24: 10000 | CY24: 10000 | CZ24: 10000 | DA24: 10000 | DB24: 10000 | DC24: 10000 | DD24: 10000 | DE24: 10000 | DF24: 10000 | DG24: 10000 | DH24: 10000 | DI24: 10000 | DJ24: 10000 | DK24: 10000 | DL24: 10000 | DM24: 10000 | DN24: 10000 | DO24: 10000 | DP24: 10000 | DQ24: 10000 | DR24: 10000 | DS24: 10000 | DT24: 10000 | DU24: 10000 | DV24: 10000 | DW24: 10000 | DX24: 10000 | DY24: 10000 | DZ24: 10000 | EA24: 10000 | EB24: 10000 | EC24: 10000 | ED24: 10000 | EE24: 10000 | EF24: 10000 | EG24: 10000 | EH24: 10000 | EI24: =IF(SUM(CA24:EH24)+G24>0,1,0) -> 1 | EJ24: =IF(F24>12,0,G24) -> 10000 | EK24: =IF($F24>24,0,IF($F24<13,$G24*(1+$H24),$G24)) -> 10500 | EL24: =IF($F24>36,0,IF($F24<13,$G24*(1+$H24)*(1+$H24),IF($F24<25,$G24*(1+$H24),$G24))) -> 11025 | EM24: =IF($F24>48,0,IF($F24<13,$G24*(1+$H24)*(1+$H24)*(1+$H24),IF($F24<25,$G24*(1+$H24)*(1+$H24),IF($F24<37,$G24*(1+$H24),$G24)))) -> 11576.25 | EN24: =IF($F24<13,$G24*(1+$H24)*(1+$H24)*(1+$H24)*(1+$H24),IF($F24<25,$G24*(1+$H24)*(1+$H24)*(1+$H24),IF($F24<37,$G24*(1+$H24)*(1+$H24),IF($F24<49,$G24*(1+$H24),G24)))) -> 12155.0625 | EP24: =IF(SUM(CA24:CL24)>0,1,0) -> 1 | EQ24: =IF(SUM(CM24:CX24)>0,1,0) -> 1 | ER24: =IF(SUM(CY24:DJ24)>0,1,0) -> 1 | ES24: =IF(SUM(DK24:DV24)>0,1,0) -> 1 | ET24: =IF(SUM(DW24:EH24)>0,1,0) -> 1
D25: Communications | F25: 7 | G25: 7500 | H25: 0.05 | I25: -and- | M25: 1 | N25: 50 | Q25: 2000 | R25: 3000 | S25: 4000 | T25: 5000 | U25: 6000 | V25: 7000 | CA25: =IF($F25>CA$20,0,$EJ25)+IF($J25>0,$J25*CA$91,0)+Q25 -> 2000 | CB25: 3000 | CC25: 4000 | CD25: 5000 | CE25: 6000 | CF25: 7000 | CG25: 7500 | CH25: 7500 | CI25: 7500 | CJ25: 7500 | CK25: 7500 | CL25: 7500 | CM25: 7500 | CN25: 7500 | CO25: 7500 | CP25: 7500 | CQ25: 7500 | CR25: 7500 | CS25: 7500 | CT25: 7500 | CU25: 7500 | CV25: 7500 | CW25: 7500 | CX25: 7500 | CY25: 7500 | CZ25: 7500 | DA25: 7500 | DB25: 7500 | DC25: 7500 | DD25: 7500 | DE25: 7500 | DF25: 7500 | DG25: 7500 | DH25: 7500 | DI25: 7500 | DJ25: 7500 | DK25: 7500 | DL25: 7500 | DM25: 7500 | DN25: 7500 | DO25: 7500 | DP25: 7500 | DQ25: 7500 | DR25: 7500 | DS25: 7500 | DT25: 7500 | DU25: 7500 | DV25: 7500 | DW25: 7500 | DX25: 7500 | DY25: 7500 | DZ25: 7500 | EA25: 7500 | EB25: 7500 | EC25: 7500 | ED25: 7500 | EE25: 7500 | EF25: 7500 | EG25: 7500 | EH25: 7500 | EI25: 1 | EJ25: =IF(F25>12,0,G25) -> 7500 | EK25: 7875 | EL25: 8268.75 | EM25: 8682.1875 | EN25: =IF($F25<13,$G25*(1+$H25)*(1+$H25)*(1+$H25)*(1+$H25),IF($F25<25,$G25*(1+$H25)*(1+$H25)*(1+$H25),IF($F25<37,$G25*(1+$H25)*(1+$H25),IF($F25<49,$G25*(1+$H25),G25)))) -> 9116.296875 | EP25: =IF(SUM(CA25:CL25)>0,1,0) -> 1 | EQ25: =IF(SUM(CM25:CX25)>0,1,0) -> 1 | ER25: =IF(SUM(CY25:DJ25)>0,1,0) -> 1 | ES25: =IF(SUM(DK25:DV25)>0,1,0) -> 1 | ET25: =IF(SUM(DW25:EH25)>0,1,0) -> 1
D26: Travel & Entertainment | F26: 7 | G26: 10000 | H26: 0.2 | I26: -and- | M26: 1 | N26: 50 | Q26: 3000 | R26: 4000 | S26: 5000 | T26: 7500 | U26: 7500 | V26: 9000 | CA26: 3000 | CB26: 4000 | CC26: 5000 | CD26: 7500 | CE26: 7500 | CF26: 9000 | CG26: 3000 | CH26: 3000 | CI26: 3000 | CJ26: 3000 | CK26: 3000 | CL26: 3000 | CM26: 3000 | CN26: 3000 | CO26: 3000 | CP26: 3000 | CQ26: 3000 | CR26: 3000 | CS26: 3000 | CT26: 3000 | CU26: 3000 | CV26: 3000 | CW26: 3000 | CX26: 3000 | CY26: 3000 | CZ26: 3000 | DA26: 3000 | DB26: 3000 | DC26: 3000 | DD26: 3000 | DE26: 3000 | DF26: 3000 | DG26: 3000 | DH26: 3000 | DI26: 3000 | DJ26: 3000 | DK26: 3000 | DL26: 3000 | DM26: 3000 | DN26: 3000 | DO26: 3000 | DP26: 3000 | DQ26: 3000 | DR26: 3000 | DS26: 3000 | DT26: 3000 | DU26: 3000 | DV26: 3000 | DW26: 3000 | DX26: 3000 | DY26: 3000 | DZ26: 3000 | EA26: 3000 | EB26: 3000 | EC26: 3000 | ED26: 3000 | EE26: 3000 | EF26: 3000 | EG26: 3000 | EH26: 3000 | EI26: =IF(SUM(CA26:EH26)+Q26>0,1,0) -> 1 | EJ26: =IF(F25>12,0,Q26) -> 3000 | EK26: =IF($F25>24,0,IF($F25<13,$Q26*(1+$H25),$Q26)) -> 3150 | EL26: =IF($F25>36,0,IF($F25<13,$Q26*(1+$H25)*(1+$H25),IF($F25<25,$Q26*(1+$H25),$Q26))) -> 3307.5 | EM26: =IF($F25>48,0,IF($F25<13,$Q26*(1+$H25)*(1+$H25)*(1+$H25),IF($F25<25,$Q26*(1+$H25)*(1+$H25),IF($F25<37,$Q26*(1+$H25),$Q26)))) -> 3472.875 | EN26: =IF($F25<13,$Q26*(1+$H25)*(1+$H25)*(1+$H25)*(1+$H25),IF($F25<25,$Q26*(1+$H25)*(1+$H25)*(1+$H25),IF($F25<37,$Q26*(1+$H25)*(1+$H25),IF($F25<49,$Q26*(1+$H25),Q26)))) -> 3646.51875 | EP26: 1 | EQ26: 1 | ER26: 1 | ES26: 1 | ET26: 1
D27: Marketing | F27: 7 | G27: 15000 | H27: 0.05 | I27: -and- | J27: 0 | M27: 1 | N27: 50 | Q27: 2000 | R27: 3000 | S27: 4000 | T27: 5000 | U27: 6000 | V27: 7000 | CA27: 2000 | CB27: 3000 | CC27: 4000 | CD27: 5000 | CE27: 6000 | CF27: 7000 | CG27: 10000 | CH27: 10000 | CI27: 10000 | CJ27: 10000 | CK27: 10000 | CL27: 10000 | CM27: 10000 | CN27: 10000 | CO27: 10000 | CP27: 10000 | CQ27: 10000 | CR27: 10000 | CS27: 10000 | CT27: 10000 | CU27: 10000 | CV27: 10000 | CW27: 10000 | CX27: 10000 | CY27: 10000 | CZ27: 10000 | DA27: 10000 | DB27: 10000 | DC27: 10000 | DD27: 10000 | DE27: 10000 | DF27: 10000 | DG27: 10000 | DH27: 10000 | DI27: 10000 | DJ27: 10000 | DK27: 10000 | DL27: 10000 | DM27: 10000 | DN27: 10000 | DO27: 10000 | DP27: 10000 | DQ27: 10000 | DR27: 10000 | DS27: 10000 | DT27: 10000 | DU27: 10000 | DV27: 10000 | DW27: 10000 | DX27: 10000 | DY27: 10000 | DZ27: 10000 | EA27: 10000 | EB27: 10000 | EC27: 10000 | ED27: 10000 | EE27: 10000 | EF27: 10000 | EG27: 10000 | EH27: 10000 | EI27: =IF(SUM(CA27:EH27)+G26>0,1,0) -> 1 | EJ27: =IF(F26>12,0,G26) -> 10000 | EK27: =IF($F26>24,0,IF($F26<13,$G26*(1+$H26),$G26)) -> 12000 | EL27: =IF($F26>36,0,IF($F26<13,$G26*(1+$H26)*(1+$H26),IF($F26<25,$G26*(1+$H26),$G26))) -> 14400 | EM27: =IF($F26>48,0,IF($F26<13,$G26*(1+$H26)*(1+$H26)*(1+$H26),IF($F26<25,$G26*(1+$H26)*(1+$H26),IF($F26<37,$G26*(1+$H26),$G26)))) -> 17280 | EN27: =IF($F26<13,$G26*(1+$H26)*(1+$H26)*(1+$H26)*(1+$H26),IF($F26<25,$G26*(1+$H26)*(1+$H26)*(1+$H26),IF($F26<37,$G26*(1+$H26)*(1+$H26),IF($F26<49,$G26*(1+$H26),G26)))) -> 20736 | EP27: 1 | EQ27: 1 | ER27: 1 | ES27: 1 | ET27: 1
D28: PR | F28: 3 | G28: 10000 | H28: 0.05 | I28: -and- | J28: 0 | M28: 1 | N28: 50 | CA28: 0 | CB28: 0 | CC28: 15000 | CD28: 15000 | CE28: 15000 | CF28: 15000 | CG28: 15000 | CH28: 15000 | CI28: 15000 | CJ28: 15000 | CK28: 15000 | CL28: 15000 | CM28: 15000 | CN28: 15000 | CO28: 15000 | CP28: 15000 | CQ28: 15000 | CR28: 15000 | CS28: 15000 | CT28: 15000 | CU28: =IF($F28>CU$20,0,$EJ28)+IF($J28>0,$J28*CU$91,0)+AK28 -> 15000 | CV28: =IF($F28>CV$20,0,$EJ28)+IF($J28>0,$J28*CV$91,0)+AL28 -> 15000 | CW28: =IF($F28>CW$20,0,$EJ28)+IF($J28>0,$J28*CW$91,0)+AM28 -> 15000 | CX28: =IF($F28>CX$20,0,$EJ28)+IF($J28>0,$J28*CX$91,0)+AN28 -> 15000 | CY28: =IF($F28>CY$20,0,$EJ28)+IF($J28>0,$J28*CY$91,0)+AO28 -> 15000 | CZ28: =IF($F28>CZ$20,0,$EJ28)+IF($J28>0,$J28*CZ$91,0)+AP28 -> 15000 | DA28: =IF($F28>DA$20,0,$EJ28)+IF($J28>0,$J28*DA$91,0)+AQ28 -> 15000 | DB28: =IF($F28>DB$20,0,$EJ28)+IF($J28>0,$J28*DB$91,0)+AR28 -> 15000 | DC28: =IF($F28>DC$20,0,$EJ28)+IF($J28>0,$J28*DC$91,0)+AS28 -> 15000 | DD28: =IF($F28>DD$20,0,$EJ28)+IF($J28>0,$J28*DD$91,0)+AT28 -> 15000 | DE28: =IF($F28>DE$20,0,$EJ28)+IF($J28>0,$J28*DE$91,0)+AU28 -> 15000 | DF28: =IF($F28>DF$20,0,$EJ28)+IF($J28>0,$J28*DF$91,0)+AV28 -> 15000 | DG28: =IF($F28>DG$20,0,$EJ28)+IF($J28>0,$J28*DG$91,0)+AW28 -> 15000 | DH28: =IF($F28>DH$20,0,$EJ28)+IF($J28>0,$J28*DH$91,0)+AX28 -> 15000 | DI28: =IF($F28>DI$20,0,$EJ28)+IF($J28>0,$J28*DI$91,0)+AY28 -> 15000 | DJ28: =IF($F28>DJ$20,0,$EJ28)+IF($J28>0,$J28*DJ$91,0)+AZ28 -> 15000 | DK28: =IF($F28>DK$20,0,$EJ28)+IF($J28>0,$J28*DK$91,0)+BA28 -> 15000 | DL28: =IF($F28>DL$20,0,$EJ28)+IF($J28>0,$J28*DL$91,0)+BB28 -> 15000 | DM28: =IF($F28>DM$20,0,$EJ28)+IF($J28>0,$J28*DM$91,0)+BC28 -> 15000 | DN28: =IF($F28>DN$20,0,$EJ28)+IF($J28>0,$J28*DN$91,0)+BD28 -> 15000 | DO28: =IF($F28>DO$20,0,$EJ28)+IF($J28>0,$J28*DO$91,0)+BE28 -> 15000 | DP28: =IF($F28>DP$20,0,$EJ28)+IF($J28>0,$J28*DP$91,0)+BF28 -> 15000 | DQ28: =IF($F28>DQ$20,0,$EJ28)+IF($J28>0,$J28*DQ$91,0)+BG28 -> 15000 | DR28: =IF($F28>DR$20,0,$EJ28)+IF($J28>0,$J28*DR$91,0)+BH28 -> 15000 | DS28: =IF($F28>DS$20,0,$EJ28)+IF($J28>0,$J28*DS$91,0)+BI28 -> 15000 | DT28: =IF($F28>DT$20,0,$EJ28)+IF($J28>0,$J28*DT$91,0)+BJ28 -> 15000 | DU28: =IF($F28>DU$20,0,$EJ28)+IF($J28>0,$J28*DU$91,0)+BK28 -> 15000 | DV28: =IF($F28>DV$20,0,$EJ28)+IF($J28>0,$J28*DV$91,0)+BL28 -> 15000 | DW28: =IF($F28>DW$20,0,$EJ28)+IF($J28>0,$J28*DW$91,0)+BM28 -> 15000 | DX28: =IF($F28>DX$20,0,$EJ28)+IF($J28>0,$J28*DX$91,0)+BN28 -> 15000 | DY28: =IF($F28>DY$20,0,$EJ28)+IF($J28>0,$J28*DY$91,0)+BO28 -> 15000 | DZ28: =IF($F28>DZ$20,0,$EJ28)+IF($J28>0,$J28*DZ$91,0)+BP28 -> 15000 | EA28: =IF($F28>EA$20,0,$EJ28)+IF($J28>0,$J28*EA$91,0)+BQ28 -> 15000 | EB28: =IF($F28>EB$20,0,$EJ28)+IF($J28>0,$J28*EB$91,0)+BR28 -> 15000 | EC28: =IF($F28>EC$20,0,$EJ28)+IF($J28>0,$J28*EC$91,0)+BS28 -> 15000 | ED28: =IF($F28>ED$20,0,$EJ28)+IF($J28>0,$J28*ED$91,0)+BT28 -> 15000 | EE28: =IF($F28>EE$20,0,$EJ28)+IF($J28>0,$J28*EE$91,0)+BU28 -> 15000 | EF28: =IF($F28>EF$20,0,$EJ28)+IF($J28>0,$J28*EF$91,0)+BV28 -> 15000 | EG28: =IF($F28>EG$20,0,$EJ28)+IF($J28>0,$J28*EG$91,0)+BW28 -> 15000 | EH28: =IF($F28>EH$20,0,$EJ28)+IF($J28>0,$J28*EH$91,0)+BX28 -> 15000 | EI28: 1 | EJ28: 15000 | EK28: 15750 | EL28: 16537.5 | EM28: 17364.375 | EN28: 18232.59375 | EP28: 1 | EQ28: 1 | ER28: 1 | ES28: 1 | ET28: 1
D29: Trade Shows | F29: 7 | G29: 10000 | H29: 0.2 | I29: -and- | J29: 0 | M29: 1 | N29: 50 | S29: 5000 | T29: 6000 | U29: 7000 | V29: 8000 | CA29: 0 | CB29: =IF($F29>CB$20,0,$EJ29)+IF($J29>0,$J29*CB$91,0)+R29 -> 0 | CC29: =IF($F29>CC$20,0,$EJ29)+IF($J29>0,$J29*CC$91,0)+S29 -> 5000 | CD29: =IF($F29>CD$20,0,$EJ29)+IF($J29>0,$J29*CD$91,0)+T29 -> 6000 | CE29: =IF($F29>CE$20,0,$EJ29)+IF($J29>0,$J29*CE$91,0)+U29 -> 7000 | CF29: =IF($F29>CF$20,0,$EJ29)+IF($J29>0,$J29*CF$91,0)+V29 -> 8000 | CG29: =IF($F29>CG$20,0,$EJ29)+IF($J29>0,$J29*CG$91,0)+W29 -> 10000 | CH29: =IF($F29>CH$20,0,$EJ29)+IF($J29>0,$J29*CH$91,0)+X29 -> 10000 | CI29: =IF($F29>CI$20,0,$EJ29)+IF($J29>0,$J29*CI$91,0)+Y29 -> 10000 | CJ29: =IF($F29>CJ$20,0,$EJ29)+IF($J29>0,$J29*CJ$91,0)+Z29 -> 10000 | CK29: =IF($F29>CK$20,0,$EJ29)+IF($J29>0,$J29*CK$91,0)+AA29 -> 10000 | CL29: =IF($F29>CL$20,0,$EJ29)+IF($J29>0,$J29*CL$91,0)+AB29 -> 10000 | CM29: =IF($F29>CM$20,0,$EJ29)+IF($J29>0,$J29*CM$91,0)+AC29 -> 10000 | CN29: =IF($F29>CN$20,0,$EJ29)+IF($J29>0,$J29*CN$91,0)+AD29 -> 10000 | CO29: =IF($F29>CO$20,0,$EJ29)+IF($J29>0,$J29*CO$91,0)+AE29 -> 10000 | CP29: =IF($F29>CP$20,0,$EJ29)+IF($J29>0,$J29*CP$91,0)+AF29 -> 10000 | CQ29: =IF($F29>CQ$20,0,$EJ29)+IF($J29>0,$J29*CQ$91,0)+AG29 -> 10000 | CR29: =IF($F29>CR$20,0,$EJ29)+IF($J29>0,$J29*CR$91,0)+AH29 -> 10000 | CS29: =IF($F29>CS$20,0,$EJ29)+IF($J29>0,$J29*CS$91,0)+AI29 -> 10000 | CT29: =IF($F29>CT$20,0,$EJ29)+IF($J29>0,$J29*CT$91,0)+AJ29 -> 10000 | CU29: 10000 | CV29: 10000 | CW29: 10000 | CX29: 10000 | CY29: 10000 | CZ29: 10000 | DA29: 10000 | DB29: 10000 | DC29: 10000 | DD29: 10000 | DE29: 10000 | DF29: 10000 | DG29: 10000 | DH29: 10000 | DI29: 10000 | DJ29: 10000 | DK29: 10000 | DL29: 10000 | DM29: 10000 | DN29: 10000 | DO29: 10000 | DP29: 10000 | DQ29: 10000 | DR29: 10000 | DS29: 10000 | DT29: 10000 | DU29: 10000 | DV29: 10000 | DW29: 10000 | DX29: 10000 | DY29: 10000 | DZ29: 10000 | EA29: 10000 | EB29: 10000 | EC29: 10000 | ED29: 10000 | EE29: 10000 | EF29: 10000 | EG29: 10000 | EH29: 10000 | EI29: 1 | EJ29: 10000 | EK29: 10500 | EL29: 11025 | EM29: 11576.25 | EN29: 12155.0625 | EP29: 1 | EQ29: 1 | ER29: 1 | ES29: 1 | ET29: 1
D30: Website | F30: 1 | G30: 5000 | H30: 0.2 | I30: -and- | J30: 0 | M30: 1 | N30: 50 | Q30: 5000 | R30: 5000 | CA30: 15000 | CB30: 15000 | CC30: 10000 | CD30: 10000 | CE30: 10000 | CF30: 10000 | CG30: 10000 | CH30: 10000 | CI30: 10000 | CJ30: 10000 | CK30: 10000 | CL30: 10000 | CM30: 10000 | CN30: 10000 | CO30: 10000 | CP30: 10000 | CQ30: 10000 | CR30: 10000 | CS30: 10000 | CT30: 10000 | CU30: 10000 | CV30: 10000 | CW30: 10000 | CX30: 10000 | CY30: 10000 | CZ30: 10000 | DA30: 10000 | DB30: 10000 | DC30: 10000 | DD30: 10000 | DE30: 10000 | DF30: 10000 | DG30: 10000 | DH30: 10000 | DI30: 10000 | DJ30: 10000 | DK30: 10000 | DL30: 10000 | DM30: 10000 | DN30: 10000 | DO30: 10000 | DP30: 10000 | DQ30: 10000 | DR30: 10000 | DS30: 10000 | DT30: 10000 | DU30: 10000 | DV30: 10000 | DW30: 10000 | DX30: 10000 | DY30: 10000 | DZ30: 10000 | EA30: 10000 | EB30: 10000 | EC30: 10000 | ED30: 10000 | EE30: 10000 | EF30: 10000 | EG30: 10000 | EH30: 10000 | EI30: 1 | EJ30: 10000 | EK30: 12000 | EL30: 14400 | EM30: 17280 | EN30: 20736 | EP30: 1 | EQ30: 1 | ER30: 1 | ES30: 1 | ET30: 1
D31: TBD | F31: 1 | H31: 0 | I31: -and- | J31: 0 | M31: 1 | N31: 50 | CA31: 5000 | CB31: 5000 | CC31: 5000 | CD31: 5000 | CE31: 5000 | CF31: 5000 | CG31: 5000 | CH31: 5000 | CI31: 5000 | CJ31: 5000 | CK31: 5000 | CL31: 5000 | CM31: 5000 | CN31: 5000 | CO31: 5000 | CP31: 5000 | CQ31: 5000 | CR31: 5000 | CS31: 5000 | CT31: 5000 | CU31: 5000 | CV31: 5000 | CW31: 5000 | CX31: 5000 | CY31: 5000 | CZ31: 5000 | DA31: 5000 | DB31: 5000 | DC31: 5000 | DD31: 5000 | DE31: 5000 | DF31: 5000 | DG31: 5000 | DH31: 5000 | DI31: 5000 | DJ31: 5000 | DK31: 5000 | DL31: 5000 | DM31: 5000 | DN31: 5000 | DO31: 5000 | DP31: 5000 | DQ31: 5000 | DR31: 5000 | DS31: 5000 | DT31: 5000 | DU31: 5000 | DV31: 5000 | DW31: 5000 | DX31: 5000 | DY31: 5000 | DZ31: 5000 | EA31: 5000 | EB31: 5000 | EC31: 5000 | ED31: 5000 | EE31: 5000 | EF31: 5000 | EG31: 5000 | EH31: 5000 | EI31: 1 | EJ31: 5000 | EK31: 6000 | EL31: 7200 | EM31: 8640 | EN31: 10368 | EP31: 1 | EQ31: 1 | ER31: 1 | ES31: 1 | ET31: 1
D32: TBD | F32: 1 | H32: 0 | I32: -and- | J32: 0 | M32: 1 | N32: 50 | CA32: 0 | CB32: 0 | CC32: 0 | CD32: 0 | CE32: 0 | CF32: 0 | CG32: 0 | CH32: 0 | CI32: 0 | CJ32: 0 | CK32: 0 | CL32: 0 | CM32: 0 | CN32: 0 | CO32: 0 | CP32: 0 | CQ32: 0 | CR32: 0 | CS32: 0 | CT32: 0 | CU32: 0 | CV32: 0 | CW32: 0 | CX32: 0 | CY32: 0 | CZ32: 0 | DA32: 0 | DB32: 0 | DC32: 0 | DD32: 0 | DE32: 0 | DF32: 0 | DG32: 0 | DH32: 0 | DI32: 0 | DJ32: 0 | DK32: 0 | DL32: 0 | DM32: 0 | DN32: 0 | DO32: 0 | DP32: 0 | DQ32: 0 | DR32: 0 | DS32: 0 | DT32: 0 | DU32: 0 | DV32: 0 | DW32: 0 | DX32: 0 | DY32: 0 | DZ32: 0 | EA32: 0 | EB32: 0 | EC32: 0 | ED32: 0 | EE32: 0 | EF32: 0 | EG32: 0 | EH32: 0 | EI32: 0 | EJ32: 0 | EK32: 0 | EL32: 0 | EM32: 0 | EN32: 0 | EP32: 0 | EQ32: 0 | ER32: 0 | ES32: 0 | ET32: 0
G33: =SUM(G24:G32) -> 67500 | I33: -and- | J33: 0 | M33: 1 | N33: 50 | CA33: 0 | CB33: 0 | CC33: 0 | CD33: 0 | CE33: 0 | CF33: 0 | CG33: 0 | CH33: 0 | CI33: 0 | CJ33: 0 | CK33: 0 | CL33: 0 | CM33: 0 | CN33: 0 | CO33: 0 | CP33: 0 | CQ33: 0 | CR33: 0 | CS33: 0 | CT33: 0 | CU33: 0 | CV33: 0 | CW33: 0 | CX33: 0 | CY33: 0 | CZ33: 0 | DA33: 0 | DB33: 0 | DC33: 0 | DD33: 0 | DE33: 0 | DF33: 0 | DG33: 0 | DH33: 0 | DI33: 0 | DJ33: 0 | DK33: 0 | DL33: 0 | DM33: 0 | DN33: 0 | DO33: 0 | DP33: 0 | DQ33: 0 | DR33: 0 | DS33: 0 | DT33: 0 | DU33: 0 | DV33: 0 | DW33: 0 | DX33: 0 | DY33: 0 | DZ33: 0 | EA33: 0 | EB33: 0 | EC33: 0 | ED33: 0 | EE33: 0 | EF33: 0 | EG33: 0 | EH33: 0 | EI33: 0 | EJ33: 0 | EK33: 0 | EL33: 0 | EM33: 0 | EN33: 0 | EP33: 0 | EQ33: 0 | ER33: 0 | ES33: 0 | ET33: 0
Q34: =SUM(Q24:Q33) -> 14000 | R34: =SUM(R24:R33) -> 17000 | S34: 22000 | T34: 27500 | U34: 32500 | V34: 37000 | W34: 0 | X34: 0 | Y34: 0 | Z34: 0 | AA34: 0 | AB34: 0 | AC34: 0 | AD34: 0 | AE34: 0 | AF34: 0 | AG34: 0 | AH34: 0 | AI34: 0 | AJ34: 0 | AK34: 0 | AL34: 0 | AM34: 0 | AN34: 0 | AO34: 0 | AP34: 0 | AQ34: 0 | AR34: 0 | AS34: 0 | AT34: 0 | AU34: 0 | AV34: 0 | AW34: 0 | AX34: 0 | AY34: 0 | AZ34: 0 | BA34: 0 | BB34: 0 | BC34: 0 | BD34: 0 | BE34: 0 | BF34: 0 | BG34: 0 | BH34: 0 | BI34: 0 | BJ34: 0 | BK34: 0 | BL34: 0 | BM34: 0 | BN34: 0 | BO34: 0 | BP34: 0 | BQ34: 0 | BR34: 0 | BS34: 0 | BT34: 0 | BU34: 0 | BV34: 0 | BW34: 0 | BX34: 0 | CA34: =SUM(CA24:CA33) -> 29000 | CB34: =SUM(CB24:CB33) -> 32000 | CC34: 52000 | CD34: 57500 | CE34: 62500 | CF34: 67000 | CG34: 70500 | CH34: 70500 | CI34: 70500 | CJ34: 70500 | CK34: 70500 | CL34: 70500 | CM34: 70500 | CN34: 70500 | CO34: 70500 | CP34: 70500 | CQ34: 70500 | CR34: 70500 | CS34: 70500 | CT34: 70500 | CU34: 70500 | CV34: 70500 | CW34: 70500 | CX34: 70500 | CY34: 70500 | CZ34: 70500 | DA34: 70500 | DB34: 70500 | DC34: 70500 | DD34: 70500 | DE34: 70500 | DF34: 70500 | DG34: 70500 | DH34: 70500 | DI34: 70500 | DJ34: 70500 | DK34: 70500 | DL34: 70500 | DM34: 70500 | DN34: 70500 | DO34: 70500 | DP34: 70500 | DQ34: 70500 | DR34: 70500 | DS34: 70500 | DT34: 70500 | DU34: 70500 | DV34: 70500 | DW34: 70500 | DX34: 70500 | DY34: 70500 | DZ34: 70500 | EA34: 70500 | EB34: 70500 | EC34: 70500 | ED34: 70500 | EE34: 70500 | EF34: 70500 | EG34: 70500 | EH34: 70500
D35: Operating Expenses | F35: Start Mon. | G35: Amount | H35: Ann. Inc. % | Q35: =COUNTIF(Q24:Q33,">0") -> 5 | R35: =COUNTIF(R24:R33,">0") -> 5 | S35: 5 | T35: 5 | U35: 5 | V35: 5 | W35: 0 | X35: 0 | Y35: 0 | Z35: 0 | AA35: 0 | AB35: 0 | AC35: 0 | AD35: 0 | AE35: 0 | AF35: 0 | AG35: 0 | AH35: 0 | AI35: 0 | AJ35: 0 | AK35: 0 | AL35: 0 | AM35: 0 | AN35: 0 | AO35: 0 | AP35: 0 | AQ35: 0 | AR35: 0 | AS35: 0 | AT35: 0 | AU35: 0 | AV35: 0 | AW35: 0 | AX35: 0 | AY35: 0 | AZ35: 0 | BA35: 0 | BB35: 0 | BC35: 0 | BD35: 0 | BE35: 0 | BF35: 0 | BG35: 0 | BH35: 0 | BI35: 0 | BJ35: 0 | BK35: 0 | BL35: 0 | BM35: 0 | BN35: 0 | BO35: 0 | BP35: 0 | BQ35: 0 | BR35: 0 | BS35: 0 | BT35: 0 | BU35: 0 | BV35: 0 | BW35: 0 | BX35: 0 | CA35: =COUNTIF(CA24:CA33,">0") -> 6 | CB35: =COUNTIF(CB24:CB33,">0") -> 6 | CC35: 8 | CD35: 8 | CE35: 8 | CF35: 8 | CG35: 8 | CH35: 8 | CI35: 8 | CJ35: 8 | CK35: 8 | CL35: 8 | CM35: 8 | CN35: 8 | CO35: 8 | CP35: 8 | CQ35: 8 | CR35: 8 | CS35: 8 | CT35: 8 | CU35: 8 | CV35: 8 | CW35: 8 | CX35: 8 | CY35: 8 | CZ35: 8 | DA35: 8 | DB35: 8 | DC35: 8 | DD35: 8 | DE35: 8 | DF35: 8 | DG35: 8 | DH35: 8 | DI35: 8 | DJ35: 8 | DK35: 8 | DL35: 8 | DM35: 8 | DN35: 8 | DO35: 8 | DP35: 8 | DQ35: 8 | DR35: 8 | DS35: 8 | DT35: 8 | DU35: 8 | DV35: 8 | DW35: 8 | DX35: 8 | DY35: 8 | DZ35: 8 | EA35: 8 | EB35: 8 | EC35: 8 | ED35: 8 | EE35: 8 | EF35: 8 | EG35: 8 | EH35: 8 | EI35: =SUM(CA35:EH35) -> 476
D36: Rent | F36: 4 | G36: 50000 | H36: 0.02 | J36: % | L36: $ | M36: Top | N36: Bottom | Q36: ='Chart Data'!$A$308 -> Mon 1 | R36: ='Chart Data'!$B$308 -> Mon 2 | S36: ='Chart Data'!$C$308 -> Mon 3 | T36: ='Chart Data'!$D$308 -> Mon 4 | U36: ='Chart Data'!$E$308 -> Mon 5 | V36: ='Chart Data'!$F$308 -> Mon 6 | W36: ='Chart Data'!$G$308 -> Mon 7 | X36: ='Chart Data'!$H$308 -> Mon 8 | Y36: ='Chart Data'!$I$308 -> Mon 9 | Z36: ='Chart Data'!$J$308 -> Mon 10 | AA36: ='Chart Data'!$K$308 -> Mon 11 | AB36: ='Chart Data'!$L$308 -> Mon 12 | AC36: ='Chart Data'!$M$308 -> Mon 13 | AD36: ='Chart Data'!$N$308 -> Mon 14 | AE36: ='Chart Data'!$O$308 -> Mon 15 | AF36: ='Chart Data'!$P$308 -> Mon 16 | AG36: ='Chart Data'!$Q$308 -> Mon 17 | AH36: ='Chart Data'!$R$308 -> Mon 18 | AI36: ='Chart Data'!$S$308 -> Mon 19 | AJ36: ='Chart Data'!$T$308 -> Mon 20 | AK36: ='Chart Data'!$U$308 -> Mon 21 | AL36: ='Chart Data'!$V$308 -> Mon 22 | AM36: ='Chart Data'!$W$308 -> Mon 23 | AN36: ='Chart Data'!$X$308 -> Mon 24 | AO36: ='Chart Data'!$Y$308 -> Mon 25 | AP36: ='Chart Data'!$Z$308 -> Mon 26 | AQ36: ='Chart Data'!$AA$308 -> Mon 27 | AR36: ='Chart Data'!$AB$308 -> Mon 28 | AS36: ='Chart Data'!$AC$308 -> Mon 29 | AT36: ='Chart Data'!$AD$308 -> Mon 30 | AU36: ='Chart Data'!$AE$308 -> Mon 31 | AV36: ='Chart Data'!$AF$308 -> Mon 32 | AW36: ='Chart Data'!$AG$308 -> Mon 33 | AX36: ='Chart Data'!$AH$308 -> Mon 34 | AY36: ='Chart Data'!$AI$308 -> Mon 35 | AZ36: ='Chart Data'!$AJ$308 -> Mon 36 | BA36: ='Chart Data'!$AK$308 -> Mon 37 | BB36: ='Chart Data'!$AL$308 -> Mon 38 | BC36: ='Chart Data'!$AM$308 -> Mon 39 | BD36: ='Chart Data'!$AN$308 -> Mon 40 | BE36: ='Chart Data'!$AO$308 -> Mon 41 | BF36: ='Chart Data'!$AP$308 -> Mon 42 | BG36: ='Chart Data'!$AQ$308 -> Mon 43 | BH36: ='Chart Data'!$AR$308 -> Mon 44 | BI36: ='Chart Data'!$AS$308 -> Mon 45 | BJ36: ='Chart Data'!$AT$308 -> Mon 46 | BK36: ='Chart Data'!$AU$308 -> Mon 47 | BL36: ='Chart Data'!$AV$308 -> Mon 48 | BM36: ='Chart Data'!$AW$308 -> Mon 49 | BN36: ='Chart Data'!$AX$308 -> Mon 50 | BO36: ='Chart Data'!$AY$308 -> Mon 51 | BP36: ='Chart Data'!$AZ$308 -> Mon 52 | BQ36: ='Chart Data'!$BA$308 -> Mon 53 | BR36: ='Chart Data'!$BB$308 -> Mon 54 | BS36: ='Chart Data'!$BC$308 -> Mon 55 | BT36: ='Chart Data'!$BD$308 -> Mon 56 | BU36: ='Chart Data'!$BE$308 -> Mon 57 | BV36: ='Chart Data'!$BF$308 -> Mon 58 | BW36: ='Chart Data'!$BG$308 -> Mon 59 | BX36: ='Chart Data'!$BH$308 -> Mon 60 | CA36: ='Chart Data'!$A$308 -> Mon 1 | CB36: ='Chart Data'!$B$308 -> Mon 2 | CC36: ='Chart Data'!$C$308 -> Mon 3 | CD36: ='Chart Data'!$D$308 -> Mon 4 | CE36: ='Chart Data'!$E$308 -> Mon 5 | CF36: ='Chart Data'!$F$308 -> Mon 6 | CG36: ='Chart Data'!$G$308 -> Mon 7 | CH36: ='Chart Data'!$H$308 -> Mon 8 | CI36: ='Chart Data'!$I$308 -> Mon 9 | CJ36: ='Chart Data'!$J$308 -> Mon 10 | CK36: ='Chart Data'!$K$308 -> Mon 11 | CL36: ='Chart Data'!$L$308 -> Mon 12 | CM36: ='Chart Data'!$M$308 -> Mon 13 | CN36: ='Chart Data'!$N$308 -> Mon 14 | CO36: ='Chart Data'!$O$308 -> Mon 15 | CP36: ='Chart Data'!$P$308 -> Mon 16 | CQ36: ='Chart Data'!$Q$308 -> Mon 17 | CR36: ='Chart Data'!$R$308 -> Mon 18 | CS36: ='Chart Data'!$S$308 -> Mon 19 | CT36: ='Chart Data'!$T$308 -> Mon 20 | CU36: ='Chart Data'!$U$308 -> Mon 21 | CV36: ='Chart Data'!$V$308 -> Mon 22 | CW36: ='Chart Data'!$W$308 -> Mon 23 | CX36: ='Chart Data'!$X$308 -> Mon 24 | CY36: ='Chart Data'!$Y$308 -> Mon 25 | CZ36: ='Chart Data'!$Z$308 -> Mon 26 | DA36: ='Chart Data'!$AA$308 -> Mon 27 | DB36: ='Chart Data'!$AB$308 -> Mon 28 | DC36: ='Chart Data'!$AC$308 -> Mon 29 | DD36: ='Chart Data'!$AD$308 -> Mon 30 | DE36: ='Chart Data'!$AE$308 -> Mon 31 | DF36: ='Chart Data'!$AF$308 -> Mon 32 | DG36: ='Chart Data'!$AG$308 -> Mon 33 | DH36: ='Chart Data'!$AH$308 -> Mon 34 | DI36: ='Chart Data'!$AI$308 -> Mon 35 | DJ36: ='Chart Data'!$AJ$308 -> Mon 36 | DK36: ='Chart Data'!$AK$308 -> Mon 37 | DL36: ='Chart Data'!$AL$308 -> Mon 38 | DM36: ='Chart Data'!$AM$308 -> Mon 39 | DN36: ='Chart Data'!$AN$308 -> Mon 40 | DO36: ='Chart Data'!$AO$308 -> Mon 41 | DP36: ='Chart Data'!$AP$308 -> Mon 42 | DQ36: ='Chart Data'!$AQ$308 -> Mon 43 | DR36: ='Chart Data'!$AR$308 -> Mon 44 | DS36: ='Chart Data'!$AS$308 -> Mon 45 | DT36: ='Chart Data'!$AT$308 -> Mon 46 | DU36: ='Chart Data'!$AU$308 -> Mon 47 | DV36: ='Chart Data'!$AV$308 -> Mon 48 | DW36: ='Chart Data'!$AW$308 -> Mon 49 | DX36: ='Chart Data'!$AX$308 -> Mon 50 | DY36: ='Chart Data'!$AY$308 -> Mon 51 | DZ36: ='Chart Data'!$AZ$308 -> Mon 52 | EA36: ='Chart Data'!$BA$308 -> Mon 53 | EB36: ='Chart Data'!$BB$308 -> Mon 54 | EC36: ='Chart Data'!$BC$308 -> Mon 55 | ED36: ='Chart Data'!$BD$308 -> Mon 56 | EE36: ='Chart Data'!$BE$308 -> Mon 57 | EF36: ='Chart Data'!$BF$308 -> Mon 58 | EG36: ='Chart Data'!$BG$308 -> Mon 59 | EH36: ='Chart Data'!$BH$308 -> Mon 60 | EJ36: Year 1 | EK36: Year 2 | EL36: Year 3 | EM36: Year 4 | EN36: Year 5 | EP36: Year 1 | EQ36: Year 2 | ER36: Year 3 | ES36: Year 4 | ET36: Year 5
A37: 1 | C37: 1 | D37: Utilities | F37: 7 | G37: 10000 | H37: 0.04 | I37: -and- | J37: 0 | M37: 1 | N37: 3 | Q37: 20000 | R37: 10000 | S37: 10000 | CA37: =IF($F36>CA$20,0,$EJ37)+IF($J37>0,$J37*CA$91,0)+SUMPRODUCT(--($A$37:$A$136>=$M37),--($A$37:$A$136<=$N37),--(Personnel!S$52:S$151)*$L37)+Q37 -> 20000 | CB37: =IF($F36>CB$20,0,$EJ37)+IF($J37>0,$J37*CB$91,0)+SUMPRODUCT(--($A$37:$A$136>=$M37),--($A$37:$A$136<=$N37),--(Personnel!T$52:T$151)*$L37)+R37 -> 10000 | CC37: =IF($F36>CC$20,0,$EJ37)+IF($J37>0,$J37*CC$91,0)+SUMPRODUCT(--($A$37:$A$136>=$M37),--($A$37:$A$136<=$N37),--(Personnel!U$52:U$151)*$L37)+S37 -> 10000 | CD37: =IF($F36>CD$20,0,$EJ37)+IF($J37>0,$J37*CD$91,0)+SUMPRODUCT(--($A$37:$A$136>=$M37),--($A$37:$A$136<=$N37),--(Personnel!V$52:V$151)*$L37)+T37 -> 50000 | CE37: =IF($F36>CE$20,0,$EJ37)+IF($J37>0,$J37*CE$91,0)+SUMPRODUCT(--($A$37:$A$136>=$M37),--($A$37:$A$136<=$N37),--(Personnel!W$52:W$151)*$L37)+U37 -> 50000 | CF37: =IF($F36>CF$20,0,$EJ37)+IF($J37>0,$J37*CF$91,0)+SUMPRODUCT(--($A$37:$A$136>=$M37),--($A$37:$A$136<=$N37),--(Personnel!X$52:X$151)*$L37)+V37 -> 50000 | CG37: =IF($F36>CG$20,0,$EJ37)+IF($J37>0,$J37*CG$91,0)+SUMPRODUCT(--($A$37:$A$136>=$M37),--($A$37:$A$136<=$N37),--(Personnel!Y$52:Y$151)*$L37)+W37 -> 50000 | CH37: =IF($F36>CH$20,0,$EJ37)+IF($J37>0,$J37*CH$91,0)+SUMPRODUCT(--($A$37:$A$136>=$M37),--($A$37:$A$136<=$N37),--(Personnel!Z$52:Z$151)*$L37)+X37 -> 50000 | CI37: =IF($F36>CI$20,0,$EJ37)+IF($J37>0,$J37*CI$91,0)+SUMPRODUCT(--($A$37:$A$136>=$M37),--($A$37:$A$136<=$N37),--(Personnel!AA$52:AA$151)*$L37)+Y37 -> 50000 | CJ37: =IF($F36>CJ$20,0,$EJ37)+IF($J37>0,$J37*CJ$91,0)+SUMPRODUCT(--($A$37:$A$136>=$M37),--($A$37:$A$136<=$N37),--(Personnel!AB$52:AB$151)*$L37)+Z37 -> 50000 | CK37: =IF($F36>CK$20,0,$EJ37)+IF($J37>0,$J37*CK$91,0)+SUMPRODUCT(--($A$37:$A$136>=$M37),--($A$37:$A$136<=$N37),--(Personnel!AC$52:AC$151)*$L37)+AA37 -> 50000 | CL37: =IF($F36>CL$20,0,$EJ37)+IF($J37>0,$J37*CL$91,0)+SUMPRODUCT(--($A$37:$A$136>=$M37),--($A$37:$A$136<=$N37),--(Personnel!AD$52:AD$151)*$L37)+AB37 -> 50000 | CM37: =IF($F36>CM$20,0,$EK37)+IF($J37>0,$J37*CM$91,0)+SUMPRODUCT(--($A$37:$A$136>=$M37),--($A$37:$A$136<=$N37),--(Personnel!AE$52:AE$151)*$L37)+AC37 -> 51000 | CN37: =IF($F36>CN$20,0,$EK37)+IF($J37>0,$J37*CN$91,0)+SUMPRODUCT(--($A$37:$A$136>=$M37),--($A$37:$A$136<=$N37),--(Personnel!AF$52:AF$151)*$L37)+AD37 -> 51000 | CO37: =IF($F36>CO$20,0,$EK37)+IF($J37>0,$J37*CO$91,0)+SUMPRODUCT(--($A$37:$A$136>=$M37),--($A$37:$A$136<=$N37),--(Personnel!AG$52:AG$151)*$L37)+AE37 -> 51000 | CP37: =IF($F36>CP$20,0,$EK37)+IF($J37>0,$J37*CP$91,0)+SUMPRODUCT(--($A$37:$A$136>=$M37),--($A$37:$A$136<=$N37),--(Personnel!AH$52:AH$151)*$L37)+AF37 -> 51000 | CQ37: =IF($F36>CQ$20,0,$EK37)+IF($J37>0,$J37*CQ$91,0)+SUMPRODUCT(--($A$37:$A$136>=$M37),--($A$37:$A$136<=$N37),--(Personnel!AI$52:AI$151)*$L37)+AG37 -> 51000 | CR37: =IF($F36>CR$20,0,$EK37)+IF($J37>0,$J37*CR$91,0)+SUMPRODUCT(--($A$37:$A$136>=$M37),--($A$37:$A$136<=$N37),--(Personnel!AJ$52:AJ$151)*$L37)+AH37 -> 51000 | CS37: =IF($F36>CS$20,0,$EK37)+IF($J37>0,$J37*CS$91,0)+SUMPRODUCT(--($A$37:$A$136>=$M37),--($A$37:$A$136<=$N37),--(Personnel!AK$52:AK$151)*$L37)+AI37 -> 51000 | CT37: =IF($F36>CT$20,0,$EK37)+IF($J37>0,$J37*CT$91,0)+SUMPRODUCT(--($A$37:$A$136>=$M37),--($A$37:$A$136<=$N37),--(Personnel!AL$52:AL$151)*$L37)+AJ37 -> 51000 | CU37: =IF($F36>CU$20,0,$EK37)+IF($J37>0,$J37*CU$91,0)+SUMPRODUCT(--($A$37:$A$136>=$M37),--($A$37:$A$136<=$N37),--(Personnel!AM$52:AM$151)*$L37)+AK37 -> 51000 | CV37: =IF($F36>CV$20,0,$EK37)+IF($J37>0,$J37*CV$91,0)+SUMPRODUCT(--($A$37:$A$136>=$M37),--($A$37:$A$136<=$N37),--(Personnel!AN$52:AN$151)*$L37)+AL37 -> 51000 | CW37: =IF($F36>CW$20,0,$EK37)+IF($J37>0,$J37*CW$91,0)+SUMPRODUCT(--($A$37:$A$136>=$M37),--($A$37:$A$136<=$N37),--(Personnel!AO$52:AO$151)*$L37)+AM37 -> 51000 | CX37: =IF($F36>CX$20,0,$EK37)+IF($J37>0,$J37*CX$91,0)+SUMPRODUCT(--($A$37:$A$136>=$M37),--($A$37:$A$136<=$N37),--(Personnel!AP$52:AP$151)*$L37)+AN37 -> 51000 | CY37: =IF($F36>CY$20,0,$EL37)+IF($J37>0,$J37*CY$91,0)+SUMPRODUCT(--($A$37:$A$136>=$M37),--($A$37:$A$136<=$N37),--(Personnel!AQ$52:AQ$151)*$L37)+AO37 -> 52020 | CZ37: =IF($F36>CZ$20,0,$EL37)+IF($J37>0,$J37*CZ$91,0)+SUMPRODUCT(--($A$37:$A$136>=$M37),--($A$37:$A$136<=$N37),--(Personnel!AR$52:AR$151)*$L37)+AP37 -> 52020 | DA37: =IF($F36>DA$20,0,$EL37)+IF($J37>0,$J37*DA$91,0)+SUMPRODUCT(--($A$37:$A$136>=$M37),--($A$37:$A$136<=$N37),--(Personnel!AS$52:AS$151)*$L37)+AQ37 -> 52020 | DB37: =IF($F36>DB$20,0,$EL37)+IF($J37>0,$J37*DB$91,0)+SUMPRODUCT(--($A$37:$A$136>=$M37),--($A$37:$A$136<=$N37),--(Personnel!AT$52:AT$151)*$L37)+AR37 -> 52020 | DC37: =IF($F36>DC$20,0,$EL37)+IF($J37>0,$J37*DC$91,0)+SUMPRODUCT(--($A$37:$A$136>=$M37),--($A$37:$A$136<=$N37),--(Personnel!AU$52:AU$151)*$L37)+AS37 -> 52020 | DD37: =IF($F36>DD$20,0,$EL37)+IF($J37>0,$J37*DD$91,0)+SUMPRODUCT(--($A$37:$A$136>=$M37),--($A$37:$A$136<=$N37),--(Personnel!AV$52:AV$151)*$L37)+AT37 -> 52020 | DE37: =IF($F36>DE$20,0,$EL37)+IF($J37>0,$J37*DE$91,0)+SUMPRODUCT(--($A$37:$A$136>=$M37),--($A$37:$A$136<=$N37),--(Personnel!AW$52:AW$151)*$L37)+AU37 -> 52020 | DF37: =IF($F36>DF$20,0,$EL37)+IF($J37>0,$J37*DF$91,0)+SUMPRODUCT(--($A$37:$A$136>=$M37),--($A$37:$A$136<=$N37),--(Personnel!AX$52:AX$151)*$L37)+AV37 -> 52020 | DG37: =IF($F36>DG$20,0,$EL37)+IF($J37>0,$J37*DG$91,0)+SUMPRODUCT(--($A$37:$A$136>=$M37),--($A$37:$A$136<=$N37),--(Personnel!AY$52:AY$151)*$L37)+AW37 -> 52020 | DH37: =IF($F36>DH$20,0,$EL37)+IF($J37>0,$J37*DH$91,0)+SUMPRODUCT(--($A$37:$A$136>=$M37),--($A$37:$A$136<=$N37),--(Personnel!AZ$52:AZ$151)*$L37)+AX37 -> 52020 | DI37: =IF($F36>DI$20,0,$EL37)+IF($J37>0,$J37*DI$91,0)+SUMPRODUCT(--($A$37:$A$136>=$M37),--($A$37:$A$136<=$N37),--(Personnel!BA$52:BA$151)*$L37)+AY37 -> 52020 | DJ37: =IF($F36>DJ$20,0,$EL37)+IF($J37>0,$J37*DJ$91,0)+SUMPRODUCT(--($A$37:$A$136>=$M37),--($A$37:$A$136<=$N37),--(Personnel!BB$52:BB$151)*$L37)+AZ37 -> 52020 | DK37: =IF($F36>DK$20,0,$EM37)+IF($J37>0,$J37*DK$91,0)+SUMPRODUCT(--($A$37:$A$136>=$M37),--($A$37:$A$136<=$N37),--(Personnel!BC$52:BC$151)*$L37)+BA37 -> 53060.4 | DL37: =IF($F36>DL$20,0,$EM37)+IF($J37>0,$J37*DL$91,0)+SUMPRODUCT(--($A$37:$A$136>=$M37),--($A$37:$A$136<=$N37),--(Personnel!BD$52:BD$151)*$L37)+BB37 -> 53060.4 | DM37: =IF($F36>DM$20,0,$EM37)+IF($J37>0,$J37*DM$91,0)+SUMPRODUCT(--($A$37:$A$136>=$M37),--($A$37:$A$136<=$N37),--(Personnel!BE$52:BE$151)*$L37)+BC37 -> 53060.4 | DN37: =IF($F36>DN$20,0,$EM37)+IF($J37>0,$J37*DN$91,0)+SUMPRODUCT(--($A$37:$A$136>=$M37),--($A$37:$A$136<=$N37),--(Personnel!BF$52:BF$151)*$L37)+BD37 -> 53060.4 | DO37: =IF($F36>DO$20,0,$EM37)+IF($J37>0,$J37*DO$91,0)+SUMPRODUCT(--($A$37:$A$136>=$M37),--($A$37:$A$136<=$N37),--(Personnel!BG$52:BG$151)*$L37)+BE37 -> 53060.4 | DP37: =IF($F36>DP$20,0,$EM37)+IF($J37>0,$J37*DP$91,0)+SUMPRODUCT(--($A$37:$A$136>=$M37),--($A$37:$A$136<=$N37),--(Personnel!BH$52:BH$151)*$L37)+BF37 -> 53060.4 | DQ37: =IF($F36>DQ$20,0,$EM37)+IF($J37>0,$J37*DQ$91,0)+SUMPRODUCT(--($A$37:$A$136>=$M37),--($A$37:$A$136<=$N37),--(Personnel!BI$52:BI$151)*$L37)+BG37 -> 53060.4 | DR37: =IF($F36>DR$20,0,$EM37)+IF($J37>0,$J37*DR$91,0)+SUMPRODUCT(--($A$37:$A$136>=$M37),--($A$37:$A$136<=$N37),--(Personnel!BJ$52:BJ$151)*$L37)+BH37 -> 53060.4 | DS37: =IF($F36>DS$20,0,$EM37)+IF($J37>0,$J37*DS$91,0)+SUMPRODUCT(--($A$37:$A$136>=$M37),--($A$37:$A$136<=$N37),--(Personnel!BK$52:BK$151)*$L37)+BI37 -> 53060.4 | DT37: =IF($F36>DT$20,0,$EM37)+IF($J37>0,$J37*DT$91,0)+SUMPRODUCT(--($A$37:$A$136>=$M37),--($A$37:$A$136<=$N37),--(Personnel!BL$52:BL$151)*$L37)+BJ37 -> 53060.4 | DU37: =IF($F36>DU$20,0,$EM37)+IF($J37>0,$J37*DU$91,0)+SUMPRODUCT(--($A$37:$A$136>=$M37),--($A$37:$A$136<=$N37),--(Personnel!BM$52:BM$151)*$L37)+BK37 -> 53060.4 | DV37: =IF($F36>DV$20,0,$EM37)+IF($J37>0,$J37*DV$91,0)+SUMPRODUCT(--($A$37:$A$136>=$M37),--($A$37:$A$136<=$N37),--(Personnel!BN$52:BN$151)*$L37)+BL37 -> 53060.4 | DW37: =IF($F36>DW$20,0,$EN37)+IF($J37>0,$J37*DW$91,0)+SUMPRODUCT(--($A$37:$A$136>=$M37),--($A$37:$A$136<=$N37),--(Personnel!BO$52:BO$151)*$L37)+BM37 -> 54121.608 | DX37: =IF($F36>DX$20,0,$EN37)+IF($J37>0,$J37*DX$91,0)+SUMPRODUCT(--($A$37:$A$136>=$M37),--($A$37:$A$136<=$N37),--(Personnel!BP$52:BP$151)*$L37)+BN37 -> 54121.608 | DY37: =IF($F36>DY$20,0,$EN37)+IF($J37>0,$J37*DY$91,0)+SUMPRODUCT(--($A$37:$A$136>=$M37),--($A$37:$A$136<=$N37),--(Personnel!BQ$52:BQ$151)*$L37)+BO37 -> 54121.608 | DZ37: =IF($F36>DZ$20,0,$EN37)+IF($J37>0,$J37*DZ$91,0)+SUMPRODUCT(--($A$37:$A$136>=$M37),--($A$37:$A$136<=$N37),--(Personnel!BR$52:BR$151)*$L37)+BP37 -> 54121.608 | EA37: =IF($F36>EA$20,0,$EN37)+IF($J37>0,$J37*EA$91,0)+SUMPRODUCT(--($A$37:$A$136>=$M37),--($A$37:$A$136<=$N37),--(Personnel!BS$52:BS$151)*$L37)+BQ37 -> 54121.608 | EB37: =IF($F36>EB$20,0,$EN37)+IF($J37>0,$J37*EB$91,0)+SUMPRODUCT(--($A$37:$A$136>=$M37),--($A$37:$A$136<=$N37),--(Personnel!BT$52:BT$151)*$L37)+BR37 -> 54121.608 | EC37: =IF($F36>EC$20,0,$EN37)+IF($J37>0,$J37*EC$91,0)+SUMPRODUCT(--($A$37:$A$136>=$M37),--($A$37:$A$136<=$N37),--(Personnel!BU$52:BU$151)*$L37)+BS37 -> 54121.608 | ED37: =IF($F36>ED$20,0,$EN37)+IF($J37>0,$J37*ED$91,0)+SUMPRODUCT(--($A$37:$A$136>=$M37),--($A$37:$A$136<=$N37),--(Personnel!BV$52:BV$151)*$L37)+BT37 -> 54121.608 | EE37: =IF($F36>EE$20,0,$EN37)+IF($J37>0,$J37*EE$91,0)+SUMPRODUCT(--($A$37:$A$136>=$M37),--($A$37:$A$136<=$N37),--(Personnel!BW$52:BW$151)*$L37)+BU37 -> 54121.608 | EF37: =IF($F36>EF$20,0,$EN37)+IF($J37>0,$J37*EF$91,0)+SUMPRODUCT(--($A$37:$A$136>=$M37),--($A$37:$A$136<=$N37),--(Personnel!BX$52:BX$151)*$L37)+BV37 -> 54121.608 | EG37: =IF($F36>EG$20,0,$EN37)+IF($J37>0,$J37*EG$91,0)+SUMPRODUCT(--($A$37:$A$136>=$M37),--($A$37:$A$136<=$N37),--(Personnel!BY$52:BY$151)*$L37)+BW37 -> 54121.608 | EH37: =IF($F36>EH$20,0,$EN37)+IF($J37>0,$J37*EH$91,0)+SUMPRODUCT(--($A$37:$A$136>=$M37),--($A$37:$A$136<=$N37),--(Personnel!BZ$52:BZ$151)*$L37)+BX37 -> 54121.608 | EI37: =IF(SUM(CA37:EH37)+G36>0,1,0) -> 1 | EJ37: =IF(F36>12,0,G36) -> 50000 | EK37: =IF($F36>24,0,IF($F36<13,$G36*(1+$H36),$G36)) -> 51000 | EL37: =IF($F36>36,0,IF($F36<13,$G36*(1+$H36)*(1+$H36),IF($F36<25,$G36*(1+$H36),$G36))) -> 52020 | EM37: =IF($F36>48,0,IF($F36<13,$G36*(1+$H36)*(1+$H36)*(1+$H36),IF($F36<25,$G36*(1+$H36)*(1+$H36),IF($F36<37,$G36*(1+$H36),$G36)))) -> 53060.4 | EN37: =IF($F36<13,$G36*(1+$H36)*(1+$H36)*(1+$H36)*(1+$H36),IF($F36<25,$G36*(1+$H36)*(1+$H36)*(1+$H36),IF($F36<37,$G36*(1+$H36)*(1+$H36),IF($F36<49,$G36*(1+$H36),G36)))) -> 54121.608 | EP37: =IF(SUM(CA37:CL37)>0,1,0) -> 1 | EQ37: =IF(SUM(CM37:CX37)>0,1,0) -> 1 | ER37: =IF(SUM(CY37:DJ37)>0,1,0) -> 1 | ES37: =IF(SUM(DK37:DV37)>0,1,0) -> 1 | ET37: =IF(SUM(DW37:EH37)>0,1,0) -> 1
